Workbook

Sheet Disclaimer
A1: Disclaimer The National Renewable Energy Laboratory (NREL) is operated for the U.S. Department of Energy (DOE) by Alliance for Sustainable Energy, LLC ("Alliance"). Access to or use of any data or software made available on this server ("Data") shall impose the following obligations on the user, and use of the Data constitutes user's agreement to these terms. The user is granted the right, without any fee or cost, to use or copy the Data, provided that this entire notice appears in all copies of the Data. Further, the user agrees to credit DOE/NREL/ALLIANCE in any publication that results from the use of the Data. The names DOE/NREL/ALLIANCE, however, may not be used in any advertising or publicity to endorse or promote any products or commercial entities unless specific written permission is obtained from DOE/NREL/ ALLIANCE. The user also understands that DOE/NREL/ALLIANCE are not obligated to provide the user with any support, consulting, training or assistance of any kind with regard to the use of the Data or to provide the user with any updates, revisions or new versions thereof. DOE, NREL, and ALLIANCE do not guarantee or endorse any results generated by use of the Data, and user is entirely responsible for the results and any reliance on the results or the Data in general. USER AGREES TO INDEMNIFY DOE/NREL/ALLIANCE AND ITS SUBSIDIARIES, AFFILIATES, OFFICERS, AGENTS, AND EMPLOYEES AGAINST ANY CLAIM OR DEMAND, INCLUDING REASONABLE ATTORNEYS' FEES, RELATED TO USER'S USE OF THE DATA. THE DATA ARE PROVIDED BY DOE/NREL/ALLIANCE "AS IS," AND ANY EXPRESS OR IMPLIED WARRANTIES, INCLUDING BUT NOT LIMITED TO THE IMPLIED WARRANTIES OF MERCHANTABILITY AND FITNESS FOR A PARTICULAR PURPOSE ARE DISCLAIMED. DOE/NREL/ALLIANCE ASSUME NO LEGAL LIABILITY OR RESPONSIBILITY FOR THE ACCURACY, COMPLETENESS, OR USEFULNESS OF THE DATA, OR REPRESENT THAT ITS USE WOULD NOT INFRINGE PRIVATELY OWNED RIGHTS. IN NO EVENT SHALL DOE/NREL/ALLIANCE BE LIABLE FOR ANY SPECIAL, INDIRECT OR CONSEQUENTIAL DAMAGES OR ANY DAMAGES WHATSOEVER, INCLUDING BUT NOT LIMITED TO CLAIMS ASSOCIATED WITH THE LOSS OF DATA OR PROFITS, THAT MAY RESULT FROM AN ACTION IN CONTRACT, NEGLIGENCE OR OTHER TORTIOUS CLAIM THAT ARISES OUT OF OR IN CONNECTION WITH THE ACCESS, USE OR PERFORMANCE OF THE DATA.

Sheet TempWs (hidden)
A1: Model | B1: Displ | C1: Cyl | D1: Trans | E1: Drive | F1: Fuel | G1: Cert Region | H1: Stnd | I1: Stnd Description | J1: Underhood ID | K1: Veh Class | L1: Air Pollution Score | M1: City MPG | N1: Hwy MPG | O1: Cmb MPG | P1: Greenhouse Gas Score | Q1: SmartWay | R1: Comb CO2 | S1: testName | T1: ImportName | U1: testIndex2 | V1: Make | W1: Dyno Target A | X1: Dyno Target B | Y1: Dyno Target C | Z1: Test kg | AA1: Fuel converter power (kW) | AB1: Powertrain type
A2: ACURA ILX | B2: 2.4 | C2: 4 | D2: AutoMan-8 | E2: 2WD | F2: Gasoline | G2: FA | H2: B5 | I2: Federal Tier 2 Bin 5 | J2: GHNXV02.4XH3 | K2: small car | L2: 5 | M2: 25 | N2: 36 | O2: 29 | P2: 7 | Q2: No | R2: 305 | S2: 2016 ACURA ILX 2.4L 4cyl | T2: 2016 ACURA ILX 4cyl 2WD | U2: 2074 | V2: ACURA | W2: 25.92 | X2: 0.1726 | Y2: 0.01753 | Z2: 1532.25 | AA2: 150.6314 | AB2: Conv. Gasoline
A3: ACURA MDX | B3: 3.5 | C3: 6 | D3: SemiAuto-9 | E3: 2WD | F3: Gasoline | G3: FA | H3: B5 | I3: Federal Tier 2 Bin 5 | J3: GHNXV03.5VA3 | K3: small SUV | L3: 5 | M3: 19 | N3: 27 | O3: 22 | P3: 5 | Q3: No | R3: 403 | S3: 2016 ACURA MDX 4WD 3.5L 6cyl | T3: 2016 ACURA MDX 6cyl 2WD | U3: 2076 | V3: ACURA | W3: 23.3 | X3: 0.4465 | Y3: 0.024 | Z3: 1929.5 | AA3: 216.253 | AB3: Conv. Gasoline
A4: ACURA RDX | B4: 3.5 | C4: 6 | D4: SemiAuto-6 | E4: 2WD | F4: Gasoline | G4: FA | H4: B5 | I4: Federal Tier 2 Bin 5 | J4: GHNXT03.5GV3 | K4: small SUV | L4: 5 | M4: 20 | N4: 29 | O4: 23 | P4: 5 | Q4: No | R4: 384 | S4: 2016 ACURA RDX 4WD 3.5L 6cyl | T4: 2016 ACURA RDX 6cyl 2WD | U4: 2084 | V4: ACURA | W4: 22.81 | X4: 0.3709 | Y4: 0.02297 | Z4: 1816 | AA4: 208.0503 | AB4: Conv. Gasoline
A5: ACURA RLX | B5: 3.5 | C5: 6 | D5: AutoMan-7 | E5: 4WD | F5: Gasoline | G5: FA | H5: B3 | I5: Federal Tier 2 Bin 3 | J5: GHNXV03.5PK3 | K5: midsize car | L5: 7 | M5: 28 | N5: 32 | O5: 30 | P5: 7 | Q5: Yes | R5: 297 | S5: 2016 ACURA RLX HYBRID 3.5L 6cyl | T5: 2016 ACURA RLX 6cyl 4WD | U5: 2088 | V5: ACURA | W5: 33.47 | X5: 0.3152 | Y5: 0.01813 | Z5: 2156.5 | AA5: 231.167 | AB5: HEV
A6: ACURA RLX | B6: 3.5 | C6: 6 | D6: SemiAuto-6 | E6: 2WD | F6: Gasoline | G6: FA | H6: B5 | I6: Federal Tier 2 Bin 5 | J6: GHNXV03.5SA4 | K6: midsize car | L6: 5 | M6: 20 | N6: 31 | O6: 24 | P6: 5 | Q6: No | R6: 378 | S6: 2016 ACURA RLX HYBRID 3.5L 6cyl | T6: 2016 ACURA RLX 6cyl 2WD | U6: 2088 | V6: ACURA | W6: 33.47 | X6: 0.3152 | Y6: 0.01813 | Z6: 2156.5 | AA6: 231.167 | AB6: HEV
A7: ACURA TLX | B7: 2.4 | C7: 4 | D7: AMS-8 | E7: 2WD | F7: Gasoline | G7: FA | H7: B5 | I7: Federal Tier 2 Bin 5 | J7: GHNXJ02.41A3 | K7: small car | L7: 5 | M7: 24 | N7: 35 | O7: 28 | P7: 7 | Q7: No | R7: 316 | S7: 2016 ACURA TLX 3.5L 6cyl | T7: 2016 ACURA TLX 4cyl 2WD | U7: 2096 | V7: ACURA | W7: 21.88 | X7: 0.2677 | Y7: 0.01587 | Z7: 1759.25 | AA7: 216.253 | AB7: Conv. Gasoline
A8: ACURA TLX | B8: 3.5 | C8: 6 | D8: SemiAuto-9 | E8: 2WD | F8: Gasoline | G8: FA | H8: B5 | I8: Federal Tier 2 Bin 5 | J8: GHNXV03.5RA3 | K8: small car | L8: 5 | M8: 21 | N8: 34 | O8: 25 | P8: 6 | Q8: No | R8: 358 | S8: 2016 ACURA TLX 3.5L 6cyl | T8: 2016 ACURA TLX 6cyl 2WD | U8: 2096 | V8: ACURA | W8: 21.88 | X8: 0.2677 | Y8: 0.01587 | Z8: 1759.25 | AA8: 216.253 | AB8: Conv. Gasoline
A9: ASTON MARTIN DB9 | B9: 5.9 | C9: 12 | D9: SemiAuto-6 | E9: 2WD | F9: Gasoline | G9: FA | H9: B5 | I9: Federal Tier 2 Bin 5 | J9: GASXV05.9VH1 | K9: small car | L9: 5 | M9: 13 | N9: 19 | O9: 15 | P9: 2 | Q9: No | R9: 587 | S9: 2016 Aston Martin DB9 5.9L 12cyl | T9: 2016 ASTON MARTIN DB9 12cyl 2WD | U9: 1 | V9: Aston Martin | W9: 43.17 | X9: 0.7502 | Y9: 0.0163 | Z9: 2043 | AA9: 380.307 | AB9: Conv. Gasoline
A10: ASTON MARTIN Rapide S | B10: 6 | C10: 12 | D10: SemiAuto-8 | E10: 2WD | F10: Gasoline | G10: FA | H10: B5 | I10: Federal Tier 2 Bin 5 | J10: GASXV06.0VHB | K10: small car | L10: 5 | M10: 14 | N10: 22 | O10: 17 | P10: 3 | Q10: No | R10: 534 | S10: 2016 Aston Martin Rapide S 6L 12cyl | T10: 2016 ASTON MARTIN Rapide S 12cyl 2WD | U10: 3 | V10: Aston Martin | W10: 32.66 | X10: 0.6085 | Y10: 0.0198 | Z10: 2156.5 | AA10: 411.6264 | AB10: Conv. Gasoline
A11: ASTON MARTIN V8 Vantage | B11: 4.7 | C11: 8 | D11: AutoMan-7 | E11: 2WD | F11: Gasoline | G11: FA | H11: B5 | I11: Federal Tier 2 Bin 5 | J11: GASXV04.7VH2 | K11: small car | L11: 5 | M11: 14 | N11: 21 | O11: 16 | P11: 3 | Q11: No | R11: 552 | S11: 2016 Aston Martin V8 VANTAGE S 4.7L 8cyl | T11: 2016 ASTON MARTIN V8 Vantage 8cyl 2WD | U11: 9 | V11: Aston Martin | W11: 45.78 | X11: 0.0008 | Y11: 0.0217 | Z11: 1816 | AA11: 320.651 | AB11: Conv. Gasoline
A12: AUDI A3 | B12: 1.8 | C12: 4 | D12: AMS-6 | E12: 2WD | F12: Gasoline | G12: FA | H12: B2 | I12: Federal Tier 2 Bin 2 | J12: GVGAV02.0APA | K12: small car | L12: 9 | M12: 23 | N12: 33 | O12: 27 | P12: 6 | Q12: No | R12: 328 | S12: 2016 AUDI Audi TT 2L 4cyl | T12: 2016 AUDI A3 4cyl 2WD | U12: 4395 | V12: AUDI | W12: 34.666 | X12: 0.42683 | Y12: 0.020108 | Z12: 1645.75 | AA12: 164.054 | AB12: Conv. Gasoline
A13: AUDI A3 e-tron | B13: 1.4 | C13: 4 | D13: AMS-6 | E13: 2WD | F13: Gasoline/Electricity | G13: CA | H13: L3SULEV30/PZEV | I13: California LEV-III SULEV30/PZEV | J13: GVGAV01.4V3B | K13: small car | L13: 9 | M13: 33/81 | N13: 37/86 | O13: 35/83 | P13: 10 | Q13: Elite | R13: 158 | S13: 2016 AUDI A3 e-tron 1.4L 4cyl | T13: 2016 AUDI A3 e-tron 4cyl 2WD | U13: 4317 | V13: AUDI | W13: 35.295 | X13: -0.0133 | Y13: 0.020196 | Z13: 1759.25 | AA13: 111.855 | AB13: PHEV
A14: AUDI A4 | B14: 2 | C14: 4 | D14: Man-6 | E14: 4WD | F14: Gasoline | G14: FA | H14: B5 | I14: Federal Tier 2 Bin 5 | J14: GVGAV02.0AUB | K14: small car | L14: 5 | M14: 22 | N14: 32 | O14: 26 | P14: 6 | Q14: No | R14: 343 | S14: 2016 AUDI A4 Allroad 2L 4cyl | T14: 2016 AUDI A4 4cyl 4WD | U14: 4333 | V14: AUDI | W14: 39.117 | X14: 0.46662 | Y14: 0.019788 | Z14: 1929.5 | AA14: 164.054 | AB14: Conv. Gasoline
A15: AUDI A4 | B15: 2 | C15: 4 | D15: SemiAuto-8 | E15: 4WD | F15: Ethanol/Gas | G15: FA | H15: B5 | I15: Federal Tier 2 Bin 5 | J15: GVGAJ02.0AUF | K15: small car | L15: 5 | M15: 15/21 | N15: 22/30 | O15: 18/25 | P15: 6 | Q15: No | R15: 347/361 | S15: 2016 AUDI A4 Allroad 2L 4cyl | T15: 2016 AUDI A4 4cyl 4WD | U15: 4333 | V15: AUDI | W15: 39.117 | X15: 0.46662 | Y15: 0.019788 | Z15: 1929.5 | AA15: 164.054 | AB15: Conv. Gasoline
A16: AUDI A6 | B16: 2 | C16: 4 | D16: AMS-7 | E16: 2WD | F16: Gasoline | G16: CA | H16: L3ULEV125 | I16: California LEV-III ULEV125 | J16: GVGAV02.0AAC | K16: midsize car | L16: 6 | M16: 24 | N16: 35 | O16: 28 | P16: 7 | Q16: Yes | R16: 310 | S16: 2016 AUDI Audi A6 2L 4cyl | T16: 2016 AUDI A6 4cyl 2WD | U16: 4389 | V16: AUDI | W16: 41.59 | X16: 0.03798 | Y16: 0.018042 | Z16: 1929.5 | AA16: 187.9164 | AB16: Conv. Gasoline
A17: AUDI A6 | B17: 3 | C17: 6 | D17: SemiAuto-8 | E17: 4WD | F17: Diesel | G17: FA | H17: B5 | I17: Federal Tier 2 Bin 5 | J17: GVGAJ03.0NU4 | K17: midsize car | L17: 5 | M17: 25 | N17: 38 | O17: 30 | P17: 6 | Q17: No | R17: 343 | S17: 2016 AUDI A7 3L 6cyl | T17: 2016 AUDI A6 6cyl 4WD | U17: 4339 | V17: AUDI | W17: 43.028 | X17: 0.38197 | Y17: 0.018566 | Z17: 2156.5 | AA17: 178.968 | AB17: Diesel
A18: AUDI A6 | B18: 3 | C18: 6 | D18: SemiAuto-8 | E18: 4WD | F18: Gasoline | G18: FA | H18: B5 | I18: Federal Tier 2 Bin 5 | J18: GVGAV03.0AUE | K18: midsize car | L18: 5 | M18: 20 | N18: 30 | O18: 24 | P18: 5 | Q18: No | R18: 373 | S18: 2016 AUDI A6 3L 6cyl | T18: 2016 AUDI A6 6cyl 4WD | U18: 4337 | V18: AUDI | W18: 39.342 | X18: 0.30782 | Y18: 0.016296 | Z18: 2043 | AA18: 248.3181 | AB18: Conv. Gasoline
A19: AUDI A8 L | B19: 4 | C19: 8 | D19: SemiAuto-8 | E19: 4WD | F19: Gasoline | G19: FA | H19: B5 | I19: Federal Tier 2 Bin 5 | J19: GVGAV04.0NUA | K19: large car | L19: 5 | M19: 18 | N19: 29 | O19: 22 | P19: 5 | Q19: No | R19: 410 | S19: 2016 AUDI S6 4L 8cyl | T19: 2016 AUDI A8 L 8cyl 4WD | U19: 4424 | V19: AUDI | W19: 45.636 | X19: 0.36895 | Y19: 0.018217 | Z19: 2270 | AA19: 335.565 | AB19: Conv. Gasoline
A20: AUDI Q3 | B20: 2 | C20: 4 | D20: SemiAuto-6 | E20: 2WD | F20: Gasoline | G20: FA | H20: B5 | I20: Federal Tier 2 Bin 5 | J20: GVGAV02.0AUA | K20: small car | L20: 5 | M20: 20 | N20: 29 | O20: 23 | P20: 5 | Q20: No | R20: 389 | S20: 2016 AUDI TTS 2L 4cyl | T20: 2016 AUDI Q3 4cyl 2WD | U20: 4454 | V20: AUDI | W20: 35.295 | X20: 0.41923 | Y20: 0.019555 | Z20: 1589 | AA20: 217.7444 | AB20: Conv. Gasoline
A21: AUDI Q5 | B21: 3 | C21: 6 | D21: SemiAuto-8 | E21: 4WD | F21: Gasoline | G21: FA | H21: B5 | I21: Federal Tier 2 Bin 5 | J21: GVGAJ03.0AUD | K21: small SUV | L21: 5 | M21: 18 | N21: 26 | O21: 21 | P21: 5 | Q21: No | R21: 429 | S21: 2016 AUDI Q5 Hybrid 2L 4cyl | T21: 2016 AUDI Q5 6cyl 4WD | U21: 67 | V21: AUDI | W21: 47.21 | X21: -0.217 | Y21: 0.027063 | Z21: 2156.5 | AA21: 157.3427 | AB21: HEV
A22: AUDI Q5 Hybrid | B22: 2 | C22: 4 | D22: SemiAuto-8 | E22: 4WD | F22: Gasoline | G22: FA | H22: B5 | I22: Federal Tier 2 Bin 5 | J22: GVGAT02.0AUH | K22: small SUV | L22: 5 | M22: 24 | N22: 30 | O22: 26 | P22: 6 | Q22: No | R22: 337 | S22: 2016 AUDI Q5 Hybrid 2L 4cyl | T22: 2016 AUDI Q5 Hybrid 4cyl 4WD | U22: 67 | V22: AUDI | W22: 47.21 | X22: -0.217 | Y22: 0.027063 | Z22: 2156.5 | AA22: 157.3427 | AB22: HEV
A23: BENTLEY Continental GT | B23: 6 | C23: 12 | D23: SemiAuto-8 | E23: 4WD | F23: Gasoline | G23: FA | H23: B5 | I23: Federal Tier 2 Bin 5 | J23: GVGAV06.0VLN | K23: small car | L23: 5 | M23: 12 | N23: 21 | O23: 15 | P23: 2 | Q23: No | R23: 580 | S23: 2016 BENTLEY Continental GT 6L 12cyl | T23: 2016 BENTLEY Continental GT 12cyl 4WD | U23: 107 | V23: BENTLEY | W23: 54.853 | X23: 0.04883 | Y23: 0.022116 | Z23: 2724 | AA23: 459.3512 | AB23: Conv. Gasoline
A24: BENTLEY Mulsanne | B24: 6.8 | C24: 8 | D24: SemiAuto-8 | E24: 2WD | F24: Gasoline | G24: FA | H24: B5 | I24: Federal Tier 2 Bin 5 | J24: GVGAV06.8ELP | K24: midsize car | L24: 5 | M24: 11 | N24: 18 | O24: 13 | P24: 1 | Q24: No | R24: 656 | S24: 2016 BENTLEY Mulsanne Speed 6.8L 8cyl | T24: 2016 BENTLEY Mulsanne 8cyl 2WD | U24: 4459 | V24: BENTLEY | W24: 74.19 | X24: -0.3111 | Y24: 0.02521 | Z24: 2951 | AA24: 395.221 | AB24: Conv. Gasoline
A25: BMW 228i | B25: 2 | C25: 4 | D25: Man-6 | E25: 2WD | F25: Gasoline | G25: FA | H25: B5 | I25: Federal Tier 2 Bin 5 | J25: GBMXJ02.0N20 | K25: small car | L25: 5 | M25: 22 | N25: 34 | O25: 26 | P25: 6 | Q25: No | R25: 337 | S25: 2016 BMW 228i xDrive Convertible 2L 4cyl | T25: 2016 BMW 228i 4cyl 2WD | U25: 136 | V25: BMW | W25: 59 | X25: -0.504 | Y25: 0.02629 | Z25: 1816 | AA25: 178.968 | AB25: Conv. Gasoline
A26: BMW 228i | B26: 2 | C26: 4 | D26: SemiAuto-8 | E26: 2WD | F26: Gasoline | G26: FA | H26: B5 | I26: Federal Tier 2 Bin 5 | J26: GBMXV02.0N26 | K26: small car | L26: 5 | M26: 23 | N26: 35 | O26: 27 | P26: 6 | Q26: No | R26: 327 | S26: 2016 BMW 228i xDrive Convertible 2L 4cyl | T26: 2016 BMW 228i 4cyl 2WD | U26: 136 | V26: BMW | W26: 59 | X26: -0.504 | Y26: 0.02629 | Z26: 1816 | AA26: 178.968 | AB26: Conv. Gasoline
A27: BMW 328d | B27: 2 | C27: 4 | D27: SemiAuto-8 | E27: 2WD | F27: Diesel | G27: FA | H27: B5 | I27: Federal Tier 2 Bin 5 | J27: GBMXV02.0N47 | K27: small car | L27: 5 | M27: 32 | N27: 42 | O27: 36 | P27: 7 | Q27: No | R27: 284 | S27: 2016 BMW 328d xDrive 2L 4cyl | T27: 2016 BMW 328d 4cyl 2WD | U27: 195 | V27: BMW | W27: 49.1 | X27: -0.357 | Y27: 0.0229 | Z27: 1816 | AA27: 134.9717 | AB27: Diesel
A28: BMW 330e | B28: 2 | C28: 4 | D28: SemiAuto-8 | E28: 2WD | F28: Gasoline/Electricity | G28: CA | H28: L3ULEV125 | I28: California LEV-III ULEV125 | J28: GBMXV02.0H48 | K28: small car | L28: 6 | M28: 28/67 | N28: 36/78 | O28: 31/72 | P28: 10 | Q28: Yes | R28: 184 | S28: 2016 BMW 330e 2L 4cyl | T28: 2016 BMW 330e 4cyl 2WD | U28: 295 | V28: BMW | W28: 52.9 | X28: -0.113 | Y28: 0.01826 | Z28: 1929.5 | AA28: 134.226 | AB28: PHEV
A29: BMW 335i Gran Turismo | B29: 3 | C29: 6 | D29: SemiAuto-8 | E29: 4WD | F29: Gasoline | G29: FA | H29: B5 | I29: Federal Tier 2 Bin 5 | J29: GBMXJ03.0N55 | K29: large car | L29: 5 | M29: 20 | N29: 30 | O29: 23 | P29: 5 | Q29: No | R29: 374 | S29: 2016 BMW M2 3L 6cyl | T29: 2016 BMW 335i Gran Turismo 6cyl 4WD | U29: 681 | V29: BMW | W29: 48.2 | X29: 0.229 | Y29: 0.02036 | Z29: 1702.5 | AA29: 272.1805 | AB29: Conv. Gasoline
A30: BMW 340i | B30: 3 | C30: 6 | D30: Man-6 | E30: 2WD | F30: Gasoline | G30: CA | H30: L3ULEV125 | I30: California LEV-III ULEV125 | J30: GBMXV03.0B58 | K30: small car | L30: 6 | M30: 20 | N30: 30 | O30: 23 | P30: 5 | Q30: No | R30: 384 | S30: 2016 BMW 340i 3L 6cyl | T30: 2016 BMW 340i 6cyl 2WD | U30: 307 | V30: BMW | W30: 43.2 | X30: -0.189 | Y30: 0.02063 | Z30: 1816 | AA30: 238.624 | AB30: Conv. Gasoline
A31: BMW 535d | B31: 3 | C31: 6 | D31: SemiAuto-8 | E31: 2WD | F31: Diesel | G31: FA | H31: B5 | I31: Federal Tier 2 Bin 5 | J31: GBMXV03.0N57 | K31: midsize car | L31: 5 | M31: 26 | N31: 38 | O31: 30 | P31: 6 | Q31: No | R31: 335 | S31: 2016 BMW 535d xDrive 3L 6cyl | T31: 2016 BMW 535d 6cyl 2WD | U31: 476 | V31: BMW | W31: 56 | X31: -0.2 | Y31: 0.01951 | Z31: 2043 | AA31: 190.1535 | AB31: Diesel
A32: BMW 535i | B32: 3 | C32: 6 | D32: SemiAuto-8 | E32: 2WD | F32: Gasoline | G32: FA | H32: B5 | I32: Federal Tier 2 Bin 5 | J32: GBMXV03.0F10 | K32: midsize car | L32: 5 | M32: 20 | N32: 31 | O32: 24 | P32: 5 | Q32: No | R32: 375 | S32: 2016 BMW 535i xDrive Gran Turismo 3L 6cyl | T32: 2016 BMW 535i 6cyl 2WD | U32: 555 | V32: BMW | W32: 59.9 | X32: -0.302 | Y32: 0.02559 | Z32: 2383.5 | AA32: 223.71 | AB32: Conv. Gasoline
A33: BMW 550i | B33: 4.4 | C33: 8 | D33: SemiAuto-8 | E33: 2WD | F33: Gasoline | G33: FA | H33: B5 | I33: Federal Tier 2 Bin 5 | J33: GBMXV04.4N63 | K33: midsize car | L33: 5 | M33: 17 | N33: 25 | O33: 20 | P33: 4 | Q33: No | R33: 452 | S33: 2016 BMW 750i 4.4L 8cyl | T33: 2016 BMW 550i 8cyl 2WD | U33: 651 | V33: BMW | W33: 53.2 | X33: -0.1 | Y33: 0.02146 | Z33: 2156.5 | AA33: 330.3451 | AB33: Conv. Gasoline
A34: BMW ActiveHybrid 5 | B34: 3 | C34: 6 | D34: SemiAuto-8 | E34: 2WD | F34: Gasoline | G34: FA | H34: B5 | I34: Federal Tier 2 Bin 5 | J34: GBMXV03.0AH5 | K34: midsize car | L34: 5 | M34: 23 | N34: 30 | O34: 26 | P34: 6 | Q34: No | R34: 346 | S34: 2016 BMW ActiveHybrid 5 3L 6cyl | T34: 2016 BMW ActiveHybrid 5 6cyl 2WD | U34: 657 | V34: BMW | W34: 54.2 | X34: -0.231 | Y34: 0.02301 | Z34: 2156.5 | AA34: 223.71 | AB34: HEV
A35: BMW i3 | B35: N/A | C35: N/A | D35: Auto-1 | E35: 2WD | F35: Electricity | G35: FA | H35: B1 | I35: Federal Tier 2 Bin 1 | J35: GBMXV00.0I3B | K35: small car | L35: 10 | M35: 137 | N35: 111 | O35: 124 | P35: 10 | Q35: Elite | R35: 0 | S35: 2016 BMW I3 REX 0.6L 2cyl | T35: 2016 BMW i3 N/Acyl 2WD | U35: 667 | V35: BMW | W35: 23.7 | X35: 0.346 | Y35: 0.01675 | Z35: 1532.25 | AA35: 8.2027 | AB35: EV
A36: BMW i3 REx | B36: 0.6 | C36: 2 | D36: Auto-1 | E36: 2WD | F36: Gasoline/Electricity | G36: FA | H36: B5 | I36: Federal Tier 2 Bin 5 | J36: GBMXV00.6I3R | K36: small car | L36: 5 | M36: 41/127 | N36: 37/107 | O36: 39/117 | P36: 10 | Q36: Yes | R36: 37 | S36: 2016 BMW I3 REX 0.6L 2cyl | T36: 2016 BMW i3 REx 2cyl 2WD | U36: 667 | V36: BMW | W36: 23.7 | X36: 0.346 | Y36: 0.01675 | Z36: 1532.25 | AA36: 8.2027 | AB36: PHEV
A37: BMW i8 | B37: 1.5 | C37: 3 | D37: Auto-6 | E37: 4WD | F37: Gasoline/Electricity | G37: FA | H37: B5 | I37: Federal Tier 2 Bin 5 | J37: GBMXV01.5I8P | K37: small car | L37: 5 | M37: 28/80 | N37: 29/72 | O37: 28/76 | P37: 9 | Q37: Yes | R37: 198 | S37: 2016 BMW I8 1.5L 3cyl | T37: 2016 BMW i8 3cyl 4WD | U37: 674 | V37: BMW | W37: 35.4 | X37: 0.165 | Y37: 0.01527 | Z37: 1702.5 | AA37: 172.2567 | AB37: PHEV
A38: BMW M3 | B38: 3 | C38: 6 | D38: AMS-7 | E38: 2WD | F38: Gasoline | G38: FA | H38: B5 | I38: Federal Tier 2 Bin 5 | J38: GBMXV03.0S55 | K38: small car | L38: 5 | M38: 17 | N38: 24 | O38: 19 | P38: 4 | Q38: No | R38: 459 | S38: 2016 BMW M4 GTS 3L 6cyl | T38: 2016 BMW M3 6cyl 2WD | U38: 724 | V38: BMW | W38: 44.6 | X38: 0.593 | Y38: 0.01626 | Z38: 1759.25 | AA38: 372.85 | AB38: Conv. Gasoline
A39: BMW M5 | B39: 4.4 | C39: 8 | D39: AMS-7 | E39: 2WD | F39: Gasoline | G39: FA | H39: B5 | I39: Federal Tier 2 Bin 5 | J39: GBMXV04.4S63 | K39: midsize car | L39: 5 | M39: 14 | N39: 20 | O39: 16 | P39: 3 | Q39: No | R39: 554 | S39: 2016 BMW M5 4.4L 8cyl | T39: 2016 BMW M5 8cyl 2WD | U39: 728 | V39: BMW | W39: 39.2 | X39: 0.184 | Y39: 0.01906 | Z39: 2156.5 | AA39: 412.3721 | AB39: Conv. Gasoline
A40: BMW X1 xDrive28i | B40: 2 | C40: 4 | D40: SemiAuto-8 | E40: 4WD | F40: Gasoline | G40: CA | H40: L3SULEV30 | I40: California LEV-III SULEV30 | J40: GBMXV02.0B46 | K40: large car | L40: 8 | M40: 22 | N40: 32 | O40: 26 | P40: 6 | Q40: No | R40: 346 | S40: 2016 BMW X1 xDrive28i 2L 4cyl | T40: 2016 BMW X1 xDrive28i 4cyl 4WD | U40: 740 | V40: BMW | W40: 46.6 | X40: -0.027 | Y40: 0.02235 | Z40: 1816 | AA40: 170.0196 | AB40: Conv. Gasoline
A41: BMW X5 M | B41: 4.4 | C41: 8 | D41: SemiAuto-8 | E41: 4WD | F41: Gasoline | G41: FA | H41: B5 | I41: Federal Tier 2 Bin 5 | J41: GBMXT04.4S63 | K41: standard SUV | L41: 5 | M41: 14 | N41: 19 | O41: 16 | P41: 3 | Q41: No | R41: 551 | S41: 2016 BMW X5 M 4.4L 8cyl | T41: 2016 BMW X5 M 8cyl 4WD | U41: 790 | V41: BMW | W41: 75.1 | X41: -0.17 | Y41: 0.03424 | Z41: 2497 | AA41: 422.8119 | AB41: Conv. Gasoline
A42: BMW X5 sDrive35i | B42: 3 | C42: 6 | D42: SemiAuto-8 | E42: 2WD | F42: Gasoline | G42: CA | H42: L3ULEV125 | I42: California LEV-III ULEV125 | J42: GBMXT03.0F15 | K42: standard SUV | L42: 6 | M42: 18 | N42: 25 | O42: 21 | P42: 5 | Q42: No | R42: 425 | S42: 2016 BMW X5 sDrive35i 3L 6cyl | T42: 2016 BMW X5 sDrive35i 6cyl 2WD | U42: 793 | V42: BMW | W42: 52.1 | X42: -0.355 | Y42: 0.03592 | Z42: 2270 | AA42: 223.71 | AB42: Conv. Gasoline
A43: BMW X5 xDrive35d | B43: 3 | C43: 6 | D43: SemiAuto-8 | E43: 4WD | F43: Diesel | G43: FA | H43: B5 | I43: Federal Tier 2 Bin 5 | J43: GBMXT03.0N57 | K43: standard SUV | L43: 5 | M43: 23 | N43: 30 | O43: 26 | P43: 5 | Q43: No | R43: 398 | S43: 2016 BMW X5 xDrive35d 3L 6cyl | T43: 2016 BMW X5 xDrive35d 6cyl 4WD | U43: 796 | V43: BMW | W43: 58.6 | X43: -0.446 | Y43: 0.03632 | Z43: 2383.5 | AA43: 190.1535 | AB43: Diesel
A44: BMW X5 xDrive40e | B44: 2 | C44: 4 | D44: SemiAuto-8 | E44: 4WD | F44: Gasoline/Electricity | G44: FA | H44: B5 | I44: Federal Tier 2 Bin 5 | J44: GBMXT02.0H20 | K44: standard SUV | L44: 5 | M44: 23/55 | N44: 25/57 | O44: 24/56 | P44: 8 | Q44: Yes | R44: 247 | S44: 2016 BMW X5 xDrive40e 2L 4cyl | T44: 2016 BMW X5 xDrive40e 4cyl 4WD | U44: 808 | V44: BMW | W44: 56.2 | X44: -0.432 | Y44: 0.03534 | Z44: 2497 | AA44: 178.968 | AB44: PHEV
A45: BMW X5 xDrive50i | B45: 4.4 | C45: 8 | D45: SemiAuto-8 | E45: 4WD | F45: Gasoline | G45: CA | H45: L3ULEV125 | I45: California LEV-III ULEV125 | J45: GBMXT04.4F15 | K45: standard SUV | L45: 6 | M45: 15 | N45: 21 | O45: 17 | P45: 3 | Q45: No | R45: 516 | S45: 2016 BMW X5 xDrive50i 4.4L 8cyl | T45: 2016 BMW X5 xDrive50i 8cyl 4WD | U45: 815 | V45: BMW | W45: 60.2 | X45: -0.384 | Y45: 0.03673 | Z45: 2497 | AA45: 330.3451 | AB45: Conv. Gasoline
A46: BMW Z4 | B46: 3 | C46: 6 | D46: AMS-7 | E46: 2WD | F46: Gasoline | G46: FA | H46: B5 | I46: Federal Tier 2 Bin 5 | J46: GBMXV03.054R | K46: small car | L46: 5 | M46: 17 | N46: 24 | O46: 20 | P46: 4 | Q46: No | R46: 454 | S46: 2016 BMW Z4 sDrive35is 3L 6cyl | T46: 2016 BMW Z4 6cyl 2WD | U46: 839 | V46: BMW | W46: 35.2 | X46: 0.462 | Y46: 0.014 | Z46: 1759.25 | AA46: 249.8095 | AB46: Conv. Gasoline
A47: BUICK Cascada | B47: 1.6 | C47: 4 | D47: SemiAuto-6 | E47: 2WD | F47: Gasoline | G47: CA | H47: B4 | I47: Federal Tier 2 Bin 4 | J47: GGMXV01.6001 | K47: small car | L47: 6 | M47: 20 | N47: 27 | O47: 23 | P47: 5 | Q47: No | R47: 393 | S47: 2016 BUICK CASCADA 1.6L 4cyl | T47: 2016 BUICK Cascada 4cyl 2WD | U47: 1690 | V47: BUICK | W47: 44.15 | X47: 0.0791 | Y47: 0.02217 | Z47: 1929.5 | AA47: 149.14 | AB47: Conv. Gasoline
A48: BUICK Enclave | B48: 3.6 | C48: 6 | D48: Auto-6 | E48: 2WD | F48: Gasoline | G48: FA | H48: B5 | I48: Federal Tier 2 Bin 5 | J48: GGMXT03.6151 | K48: standard SUV | L48: 5 | M48: 17 | N48: 24 | O48: 19 | P48: 4 | Q48: No | R48: 465 | S48: 2016 BUICK ENCLAVE AWD 3.6L 6cyl | T48: 2016 BUICK Enclave 6cyl 2WD | U48: 1694 | V48: BUICK | W48: 50.58 | X48: 0.1081 | Y48: 0.03291 | Z48: 2497 | AA48: 214.7616 | AB48: Conv. Gasoline
A49: BUICK Encore | B49: 1.4 | C49: 4 | D49: SemiAuto-6 | E49: 2WD | F49: Gasoline | G49: CA | H49: B4 | I49: Federal Tier 2 Bin 4 | J49: GGMXV01.4001 | K49: small SUV | L49: 6 | M49: 28 | N49: 34 | O49: 30 | P49: 7 | Q49: Yes | R49: 293 | S49: 2016 BUICK ENCORE 1.4L 4cyl | T49: 2016 BUICK Encore 4cyl 2WD | U49: 1698 | V49: BUICK | W49: 24.31 | X49: 0.215 | Y49: 0.02262 | Z49: 1589 | AA49: 110.3636 | AB49: Conv. Gasoline
A50: BUICK Encore | B50: 1.4 | C50: 4 | D50: SemiAuto-6 | E50: 2WD | F50: Gasoline | G50: CA | H50: B4 | I50: Federal Tier 2 Bin 4 | J50: GGMXV01.4099 | K50: small SUV | L50: 6 | M50: 25 | N50: 33 | O50: 28 | P50: 7 | Q50: Yes | R50: 317 | S50: 2016 BUICK ENCORE AWD 1.4L 4cyl | T50: 2016 BUICK Encore 4cyl 2WD | U50: 1701 | V50: BUICK | W50: 27.3 | X50: 0.3575 | Y50: 0.02291 | Z50: 1645.75 | AA50: 110.3636 | AB50: Conv. Gasoline
A51: BUICK Envision | B51: 2 | C51: 4 | D51: Auto-6 | E51: 4WD | F51: Gasoline | G51: CA | H51: B4 | I51: Federal Tier 2 Bin 4 | J51: GGMXT02.0100 | K51: small SUV | L51: 6 | M51: 20 | N51: 26 | O51: 22 | P51: 5 | Q51: No | R51: 392 | S51: 2016 BUICK ENVISION AWD 2L 4cyl | T51: 2016 BUICK Envision 4cyl 4WD | U51: 1705 | V51: BUICK | W51: 43.28 | X51: 0.2339 | Y51: 0.02454 | Z51: 2043 | AA51: 187.9164 | AB51: Conv. Gasoline
A52: BUICK Lacrosse | B52: 2.4 | C52: 4 | D52: SemiAuto-6 | E52: 2WD | F52: Gasoline | G52: FA | H52: B5 | I52: Federal Tier 2 Bin 5 | J52: GGMXV02.4060 | K52: midsize car | L52: 5 | M52: 25 | N52: 36 | O52: 29 | P52: 7 | Q52: No | R52: 308 | S52: 2016 BUICK LACROSSE AWD 3.6L 6cyl | T52: 2016 BUICK Lacrosse 4cyl 2WD | U52: 1710 | V52: BUICK | W52: 43.85 | X52: 0.3206 | Y52: 0.01882 | Z52: 2043 | AA52: 225.9471 | AB52: Conv. Gasoline
A53: BUICK Lacrosse | B53: 3.6 | C53: 6 | D53: SemiAuto-6 | E53: 2WD | F53: Ethanol/Gas | G53: CA | H53: B4 | I53: Federal Tier 2 Bin 4 | J53: GGMXV03.6166 | K53: midsize car | L53: 6 | M53: 14/18 | N53: 20/28 | O53: 16/21 | P53: 5 | Q53: No | R53: 384/422 | S53: 2016 BUICK LACROSSE AWD 3.6L 6cyl | T53: 2016 BUICK Lacrosse 6cyl 2WD | U53: 1710 | V53: BUICK | W53: 43.85 | X53: 0.3206 | Y53: 0.01882 | Z53: 2043 | AA53: 225.9471 | AB53: Conv. Gasoline
A54: BUICK Lacrosse | B54: 3.6 | C54: 6 | D54: SemiAuto-6 | E54: 2WD | F54: Gasoline | G54: CA | H54: L3SULEV30 | I54: California LEV-III SULEV30 | J54: GGMXV03.6048 | K54: midsize car | L54: 8 | M54: 18 | N54: 28 | O54: 22 | P54: 5 | Q54: No | R54: 408 | S54: 2016 CHEVROLET IMPALA 3.6L 6cyl | T54: 2016 BUICK Lacrosse 6cyl 2WD | U54: 1941 | V54: CHEVROLET | W54: 38.7 | X54: 0.2752 | Y54: 0.0189 | Z54: 1929.5 | AA54: 227.4385 | AB54: Conv. Gasoline
A55: BUICK Regal | B55: 2 | C55: 4 | D55: Man-6 | E55: 2WD | F55: Gasoline | G55: CA | H55: B4 | I55: Federal Tier 2 Bin 4 | J55: GGMXV02.0021 | K55: midsize car | L55: 6 | M55: 20 | N55: 31 | O55: 24 | P55: 5 | Q55: No | R55: 369 | S55: 2016 BUICK REGAL AWD 2L 4cyl | T55: 2016 BUICK Regal 4cyl 2WD | U55: 1714 | V55: BUICK | W55: 52.25 | X55: 0.4199 | Y55: 0.01751 | Z55: 2043 | AA55: 193.882 | AB55: Conv. Gasoline
A56: BUICK Regal | B56: 2.4 | C56: 4 | D56: SemiAuto-6 | E56: 2WD | F56: Gasoline | G56: CA | H56: B4 | I56: Federal Tier 2 Bin 4 | J56: GGMXJ02.4199 | K56: midsize car | L56: 6 | M56: 19 | N56: 31 | O56: 23 | P56: 5 | Q56: No | R56: 379 | S56: 2016 BUICK REGAL AWD 2L 4cyl | T56: 2016 BUICK Regal 4cyl 2WD | U56: 1714 | V56: BUICK | W56: 52.25 | X56: 0.4199 | Y56: 0.01751 | Z56: 2043 | AA56: 193.882 | AB56: Conv. Gasoline
A57: CADILLAC ATS | B57: 2 | C57: 4 | D57: Man-6 | E57: 2WD | F57: Gasoline | G57: CA | H57: B4 | I57: Federal Tier 2 Bin 4 | J57: GGMXV02.0031 | K57: small car | L57: 6 | M57: 20 | N57: 29 | O57: 23 | P57: 5 | Q57: No | R57: 386 | S57: 2016 CADILLAC ATS 2L 4cyl | T57: 2016 CADILLAC ATS 4cyl 2WD | U57: 1720 | V57: CADILLAC | W57: 37.71 | X57: 0.4764 | Y57: 0.01473 | Z57: 1702.5 | AA57: 202.8304 | AB57: Conv. Gasoline
A58: CADILLAC ATS | B58: 2.5 | C58: 4 | D58: SemiAuto-8 | E58: 2WD | F58: Gasoline | G58: CA | H58: B4 | I58: Federal Tier 2 Bin 4 | J58: GGMXV02.5001 | K58: small car | L58: 6 | M58: 22 | N58: 32 | O58: 26 | P58: 6 | Q58: No | R58: 344 | S58: 2016 CADILLAC ATS 2.5L 4cyl | T58: 2016 CADILLAC ATS 4cyl 2WD | U58: 1726 | V58: CADILLAC | W58: 33.34 | X58: 0.483 | Y58: 0.01419 | Z58: 1645.75 | AA58: 150.6314 | AB58: Conv. Gasoline
A59: CADILLAC ATS | B59: 3.6 | C59: 6 | D59: SemiAuto-8 | E59: 2WD | F59: Gasoline | G59: CA | H59: B4 | I59: Federal Tier 2 Bin 4 | J59: GGMXJ03.6165 | K59: small car | L59: 6 | M59: 20 | N59: 30 | O59: 24 | P59: 5 | Q59: No | R59: 375 | S59: 2016 CADILLAC CT6 3.6L 6cyl | T59: 2016 CADILLAC ATS 6cyl 2WD | U59: 1734 | V59: CADILLAC | W59: 42.46 | X59: 0.4533 | Y59: 0.0171 | Z59: 2043 | AA59: 249.8095 | AB59: Conv. Gasoline
A60: CADILLAC ATS-V | B60: 3.6 | C60: 6 | D60: Man-6 | E60: 2WD | F60: Gasoline | G60: FA | H60: B5 | I60: Federal Tier 2 Bin 5 | J60: GGMXV03.6042 | K60: small car | L60: 5 | M60: 17 | N60: 23 | O60: 19 | P60: 4 | Q60: No | R60: 465 | S60: 2016 CADILLAC ATS-V 3.6L 6cyl | T60: 2016 CADILLAC ATS-V 6cyl 2WD | U60: 1730 | V60: CADILLAC | W60: 53.88 | X60: 0.4548 | Y60: 0.01738 | Z60: 1816 | AA60: 339.2935 | AB60: Conv. Gasoline
A61: CADILLAC CTS-V | B61: 6.2 | C61: 8 | D61: SemiAuto-8 | E61: 2WD | F61: Gasoline | G61: FA | H61: B5 | I61: Federal Tier 2 Bin 5 | J61: GGMXV06.2089 | K61: midsize car | L61: 5 | M61: 14 | N61: 21 | O61: 17 | P61: 3 | Q61: No | R61: 534 | S61: 2016 CADILLAC CTS-V 6.2L 8cyl | T61: 2016 CADILLAC CTS-V 8cyl 2WD | U61: 1747 | V61: CADILLAC | W61: 56.41 | X61: 0.4334 | Y61: 0.02137 | Z61: 2043 | AA61: 477.248 | AB61: Conv. Gasoline
A62: CADILLAC ELR | B62: 1.4 | C62: 4 | D62: CVT | E62: 2WD | F62: Gasoline/Electricity | G62: CA | H62: L3SULEV30 | I62: California LEV-III SULEV30 | J62: GGMXV01.4088 | K62: small car | L62: 8 | M62: 28/80 | N62: 33/79 | O62: 30/80 | P62: 10 | Q62: Yes | R62: 104 | S62: 2016 CADILLAC ELR 1.4L 4cyl | T62: 2016 CADILLAC ELR 4cyl 2WD | U62: 1749 | V62: CADILLAC | W62: 30.17 | X62: 0.2285 | Y62: 0.0176 | Z62: 1929.5 | AA62: 62.6388 | AB62: PHEV
A63: CADILLAC Escalade | B63: 6.2 | C63: 8 | D63: Auto-8 | E63: 2WD | F63: Gasoline | G63: CA | H63: B4 | I63: Federal Tier 2 Bin 4 | J63: GGMXT06.2374 | K63: standard SUV | L63: 6 | M63: 15 | N63: 22 | O63: 17 | P63: 3 | Q63: No | R63: 511 | S63: 2016 CADILLAC ESCALADE 2WD 6.2L 8cyl | T63: 2016 CADILLAC Escalade 8cyl 2WD | U63: 1756 | V63: CADILLAC | W63: 44.83 | X63: 0.284 | Y63: 0.0311 | Z63: 2724 | AA63: 316.9225 | AB63: Conv. Gasoline
A64: CHEVROLET Camaro | B64: 6.2 | C64: 8 | D64: Man-6 | E64: 2WD | F64: Gasoline | G64: FA | H64: B5 | I64: Federal Tier 2 Bin 5 | J64: GGMXV06.2090 | K64: small car | L64: 5 | M64: 16 | N64: 25 | O64: 19 | P64: 4 | Q64: No | R64: 457 | S64: 2016 CHEVROLET CAMARO 6.2L 8cyl | T64: 2016 CHEVROLET Camaro 8cyl 2WD | U64: 1851 | V64: CHEVROLET | W64: 36.88 | X64: 0.5551 | Y64: 0.01826 | Z64: 1816 | AA64: 339.2935 | AB64: Conv. Gasoline
A65: CHEVROLET Colorado | B65: 2.5 | C65: 4 | D65: Auto-6 | E65: 2WD | F65: Gasoline | G65: CA | H65: B4 | I65: Federal Tier 2 Bin 4 | J65: GGMXT02.5200 | K65: pickup | L65: 6 | M65: 20 | N65: 27 | O65: 22 | P65: 5 | Q65: No | R65: 397 | S65: 2016 CHEVROLET COLORADO 4WD 3.6L 6cyl | T65: 2016 CHEVROLET Colorado 4cyl 2WD | U65: 1873 | V65: CHEVROLET | W65: 33.83 | X65: 0.7113 | Y65: 0.02502 | Z65: 2156.5 | AA65: 223.71 | AB65: Conv. Gasoline
A66: CHEVROLET Colorado | B66: 2.8 | C66: 4 | D66: Auto-6 | E66: 2WD | F66: Diesel | G66: FA | H66: B5 | I66: Federal Tier 2 Bin 5 | J66: GGMXT02.8358 | K66: pickup | L66: 5 | M66: 22 | N66: 31 | O66: 25 | P66: 5 | Q66: No | R66: 406 | S66: 2016 GMC CANYON 2WD 2.8L 4cyl | T66: 2016 CHEVROLET Colorado 4cyl 2WD | U66: 2048 | V66: GMC | W66: 33.49 | X66: 0.4542 | Y66: 0.02793 | Z66: 2156.5 | AA66: 134.9717 | AB66: Diesel
A67: CHEVROLET Colorado | B67: 3.6 | C67: 6 | D67: Auto-6 | E67: 2WD | F67: Gasoline | G67: CA | H67: B4 | I67: Federal Tier 2 Bin 4 | J67: GGMXT03.6161 | K67: pickup | L67: 6 | M67: 18 | N67: 26 | O67: 21 | P67: 5 | Q67: No | R67: 427 | S67: 2016 CHEVROLET COLORADO 4WD 3.6L 6cyl | T67: 2016 CHEVROLET Colorado 6cyl 2WD | U67: 1873 | V67: CHEVROLET | W67: 33.83 | X67: 0.7113 | Y67: 0.02502 | Z67: 2156.5 | AA67: 223.71 | AB67: Conv. Gasoline
A68: CHEVROLET Colorado | B68: 3.6 | C68: 6 | D68: Auto-6 | E68: 2WD | F68: Gasoline | G68: CA | H68: B4 | I68: Federal Tier 2 Bin 4 | J68: GGMXT03.6162 | K68: special purpose | L68: 6 | M68: 15 | N68: 17 | O68: 16 | P68: 3 | Q68: No | R68: 555 | S68: 2016 GMC CANYON CAB CHASSIS 2WD 3.6L 6cyl | T68: 2016 CHEVROLET Colorado 6cyl 2WD | U68: 2066 | V68: GMC | W68: 36.04 | X68: 0.9149 | Y68: 0.04484 | Z68: 2383.5 | AA68: 227.4385 | AB68: Conv. Gasoline
A69: CHEVROLET Equinox | B69: 2.4 | C69: 4 | D69: Auto-6 | E69: 2WD | F69: Ethanol/Gas | G69: CA | H69: B4 | I69: Federal Tier 2 Bin 4 | J69: GGMXT02.4151 | K69: small SUV | L69: 6 | M69: 15/22 | N69: 22/32 | O69: 18/26 | P69: 6 | Q69: No | R69: 355/344 | S69: 2016 CHEVROLET EQUINOX FWD 2.4L 4cyl | T69: 2016 CHEVROLET Equinox 4cyl 2WD | U69: 1921 | V69: CHEVROLET | W69: 35.61 | X69: 0.2595 | Y69: 0.02138 | Z69: 1816 | AA69: 135.7174 | AB69: Conv. Gasoline
A70: CHEVROLET Malibu | B70: 1.5 | C70: 4 | D70: Auto-6 | E70: 2WD | F70: Gasoline | G70: CA | H70: B4 | I70: Federal Tier 2 Bin 4 | J70: GGMXV01.5002 | K70: midsize car | L70: 6 | M70: 27 | N70: 37 | O70: 31 | P70: 7 | Q70: Yes | R70: 289 | S70: 2016 CHEVROLET MALIBU 1.5L 4cyl | T70: 2016 CHEVROLET Malibu 4cyl 2WD | U70: 2001 | V70: CHEVROLET | W70: 26.28 | X70: 0.1589 | Y70: 0.01725 | Z70: 1532.25 | AA70: 119.312 | AB70: Conv. Gasoline
A71: CHEVROLET Malibu | B71: 1.8 | C71: 4 | D71: CVT | E71: 2WD | F71: Gasoline | G71: CA | H71: B4 | I71: Federal Tier 2 Bin 4 | J71: GGMXV01.8050 | K71: midsize car | L71: 6 | M71: 47 | N71: 46 | O71: 46 | P71: 10 | Q71: Yes | R71: 196 | S71: 2016 CHEVROLET MALIBU 1.8L 4cyl | T71: 2016 CHEVROLET Malibu 4cyl 2WD | U71: 2003 | V71: CHEVROLET | W71: 25.52 | X71: 0.1812 | Y71: 0.01625 | Z71: 1645.75 | AA71: 90.9754 | AB71: Conv. Gasoline
A72: CHEVROLET Silverado 15 | B72: 5.3 | C72: 8 | D72: Auto-6 | E72: 2WD | F72: Gasoline | G72: FA | H72: B5 | I72: Federal Tier 2 Bin 5 | J72: GGMXT05.3384 | K72: pickup | L72: 5 | M72: 16 | N72: 23 | O72: 19 | P72: 4 | Q72: No | R72: 480 | S72: 2016 CHEVROLET C15 SILVERADO 2WD 5.3L 8cyl | T72: 2016 CHEVROLET Silverado 15 8cyl 2WD | U72: 1797 | V72: CHEVROLET | W72: 39.45 | X72: 0.2651 | Y72: 0.03452 | Z72: 2497 | AA72: 257.2665 | AB72: Conv. Gasoline
A73: CHEVROLET Silverado 15 | B73: 5.3 | C73: 8 | D73: Auto-8 | E73: 2WD | F73: Gasoline | G73: FA | H73: B5 | I73: Federal Tier 2 Bin 5 | J73: GGMXT05.3383 | K73: pickup | L73: 5 | M73: 18 | N73: 24 | O73: 20 | P73: 4 | Q73: No | R73: 446 | S73: 2016 CHEVROLET C15 SILVERADO 2WD 5.3L 8cyl | T73: 2016 CHEVROLET Silverado 15 8cyl 2WD | U73: 1794 | V73: CHEVROLET | W73: 33.95 | X73: 0.0629 | Y73: 0.03582 | Z73: 2497 | AA73: 257.2665 | AB73: Conv. Gasoline
A74: CHEVROLET Silverado 15 | B74: 5.3 | C74: 8 | D74: Auto-6 | E74: 2WD | F74: Ethanol/Gas | G74: FA | H74: B5 | I74: Federal Tier 2 Bin 5 | J74: GGMXT05.3382 | K74: pickup | L74: 5 | M74: 2018-12-16 | N74: 17/23 | O74: 14/19 | P74: 4 | Q74: No | R74: 461/480 | S74: 2016 CHEVROLET K15 SILVERADO 4WD 5.3L 8cyl | T74: 2016 CHEVROLET Silverado 15 8cyl 2WD | U74: 1977 | V74: CHEVROLET | W74: 39.38 | X74: 0.6569 | Y74: 0.0318 | Z74: 2383.5 | AA74: 257.2665 | AB74: Conv. Gasoline
A75: CHEVROLET Sonic | B75: 1.8 | C75: 4 | D75: Man-5 | E75: 2WD | F75: Gasoline | G75: CA | H75: B4 | I75: Federal Tier 2 Bin 4 | J75: GGMXV01.8021 | K75: small car | L75: 6 | M75: 26 | N75: 35 | O75: 30 | P75: 7 | Q75: Yes | R75: 301 | S75: 2016 CHEVROLET SONIC RS 1.4L 4cyl | T75: 2016 CHEVROLET Sonic 4cyl 2WD | U75: 2026 | V75: CHEVROLET | W75: 22.99 | X75: 0.3901 | Y75: 0.01885 | Z75: 1418.75 | AA75: 102.9066 | AB75: Conv. Gasoline
A76: CHEVROLET Spark | B76: 1.4 | C76: 4 | D76: CVT | E76: 2WD | F76: Gasoline | G76: CA | H76: L3ULEV70 | I76: California LEV-III ULEV70 | J76: GGMXV01.4050 | K76: small car | L76: 7 | M76: 31 | N76: 41 | O76: 35 | P76: 8 | Q76: Yes | R76: 253 | S76: 2016 CHEVROLET SPARK 1.4L 4cyl | T76: 2016 CHEVROLET Spark 4cyl 2WD | U76: 2028 | V76: CHEVROLET | W76: 20.82 | X76: 0.17461 | Y76: 0.01697 | Z76: 1191.75 | AA76: 62.6388 | AB76: Conv. Gasoline
A77: CHEVROLET Spark EV | B77: N/A | C77: N/A | D77: Auto-1 | E77: 2WD | F77: Electricity | G77: FA | H77: B1 | I77: Federal Tier 2 Bin 1 | J77: GGMXV00.0001 | K77: small car | L77: 10 | M77: 128 | N77: 109 | O77: 119 | P77: 10 | Q77: Elite | R77: 0 | S77: 2016 CHEVROLET SPARK EV 0L cyl | T77: 2016 CHEVROLET Spark EV N/Acyl 2WD | U77: 2032 | V77: CHEVROLET | W77: 21.96 | X77: 0.1688 | Y77: 0.01806 | Z77: 1418.75 | AA77: 103.6523 | AB77: EV
A78: CHEVROLET SS | B78: 6.2 | C78: 8 | D78: Man-6 | E78: 2WD | F78: Gasoline | G78: FA | H78: B5 | I78: Federal Tier 2 Bin 5 | J78: GGMXV06.2088 | K78: large car | L78: 5 | M78: 14 | N78: 22 | O78: 17 | P78: 3 | Q78: No | R78: 520 | S78: 2016 CHEVROLET SS 6.2L 8cyl | T78: 2016 CHEVROLET SS 8cyl 2WD | U78: 2034 | V78: CHEVROLET | W78: 53.08 | X78: 0.1951 | Y78: 0.0202 | Z78: 1929.5 | AA78: 309.4655 | AB78: Conv. Gasoline
A79: CHEVROLET Volt | B79: 1.5 | C79: 4 | D79: CVT | E79: 2WD | F79: Gasoline/Electricity | G79: FA | H79: B5 | I79: Federal Tier 2 Bin 5 | J79: GGMXV01.5020 | K79: small car | L79: 5 | M79: 43/113 | N79: 42/99 | O79: 42/106 | P79: 10 | Q79: Yes | R79: 51 | S79: 2016 CHEVROLET VOLT 1.5L 4cyl | T79: 2016 CHEVROLET Volt 4cyl 2WD | U79: 2041 | V79: CHEVROLET | W79: 27.1 | X79: 0.2173 | Y79: 0.01559 | Z79: 1759.25 | AA79: 74.57 | AB79: PHEV
A80: CHEVROLET Volt | B80: 1.5 | C80: 4 | D80: CVT | E80: 2WD | F80: Gasoline/Electricity | G80: CA | H80: L3SULEV30 | I80: California LEV-III SULEV30 | J80: GGMXV01.5030 | K80: small car | L80: 8 | M80: 43/113 | N80: 42/99 | O80: 42/106 | P80: 10 | Q80: Yes | R80: 51 | S80: 2016 CHEVROLET VOLT 1.5L 4cyl | T80: 2016 CHEVROLET Volt 4cyl 2WD | U80: 2041 | V80: CHEVROLET | W80: 27.1 | X80: 0.2173 | Y80: 0.01559 | Z80: 1759.25 | AA80: 74.57 | AB80: PHEV
A81: CHRYSLER 200 | B81: 2.4 | C81: 4 | D81: Auto-9 | E81: 2WD | F81: Ethanol/Gas | G81: CA | H81: B4 | I81: Federal Tier 2 Bin 4 | J81: GCRXJ02.45PA | K81: midsize car | L81: 6 | M81: 17/23 | N81: 28/36 | O81: 21/28 | P81: 7 | Q81: Yes | R81: 300/322 | S81: 2016 Chrysler 200 AWD 3.6L 6cyl | T81: 2016 CHRYSLER 200 4cyl 2WD | U81: 937 | V81: Chrysler | W81: 25.83 | X81: 0.4141 | Y81: 0.01672 | Z81: 1816 | AA81: 219.9815 | AB81: Conv. Gasoline
A82: CHRYSLER 200 | B82: 2.4 | C82: 4 | D82: Auto-9 | E82: 2WD | F82: Gasoline | G82: CA | H82: L3SULEV30/PZEV | I82: California LEV-III SULEV30/PZEV | J82: GCRXJ02.4CP0 | K82: midsize car | L82: 9 | M82: 23 | N82: 36 | O82: 28 | P82: 7 | Q82: Yes | R82: 322 | S82: 2016 Chrysler 200 AWD 3.6L 6cyl | T82: 2016 CHRYSLER 200 4cyl 2WD | U82: 937 | V82: Chrysler | W82: 25.83 | X82: 0.4141 | Y82: 0.01672 | Z82: 1816 | AA82: 219.9815 | AB82: Conv. Gasoline
A83: CHRYSLER 200 | B83: 3.6 | C83: 6 | D83: Auto-9 | E83: 2WD | F83: Ethanol/Gas | G83: CA | H83: B4 | I83: Federal Tier 2 Bin 4 | J83: GCRXJ03.65PA | K83: midsize car | L83: 6 | M83: 14/19 | N83: 23/32 | O83: 17/23 | P83: 5 | Q83: No | R83: 362/385 | S83: 2016 Chrysler 200 AWD 3.6L 6cyl | T83: 2016 CHRYSLER 200 6cyl 2WD | U83: 937 | V83: Chrysler | W83: 25.83 | X83: 0.4141 | Y83: 0.01672 | Z83: 1816 | AA83: 219.9815 | AB83: Conv. Gasoline
A84: CHRYSLER 300 | B84: 3.6 | C84: 6 | D84: Auto-8 | E84: 2WD | F84: Ethanol/Gas | G84: CA | H84: B4 | I84: Federal Tier 2 Bin 4 | J84: GCRXV03.65PB | K84: large car | L84: 6 | M84: 14/19 | N84: 23/31 | O84: 17/23 | P84: 5 | Q84: No | R84: 368/386 | S84: 2016 Chrysler 300 AWD 3.6L 6cyl | T84: 2016 CHRYSLER 300 6cyl 2WD | U84: 951 | V84: Chrysler | W84: 58.95 | X84: -0.3101 | Y84: 0.02565 | Z84: 2043 | AA84: 217.7444 | AB84: Conv. Gasoline
A85: CHRYSLER 300 | B85: 3.6 | C85: 6 | D85: Auto-8 | E85: 2WD | F85: Gasoline | G85: CA | H85: B4 | I85: Federal Tier 2 Bin 4 | J85: GCRXV03.65P1 | K85: large car | L85: 6 | M85: 19 | N85: 31 | O85: 23 | P85: 5 | Q85: No | R85: 386 | S85: 2016 Chrysler 300 AWD 3.6L 6cyl | T85: 2016 CHRYSLER 300 6cyl 2WD | U85: 951 | V85: Chrysler | W85: 58.95 | X85: -0.3101 | Y85: 0.02565 | Z85: 2043 | AA85: 217.7444 | AB85: Conv. Gasoline
A86: CHRYSLER 300 | B86: 5.7 | C86: 8 | D86: Auto-8 | E86: 2WD | F86: Gasoline | G86: CA | H86: B4 | I86: Federal Tier 2 Bin 4 | J86: GCRXV05.75P1 | K86: large car | L86: 6 | M86: 16 | N86: 25 | O86: 19 | P86: 4 | Q86: No | R86: 465 | S86: 2016 Chrysler 300 AWD 3.6L 6cyl | T86: 2016 CHRYSLER 300 8cyl 2WD | U86: 951 | V86: Chrysler | W86: 58.95 | X86: -0.3101 | Y86: 0.02565 | Z86: 2043 | AA86: 217.7444 | AB86: Conv. Gasoline
A87: CHRYSLER Town & Country | B87: 3.6 | C87: 6 | D87: Auto-6 | E87: 2WD | F87: Gasoline | G87: CA | H87: B4 | I87: Federal Tier 2 Bin 4 | J87: GCRXJ03.65P3 | K87: minivan | L87: 6 | M87: 17 | N87: 25 | O87: 20 | P87: 4 | Q87: No | R87: 444 | S87: 2016 Chrysler Town & Country 3.6L 6cyl | T87: 2016 CHRYSLER Town & Country 6cyl 2WD | U87: 953 | V87: Chrysler | W87: 46.03 | X87: 0.195 | Y87: 0.02528 | Z87: 2156.5 | AA87: 211.0331 | AB87: Conv. Gasoline
A88: DODGE Challenger | B88: 5.7 | C88: 8 | D88: Man-6 | E88: 2WD | F88: Gasoline | G88: FA | H88: B5 | I88: Federal Tier 2 Bin 5 | J88: GCRXV06.45P1 | K88: midsize car | L88: 5 | M88: 15 | N88: 23 | O88: 18 | P88: 4 | Q88: No | R88: 495 | S88: 2016 Dodge Challenger SRT8 6.2L 8cyl | T88: 2016 DODGE Challenger 8cyl 2WD | U88: 971 | V88: Dodge | W88: 40.41 | X88: 0.4837 | Y88: 0.02208 | Z88: 2156.5 | AA88: 527.2099 | AB88: Conv. Gasoline
A89: DODGE Challenger SRT8 | B89: 6.2 | C89: 8 | D89: Auto-8 | E89: 2WD | F89: Gasoline | G89: FA | H89: B5 | I89: Federal Tier 2 Bin 5 | J89: GCRXV06.25P3 | K89: midsize car | L89: 5 | M89: 13 | N89: 22 | O89: 16 | P89: 3 | Q89: No | R89: 546 | S89: 2016 Dodge Challenger SRT8 6.2L 8cyl | T89: 2016 DODGE Challenger SRT8 8cyl 2WD | U89: 974 | V89: Dodge | W89: 39.81 | X89: 0.4779 | Y89: 0.02208 | Z89: 2156.5 | AA89: 527.2099 | AB89: Conv. Gasoline
A90: DODGE Dart | B90: 1.4 | C90: 4 | D90: AutoMan-6 | E90: 2WD | F90: Gasoline | G90: FA | H90: B5 | I90: Federal Tier 2 Bin 5 | J90: GCRXJ01.45P0 | K90: midsize car | L90: 5 | M90: 27 | N90: 37 | O90: 31 | P90: 7 | Q90: No | R90: 288 | S90: 2016 Fiat 500X 1.4L 4cyl | T90: 2016 DODGE Dart 4cyl 2WD | U90: 1068 | V90: Fiat | W90: 21.15 | X90: 0.5158 | Y90: 0.01904 | Z90: 1475.5 | AA90: 119.312 | AB90: Conv. Gasoline
A91: DODGE Dart | B91: 2 | C91: 4 | D91: Man-6 | E91: 2WD | F91: Gasoline | G91: CA | H91: B4 | I91: Federal Tier 2 Bin 4 | J91: GCRXV02.45P3 | K91: midsize car | L91: 6 | M91: 25 | N91: 36 | O91: 29 | P91: 7 | Q91: Yes | R91: 305 | S91: 2016 Dodge Dart 2.4L 4cyl | T91: 2016 DODGE Dart 4cyl 2WD | U91: 1017 | V91: Dodge | W91: 28.17 | X91: 0.3796 | Y91: 0.01587 | Z91: 1645.75 | AA91: 137.2088 | AB91: Conv. Gasoline
A92: DODGE Dart | B92: 2.4 | C92: 4 | D92: Auto-6 | E92: 2WD | F92: Gasoline | G92: CA | H92: B4 | I92: Federal Tier 2 Bin 4 | J92: GCRXJ02.45P4 | K92: midsize car | L92: 6 | M92: 23 | N92: 35 | O92: 27 | P92: 6 | Q92: No | R92: 324 | S92: 2016 Fiat 500X AWD 2.4L 4cyl | T92: 2016 DODGE Dart 4cyl 2WD | U92: 1072 | V92: Fiat | W92: 32.58 | X92: 0.3003 | Y92: 0.02348 | Z92: 1645.75 | AA92: 134.226 | AB92: Conv. Gasoline
A93: DODGE Durango | B93: 3.6 | C93: 6 | D93: Auto-8 | E93: 2WD | F93: Gasoline | G93: CA | H93: B4 | I93: Federal Tier 2 Bin 4 | J93: GCRXT03.65P2 | K93: standard SUV | L93: 6 | M93: 19 | N93: 27 | O93: 22 | P93: 5 | Q93: No | R93: 412 | S93: 2016 Dodge Durango RWD 3.6L 6cyl | T93: 2016 DODGE Durango 6cyl 2WD | U93: 1036 | V93: Dodge | W93: 41.72 | X93: -0.0801 | Y93: 0.03086 | Z93: 2383.5 | AA93: 219.9815 | AB93: Conv. Gasoline
A94: DODGE Durango | B94: 5.7 | C94: 8 | D94: Auto-8 | E94: 2WD | F94: Gasoline | G94: CA | H94: B4 | I94: Federal Tier 2 Bin 4 | J94: GCRXT05.75P0 | K94: standard SUV | L94: 6 | M94: 14 | N94: 22 | O94: 17 | P94: 3 | Q94: No | R94: 526 | S94: 2016 Dodge Durango AWD 5.7L 8cyl | T94: 2016 DODGE Durango 8cyl 2WD | U94: 1032 | V94: Dodge | W94: 53.68 | X94: -0.0764 | Y94: 0.03086 | Z94: 2497 | AA94: 268.452 | AB94: Conv. Gasoline
A95: DODGE Journey | B95: 2.4 | C95: 4 | D95: Auto-4 | E95: 2WD | F95: Gasoline | G95: FA | H95: T3B110 | I95: Federal Tier 3 Transitional Bin 110 | J95: GCRXT02.45P6 | K95: small SUV | L95: 6 | M95: 19 | N95: 26 | O95: 21 | P95: 5 | Q95: No | R95: 419 | S95: 2016 Dodge JOURNEY 2WD 2.4L cyl | T95: 2016 DODGE Journey 4cyl 2WD | U95: 1042 | V95: Dodge | W95: 27.99 | X95: 0.5576 | Y95: 0.01622 | Z95: 1645.75 | AA95: 129.0061 | AB95: Conv. Gasoline
A96: FERRARI 488 GTB | B96: 3.9 | C96: 8 | D96: AutoMan-7 | E96: 2WD | F96: Gasoline | G96: FA | H96: B5 | I96: Federal Tier 2 Bin 5 | J96: GFEXV03.9TUR | K96: small car | L96: 5 | M96: 15 | N96: 22 | O96: 18 | P96: 4 | Q96: No | R96: 502 | S96: 2016 Ferrari 488 GTB 3.9L 8cyl | T96: 2016 FERRARI 488 GTB 8cyl 2WD | U96: 1258 | V96: Ferrari | W96: 33.721 | X96: 0.391 | Y96: 0.015 | Z96: 1816 | AA96: 492.9077 | AB96: Conv. Gasoline
A97: FERRARI F12 | B97: 6.3 | C97: 12 | D97: AutoMan-7 | E97: 2WD | F97: Gasoline | G97: FA | H97: B5 | I97: Federal Tier 2 Bin 5 | J97: GFEXV06.3GDI | K97: small car | L97: 5 | M97: 11 | N97: 16 | O97: 13 | P97: 1 | Q97: No | R97: 679 | S97: 2016 Ferrari F12 FNA 6.3L 12cyl | T97: 2016 FERRARI F12 12cyl 2WD | U97: 1282 | V97: Ferrari | W97: 51.481 | X97: 0.129 | Y97: 0.019 | Z97: 1929.5 | AA97: 569.7148 | AB97: Conv. Gasoline
A98: FIAT 500 | B98: 1.4 | C98: 4 | D98: Auto-6 | E98: 2WD | F98: Gasoline | G98: FA | H98: B5 | I98: Federal Tier 2 Bin 5 | J98: GCRXV01.45P1 | K98: small car | L98: 5 | M98: 27 | N98: 34 | O98: 30 | P98: 7 | Q98: No | R98: 295 | S98: 2016 Fiat 500X AWD 2.4L 4cyl | T98: 2016 FIAT 500 4cyl 2WD | U98: 1072 | V98: Fiat | W98: 32.58 | X98: 0.3003 | Y98: 0.02348 | Z98: 1645.75 | AA98: 134.226 | AB98: Conv. Gasoline
A99: FIAT 500e | B99: N/A | C99: N/A | D99: Auto-1 | E99: 2WD | F99: Electricity | G99: FA | H99: B1 | I99: Federal Tier 2 Bin 1 | J99: GCRXV00.05PR | K99: small car | L99: 10 | M99: 121 | N99: 103 | O99: 112 | P99: 10 | Q99: Elite | R99: 0 | S99: 2016 Fiat 500e 0L cyl | T99: 2016 FIAT 500e N/Acyl 2WD | U99: 1060 | V99: Fiat | W99: 24.91 | X99: 0.2365 | Y99: 0.01816 | Z99: 1475.5 | AA99: 82.027 | AB99: EV
A100: FORD C-MAX (PHEV) | B100: 2 | C100: 4 | D100: CVT | E100: 2WD | F100: Gasoline/Electricity | G100: FA | H100: B3 | I100: Federal Tier 2 Bin 3 | J100: GFMXV02.0VZP | K100: midsize car | L100: 7 | M100: 40/95 | N100: 36/81 | O100: 38/88 | P100: 10 | Q100: Yes | R100: 129 | S100: 2016 Ford C-Max (PHEV) 2L 4cyl | T100: 2016 FORD C-MAX (PHEV) 4cyl 2WD | U100: 1306 | V100: Ford | W100: 28.82 | X100: 0.3435 | Y100: 0.02102 | Z100: 1929.5 | AA100: 105.1437 | AB100: PHEV
A101: FORD C-MAX HEV | B101: 2 | C101: 4 | D101: CVT | E101: 2WD | F101: Gasoline | G101: CA | H101: B3 | I101: Federal Tier 2 Bin 3 | J101: GFMXV02.0VZN | K101: large car | L101: 7 | M101: 42 | N101: 37 | O101: 40 | P101: 9 | Q101: Yes | R101: 225 | S101: 2016 Ford C-Max HEV FWD 2L 4cyl | T101: 2016 FORD C-MAX HEV 4cyl 2WD | U101: 1310 | V101: Ford | W101: 27.19 | X101: 0.2795 | Y101: 0.021 | Z101: 1816 | AA101: 105.1437 | AB101: HEV
A102: FORD C-MAX HEV | B102: 2 | C102: 4 | D102: CVT | E102: 2WD | F102: Gasoline | G102: FA | H102: B3 | I102: Federal Tier 2 Bin 3 | J102: GFMXV02.0VZS | K102: large car | L102: 7 | M102: 42 | N102: 37 | O102: 40 | P102: 9 | Q102: Yes | R102: 225 | S102: 2016 Ford C-Max HEV FWD 2L 4cyl | T102: 2016 FORD C-MAX HEV 4cyl 2WD | U102: 1310 | V102: Ford | W102: 27.19 | X102: 0.2795 | Y102: 0.021 | Z102: 1816 | AA102: 105.1437 | AB102: HEV
A103: FORD Edge | B103: 2 | C103: 4 | D103: SemiAuto-6 | E103: 2WD | F103: Gasoline | G103: FA | H103: B5 | I103: Federal Tier 2 Bin 5 | J103: GFMXT02.02EF | K103: small SUV | L103: 5 | M103: 20 | N103: 30 | O103: 24 | P103: 5 | Q103: No | R103: 371 | S103: 2016 Ford Edge 2L 4cyl | T103: 2016 FORD Edge 4cyl 2WD | U103: 1324 | V103: Ford | W103: 25.43 | X103: 0.372 | Y103: 0.02523 | Z103: 2043 | AA103: 182.6965 | AB103: Conv. Gasoline
A104: FORD Edge | B104: 2 | C104: 4 | D104: SemiAuto-6 | E104: 2WD | F104: Gasoline | G104: FA | H104: B5 | I104: Federal Tier 2 Bin 5 | J104: GFMXT02.02JT | K104: small SUV | L104: 5 | M104: 20 | N104: 30 | O104: 24 | P104: 5 | Q104: No | R104: 371 | S104: 2016 Ford Edge 3.5L 6cyl | T104: 2016 FORD Edge 4cyl 2WD | U104: 1316 | V104: Ford | W104: 22.64 | X104: 0.4607 | Y104: 0.02484 | Z104: 2043 | AA104: 208.796 | AB104: Conv. Gasoline
A105: FORD Edge | B105: 2.7 | C105: 6 | D105: SemiAuto-6 | E105: 4WD | F105: Gasoline | G105: FA | H105: B5 | I105: Federal Tier 2 Bin 5 | J105: GFMXT02.72EP | K105: small SUV | L105: 5 | M105: 17 | N105: 24 | O105: 20 | P105: 4 | Q105: No | R105: 447 | S105: 2016 Ford Edge 3.5L 6cyl | T105: 2016 FORD Edge 6cyl 4WD | U105: 1316 | V105: Ford | W105: 22.64 | X105: 0.4607 | Y105: 0.02484 | Z105: 2043 | AA105: 208.796 | AB105: Conv. Gasoline
A106: FORD Edge | B106: 2.7 | C106: 6 | D106: SemiAuto-6 | E106: 4WD | F106: Gasoline | G106: FA | H106: B4 | I106: Federal Tier 2 Bin 4 | J106: GFMXT02.72JP | K106: small SUV | L106: 6 | M106: 17 | N106: 24 | O106: 20 | P106: 4 | Q106: No | R106: 447 | S106: 2016 Ford Edge 3.5L 6cyl | T106: 2016 FORD Edge 6cyl 4WD | U106: 1316 | V106: Ford | W106: 22.64 | X106: 0.4607 | Y106: 0.02484 | Z106: 2043 | AA106: 208.796 | AB106: Conv. Gasoline
A107: FORD Edge | B107: 3.5 | C107: 6 | D107: SemiAuto-6 | E107: 2WD | F107: Gasoline | G107: FA | H107: B5 | I107: Federal Tier 2 Bin 5 | J107: GFMXT03.52ER | K107: small SUV | L107: 5 | M107: 18 | N107: 26 | O107: 21 | P107: 5 | Q107: No | R107: 431 | S107: 2016 Ford Edge 3.5L 6cyl | T107: 2016 FORD Edge 6cyl 2WD | U107: 1316 | V107: Ford | W107: 22.64 | X107: 0.4607 | Y107: 0.02484 | Z107: 2043 | AA107: 208.796 | AB107: Conv. Gasoline
A108: FORD Escape | B108: 1.6 | C108: 4 | D108: SemiAuto-6 | E108: 2WD | F108: Gasoline | G108: FA | H108: B5 | I108: Federal Tier 2 Bin 5 | J108: GFMXT01.62E9 | K108: small SUV | L108: 5 | M108: 23 | N108: 32 | O108: 26 | P108: 6 | Q108: No | R108: 341 | S108: 2016 Ford ESCAPE FWD 2.5L 4cyl | T108: 2016 FORD Escape 4cyl 2WD | U108: 1346 | V108: Ford | W108: 21.89 | X108: 0.4047 | Y108: 0.0222 | Z108: 1759.25 | AA108: 125.2776 | AB108: Conv. Gasoline
A109: FORD Escape | B109: 2 | C109: 4 | D109: SemiAuto-6 | E109: 2WD | F109: Gasoline | G109: FA | H109: B5 | I109: Federal Tier 2 Bin 5 | J109: GFMXT02.02E3 | K109: small SUV | L109: 5 | M109: 22 | N109: 30 | O109: 25 | P109: 6 | Q109: No | R109: 362 | S109: 2016 Ford ESCAPE FWD 2.5L 4cyl | T109: 2016 FORD Escape 4cyl 2WD | U109: 1346 | V109: Ford | W109: 21.89 | X109: 0.4047 | Y109: 0.0222 | Z109: 1759.25 | AA109: 125.2776 | AB109: Conv. Gasoline
A110: FORD Escape | B110: 2.5 | C110: 4 | D110: SemiAuto-6 | E110: 2WD | F110: Gasoline | G110: FA | H110: B5 | I110: Federal Tier 2 Bin 5 | J110: GFMXT02.52ET | K110: small SUV | L110: 5 | M110: 22 | N110: 31 | O110: 25 | P110: 6 | Q110: No | R110: 354 | S110: 2016 Ford ESCAPE FWD 2.5L 4cyl | T110: 2016 FORD Escape 4cyl 2WD | U110: 1346 | V110: Ford | W110: 21.89 | X110: 0.4047 | Y110: 0.0222 | Z110: 1759.25 | AA110: 125.2776 | AB110: Conv. Gasoline
A111: FORD Expedition | B111: 3.5 | C111: 6 | D111: SemiAuto-6 | E111: 2WD | F111: Gasoline | G111: FA | H111: B5 | I111: Federal Tier 2 Bin 5 | J111: GFMXT03.54HE | K111: standard SUV | L111: 5 | M111: 16 | N111: 22 | O111: 18 | P111: 4 | Q111: No | R111: 491 | S111: 2016 Ford Expedition EL 4x4 3.5L 6cyl | T111: 2016 FORD Expedition 6cyl 2WD | U111: 1366 | V111: Ford | W111: 42.89 | X111: 0.5678 | Y111: 0.03762 | Z111: 2951 | AA111: 272.1805 | AB111: Conv. Gasoline
A112: FORD Explorer | B112: 2.3 | C112: 4 | D112: SemiAuto-6 | E112: 2WD | F112: Gasoline | G112: FA | H112: B5 | I112: Federal Tier 2 Bin 5 | J112: GFMXT02.32EX | K112: standard SUV | L112: 5 | M112: 19 | N112: 28 | O112: 22 | P112: 5 | Q112: No | R112: 408 | S112: 2016 Ford Explorer AWD 2.3L 4cyl | T112: 2016 FORD Explorer 4cyl 2WD | U112: 1372 | V112: Ford | W112: 39.14 | X112: 0.185 | Y112: 0.02947 | Z112: 2270 | AA112: 205.0675 | AB112: Conv. Gasoline
A113: FORD Explorer | B113: 3.5 | C113: 6 | D113: SemiAuto-6 | E113: 2WD | F113: Gasoline | G113: FA | H113: B5 | I113: Federal Tier 2 Bin 5 | J113: GFMXT03.73E8 | K113: standard SUV | L113: 5 | M113: 17 | N113: 24 | O113: 20 | P113: 4 | Q113: No | R113: 451 | S113: 2016 Ford Explorer Police FFV, FWD 3.5L 6cyl | T113: 2016 FORD Explorer 6cyl 2WD | U113: 1383 | V113: Ford | W113: 33.09 | X113: 0.3067 | Y113: 0.02632 | Z113: 2156.5 | AA113: 216.253 | AB113: Conv. Gasoline
A114: FORD Explorer | B114: 3.5 | C114: 6 | D114: SemiAuto-6 | E114: 4WD | F114: Gasoline | G114: FA | H114: B5 | I114: Federal Tier 2 Bin 5 | J114: GFMXV03.5VEP | K114: standard SUV | L114: 5 | M114: 16 | N114: 22 | O114: 18 | P114: 4 | Q114: No | R114: 493 | S114: 2016 FORD Explorer 3.5L 6cyl | T114: 2016 FORD Explorer 6cyl 4WD | U114: 1370 | V114: FORD | W114: 51.13 | X114: 0.3629 | Y114: 0.0307 | Z114: 2383.5 | AA114: 264.7235 | AB114: Conv. Gasoline
A115: FORD Explorer FFV | B115: 3.5 | C115: 6 | D115: SemiAuto-6 | E115: 2WD | F115: Ethanol/Gas | G115: FA | H115: B5 | I115: Federal Tier 2 Bin 5 | J115: GFMXT03.73DM | K115: standard SUV | L115: 5 | M115: 13/17 | N115: 18/24 | O115: 15/20 | P115: 4 | Q115: No | R115: 425/451 | S115: 2016 Ford Explorer Police FFV, AWD 3.5L 6cyl | T115: 2016 FORD Explorer FFV 6cyl 2WD | U115: 1379 | V115: Ford | W115: 39.03 | X115: 0.4429 | Y115: 0.02749 | Z115: 2270 | AA115: 216.253 | AB115: Conv. Gasoline
A116: FORD F150 | B116: 2.7 | C116: 6 | D116: SemiAuto-6 | E116: 2WD | F116: Gasoline | G116: FA | H116: B4 | I116: Federal Tier 2 Bin 4 | J116: GFMXT02.73DH | K116: pickup | L116: 6 | M116: 18 | N116: 24 | O116: 21 | P116: 5 | Q116: No | R116: 423 | S116: 2016 Ford F150 FFV 4X4 5L 8cyl | T116: 2016 FORD F150 6cyl 2WD | U116: 1457 | V116: Ford | W116: 44.68 | X116: 0.5649 | Y116: 0.03617 | Z116: 2497 | AA116: 287.0945 | AB116: Conv. Gasoline
A117: FORD F150 | B117: 2.7 | C117: 6 | D117: SemiAuto-6 | E117: 2WD | F117: Gasoline | G117: FA | H117: B4 | I117: Federal Tier 2 Bin 4 | J117: GFMXT02.73JJ | K117: pickup | L117: 6 | M117: 18 | N117: 24 | O117: 21 | P117: 5 | Q117: No | R117: 423 | S117: 2016 Ford F150 FFV 4X4 5L 8cyl | T117: 2016 FORD F150 6cyl 2WD | U117: 1457 | V117: Ford | W117: 44.68 | X117: 0.5649 | Y117: 0.03617 | Z117: 2497 | AA117: 287.0945 | AB117: Conv. Gasoline
A118: FORD F150 | B118: 3.5 | C118: 6 | D118: SemiAuto-6 | E118: 2WD | F118: Gasoline | G118: FA | H118: B4 | I118: Federal Tier 2 Bin 4 | J118: GFMXT03.54JG | K118: pickup | L118: 6 | M118: 16 | N118: 22 | O118: 18 | P118: 4 | Q118: No | R118: 493 | S118: 2016 Ford F150 FFV 4X4 5L 8cyl | T118: 2016 FORD F150 6cyl 2WD | U118: 1457 | V118: Ford | W118: 44.68 | X118: 0.5649 | Y118: 0.03617 | Z118: 2497 | AA118: 287.0945 | AB118: Conv. Gasoline
A119: FORD F150 FFV | B119: 3.5 | C119: 6 | D119: Auto-6 | E119: 2WD | F119: Ethanol/Gas | G119: CA | H119: B4 | I119: Federal Tier 2 Bin 4 | J119: GFMXT03.53DC | K119: pickup | L119: 6 | M119: 13/18 | N119: 18/25 | O119: 15/20 | P119: 4 | Q119: No | R119: 419/436 | S119: 2016 Ford F150 FFV 4X4 5L 8cyl | T119: 2016 FORD F150 FFV 6cyl 2WD | U119: 1457 | V119: Ford | W119: 44.68 | X119: 0.5649 | Y119: 0.03617 | Z119: 2497 | AA119: 287.0945 | AB119: Conv. Gasoline
A120: FORD F150 FFV | B120: 5 | C120: 8 | D120: SemiAuto-6 | E120: 2WD | F120: Ethanol/Gas | G120: CA | H120: B4 | I120: Federal Tier 2 Bin 4 | J120: GFMXT05.03DK | K120: pickup | L120: 6 | M120: 2018-11-14 | N120: 16/20 | O120: 13/16 | P120: 3 | Q120: No | R120: 468/555 | S120: 2016 Ford F150 FFV 4X4 5L 8cyl | T120: 2016 FORD F150 FFV 8cyl 2WD | U120: 1457 | V120: Ford | W120: 44.68 | X120: 0.5649 | Y120: 0.03617 | Z120: 2497 | AA120: 287.0945 | AB120: Conv. Gasoline
A121: FORD Fiesta | B121: 1.6 | C121: 4 | D121: AMS-6 | E121: 2WD | F121: Gasoline | G121: CA | H121: B4 | I121: Federal Tier 2 Bin 4 | J121: GFMXV01.6VDC | K121: small car | L121: 6 | M121: 27 | N121: 37 | O121: 31 | P121: 7 | Q121: Yes | R121: 289 | S121: 2016 Ford Fiesta ST 1.6L 4cyl | T121: 2016 FORD Fiesta 4cyl 2WD | U121: 1476 | V121: Ford | W121: 33.7 | X121: 0.1243 | Y121: 0.01968 | Z121: 1362 | AA121: 130.4975 | AB121: Conv. Gasoline
A122: FORD Fiesta SFE | B122: 1 | C122: 3 | D122: Man-5 | E122: 2WD | F122: Gasoline | G122: CA | H122: B4 | I122: Federal Tier 2 Bin 4 | J122: GFMXV01.0VD1 | K122: small car | L122: 6 | M122: 31 | N122: 43 | O122: 36 | P122: 8 | Q122: Yes | R122: 247 | S122: 2016 Ford FIESTA SFE 1L 3cyl | T122: 2016 FORD Fiesta SFE 3cyl 2WD | U122: 1473 | V122: Ford | W122: 21.61 | X122: 0.2069 | Y122: 0.01785 | Z122: 1305.25 | AA122: 89.484 | AB122: Conv. Gasoline
A123: FORD Fiesta ST | B123: 1.6 | C123: 4 | D123: Man-6 | E123: 2WD | F123: Gasoline | G123: CA | H123: B4 | I123: Federal Tier 2 Bin 4 | J123: GFMXV01.6VDD | K123: small car | L123: 6 | M123: 26 | N123: 33 | O123: 29 | P123: 7 | Q123: Yes | R123: 307 | S123: 2016 Ford Fiesta ST 1.6L 4cyl | T123: 2016 FORD Fiesta ST 4cyl 2WD | U123: 1476 | V123: Ford | W123: 33.7 | X123: 0.1243 | Y123: 0.01968 | Z123: 1362 | AA123: 130.4975 | AB123: Conv. Gasoline
A124: FORD Flex | B124: 3.5 | C124: 6 | D124: SemiAuto-6 | E124: 2WD | F124: Gasoline | G124: FA | H124: B5 | I124: Federal Tier 2 Bin 5 | J124: GFMXV03.7VE8 | K124: standard SUV | L124: 5 | M124: 16 | N124: 23 | O124: 19 | P124: 4 | Q124: No | R124: 468 | S124: 2016 FORD FLEX 3.5L 6cyl | T124: 2016 FORD Flex 6cyl 2WD | U124: 1478 | V124: Ford | W124: 38.52 | X124: 0.6687 | Y124: 0.02547 | Z124: 2383.5 | AA124: 264.7235 | AB124: Conv. Gasoline
A125: FORD Focus | B125: 1 | C125: 3 | D125: Man-6 | E125: 2WD | F125: Gasoline | G125: CA | H125: B4 | I125: Federal Tier 2 Bin 4 | J125: GFMXV01.0VD4 | K125: small car | L125: 6 | M125: 30 | N125: 42 | O125: 35 | P125: 8 | Q125: Yes | R125: 255 | S125: 2016 Ford Focus 1L 3cyl | T125: 2016 FORD Focus 3cyl 2WD | U125: 1514 | V125: Ford | W125: 17.51 | X125: 0.1828 | Y125: 0.0181 | Z125: 1475.5 | AA125: 91.7211 | AB125: Conv. Gasoline
... 156 more rows

Sheet Documentation
A1: Click "+" marks in left margin to expand/collapse sections
A4: Documentation
A5: Overview
A6: The primary objective of FASTSim is to estimate the fuel economy, cost, and performance of a vehicle with specified powertrain components over standard drive cycles.
A7: All saved vehicles are approximations of existing vehicles.
A8: The VehicleIO tab provides the main interface for the model. It allows different vehicles to be loaded, modified, saved, and run. After hitting "Run", the results can be viewed at the bottom.
A10: Worksheet organization
A11: Primary user worksheets | B11: Name | C11: Description
B12: Documentation | C12: You are here!
B13: VehicleIO | C13: Load/modify/save/run/view individual vehicle results.
B14: Powertrain Comparison | C14: Compare powertrains based on a selected vehicle with modifications to a few high level inputs.
B15: Validation | C15: Compare FASTSim results to data.
B16: Regen | C16: Adjust A and B coefficients to customize the regen curve.
A18: More advanced user worksheets (many are hidden)
B19: Cost | C19: View details on the net present cost of the vehicle over its lifetime.
B20: Veh Model | C20: Modify the vehicle model and copy over for each drive cycle by hitting "Update Model".
B21: FC Model | C21: View the fuel converter/engine model details.
B22: Motor | C22: View motor efficiency details.
A24: Automatically generated worksheets (all drive cycle worksheets)
B25: ConstSpeeds | C25: View detailed drive cycle data and equations.
B26: Accel | C26: View detailed drive cycle data and equations.
B27: HWY | C27: View detailed drive cycle data and equations.
B28: UDDS | C28: View detailed drive cycle data and equations.
A30: Automatically modified worksheets (manual changes not recommended)
B31: SavedVehs | C31: Holds saved vehicle input data (automatically modified when saving a vehicle on the VehicleIO worksheet).
B32: SavedRefs | C32: Holds saved reference data by vehicle (automatically modified when saving a vehicle on the VehicleIO worksheet).
B33: All drive cycle worksheets are updated with the equations in the "Veh Model" worksheet after hitting "Update Model" on the "Veh Model" worksheet.
B34: DriveCycles | C34: Stores drive cycle data
A36: Reference worksheets
B37: ESS Life
B38: EV PHEV ESS Wear | C38: Shows battery wear characteristics and related driving distance distribution data.
B39: Recharge Distribution | C39: Shows driving distribution data used in battery life and fuel economy calculations.
B40: ESS Chars | C40: Documents battery mass data used for scaling.
A41: Assumptions
A42: All the input assumptions are listed on the VehicleIO tab except:
B43: Fuel converter: Pull down menu draws assumptions from the "FC Model" worksheet.
B44: Motor: Pull down menu draws assumptions from the "Motor" worksheet.
B45: Distance between recharges distribution: Pull down menu draws assumptions from "Recharge Distribution" worksheet.
B46: Additional braking regeneration assumptions are located on the "regen" worksheet.
A47: Light-duty vehicle import wizard button
A48: This button located above the vehicle input parameters on the VehicleIO tab assists with importing vehicle specifications
A49: This button uses data from EPA's website https://www3.epa.gov/otaq/tcldata.htm to approximate different vehicles in FASTSim.
A50: All data should be reviewed. The imported data and menu selections are not always right.
A51: All data required on the form must be entered or the vehicle glider mass will need to be adjusted again once all component sizes and mass scaling are specified correctly.
A52: Adding a new vehicle input variable
A53: Hit button "Add Vehicle Input Variable" and follow the interface.
A54: This feature is important to maintain the structure needed for saving and loading vehicles parameters when adding new variables to use on the "Veh Model" worksheet where the powertrain equations reside.
A55: Note: Deleting a variable is not supported.
A56: Note: This feature is only for the vehicle input section.
A57: Fuel economy
A58: The fuel economy is estimated based on the vehicle inputs.
A59: The vehicle is run through the city and highway drive cycles capturing component efficiencies, regenerative braking, and inertia.
A60: The two cycle approximation of the five cycle test is used to estimate the adjusted, or window sticker, fuel economy: Final Technical Support Document - Fuel Economy Labeling of Motor Vehicle Revisions to Improve Calculation of Fuel Economy Estimates, page 103, www.epa.gov/fueleconomy/420r06017.pdf.
A61: For more details about a drive cycle run, view the drive cycle tabs (HWY, UDDS, etc).
A62: Acceleration
A63: The acceleration is an approximation based on the input component powers and time to full power.
A64: This approximation best matches a continuously variable transmission (CVT).
A65: This is a useful approach for high level technical targets since these are often defined at this level.
A66: A more detailed model is necessary for looking at changing the shift strategy or gear ratios.
A67: Cost
A68: Component costs are based on the inputs in the "Current Conditions" section of the inputs on the "VehicleIO" tab.
A69: A net present value approach is included to view vehicle purchases as a competing investment of money.
A70: Battery life
A71: Battery life is based on battery manufacturer life testing data shown in a presentation titled "Batteries for Plug-In Hybrid Electric Vehicles" by Dr. Mark Duvall of EPRI, June 6th, 2005.
A73: This approximation captures cycling wear.
B74: Wear due to acceleration/braking regeneration events
B75: Wear due to recharging assuming a distribution of trip distances based on NHTS data and the vehicles efficiency
A76: For a more detailed battery life model that captures temperature, cycling, and calendar life contact Kandler Smith at Kandler.Smith@nrel.gov
A77: Energy Management
A78: The energy management strategy is composed of several parts.
A79: The max and min are hard limits that will not be exceeded. These have a significant impact for PEVs and battery life.
A80: Within the max and min are softer limits. One ensures there is room for regenerative braking based on vehicle speed and mass. The other maintains energy to assist with accelerating when moving slow.
A103: Credits
A104: Development
B105: Aaron Brooker
B106: Laurie Ramroth
B107: Lijuan Wang
B108: Eric Wood
B109: Jeff Gonder
B110: Sean Lopp
B111: Matthew Moniot
B112: Jason Lustbader
B113: Vipin Kukkala
A115: Contributors
B116: John Rugh
B117: Jeremy Neubauer
B118: Kandler Smith
A120: Conceptual inspiration
B121: Terry Penney
B122: Rob Farrington
B123: Matthew Thornton
B124: Robb Barnitt
B125: Bob Rehn
B126: NREL ADVISOR Team (Keith Wipke, Aaron Brooker, Kristina Haraldsson, Terry Hendricks, Valerie Johnson, Kenneth Kelly, Bill Kramer,Tony Markel, Michael O'Keefe, Sam Sprik, Matthew Zolot Contributors: Desikan Bharathan, Steve Burch, Matthew Cuddy, Dave Rausen)
A128: Support
B129: David Anderson
B130: Jacob Ward
B131: Rachael Nealer
B132: David Gohlke
B133: Lee Slezak
B134: Monterey Gardiner
A136: Copyright
A193: Automated Tutorial On | B193: TRUE

Sheet VehicleIO
A1: Future Automotive Systems Technology Simulator
A4: Vehicle inputs
G5: Results Summary
C6: 1 | G6: Fuel density factor | H6: =IF(fcEffType=3,'Veh Model'!kWhPerGalDiesel/'Veh Model'!kWhPerGGE,1) -> 1
H7: Model | I7: Raw Act | J7: Actual
G8: =CHOOSE(vehPtType,"City (MPG)","City (MPG)","CS (MPG)","CD (kW/100 mi)") -> City (MPG) | H8: =CHOOSE(vehPtType,adjUddsMpgge*mpgPerMpgge,adjUddsMpgge*mpgPerMpgge,adjCsCombMpgge*mpgPerMpgge,adjUddsKwhPerMile*100) -> 28.46377066 | I8: =CHOOSE(vehPtType,valUddsMpgge,valUddsMpgge,valCombMpgge,valCombKwhPerMile*100) -> 27 | J8: =IF(I8=0,"",I8) -> 27
A9: Vehicle | C9: First save cell | G9: =CHOOSE(vehPtType,"Hwy (MPG)","Hwy (MPG)","CD (kWh/100 mi)","Range (mi)") -> Hwy (MPG) | H9: =CHOOSE(vehPtType,adjHwyMpgge*mpgPerMpgge,adjHwyMpgge*mpgPerMpgge,adjCombKwhPerMile*100,netRangeMiles) -> 35.02757154 | I9: =CHOOSE(vehPtType,valHwyMpgge,valHwyMpgge,valCombKwhPerMile*100,valRangeMiles) -> 36 | J9: =IF(I9=0,NA(),I9) -> 36
A10: Fuel economy test procedure | B10: vehPtType | C10: 1 | D10: https://www3.epa.gov/otaq/tcldata.htm | G10: =CHOOSE(vehPtType,"Comb (MPG)","Comb (MPG)","CD Range (mi)","Accel (0-60)") -> Comb (MPG) | H10: =CHOOSE(vehPtType,adjCombMpgge*mpgPerMpgge,adjCombMpgge*mpgPerMpgge,netPhevCDMiles,netAccel) -> 31.08502461 | I10: =CHOOSE(vehPtType,valCombMpgge,valCombMpgge,valCdRangeMi,val0To60Mph) -> 31 | J10: =IF(I10=0,NA(),I10) -> 31
A11: Drag coefficient | B11: dragCoef | C11: 0.3 | D11: Set with data from https://www3.epa.gov/otaq/tcldata.htm | G11: Accel (0-60) | H11: =netAccel -> 9.8 | I11: =val0To60Mph -> 9.9 | J11: =IF(I11=0,NA(),I11) -> 9.9
A12: Frontal area (m^2) | B12: frontalAreaM2 | C12: 2.574 | D12: Used to set CD with data from https://www3.epa.gov/otaq/tcldata.htm | G12: Battery Life (yrs) | H12: =IF(maxEssKwh=0,NA(),LOOKUP(evEssLifeMiles,Cost!cumVmt,Cost!years)) ->  | I12: =valEssLifeMiles/VMT -> 0 | J12: =IF(I12=0,NA(),I12) -> 
A13: Vehicle glider mass (kg) | B13: gliderKg | C13: 1045.636 | D13: Set to match test mass of:1419 from https://www3.epa.gov/otaq/tcldata.htm
A14: Vehicle center of gravity height (m) | B14: vehCgM | C14: 0.53 | D14: Default
A15: Drive axle weight fraction | B15: driveAxleWeightFrac | C15: 0.61 | D15: http://www.consumerreports.org/cro/toyota-corolla-ratings.htm
A16: Wheel base (m) | B16: wheelBaseM | C16: 2.6 | D16: Default
A17: Cargo mass (kg) | B17: cargoKg | C17: 136 | D17: Default test cargo mass
A18: Vehicle override test mass (kg) | B18: vehOverrideKg
A20: Fuel storage
A21: Fuel storage power (kW) | B21: maxFuelStorKw | C21: 2000 | D21: Default - no limit
A22: Fuel storage time to full power (s) | B22: fuelStorSecsToPeakPwr | C22: 1 | D22: Default - no limit
A23: Fuel storage energy (kWh) | B23: fuelStorKwh | C23: 441 | D23: User
A24: Fuel and fuel storage mass (kWh/kg) | B24: fuelStorKwhPerKg | C24: 9.89 | D24: Default liquid fuel
A26: Fuel converter
A27: Fuel converter power (kW) | B27: maxFuelConvKw | C27: 98 | D27: https://www3.epa.gov/otaq/tcldata.htm
A28: Fuel converter efficiency type | B28: fcEffType | C28: 1 | D28: https://www3.epa.gov/otaq/tcldata.htm
A29: Efficiency improvement | B29: fcRelEffImpr | C29: 0
A30: Fuel converter time to full power (s) | B30: fuelConvSecsToPeakPwr | C30: 6 | D30: Default Conv
A31: Fuel converter base mass (kg) | B31: fuelConvBaseKg | C31: 61 | D31: See hidden Engine Mass Scaling worksheet
A32: Fuel converter specific power (kW/kg) | B32: fuelConvKwPerKg | C32: 2.13 | D32: See hidden Engine Mass Scaling worksheet
A33: Minimum Engine-on Time (s) | B33: minFcTimeOn | C33: 30
A35: Motor
A36: Motor power (kW) | B36: maxMotorKw | C36: 0 | D36: https://www3.epa.gov/otaq/tcldata.htm
A37: Motor peak efficiency | B37: motorPeakEff | C37: 0.95 | D37: Increased for 2016: previously 93%: 95% peak motor efficiency * 98% inverter efficiency: SAE International Vehicle Electrification, February 23rd, 2011, pg. 17; 98% inverter efficiency: ORNL testing of Sonata: T. Burress, Benchmarking of Competitive Technologies; Leaf operating efficiency: 89% at http://newsroom.nissan-europe.com/EU/ru-ru/Media/Media.aspx?mediaid=41193
A38: Motor time to full power (s) | B38: motorSecsToPeakPwr | C38: 4 | D38: Default
A39: Motor controller mass (kg/kW) | B39: mcPeKgPerKw | C39: 0.833 | D39: A. Simpson, Cost Benefit Analysis of Plug-In Hybrid Electric Vehicle Technology, 2006; http://www.nrel.gov/vehiclesandfuels/vsa/pdfs/40485.pdf
A40: Motor controller base mass (kg) | B40: mcPeBaseKg | C40: 21.6 | D40: A. Simpson, Cost Benefit Analysis of Plug-In Hybrid Electric Vehicle Technology, 2006; http://www.nrel.gov/vehiclesandfuels/vsa/pdfs/40485.pdf
A42: Traction battery
A43: Battery power (kW) | B43: maxEssKw | C43: 0 | D43: https://www3.epa.gov/otaq/tcldata.htm
A44: Battery energy (kWh) | B44: maxEssKwh | C44: 0 | D44: User
A45: Battery mass (kg/kWh) | B45: essKgPerKwh | C45: 8 | D45: See ESS Chars worksheet
A46: Battery base mass (kg) | B46: essBaseKg | C46: 75 | D46: See ESS Chars worksheet
A47: Battery round trip efficiency | B47: essRountTripEff | C47: 0.97 | D47: Increased for 2016: previously 95.1% http://www.greencarcongress.com/2008/02/nissan-tests-ne.html
A48: Battery life coefficient A (product) | B48: essLifeCoefA | C48: 110 | D48: VARTA: http://www.ocean.udel.edu/cms/wkempton/Kempton-V2G-pdfFiles/PDF%20format/Duvall-V2G-batteries-June05.pdf
A49: Battery life coefficient B (power) | B49: essLifeCoefB | C49: -0.6811 | D49: VARTA: http://www.ocean.udel.edu/cms/wkempton/Kempton-V2G-pdfFiles/PDF%20format/Duvall-V2G-batteries-June05.pdf
A51: Wheel
A52: Wheel inertia (one wheel) (kg*m^2) | B52: wheelInteriaKgM2 | C52: 0.815 | D52: Default
A53: Number of wheels | B53: numWheels | C53: 4 | D53: Default
A54: Rolling resistance coefficient | B54: wheelRrCoef | C54: 0.01 | D54: Set with data from https://www3.epa.gov/otaq/tcldata.htm
A55: Tire radius (m) | B55: wheelRadiusM | C55: 0.336 | D55: Default
A56: Wheel coefficient of friction | B56: wheelCoefOfFric | C56: 0.8 | D56: Default
A58: Energy management
A59: Minimum state of charge | B59: minSoc | C59: 0.1
A60: Maximum state of charge | B60: maxSoc | C60: 0.95
A61: ESS discharge effort toward max FC efficiency (percent) | B61: essDischgToFcMaxEffPerc | C61: 0
A62: ESS charge effort toward max FC efficiency (percent) | B62: essChgToFcMaxEffPerc | C62: 0
A63: Speed where the battery reserved for accelerating is zero | B63: maxAccelBufferMph | C63: 60
A64: Percent of usable battery energy reserved to help accelerate | B64: maxAccelBufferPercOfUseableSoc | C64: 0.2
A65: Percent SOC buffer for high accessory loads during cycles with long idle time | B65: percHighAccBuf | C65: 0
A66: Speed at which engine is commanded on (mph) | B66: mphFcOn | C66: 55
A67: Power demand at which engine is commanded on (kW) | B67: kwDemandFcOn | C67: 100
A69: Misc.
A70: Alternator efficiency (conv. veh only) | B70: altEff | C70: 1 | D70: Default - assumes it is included with aux loads
A71: Charger efficiency | B71: chgEff | C71: 0.86 | D71: 86%: Henning Lohse-Busch, M. Duoba, E. Rask, Advanced Powertrain Research facility AVTA Nissan Leaf Testing and Analysis, May 2nd, 2025
A72: Auxiliary loads (kW) | B72: auxKw | C72: 0.7 | D72: Default Conv.
A73: Force auxiliary loads on fuel converter (true/false) | B73: forceAuxOnFC | C73: FALSE
A74: Transmission mass (kg) | B74: transKg | C74: 114 | D74: Default
A75: Transmission efficiency | B75: transEff | C75: 0.92 | D75: Default Conv.
A76: Component mass multiplier | B76: compMassMultiplier | C76: 1.4 | D76: 1.4 - 1.5: D. E. Malen, K. Reddy, Preliminary Vehicle Mass Estimation Using Empirical Subsystem Influence Coefficients, June 2007.
A77: Max battery to fuel energy error | B77: essToFuelOkError | C77: 0.005 | D77: Default - SOC balancing criteria for HEVs
A78: Max regen | B78: maxRegen | C78: 0.98 | D78: Default based on matching regen test data
A80: Validation data
A81: EPA city fuel economy (MPGGE, diesel MPG, CS PHEV) | B81: valUddsMpgge | C81: 27 | D81: https://www3.epa.gov/otaq/tcldata.htm
A82: EPA highway fuel economy (MPGGE, diesel MPG. CS PHEV) | B82: valHwyMpgge | C82: 36 | D82: https://www3.epa.gov/otaq/tcldata.htm
A83: EPA combined fuel economy (MPGGE, diesel MPG, CS MPG) | B83: valCombMpgge | C83: 31 | D83: https://www3.epa.gov/otaq/tcldata.htm
A84: City CD elect. consumption w/charging (kWh/mile) | B84: valUddsKwhPerMile
A85: Highway CD elect. consumption w/charging (kWh/mile) | B85: valHwyKwhPerMile
A86: Combined CD elect. consumption w/charging (kWh/mile) | B86: valCombKwhPerMile
A87: Charge depleting range (miles) | B87: valCdRangeMi
A88: Constant 65 MPH elect. consumption (kWh/mile) | B88: valConst65MphKwhPerMile
A89: Constant 60 MPH elect. consumption (kWh/mile) | B89: valConst60MphKwhPerMile
A90: Constant 55 MPH elect. consumption (kWh/mile) | B90: valConst55MphKwhPerMile
A91: Constant 45 MPH elect. consumption (kWh/mile) | B91: valConst45MphKwhPerMile
A92: Laboratory UDDS elect. consumption (kWh/mile) | B92: valUnadjUddsKwhPerMile
A93: Laboratory highway elect. consumption (kWh/mile) | B93: valUnadjHwyKwhPerMile
A94: 0-60 MPH acceleration time (seconds) | B94: val0To60Mph | C94: 9.9 | D94: http://www.consumerreports.org/
A95: Battery life (miles) | B95: valEssLifeMiles
A96: Vehicle range (miles) | B96: valRangeMiles
A97: Vehicle glider cost (no engine, battery, etc) | B97: valVehBaseCost
A98: MSRP | B98: valMsrp
C99: Last save cell
A103: Charging by road type/location/level | C103: FALSE
A105: Road Types/Location/Level | C105: Charge Level (kW)
A106: No Charging | C106: 30
A107: Key-off | C107: 0
A108: Home Level 1 | C108: 1.92
A109: Home Level 2 | C109: 9.6
A110: Work Level 1 | C110: 1.92
A111: Work Level 2 | C111: 9.6
A112: Interstate | C112: 0
A113: FuncClass1 | C113: 0
A114: FuncClass2 | C114: 100
A115: FuncClass3 | C115: 100
A116: FuncClass4 | C116: 0
A117: FuncClass5 | C117: 0
A118: NA | C118: 0
A119: FuncClass0 | C119: 0
... 108 more rows

Sheet Powertrain Comparison
A1: Powertrain Comparison
A3: Inputs
A4: Base vehicle (glider) | B4: baseVehicle | C4: 1
A6: Vehicle characteristics | C6: TRUE
A7: HEV electric motor power (kW) | B7: hevMcKw | C7: 30
A8: HEV battery energy (kWh) | B8: hevEssKwh | C8: 1.3
A9: HEV battery replacements | B9: hevEssReplacements | C9: 0
A10: PHEV electric motor power (kW) | B10: phevMcKw | C10: 100 | D10: TRUE
A11: PHEV charge depleting range (miles) | B11: phevCdMiles | C11: 53
A12: PHEV battery replacements | B12: phevEssReplacements | C12: 0
A13: EV range (miles) | B13: evEssRangeMiles | C13: 150
A14: Other vehicle's range (miles) | B14: otherRangeMiles | C14: 300
A15: FCV battery power (kW) | B15: maxEssKw | C15: 50
A16: FCV battery energy (kWh) | B16: maxEssKwh | C16: 2.2
A17: Battery mass (kg/kWh) (Li-ion: 6, NiMH: 44) | B17: essKgPerKwh | C17: 6
A18: Battery base mass (kg) (Li-ion: 75, NiMH: 0) | B18: essBaseKg | C18: 75
A19: Battery life coefficient (Li data: 145, adj: 100) | B19: essLifeCoef | C19: 100
A20: EV battery replacements | B20: evEssReplacements | C20: 0
A21: Hydrogen storage (kWh/kg) | B21: fuelStorKwhPerKg | C21: 3.178
A22: Engine base mass (kg) | B22: fuelConvBaseKg | C22: 61
A23: Engine specific power (kW/kg) | B23: fuelConvKwPerKg | C23: 2.13
A24: Fuel cell base mass (kg) | B24: fuelConvBaseKg | C24: 0
A25: Fuel cell specific power (kW/kg) | B25: fuelConvKwPerKg | C25: 2
A26: Engine efficiency improvement (absolute) | B26: fcRelEffImpr | C26: 0
A27: Glider lightweighting improvement | B27: gliderKg | C27: 0
A29: Cost
A30: Engine cost ($/kW) | B30: iceDolPerKw | C30: 14.5
A31: Engine base cost | B31: iceBaseCost | C31: 531
A32: HEV battery cost coefficient A ($/kW) | B32: essDolPerKw | C32: 22
A33: HEV battery cost coefficient B ($/kWh) | B33: essDolPerKwh | C33: 145
A34: PHEV battery cost coefficient A ($/kW) | B34: essDolPerKw
A35: PHEV battery cost coefficient B ($/kWh) | B35: essDolPerKwh | C35: 145
A36: PEV battery cost coefficient A ($/kW) | B36: essDolPerKw
A37: PEV battery cost coefficient B ($/kWh) | B37: essDolPerKwh | C37: 145
A38: Battery base packaging cost | B38: essPackageCost
A39: Power electronics and motor cost ($/kW) | B39: peAndMcDolPerKw | C39: 21.7
A40: Power electronics and motor base cost | B40: peAndMcBaseCost | C40: 425
A41: Fuel cell cost ($/kW) | B41: fuelCellDolPerKw | C41: 170
A42: Hydrogen tank cost ($/kWh) | B42: fuelStorH2DolPerKwh | C42: 16
A43: Gasoline price ($/gallon) | B43: dolPerGal | C43: 2.97
A44: Electricity price ($/kWh) | B44: dolPerKwh | C44: 0.132
A45: Hydrogen fuel price ($/kg) | B45: hydrogenDolPerGGE | C45: 3
A50: Run Time (mins) | C50: 6.3
A51: Results | C51: =IF(OR(ABS(C96-netAccel)>0.3,ABS(C80-netAccel)>0.3,ABS(C118-netAccel)>0.3,ABS(C144-netAccel)>0.3,ABS(C166-netAccel)>0.3,ABS(C119-phevCdMiles)>3,ABS(C145-evEssRangeMiles)>5),"Not all constraints are met. See red cells below.","") -> 
A72: Settings
A73: Acceleration target (0-60 MPH secs) | B73: netAccel | C73: 9.8
A74: Engine efficiency type | B74: fcEffType | C74: 1
A76: Conv
A77: Fuel economy (MPGGE) | B77: adjCombMpgge | C77: 31.2032277
A78: Present vehicle, fuel, and ESS replacement & salvage cost | B78: presVehFuelEssReplCost | C78: 35134
A79: Engine power (kW) | B79: maxFuelConvKw | C79: 98
A80: Acceleration (secs 0-60 MPH) | B80: netAccel | C80: 9.7
A81: MSRP | B81: MSRP | C81: 19976.02
A82: Purchase tax cost | B82: purchaseTaxCost | C82: 1558.13
A83: Fuel converter price | B83: fcPrice | C83: 2928
A84: Fuel storage price | B84: fuelStorPrice | C84: 34.02
A85: Present liquid/gas fuel cost | B85: presLiqFuelCost | C85: 13599.85
A86: Range (miles) | B86: netRangeMiles | C86: 300.0001193
A87: Mass (kg) | B87: netMassKg | C87: 1536.914373
A89: HEV
A90: Fuel economy (MPGGE) | B90: adjCombMpgge | C90: 38.03228894
A91: Present vehicle, fuel, and ESS replacement & salvage cost | B91: presVehFuelEssReplCost | C91: 34484.06
A92: Engine power (kW) | B92: maxFuelConvKw | C92: 86.2615047
A93: Motor Power (kW) | B93: maxMotorKw | C93: 14.91428571
A94: Battery power (kW) | B94: maxEssKw | C94: 15.69924812
A95: Battery energy (kWh) | B95: maxEssKwh | C95: 1.3
A96: Acceleration (secs 0-60 MPH) | B96: netAccel | C96: 9.8
A97: Battery price | B97: essPrice | C97: 800.83
A98: Present battery replacement (minus salvage) cost | B98: presEssRepMinusSalvCost | C98: 0
A99: Fuel converter price | B99: fcPrice | C99: 2672.69
A100: Fuel storage price | B100: fuelStorPrice | C100: 27.93
A101: Motor and power electronics price | B101: mcPrice | C101: 1122.96
A102: MSRP | B102: MSRP | C102: 21638.4
A103: Purchase tax cost | B103: purchaseTaxCost | C103: 1687.8
A104: Present liquid/gas fuel cost | B104: presLiqFuelCost | C104: 11157.86
A105: Maximum SOC | B105: maxSoc | C105: 0.8
A106: Minimum SOC | B106: minSoc | C106: 0.4
A107: Mass (kg) | B107: netMassKg | C107: 1684.542808
A108: Range (miles) | B108: netRangeMiles | C108: 300.2104157
A109: Battery life (miles) | B109: evEssLifeMiles | C109: 185523.6388
A111: PHEV
A112: Fuel economy (MPGGE) | B112: adjCombMpgge | C112: 59.0765686
A113: Present vehicle, fuel, and ESS replacement & salvage cost | B113: presVehFuelEssReplCost | C113: 35400.37
A114: Engine power (kW) | B114: maxFuelConvKw | C114: 95
A115: Motor power (kW) | B115: maxMotorKw | C115: 21.61904762
A116: Battery power (kW) | B116: maxEssKw | C116: 22.75689223
A117: Battery energy (kWh) | B117: maxEssKwh | C117: 11.22032012
A118: Acceleration (secs 0-60 MPH) | B118: netAccel | C118: 9.8
A119: Charge depleting range (miles) | B119: netPhevCDMiles | C119: 53.81832589
A120: Battery price | B120: essPrice | C120: 2440.42
A121: Present battery replacement (minus salvage) cost | B121: presEssRepMinusSalvCost | C121: 0
A122: Fuel converter price | B122: fcPrice | C122: 2862.75
A123: Fuel storage price | B123: fuelStorPrice | C123: 46.31
A124: Motor and power electronics price | B124: mcPrice | C124: 1341.2
A125: Plug price | B125: plugPrice | C125: 750
A126: MSRP | B126: MSRP | C126: 24454.67
A127: Purchase tax ($) | B127: purchaseTaxCost | C127: 1907.46
A128: Present liquid/gas fuel cost | B128: presLiqFuelCost | C128: 7183.2
A129: Present electric fuel cost | B129: presElecCost | C129: 1855.03
A130: Combined (mpgge) | B130: adjCombMpgge | C130: 59.0765686
A131: Average PHEV elect. consumption (kWh/mile) (incl. charge eff) | B131: ufCombKwhPerMile | C131: 0.09835567494
A132: Maximum SOC | B132: maxSoc | C132: 0.5864574185
A133: Minimum SOC | B133: minSoc | C133: 0.05
A134: Range (miles) | B134: netRangeMiles | C134: 574.5811489
A135: Mass (kg) | B135: netMassKg | C135: 1806.206831
A136: Battery life (miles) | B136: evEssLifeMiles | C136: 187503.984
A138: EV
A139: Charge depleting combined (kWh/mile) -includes charging efficiency | B139: adjCombKwhPerMile | C139: 0.3547962402
A140: Present vehicle, fuel, and ESS replacement & salvage cost | B140: presVehFuelEssReplCost | C140: 42290.84
A141: Motor power (kW) | B141: maxMotorKw | C141: 107.5
A142: Battery power (kW) | B142: maxEssKw | C142: 113.1578947
A143: Battery energy (kWh) | B143: maxEssKwh | C143: 51.13927029
A144: Acceleration (secs 0-60 MPH) | B144: netAccel | C144: 9.7
A145: Range (miles) | B145: netRangeMiles | C145: 150.8410601
A146: Battery price | B146: essPrice | C146: 11122.79
A147: Present battery replacement (minus salvage) cost | B147: presEssRepMinusSalvCost | C147: 0
A148: Motor and power electronics price | B148: mcPrice | C148: 4136.63
A149: Plug price | B149: plugPrice | C149: 750
A150: MSRP | B150: MSRP | C150: 33023.42
A151: Purchase tax ($) | B151: purchaseTaxCost | C151: 2575.83
A152: Present electric fuel cost | B152: presElecCost | C152: 6691.6
A153: Maximum SOC | B153: maxSoc | C153: 0.95
A154: Minimum SOC | B154: minSoc | C154: 0.05
A155: Mass (kg) | B155: netMassKg | C155: 2031.41237
A156: Battery life (miles) | B156: evEssLifeMiles | C156: 281008.8506
A158: FCEV
A159: Fuel economy (MPGGE) | B159: adjCombMpgge | C159: 60.37920592
A160: Present vehicle, fuel, and ESS replacement & salvage cost | B160: presVehFuelEssReplCost | C160: 59273.18
A161: Fuel cell power (kW) | B161: maxFuelConvKw | C161: 88.70915626
A162: Motor Power (kW) | B162: maxMotorKw | C162: 100.3511316
A163: Battery power (kW) | B163: maxEssKw | C163: 11.64197531
A164: Battery energy (kWh) | B164: maxEssKwh | C164: 2.2
A165: Fuel storage energy (kWh) | B165: fuelStorKwh | C165: 166.558328
A166: Acceleration (secs 0-60 MPH) | B166: netAccel | C166: 9.8
A167: Battery price | B167: essPrice | C167: 862.69
A168: Present battery replacement (minus salvage) cost | B168: presEssRepMinusSalvCost | C168: 0
A169: Fuel converter price | B169: fcPrice | C169: 22620.83
A170: Fuel storage price | B170: fuelStorPrice | C170: 3997.4
A171: Motor and power electronics price | B171: mcPrice | C171: 3903.93
A172: MSRP | B172: MSRP | C172: 48398.85
A173: Purchase tax cost | B173: purchaseTaxCost | C173: 3775.11
A174: Present liquid/gas fuel cost | B174: presLiqFuelCost | C174: 7099.22
A175: Maximum SOC | B175: maxSoc | C175: 0.8
A176: Minimum SOC | B176: minSoc | C176: 0.4
A177: Range (miles) | B177: netRangeMiles | C177: 298.4171983
A178: Mass (kg) | B178: netMassKg | C178: 1747.455612
A179: Battery life (miles) | B179: evEssLifeMiles | C179: 423274.7925
A183: Summary | C183: Glider | D183: Fuel converter | E183: Fuel Storage | F183: Motor & power electronics | G183: Plug | H183: Battery | I183: Purchase tax | J183: Battery replacement | K183: Fuel | L183: Electricity | M183: Petroleum use (gallons/year) | O183: Power/mass | P183: Mass (kg)
A184: Conv. | C184: =C78-C85-C82-C83-C84 -> 17014 | D184: =C83 -> 2928 | E184: =C84 -> 34.02 | F184: =0 -> 0 | G184: =0 -> 0 | H184: =0 -> 0 | I184: =C82 -> 1558.13 | J184: 0 | K184: =C85 -> 13599.85 | L184: 0 | M184: =(1/C77)*IF(fcEffType=3,'Veh Model'!kWhPerGGE/'Veh Model'!kWhPerGalDiesel,1)*VehicleIO!VMT -> 396.593587 | O184: =C79/C87 -> 0.06376412487 | P184: =C87 -> 1536.914373
A185: HEV | C185: =C91-C97-C98-C104-C99-C101-C103-C100 -> 17013.99 | D185: =C99 -> 2672.69 | E185: =C100 -> 27.93 | F185: =C101 -> 1122.96 | G185: =0 -> 0 | H185: =C97 -> 800.83 | I185: =C103 -> 1687.8 | J185: =C98 -> 0 | K185: =C104 -> 11157.86 | L185: 0 | M185: =(1/C90)*IF(fcEffType=3,'Veh Model'!kWhPerGGE/'Veh Model'!kWhPerGalDiesel,1)*VehicleIO!VMT -> 325.3814152 | O185: =SUM(C92,C94)/C107 -> 0.06052725543 | P185: =C107 -> 1684.542808
A186: ="PHEV"&ROUND(C119,0) -> PHEV54 | C186: =C113-C120-C121-C128-C129-C122-C124-C125-C127-C123 -> 17014 | D186: =C122 -> 2862.75 | E186: =C123 -> 46.31 | F186: =C124 -> 1341.2 | G186: =C125 -> 750 | H186: =C120 -> 2440.42 | I186: =C127 -> 1907.46 | J186: =C121 -> 0 | K186: =C128 -> 7183.2 | L186: =C129 -> 1855.03 | M186: =(1/C112)*IF(fcEffType=3,'Veh Model'!kWhPerGGE/'Veh Model'!kWhPerGalDiesel,1)*VehicleIO!VMT -> 209.4739131 | O186: =SUM(C114,C116)/C135 -> 0.06519568537 | P186: =C135 -> 1806.206831
A187: ="EV"&ROUND(C145,0) -> EV151 | C187: =C140-C146-C147-C152-C148-C149-C151 -> 17013.99 | D187: =0 -> 0 | E187: =0 -> 0 | F187: =C148 -> 4136.63 | G187: =C149 -> 750 | H187: =C146 -> 11122.79 | I187: =C151 -> 2575.83 | J187: =C147 -> 0 | K187: =0 -> 0 | L187: =C152 -> 6691.6 | M187: 0 | O187: =C142/C155 -> 0.05570404925 | P187: =C155 -> 2031.41237
A188: FCV | C188: =C160-C167-C168-C171-C173-C174-C169-C170 -> 17014 | D188: =C169 -> 22620.83 | E188: =C170 -> 3997.4 | F188: =C171 -> 3903.93 | G188: 0 | H188: =C167 -> 862.69 | I188: =C173 -> 3775.11 | J188: =C168 -> 0 | K188: =C174 -> 7099.22 | L188: 0 | M188: 0 | O188: =C162/C178 -> 0.05742699894 | P188: =C178 -> 1747.455612

Sheet DOE
A1: Design of Experiments
A7: Example setup
A8: Design variables (cell name or address: A1): | B8: VehicleIO!maxFuelConvKw | C8: VehicleIO!vehOverrideKg | E8: VehicleIO!netAccel | F8: VehicleIO!adjCombMpgge
A9: Low values | B9: 50 | C9: 1000
A10: High values | B10: 400 | C10: 3000
A11: Levels (number of steps to take) | B11: 8 | C11: 3
A14: VehicleIO!maxFuelConvKw | B14: VehicleIO!vehOverrideKg | D14: VehicleIO!netAccel | E14: VehicleIO!adjCombMpgge
A15: 50 | B15: 1000 | D15: 12.3 | E15: 40.72220747
A16: 100 | B16: 1000 | D16: 7.3 | E16: 35.7375038
A17: 150 | B17: 1000 | D17: 6.2 | E17: 31.10305796
A18: 200 | B18: 1000 | D18: 6.2 | E18: 27.38251144
A19: 250 | B19: 1000 | D19: 6.2 | E19: 24.00143159
A20: 300 | B20: 1000 | D20: 6.2 | E20: 22.64564561
A21: 350 | B21: 1000 | D21: 6.2 | E21: 18.91321392
A22: 400 | B22: 1000 | D22: 6.2 | E22: 18.25216747
A23: 50 | B23: 2000 | D23: 22.3 | E23: 29.48680991
A24: 100 | B24: 2000 | D24: 11.6 | E24: 27.6771576
A25: 150 | B25: 2000 | D25: 8.6 | E25: 25.05183574
A26: 200 | B26: 2000 | D26: 7.1 | E26: 22.53198446
A27: 250 | B27: 2000 | D27: 6.2 | E27: 20.0063224
A28: 300 | B28: 2000 | D28: 6.1 | E28: 18.80381164
A29: 350 | B29: 2000 | D29: 6.1 | E29: 15.87883112
A30: 400 | B30: 2000 | D30: 6.1 | E30: 15.22066195
A31: 50 | B31: 3000 | D31: 33.3 | E31: 22.60614047
A32: 100 | B32: 3000 | D32: 16.2 | E32: 22.19671565
A33: 150 | B33: 3000 | D33: 11.4 | E33: 20.76648021
A34: 200 | B34: 3000 | D34: 9.2 | E34: 19.10787953
A35: 250 | B35: 3000 | D35: 7.9 | E35: 17.26837869
A36: 300 | B36: 3000 | D36: 7 | E36: 16.35244421
A37: 350 | B37: 3000 | D37: 6.4 | E37: 13.98991975
A38: 400 | B38: 3000 | D38: 6 | E38: 13.40610216

Sheet EPA Adj Ref (hidden)
A1: Markup cap | B1: 0.3
A3: MPG | B3: kWh/mi equiv | C3: UDDS Adj MPG | D3: Adj. kWh/mi equiv | E3: kWh markup | F3: Adj w/Cap MPG | G3: Adj. kWh/mi w/cap
A4: 10 | B4: =(1/A4)*kWhPerGGE ->  | C4: =1/(0.003259+(1.1805/A4)) -> 8.243411453 | D4: =(1/C4)*kWhPerGGE ->  | E4: =D4/B4 ->  | F4: =MAX(1/(0.003259+(1.1805/A4)),(1-$B$1)*A4) -> 8.243411453 | G4: =(1/F4)*kWhPerGGE -> 
A5: 15 | C5: =1/(0.003259+(1.1805/A5)) -> 12.20122256 | E5: =D5/B5 ->  | F5: =MAX(1/(0.003259+(1.1805/A5)),(1-$B$1)*A5) -> 12.20122256
A6: 20 | C6: 16.05548777 | F6: 16.05548777
A7: 25 | C7: 19.81021811 | F7: 19.81021811
A8: 30 | C8: 23.46922012 | F8: 23.46922012
A9: 35 | C9: 27.03610865 | F9: 27.03610865
A10: 40 | C10: 30.51431884 | F10: 30.51431884
A11: 45 | C11: 33.9071171 | F11: 33.9071171
A12: 50 | C12: 37.21761137 | F12: 37.21761137
A13: 55 | C13: 40.44876061 | F13: 40.44876061
A14: 60 | C14: 43.60338362 | F14: 43.60338362
A15: 65 | C15: 46.68416724 | F15: 46.68416724
A16: 70 | C16: 49.693674 | F16: 49.693674
A17: 75 | C17: 52.63434918 | F17: 52.63434918
A18: 80 | C18: 55.5085275 | F18: 56
A19: 85 | C19: 58.31843926 | F19: 59.5
A20: 90 | C20: 61.06621613 | F20: 63
A21: 95 | C21: 63.75389654 | F21: 66.5
A22: 100 | C22: 66.3834307 | F22: 70
A23: 105 | C23: 68.95668535 | F23: 73.5
A24: 110 | C24: 71.47544818 | F24: 77
A25: 115 | C25: 73.94143196 | F25: 80.5
A26: 120 | C26: 76.35627839 | F26: 84
A27: 125 | C27: 78.72156184 | F27: 87.5
A28: 130 | C28: 81.03879265 | F28: 91
A29: 135 | C29: 83.30942044 | F29: 94.5
A30: 140 | C30: 85.53483712 | F30: 98
A31: 145 | C31: 87.71637967 | F31: 101.5
A32: 150 | C32: 89.85533291 | F32: 105
A33: 2000 | C33: =1/(0.003259+(1.1805/A33)) -> 259.7908684 | F33: 1400

Sheet Mass Scaling Check (hidden)
A6: Scaling
A7: Fuel and fuel storage mass (kWh/kg) | B7: 9.89473291
A8: Fuel converter specific power (kW/kg) | B8: 0.47
A9: Fuel converter base mass (kg) | B9: 61
A10: =#REF! ->  | B10: 0.833
A11: =#REF! ->  | B11: 21.6
A12: Li-ion battery mass (kg/kWh) | B12: 30.76923077
A13: Li-ion battery base mass (kg) | B13: 0
A14: NiMH battery mass (kg/kWh) | B14: 44
A15: NiMH battery base mass (kg) | B15: 0
A16: Mass multiplier | B16: 1.4 | C16: 1.4 - 1.5: D. E. Malen, K. Reddy, Preliminary Vehicle Mass Estimation Using Empirical Subsystem Influence Coefficients, June 2007.
A17: =#REF! ->  | B17: 114
A18: EV Li-ion kg/kWh | B18: 13
A19: EV Li-ion base mass (kg) | B19: 59
B22: Calculators
B23: lbs | C23: kg
B24: 3435 | C24: =B24*0.4535924 -> 1558.089894
B26: HP | C26: kW
B27: 178 | C27: =B27*0.746 -> 132.788
B29: Gal | C29: kWh
B30: 12.3 | C30: =B30*33.7 -> 414.51
B33: Data | T33: Component Related Mass | W33: Curb mass data | Y33: Model
B38: kW | C38: kWh | E38: kW | F38: kWh | G38: kW | H38: kWh | J38: kg | K38: kg | L38: kg | N38: kg | O38: kg | P38: kg | Q38: kg | R38: kg | T38: kg | U38: kg | W38: kg | X38: kg
A39: Civic | B39: 104.4 | C39: 445 | E39: 69.4 | F39: 0.7 | G39: 17 | H39: 414.5 | J39: =(((1/fcKwPerKg)*B39)+B9)*massMultiplier -> 396.3787234 | K39: =transKg*massMultiplier -> 159.6 | L39: =((1/fuelTankKwhPerKg)*C39)*massMultiplier -> 62.96279098 | N39: =(((1/fcKwPerKg)*E39)+B9)*massMultiplier -> 292.1234043 | O39: =transKg*massMultiplier -> 159.6 | P39: =(essBaseKg+(essKgPerKwh*F39))*massMultiplier -> 30.15384615 | Q39: =(mcBaseKg+(mcKgPerKw*G39))*massMultiplier -> 50.0654 | R39: =((1/fuelTankKwhPerKg)*H39)*massMultiplier -> 58.64736373 | T39: =SUM(J39:L39) -> 618.9415144 | U39: =SUM(N39:R39) -> 590.5900141 | W39: 1227 | X39: 1295 | Y39: =(W39-T39)+U39 -> 1198.6485 | Z39: =(Y39-X39)/X39 -> -0.07440270289
A40: Fusion | B40: 130.5 | C40: 590 | E40: 116 | F40: 1.4 | G40: 78 | H40: 590 | J40: =(((1/fcKwPerKg)*B40)+B10)*massMultiplier -> 389.8896043 | K40: 159.6 | L40: 83.47875658 | N40: =(((1/fcKwPerKg)*E40)+B10)*massMultiplier -> 346.6981149 | O40: 159.6 | P40: =(nimhBaseKg+(nimhKgPerKwh*F40))*massMultiplier -> 86.24 | Q40: 121.2036 | R40: 83.47875658 | T40: 632.9683608 | U40: 797.2204715 | W40: 1490 | X40: 1687 | Y40: 1654.252111 | Z40: -0.01941190834
A41: Escape | B41: 128 | C41: 590 | E41: 116 | F41: 1.65 | G41: 94 | H41: 509 | J41: =(((1/fcKwPerKg)*B41)+B11)*massMultiplier -> 411.5165957 | K41: 159.6 | L41: 83.47875658 | N41: =(((1/fcKwPerKg)*E41)+B11)*massMultiplier -> 375.7719149 | O41: 159.6 | P41: =(nimhBaseKg+(nimhKgPerKwh*F41))*massMultiplier -> 101.64 | Q41: 139.8628 | R41: 72.01811373 | T41: 654.5953523 | U41: 848.8928286 | W41: 1495 | X41: 1656 | Y41: 1689.297476 | Z41: 0.02010717168
A42: Camry | B42: 133 | C42: 573 | E42: 116 | F42: 1.6 | G42: 63 | H42: 573 | J42: =(((1/fcKwPerKg)*B42)+B12)*massMultiplier -> 439.2471358 | K42: 159.6 | L42: 81.07343647 | N42: =(((1/fcKwPerKg)*E42)+B12)*massMultiplier -> 388.608838 | O42: 159.6 | P42: =(nimhBaseKg+(nimhKgPerKwh*F42))*massMultiplier -> 98.56 | Q42: 103.7106 | R42: 81.07343647 | T42: 679.9205723 | U42: 831.5528744 | W42: 1447 | X42: 1558 | Y42: 1598.632302 | Z42: 0.02607978314
A43: Cruze/Volt | B43: 103 | C43: 526 | E43: 62 | F43: 16 | G43: 111 | H43: 313 | J43: =(((1/fcKwPerKg)*B43)+B11)*massMultiplier -> 337.0485106 | K43: 159.6 | L43: 74.42343383 | N43: =(((1/fcKwPerKg)*E43)+B11)*massMultiplier -> 214.9208511 | O43: 159.6 | P43: =(evLiIonBaseKg+(evLiIonKgPerKwh*F43))*massMultiplier -> 373.8 | Q43: 159.6882 | R43: 44.28618781 | T43: 571.0719445 | U43: 952.2952389 | W43: 1418 | X43: 1715 | Y43: 1799.223294 | Z43: 0.04910979266
A44: Versa/Leaf | B44: 81 | C44: 364 | E44: 0 | F44: 24 | G44: 80 | H44: 0 | J44: =(((1/fcKwPerKg)*B44)+B12)*massMultiplier -> 284.3535188 | K44: 159.6 | L44: 51.50214813 | N44: =(((1/fcKwPerKg)*E44)+B12)*massMultiplier -> 43.07692308 | O44: 159.6 | P44: =(evLiIonBaseKg+(evLiIonKgPerKwh*F44))*massMultiplier -> 519.4 | Q44: 123.536 | R44: 0 | T44: 495.4556669 | U44: 845.6129231 | W44: 1115 | X44: 1535 | Y44: 1465.157256 | Z44: -0.04550015887
A45: Focus (conv/EV) | B45: 119 | C45: 418 | E45: 0 | F45: 23 | G45: 107 | H45: 0 | J45: =(((1/fcKwPerKg)*B45)+B13)*massMultiplier -> 354.4680851 | K45: 159.6 | L45: 59.14257669 | N45: =(((1/fcKwPerKg)*E45)+B13)*massMultiplier -> 0 | O45: 159.6 | P45: =(evLiIonBaseKg+(evLiIonKgPerKwh*F45))*massMultiplier -> 501.2 | Q45: 155.0234 | R45: 0 | T45: 573.2106618 | U45: 815.8234 | W45: 1319 | X45: 1644 | Y45: 1561.612738 | Z45: -0.0501139062

Sheet Batch Interface
A1: Batch Run Directions
A2: 1. Specify batch cycles worksheet (or load new csv file) (<400 cycles, <25,000 rows) | B2: Batch Cycles Example | C2: See "Batch Cycles Example" worksheet for data format example
A3: 2. Increase auxillary load on VehicleIO worksheet for real world heat/AC
A4: 3. Run batch cycles (optional: repeat for different VehicleIO setups) | B4: =IF(batchRunSecs>60,ROUND(batchRunSecs/60,1) & " mins",batchRunSecs & " secs") -> 23 secs | C4: 23
A5: 4. Delete cycle data and model worksheets (keeps FASTSim fast and file size down)
A10: Save time-based results (optional) - Saved in "Batch Time Based Results" worksheet
A12: 90
A13: 1
A14: =INDEX(timeBasedVars,optionSelInd) -> addKwh
A15: =INDEX(selectedResList,selVars) -> 0
A21: TRUE
B22: Progress | C22: Total cycles
B23: 5 | C23: 5
A24: Cycle results | B24: shortTest | C24: HWY | D24: UDDS | E24: HWY2 | F24: HWY6
A25: delta ESS/fuel kWh | B25: 1 | C25: 1 | D25: 1 | E25: 1 | F25: 1
A26: Fuel economy (MPGGE)
A27: Gallons gasoline equivalent used | B27: 0 | C27: 0 | D27: 0 | E27: 0 | F27: 0
A28: Electric consumption (kWh/mile) | B28: 0.2306429057 | C28: 0.1988814129 | D28: 0.1628197095 | E28: 0.1988855367 | F28: 0.1988848613
A29: Battery consumption (kWh/mile) | B29: 0.2306429057 | C29: 0.1988814129 | D29: 0.1628197095 | E29: 0.1988855367 | F29: 0.1988848613
A30: Max trace miss (MPH) | B30: 0 | C30: 0 | D30: 0 | E30: 0 | F30: 0
A31: Distance | B31: 0.1128916842 | C31: 10.25905374 | D31: 7.452102665 | E31: 20.51810748 | F31: 61.53890224
A32: CS battery percent wear per mile | B32: 1.008673248e-07 | C32: 8.536277416e-09 | D32: 2.761463906e-08 | E32: 8.536277416e-09 | F32: 8.535709621e-09
A33: CS battery life (miles) | B33: 9914013.3 | C33: 117147083.1 | D33: 36212676.83 | E33: 117147083.1 | F33: 117154875.7
A34: Mass (kg) | B34: 1757.77 | C34: 1757.77 | D34: 1757.77 | E34: 1757.77 | F34: 1757.77
A35: Max traction acceleration (mps2) | B35: 4.297778542 | C35: 4.297778542 | D35: 4.297778542 | E35: 4.297778542 | F35: 4.297778542
A36: Motor average output efficiency | B36: 0.9759109943 | C36: 0.978118148 | D36: 0.9917201302 | E36: 0.978118148 | F36: 0.9781323704
A37: Fuel converter average efficiency
A38: No electric system | B38: FALSE | C38: FALSE | D38: FALSE | E38: FALSE | F38: FALSE
A39: No electric aux loads | B39: FALSE | C39: FALSE | D39: FALSE | E39: FALSE | F39: FALSE
A40: Average ESS kWh cycle | B40: 0.01169551864 | C40: 0.01904485571 | D40: 0.01012993685 | E40: 0.01904485571 | F40: 0.01882048748
A41: Number of cycles per mile | B41: 26.57414514 | C41: 1.267173399 | D41: 6.843706037 | E41: 1.267173399 | F41: 1.267490923
A42: Percent driving with roadway charging | B42: 0 | C42: 0 | D42: 0 | E42: 0 | F42: 0
A44: Energy Information (kJ)
A45: Losses | B45: New Cum Total | C45: New Cum Total | D45: New Cum Total | E45: New Cum Total | F45: New Cum Total
A46: Drag | B46: 6.572431077 | C46: 4373.247864 | D46: 1345.739239 | E46: 8746.495729 | F46: 26239.23548
A47: Ascent | B47: 0 | C47: 0 | D47: 0 | E47: 0 | F47: 0
A48: Tires | B48: 22.86503717 | C48: 2077.864697 | D48: 1509.345934 | E48: 4155.729395 | F48: 12467.15442
A49: Brake | B49: 26.05737156 | C49: 88.32980324 | D49: 367.356832 | E49: 176.6596065 | F49: 529.9788195
A50: Transmission | B50: 6.598250658 | C50: 163.7612058 | D50: 164.4319114 | E50: 327.5224116 | F50: 982.6414202
A51: Motor | B51: 17.36176695 | C51: 283.8097366 | D51: 448.9693958 | E51: 567.6194733 | F51: 1702.27354
A52: ESS efficiency | B52: 4.980740431 | C52: 128.6930637 | D52: 121.513775 | E52: 257.3907313 | F52: 772.2339529
A53: Aux | B53: 9.3 | C53: 229.5 | D53: 410.7 | E53: 459.3 | F53: 1378.8
A54: Fuel converter | B54: 0 | C54: 0 | D54: 0 | E54: 0 | F54: 0
A55: Total | B55: 93.73559785 | C55: 7345.206371 | D55: 4368.057087 | E55: 14690.71735 | F55: 44072.31764
A57: Charger | B57: 0 | C57: 0 | D57: 0 | E57: 0 | F57: 0
A58: ESS discharge | B58: 93.73559785 | C58: 7345.206371 | D58: 4368.057087 | E58: 14690.71735 | F58: 44060.96172
A59: Fuel | B59: 0 | C59: 0 | D59: 0 | E59: 0 | F59: 0
A60: Kinetic energy | B60: 0 | C60: 0 | D60: 0 | E60: 0 | F60: 0
A61: Error | B61: 3.538477981e-13 | C61: -2.509862443e-13 | D61: 9.432136341e-14 | E61: -2.528383247e-13 | F61: -0.001010016019
A65: Batch results
A66: Max trace miss (MPH) | B66: =MAX(traceMiss) -> 0
A67: Max energy audit error magnitude | B67: =MAX(ABS(energyAuditError)) -> 0.001010016019
A68: Max ESS/fuel kWh | B68: =MAX(essToFuelError) -> 1
A69: Fuel economy (MPGGE) | B69: =SUMIF(energyAuditError,"<.01",distMiles)/SUMIF(energyAuditError,"<.01",gge) -> 
A70: Electric consumption (kWh/mile) | B70: =SUM(IF(energyAuditError<0.01,elecKwhPerMile*distMiles,0))/SUM(IF(energyAuditError<0.01,distMiles)) -> 0.196229728
A71: Percent driving with roadway charging | B71: =SUM(IF(energyAuditError<0.01,roadwayChgDistPerc*distMiles,0))/SUM(IF(energyAuditError<0.01,distMiles,0)) -> 0
A72: Electric consumption (kWh/mile) with charging losses | B72: =B70/chgEff -> 
A75: Selected results list (do not use space below this row)

Sheet CurCondsDefault (hidden)
B4: 12375 | C4: http://www.fhwa.dot.gov/policy/ohim/hs05/htm/vm1.htm
B5: 546 | C5: 546: Average based on ORNL, Transportation Energy Data Book: Edition 29, 2010, Table 3.7
C6: ***NOTE: Must be a even number
B8: 15 | C8: http://www.bts.gov/publications/national_transportation_statistics/2002/html/table_01_11.html
B9: 0
B10: 4 | C10: http://www.eia.gov/oog/info/gdu/gasdiesel.asp
B11: 3.75 | C11: http://www.eia.gov/oog/info/gdu/gasdiesel.asp
B12: 0.1 | C12: http://www.eia.gov/cneaf/electricity/epm/epmxlfile5_3.xls
B13: 3.49 | C13: $3.49/GGE: http://www.afdc.energy.gov/uploads/publication/afpr_jul_12.pdf
B14: 0.078 | C14: http://www.consumerreports.org/cro/cars/new-cars/high-cost-of-hybrid-vehicles-406/ownership-cost-comparison/0609_ownership-cost-comparison_ov.htm
B15: 0.041 | C15: http://www.nytimes.com/interactive/2011/01/02/business/20110102-metrics-graphic.htmlhttp://www.inflationdata.com/Inflation/Inflation_Rate/CurrentInflation.asp
B16: 22.2 | C16: A. Simpson, Cost Benefit Analysis of Plug-In Hybrid Electric Vehicle Technology, 2006; http://www.nrel.gov/vehiclesandfuels/vsa/pdfs/40485.pdf
B17: 500 | C17: 500 Matches validation
B18: 680 | C18: A. Simpson, Cost Benefit Analysis of Plug-In Hybrid Electric Vehicle Technology, 2006; http://www.nrel.gov/vehiclesandfuels/vsa/pdfs/40485.pdf
B19: 0
B20: 0
B21: 21.7 | C21: A. Simpson, Cost Benefit Analysis of Plug-In Hybrid Electric Vehicle Technology, 2006; http://www.nrel.gov/vehiclesandfuels/vsa/pdfs/40485.pdf
B22: 425 | C22: A. Simpson, Cost Benefit Analysis of Plug-In Hybrid Electric Vehicle Technology, 2006; http://www.nrel.gov/vehiclesandfuels/vsa/pdfs/40485.pdf
B23: 14.5 | C23: A. Simpson, Cost Benefit Analysis of Plug-In Hybrid Electric Vehicle Technology, 2006; http://www.nrel.gov/vehiclesandfuels/vsa/pdfs/40485.pdf
B24: 531 | C24: A. Simpson, Cost Benefit Analysis of Plug-In Hybrid Electric Vehicle Technology, 2006; http://www.nrel.gov/vehiclesandfuels/vsa/pdfs/40485.pdf
B25: 51 | C25: $51/kW: 2010 Fuel Cell Technologies Market Report, June 2011
B26: 0.07
B27: 15.7
B28: 500
B29: 1.5 | C29: 1.05-1.45: http://dx.doi.org/10.1016/j.ijpe.2009.11.031
B30: 17014

Sheet Validation
A8: Vehicles | B8: Acceleration | C8: 0-60 seconds | E8: Vehicle | F8: MPG | I8: Vehicle | J8: kWh/mile | M8: Vehicle | N8: MSRP | Q8: Vehicle | R8: 65 MPH kWh/mile | U8: Vehicle | V8: 60 MPH kWh/mile | Y8: Vehicle | Z8: 55 MPH kWh/mile | AC8: Vehicle | AD8: 45 MPH kWh/mile | AG8: Vehicle | AH8: EPA UDDS MPG | AK8: Vehicle | AL8: EPA HWY MPG | AO8: Vehicle | AP8: ESS Life Miles
A9: variable name | B9: Actual | C9: Model | F9: Actual | G9: Model | J9: Actual | K9: Model | N9: Actual | O9: Model | R9: Actual | S9: Model | V9: Actual | W9: Model | Z9: Actual | AA9: Model | AD9: Actual | AE9: Model | AH9: Actual | AI9: Model | AL9: Actual | AM9: Model | AP9: Actual | AQ9: Model
A10: 2016 TOYOTA Corolla 4cyl 2WD | B10: 9.9 | C10: 9.8 | E10: 2016 TOYOTA Corolla 4cyl 2WD | F10: 31 | G10: 31.08502461 | I10: 2017 Prius Prime | J10: 0.25 | K10: 0.2812159732 | M10: 2016 FORD C-MAX HEV | N10: 24170 | O10: 22904.86 | AG10: 2016 TOYOTA Corolla 4cyl 2WD | AH10: 27 | AI10: 28.46377066 | AK10: 2016 TOYOTA Corolla 4cyl 2WD | AL10: 36 | AM10: 35.02757154 | AO10: 2016 CHEVROLET Volt | AP10: 120000 | AQ10: 144612.197
A11: 2016 HYUNDAI Elantra 4cyl 2WD | B11: 9.9 | C11: 9.3 | E11: 2016 HYUNDAI Elantra 4cyl 2WD | F11: 31 | G11: 28.76736223 | I11: 2016 CHEVROLET Volt | J11: 0.31 | K11: 0.2956892628 | M11: 2016 KIA Optima Hybrid | N11: 25995 | O11: 22439.27 | AG11: 2016 HYUNDAI Elantra 4cyl 2WD | AH11: 27 | AI11: 26.45106252 | AK11: 2016 HYUNDAI Elantra 4cyl 2WD | AL11: 37 | AM11: 32.21534061
A12: 2016 TOYOTA Camry 4cyl 2WD | B12: 8.6 | C12: 8.3 | E12: 2016 TOYOTA Camry 4cyl 2WD | F12: 28 | G12: 27.32905333 | I12: 2016 FORD C-MAX (PHEV) | J12: 0.37 | K12: 0.3157685401 | M12: 2016 CHEVROLET Volt | N12: 33170 | O12: 28461.49 | AG12: 2016 TOYOTA Camry 4cyl 2WD | AH12: 25 | AI12: 24.6022145 | AK12: 2016 TOYOTA Camry 4cyl 2WD | AL12: 35 | AM12: 31.61136982
A13: 2016 CHEVROLET Malibu 4cyl 2WD | B13: 8.4 | C13: 8.9 | E13: 2016 CHEVROLET Malibu 4cyl 2WD | F13: 31 | G13: 29.64013521 | I13: 2016 HYUNDAI Sonata PHEV | J13: 0.34 | K13: 0.3257593354 | M13: 2016 HYUNDAI Sonata PHEV | N13: 34600 | O13: 26545.07 | AG13: 2016 CHEVROLET Malibu 4cyl 2WD | AH13: 27 | AI13: 26.95228612 | AK13: 2016 CHEVROLET Malibu 4cyl 2WD | AL13: 37 | AM13: 33.75437413
A14: 2016 FORD Escape 4cyl 2WD | B14: 9.9 | C14: 9.4 | E14: 2016 FORD Escape 4cyl 2WD | F14: 26 | G14: 27.21682755 | I14: 2017 CHEVROLET Bolt | J14: 0.283 | K14: 0.3077717671 | M14: 2017 CHEVROLET Bolt | N14: 37495 | O14: 36320 | AG14: 2016 FORD Escape 4cyl 2WD | AH14: 23 | AI14: 25.24615181 | AK14: 2016 FORD Escape 4cyl 2WD | AL14: 32 | AM14: 30.08729993
A15: 2016 FORD C-MAX HEV | B15: 8.4 | C15: 7.6 | E15: 2016 FORD Explorer 4cyl 2WD | F15: 22 | G15: 20.75882488 | I15: 2016 CHEVROLET Spark EV | J15: 0.281 | K15: 0.2661945819 | M15: 2016 CHEVROLET Spark EV | N15: 25120 | O15: 19648.5 | AG15: 2016 FORD Explorer 4cyl 2WD | AH15: 19 | AI15: 19.31381492 | AK15: 2016 FORD Explorer 4cyl 2WD | AL15: 28 | AM15: 22.84813924
A16: 2017 Prius Prime | B16: 10.6 | C16: 8.5 | E16: 2016 BMW 328d 4cyl 2WD | F16: 35 | G16: 33.25503576 | I16: 2016 Leaf 24 kWh | J16: 0.296 | K16: 0.3021637705 | M16: Toyota Mirai | N16: 57500 | O16: 56594.93 | AG16: 2016 BMW 328d 4cyl 2WD | AH16: 31 | AI16: 30.23666548 | AK16: 2016 BMW 328d 4cyl 2WD | AL16: 42 | AM16: 37.87624598
A17: 2016 CHEVROLET Volt | B17: 8.4 | C17: 8 | E17: 2016 AUDI A3 4cyl 2WD | F17: 35 | G17: 36.58936427 | I17: 2016 Nissan Leaf 30 kWh | J17: 0.293 | K17: 0.3039325727 | AG17: 2016 AUDI A3 4cyl 2WD | AH17: 31 | AI17: 34.35300993 | AK17: 2016 AUDI A3 4cyl 2WD | AL17: 41 | AM17: 39.75228331
A18: 2016 FORD C-MAX (PHEV) | B18: 7.9 | C18: 8.1 | E18: 2016 FORD C-MAX HEV | F18: 40 | G18: 40.44093655 | I18: 2016 MITSUBISHI i-MiEV | J18: 0.298 | K18: 0.3235579454 | AG18: 2016 FORD C-MAX HEV | AH18: 42 | AI18: 42.22250016 | AK18: 2016 FORD C-MAX HEV | AL18: 37 | AM18: 38.45762898
A19: 2017 CHEVROLET Bolt | B19: 6.8 | C19: 6.6 | E19: 2016 KIA Optima Hybrid | F19: 38 | G19: 41.9915668 | I19: 2016 TESLA Model S60 2WD | J19: 0.375 | K19: 0.3782638303 | AG19: 2016 KIA Optima Hybrid | AH19: 36 | AI19: 42.72406599 | AK19: 2016 KIA Optima Hybrid | AL19: 40 | AM19: 41.12969973
A20: 2016 CHEVROLET Spark EV | B20: 7.2 | C20: 7.2 | E20: 2016 TOYOTA Highlander Hybrid | F20: 28 | G20: 35.06574866 | AG20: 2016 TOYOTA Highlander Hybrid | AH20: 27 | AI20: 38.23894308 | AK20: 2016 TOYOTA Highlander Hybrid | AL20: 28 | AM20: 31.83673757
A21: 2016 Leaf 24 kWh | B21: 10 | C21: 10 | E21: 2017 Prius Prime | F21: 54 | G21: 50.1839243 | AG21: 2016 Hyundai Tucson Fuel Cell | AH21: 48 | AI21: 55.9934701 | AK21: 2016 Hyundai Tucson Fuel Cell | AL21: 50 | AM21: 50.83138352
A22: 2016 Nissan Leaf 30 kWh | B22: 10 | C22: 10.1 | E22: 2016 CHEVROLET Volt | F22: 42 | G22: 45.0683057 | AG22: Toyota Mirai | AH22: 67 | AI22: 62.06544949 | AK22: Toyota Mirai | AL22: 67 | AM22: 59.45145492
A23: 2016 TESLA Model S60 2WD | B23: 5.5 | C23: 5.8 | E23: 2016 FORD C-MAX (PHEV) | F23: 38 | G23: 42.03353313
A24: 2016 Hyundai Tucson Fuel Cell | B24: 12 | C24: 10.5 | E24: 2016 HYUNDAI Sonata PHEV | F24: 40 | G24: 43.57687769
A25: Toyota Mirai | B25: 9 | C25: 10.1 | E25: 2016 Hyundai Tucson Fuel Cell | F25: 49 | G25: 53.54645531
E26: Toyota Mirai | F26: 67 | G26: 60.86125779

Sheet Batch Time Based Results

Sheet Batch Cycles Example
A1: HWY | E1: shortTest | I1: HWY2 | M1: HWY6 | Q1: UDDS
A2: cycSecs | B2: cycMps | C2: cycGrade | D2: cycRoadType | E2: cycSecs | F2: cycMps | G2: cycGrade | H2: cycRoadType | I2: cycSecs | J2: cycMps | K2: cycGrade | L2: cycRoadType | M2: cycSecs | N2: cycMps | O2: cycGrade | P2: cycRoadType | Q2: cycSecs | R2: cycMps | S2: cycGrade | T2: cycRoadType
A3: 0 | B3: 0 | C3: 0 | D3: No Charging | E3: 0 | F3: 0 | G3: 0 | H3: No Charging | I3: 0 | J3: 0 | K3: 0 | L3: No Charging | M3: 0 | N3: 0 | O3: 0 | P3: No Charging | Q3: 0 | R3: 0 | S3: 0 | T3: No Charging
A4: 1 | B4: 0 | C4: 0 | D4: No Charging | E4: 1 | F4: 0 | G4: 0 | H4: No Charging | I4: 1 | J4: 0 | K4: 0 | L4: No Charging | M4: 1 | N4: 0 | O4: 0 | P4: No Charging | Q4: 1 | R4: 0 | S4: 0 | T4: No Charging
A5: 2 | B5: 0 | C5: 0 | D5: No Charging | E5: 2 | F5: 5.141043408 | G5: 0 | H5: No Charging | I5: 2 | J5: 0 | K5: 0 | L5: No Charging | M5: 2 | N5: 0 | O5: 0 | P5: No Charging | Q5: 2 | R5: 0 | S5: 0 | T5: No Charging
A6: 3 | B6: 0.894094506 | C6: 0 | D6: No Charging | E6: 3 | F6: 6.392775716 | G6: 0 | H6: No Charging | I6: 3 | J6: 0.894094506 | K6: 0 | L6: No Charging | M6: 3 | N6: 0.894094506 | O6: 0 | P6: No Charging | Q6: 3 | R6: 0 | S6: 0 | T6: No Charging
A7: 4 | B7: 2.190531539 | C7: 0 | D7: No Charging | E7: 4 | F7: 7.555098574 | G7: 0 | H7: FuncClass1 | I7: 4 | J7: 2.190531539 | K7: 0 | L7: No Charging | M7: 4 | N7: 2.190531539 | O7: 0 | P7: No Charging | Q7: 4 | R7: 0 | S7: 0 | T7: No Charging
A8: 5 | B8: 3.621082748 | C8: 0 | D8: No Charging | E8: 5 | F8: 7.733917475 | G8: 0 | H8: FuncClass1 | I8: 5 | J8: 3.621082748 | K8: 0 | L8: No Charging | M8: 5 | N8: 3.621082748 | O8: 0 | P8: No Charging | Q8: 5 | R8: 0 | S8: 0 | T8: No Charging
A9: 6 | B9: 5.051633958 | C9: 0 | D9: No Charging | E9: 6 | F9: 8.091555277 | G9: 0 | H9: FuncClass1 | I9: 6 | J9: 5.051633958 | K9: 0 | L9: No Charging | M9: 6 | N9: 5.051633958 | O9: 0 | P9: No Charging | Q9: 6 | R9: 0 | S9: 0 | T9: No Charging
A10: 7 | B10: 6.482185167 | C10: 0 | D10: No Charging | E10: 7 | F10: 9.253878135 | G10: 0 | H10: FuncClass1 | I10: 7 | J10: 6.482185167 | K10: 0 | L10: No Charging | M10: 7 | N10: 6.482185167 | O10: 0 | P10: No Charging | Q10: 7 | R10: 0 | S10: 0 | T10: No Charging
A11: 8 | B11: 7.733917475 | C11: 0 | D11: No Charging | E11: 8 | F11: 9.700925388 | G11: 0 | H11: FuncClass1 | I11: 8 | J11: 7.733917475 | K11: 0 | L11: No Charging | M11: 8 | N11: 7.733917475 | O11: 0 | P11: No Charging | Q11: 8 | R11: 0 | S11: 0 | T11: No Charging
A12: 9 | B12: 8.762126157 | C12: 0 | D12: No Charging | E12: 9 | F12: 10.01385846 | G12: 0 | H12: FuncClass1 | I12: 9 | J12: 8.762126157 | K12: 0 | L12: No Charging | M12: 9 | N12: 8.762126157 | O12: 0 | P12: No Charging | Q12: 9 | R12: 0 | S12: 0 | T12: No Charging
A13: 10 | B13: 9.745630113 | C13: 0 | D13: No Charging | E13: 10 | F13: 10.05856319 | G13: 0 | H13: FuncClass1 | I13: 10 | J13: 9.745630113 | K13: 0 | L13: No Charging | M13: 10 | N13: 9.745630113 | O13: 0 | P13: No Charging | Q13: 10 | R13: 0 | S13: 0 | T13: No Charging
A14: 11 | B14: 10.72913407 | C14: 0 | D14: No Charging | E14: 11 | F14: 9.879744289 | G14: 0 | H14: FuncClass1 | I14: 11 | J14: 10.72913407 | K14: 0 | L14: No Charging | M14: 11 | N14: 10.72913407 | O14: 0 | P14: No Charging | Q14: 11 | R14: 0 | S14: 0 | T14: No Charging
A15: 12 | B15: 11.53381912 | C15: 0 | D15: FuncClass1 | E15: 12 | F15: 5.141043408 | G15: 0 | H15: FuncClass1 | I15: 12 | J15: 11.53381912 | K15: 0 | L15: No Charging | M15: 12 | N15: 11.53381912 | O15: 0 | P15: No Charging | Q15: 12 | R15: 0 | S15: 0 | T15: No Charging
A16: 13 | B16: 12.11498055 | C16: 0 | D16: FuncClass1 | E16: 13 | F16: 6.392775716 | G16: 0 | H16: FuncClass1 | I16: 13 | J16: 12.11498055 | K16: 0 | L16: No Charging | M16: 13 | N16: 12.11498055 | O16: 0 | P16: No Charging | Q16: 13 | R16: 0 | S16: 0 | T16: No Charging
A17: 14 | B17: 12.51732308 | C17: 0 | D17: FuncClass1 | E17: 14 | F17: 7.555098574 | G17: 0 | H17: FuncClass1 | I17: 14 | J17: 12.51732308 | K17: 0 | L17: No Charging | M17: 14 | N17: 12.51732308 | O17: 0 | P17: No Charging | Q17: 14 | R17: 0 | S17: 0 | T17: No Charging
A18: 15 | B18: 12.96437033 | C18: 0 | D18: FuncClass1 | E18: 15 | F18: 7.733917475 | G18: 0 | H18: FuncClass1 | I18: 15 | J18: 12.96437033 | K18: 0 | L18: No Charging | M18: 15 | N18: 12.96437033 | O18: 0 | P18: No Charging | Q18: 15 | R18: 0 | S18: 0 | T18: No Charging
A19: 16 | B19: 13.41141759 | C19: 0 | D19: FuncClass1 | E19: 16 | F19: 8.091555277 | G19: 0 | H19: FuncClass1 | I19: 16 | J19: 13.41141759 | K19: 0 | L19: No Charging | M19: 16 | N19: 13.41141759 | O19: 0 | P19: No Charging | Q19: 16 | R19: 0 | S19: 0 | T19: No Charging
A20: 17 | B20: 13.72435066 | C20: 0 | D20: FuncClass1 | E20: 17 | F20: 9.253878135 | G20: 0 | H20: FuncClass2 | I20: 17 | J20: 13.72435066 | K20: 0 | L20: No Charging | M20: 17 | N20: 13.72435066 | O20: 0 | P20: No Charging | Q20: 17 | R20: 0 | S20: 0 | T20: No Charging
A21: 18 | B21: 14.08198847 | C21: 0 | D21: FuncClass1 | E21: 18 | F21: 9.700925388 | G21: 0 | H21: FuncClass2 | I21: 18 | J21: 14.08198847 | K21: 0 | L21: No Charging | M21: 18 | N21: 14.08198847 | O21: 0 | P21: No Charging | Q21: 18 | R21: 0 | S21: 0 | T21: No Charging
A22: 19 | B22: 14.39492154 | C22: 0 | D22: FuncClass1 | E22: 19 | F22: 10.01385846 | G22: 0 | H22: FuncClass2 | I22: 19 | J22: 14.39492154 | K22: 0 | L22: No Charging | M22: 19 | N22: 14.39492154 | O22: 0 | P22: No Charging | Q22: 19 | R22: 0 | S22: 0 | T22: No Charging
A23: 20 | B23: 14.70785462 | C23: 0 | D23: FuncClass1 | E23: 20 | F23: 10.05856319 | G23: 0 | H23: FuncClass2 | I23: 20 | J23: 14.70785462 | K23: 0 | L23: No Charging | M23: 20 | N23: 14.70785462 | O23: 0 | P23: No Charging | Q23: 20 | R23: 0 | S23: 0 | T23: No Charging
A24: 21 | B24: 14.97608297 | C24: 0 | D24: FuncClass1 | E24: 21 | F24: 9.879744289 | G24: 0 | H24: FuncClass2 | I24: 21 | J24: 14.97608297 | K24: 0 | L24: No Charging | M24: 21 | N24: 14.97608297 | O24: 0 | P24: No Charging | Q24: 21 | R24: 1.341141759 | S24: 0 | T24: No Charging
A25: 22 | B25: 15.24431132 | C25: 0 | D25: FuncClass1 | E25: 22 | F25: 5 | G25: 0 | H25: FuncClass2 | I25: 22 | J25: 15.24431132 | K25: 0 | L25: No Charging | M25: 22 | N25: 15.24431132 | O25: 0 | P25: No Charging | Q25: 22 | R25: 2.637578792 | S25: 0 | T25: No Charging
A26: 23 | B26: 15.46783495 | C26: 0 | D26: FuncClass1 | E26: 23 | F26: 2 | G26: 0 | H26: FuncClass2 | I26: 23 | J26: 15.46783495 | K26: 0 | L26: No Charging | M26: 23 | N26: 15.46783495 | O26: 0 | P26: No Charging | Q26: 23 | R26: 3.844606375 | S26: 0 | T26: No Charging
A27: 24 | B27: 15.60194913 | C27: 0 | D27: FuncClass1 | E27: 24 | F27: 3 | G27: 0 | H27: FuncClass2 | I27: 24 | J27: 15.60194913 | K27: 0 | L27: No Charging | M27: 24 | N27: 15.60194913 | O27: 0 | P27: No Charging | Q27: 24 | R27: 5.141043408 | S27: 0 | T27: No Charging
A28: 25 | B28: 15.69135858 | C28: 0 | D28: FuncClass1 | E28: 25 | F28: 4 | G28: 0 | H28: FuncClass2 | I28: 25 | J28: 15.69135858 | K28: 0 | L28: No Charging | M28: 25 | N28: 15.69135858 | O28: 0 | P28: No Charging | Q28: 25 | R28: 6.392775716 | S28: 0 | T28: No Charging
A29: 26 | B29: 15.95958693 | C29: 0 | D29: FuncClass1 | E29: 26 | F29: 0 | G29: 0 | H29: FuncClass2 | I29: 26 | J29: 15.95958693 | K29: 0 | L29: No Charging | M29: 26 | N29: 15.95958693 | O29: 0 | P29: No Charging | Q29: 26 | R29: 7.555098574 | S29: 0 | T29: No Charging
A30: 27 | B30: 16.04899638 | C30: 0 | D30: FuncClass1 | E30: 27 | F30: 0 | G30: 0 | H30: FuncClass2 | I30: 27 | J30: 16.04899638 | K30: 0 | L30: No Charging | M30: 27 | N30: 16.04899638 | O30: 0 | P30: No Charging | Q30: 27 | R30: 7.733917475 | S30: 0 | T30: No Charging
A31: 28 | B31: 16.00429165 | C31: 0 | D31: FuncClass1 | E31: 28 | F31: 0 | G31: 0 | H31: FuncClass2 | I31: 28 | J31: 16.00429165 | K31: 0 | L31: No Charging | M31: 28 | N31: 16.00429165 | O31: 0 | P31: No Charging | Q31: 28 | R31: 8.091555277 | S31: 0 | T31: No Charging
A32: 29 | B32: 15.78076803 | C32: 0 | D32: FuncClass1 | E32: 29 | F32: 0 | G32: 0 | H32: FuncClass2 | I32: 29 | J32: 15.78076803 | K32: 0 | L32: No Charging | M32: 29 | N32: 15.78076803 | O32: 0 | P32: No Charging | Q32: 29 | R32: 9.253878135 | S32: 0 | T32: No Charging
A33: 30 | B33: 15.60194913 | C33: 0 | D33: FuncClass1 | E33: 30 | F33: 0 | G33: 0 | H33: No Charging | I33: 30 | J33: 15.60194913 | K33: 0 | L33: No Charging | M33: 30 | N33: 15.60194913 | O33: 0 | P33: No Charging | Q33: 30 | R33: 9.700925388 | S33: 0 | T33: No Charging
A34: 31 | B34: 15.42313022 | C34: 0 | D34: FuncClass1 | E34: 31 | F34: 0 | G34: 0 | H34: No Charging | I34: 31 | J34: 15.42313022 | K34: 0 | L34: No Charging | M34: 31 | N34: 15.42313022 | O34: 0 | P34: No Charging | Q34: 31 | R34: 10.01385846 | S34: 0 | T34: No Charging
A35: 32 | B35: 15.46783495 | C35: 0 | D35: FuncClass1 | I35: 32 | J35: 15.46783495 | K35: 0 | L35: No Charging | M35: 32 | N35: 15.46783495 | O35: 0 | P35: No Charging | Q35: 32 | R35: 10.05856319 | S35: 0 | T35: No Charging
A36: 33 | B36: 15.5572444 | C36: 0 | D36: FuncClass1 | I36: 33 | J36: 15.5572444 | K36: 0 | L36: No Charging | M36: 33 | N36: 15.5572444 | O36: 0 | P36: No Charging | Q36: 33 | R36: 9.879744289 | S36: 0 | T36: No Charging
A37: 34 | B37: 15.69135858 | C37: 0 | D37: FuncClass1 | I37: 34 | J37: 15.69135858 | K37: 0 | L37: No Charging | M37: 34 | N37: 15.69135858 | O37: 0 | P37: No Charging | Q37: 34 | R37: 9.611515937 | S37: 0 | T37: No Charging
A38: 35 | B38: 15.95958693 | C38: 0 | D38: FuncClass1 | I38: 35 | J38: 15.95958693 | K38: 0 | L38: No Charging | M38: 35 | N38: 15.95958693 | O38: 0 | P38: No Charging | Q38: 35 | R38: 9.343287585 | S38: 0 | T38: No Charging
A39: 36 | B39: 16.13840583 | C39: 0 | D39: FuncClass1 | I39: 36 | J39: 16.13840583 | K39: 0 | L39: No Charging | M39: 36 | N39: 16.13840583 | O39: 0 | P39: No Charging | Q39: 36 | R39: 9.119763959 | S39: 0 | T39: No Charging
A40: 37 | B40: 16.18311055 | C40: 0 | D40: FuncClass1 | I40: 37 | J40: 16.18311055 | K40: 0 | L40: No Charging | M40: 37 | N40: 16.18311055 | O40: 0 | P40: No Charging | Q40: 37 | R40: 8.851535607 | S40: 0 | T40: No Charging
A41: 38 | B41: 16.31722473 | C41: 0 | D41: FuncClass1 | I41: 38 | J41: 16.31722473 | K41: 0 | L41: No Charging | M41: 38 | N41: 16.31722473 | O41: 0 | P41: No Charging | Q41: 38 | R41: 7.599803299 | S41: 0 | T41: No Charging
A42: 39 | B42: 16.40663418 | C42: 0 | D42: FuncClass1 | I42: 39 | J42: 16.40663418 | K42: 0 | L42: No Charging | M42: 39 | N42: 16.40663418 | O42: 0 | P42: No Charging | Q42: 39 | R42: 6.661004068 | S42: 0 | T42: No Charging
A43: 40 | B43: 16.49604363 | C43: 0 | D43: FuncClass1 | I43: 40 | J43: 16.49604363 | K43: 0 | L43: No Charging | M43: 40 | N43: 16.49604363 | O43: 0 | P43: No Charging | Q43: 40 | R43: 6.661004068 | S43: 0 | T43: No Charging
A44: 41 | B44: 16.54074836 | C44: 0 | D44: FuncClass1 | I44: 41 | J44: 16.54074836 | K44: 0 | L44: No Charging | M44: 41 | N44: 16.54074836 | O44: 0 | P44: No Charging | Q44: 41 | R44: 6.795118244 | S44: 0 | T44: No Charging
A45: 42 | B45: 16.54074836 | C45: 0 | D45: FuncClass1 | I45: 42 | J45: 16.54074836 | K45: 0 | L45: No Charging | M45: 42 | N45: 16.54074836 | O45: 0 | P45: No Charging | Q45: 42 | R45: 6.92923242 | S45: 0 | T45: No Charging
A46: 43 | B46: 16.54074836 | C46: 0 | D46: FuncClass1 | I46: 43 | J46: 16.54074836 | K46: 0 | L46: No Charging | M46: 43 | N46: 16.54074836 | O46: 0 | P46: No Charging | Q46: 43 | R46: 7.152756046 | S46: 0 | T46: No Charging
A47: 44 | B47: 16.54074836 | C47: 0 | D47: FuncClass1 | I47: 44 | J47: 16.54074836 | K47: 0 | L47: No Charging | M47: 44 | N47: 16.54074836 | O47: 0 | P47: No Charging | Q47: 44 | R47: 7.644508024 | S47: 0 | T47: No Charging
A48: 45 | B48: 16.54074836 | C48: 0 | D48: FuncClass1 | I48: 45 | J48: 16.54074836 | K48: 0 | L48: No Charging | M48: 45 | N48: 16.54074836 | O48: 0 | P48: No Charging | Q48: 45 | R48: 8.53860253 | S48: 0 | T48: No Charging
A49: 46 | B49: 16.54074836 | C49: 0 | D49: FuncClass1 | I49: 46 | J49: 16.54074836 | K49: 0 | L49: No Charging | M49: 46 | N49: 16.54074836 | O49: 0 | P49: No Charging | Q49: 46 | R49: 9.432697036 | S49: 0 | T49: No Charging
A50: 47 | B50: 16.58545308 | C50: 0 | D50: FuncClass1 | I50: 47 | J50: 16.58545308 | K50: 0 | L50: No Charging | M50: 47 | N50: 16.58545308 | O50: 0 | P50: No Charging | Q50: 47 | R50: 10.14797264 | S50: 0 | T50: No Charging
A51: 48 | B51: 16.67486253 | C51: 0 | D51: FuncClass1 | I51: 48 | J51: 16.67486253 | K51: 0 | L51: No Charging | M51: 48 | N51: 16.67486253 | O51: 0 | P51: No Charging | Q51: 48 | R51: 10.23738209 | S51: 0 | T51: No Charging
A52: 49 | B52: 16.89838616 | C52: 0 | D52: FuncClass1 | I52: 49 | J52: 16.89838616 | K52: 0 | L52: No Charging | M52: 49 | N52: 16.89838616 | O52: 0 | P52: No Charging | Q52: 49 | R52: 10.14797264 | S52: 0 | T52: No Charging
A53: 50 | B53: 17.25602396 | C53: 0 | D53: FuncClass1 | I53: 50 | J53: 17.25602396 | K53: 0 | L53: No Charging | M53: 50 | N53: 17.25602396 | O53: 0 | P53: No Charging | Q53: 50 | R53: 10.10326792 | S53: 0 | T53: No Charging
A54: 51 | B54: 17.56895704 | C54: 0 | D54: FuncClass1 | I54: 51 | J54: 17.56895704 | K54: 0 | L54: No Charging | M54: 51 | N54: 17.56895704 | O54: 0 | P54: No Charging | Q54: 51 | R54: 9.522106487 | S54: 0 | T54: No Charging
A55: 52 | B55: 17.88189012 | C55: 0 | D55: FuncClass1 | I55: 52 | J55: 17.88189012 | K55: 0 | L55: No Charging | M55: 52 | N55: 17.88189012 | O55: 0 | P55: No Charging | Q55: 52 | R55: 8.493897805 | S55: 0 | T55: No Charging
A56: 53 | B56: 18.19482319 | C56: 0 | D56: FuncClass1 | I56: 53 | J56: 18.19482319 | K56: 0 | L56: No Charging | M56: 53 | N56: 18.19482319 | O56: 0 | P56: No Charging | Q56: 53 | R56: 7.644508024 | S56: 0 | T56: No Charging
A57: 54 | B57: 18.50775627 | C57: 0 | D57: FuncClass1 | I57: 54 | J57: 18.50775627 | K57: 0 | L57: No Charging | M57: 54 | N57: 18.50775627 | O57: 0 | P57: No Charging | Q57: 54 | R57: 7.063346596 | S57: 0 | T57: No Charging
A58: 55 | B58: 18.86539407 | C58: 0 | D58: FuncClass1 | I58: 55 | J58: 18.86539407 | K58: 0 | L58: No Charging | M58: 55 | N58: 18.86539407 | O58: 0 | P58: No Charging | Q58: 55 | R58: 7.063346596 | S58: 0 | T58: No Charging
A59: 56 | B59: 19.17832715 | C59: 0 | D59: FuncClass1 | I59: 56 | J59: 19.17832715 | K59: 0 | L59: No Charging | M59: 56 | N59: 19.17832715 | O59: 0 | P59: No Charging | Q59: 56 | R59: 7.912736376 | S59: 0 | T59: No Charging
A60: 57 | B60: 19.4465555 | C60: 0 | D60: FuncClass1 | I60: 57 | J60: 19.4465555 | K60: 0 | L60: No Charging | M60: 57 | N60: 19.4465555 | O60: 0 | P60: No Charging | Q60: 57 | R60: 8.851535607 | S60: 0 | T60: No Charging
A61: 58 | B61: 19.67007913 | C61: 0 | D61: FuncClass1 | I61: 58 | J61: 19.67007913 | K61: 0 | L61: No Charging | M61: 58 | N61: 19.67007913 | O61: 0 | P61: No Charging | Q61: 58 | R61: 9.656220663 | S61: 0 | T61: No Charging
A62: 59 | B62: 19.8041933 | C62: 0 | D62: FuncClass1 | I62: 59 | J62: 19.8041933 | K62: 0 | L62: No Charging | M62: 59 | N62: 19.8041933 | O62: 0 | P62: No Charging | Q62: 59 | R62: 10.37149627 | S62: 0 | T62: No Charging
A63: 60 | B63: 19.89360275 | C63: 0 | D63: FuncClass1 | I63: 60 | J63: 19.89360275 | K63: 0 | L63: No Charging | M63: 60 | N63: 19.89360275 | O63: 0 | P63: No Charging | Q63: 60 | R63: 10.81854352 | S63: 0 | T63: No Charging
A64: 61 | B64: 20.02771693 | C64: 0 | D64: FuncClass1 | I64: 61 | J64: 20.02771693 | K64: 0 | L64: No Charging | M64: 61 | N64: 20.02771693 | O64: 0 | P64: No Charging | Q64: 61 | R64: 10.99736242 | S64: 0 | T64: No Charging
A65: 62 | B65: 20.07242165 | C65: 0 | D65: FuncClass1 | I65: 62 | J65: 20.07242165 | K65: 0 | L65: No Charging | M65: 62 | N65: 20.07242165 | O65: 0 | P65: No Charging | Q65: 62 | R65: 11.1314766 | S65: 0 | T65: No Charging
A66: 63 | B66: 20.11712638 | C66: 0 | D66: FuncClass1 | I66: 63 | J66: 20.11712638 | K66: 0 | L66: No Charging | M66: 63 | N66: 20.11712638 | O66: 0 | P66: No Charging | Q66: 63 | R66: 11.17618132 | S66: 0 | T66: No Charging
A67: 64 | B67: 20.16183111 | C67: 0 | D67: FuncClass1 | I67: 64 | J67: 20.16183111 | K67: 0 | L67: No Charging | M67: 64 | N67: 20.16183111 | O67: 0 | P67: No Charging | Q67: 64 | R67: 10.99736242 | S67: 0 | T67: No Charging
A68: 65 | B68: 20.29594528 | C68: 0 | D68: FuncClass1 | I68: 65 | J68: 20.29594528 | K68: 0 | L68: No Charging | M68: 65 | N68: 20.29594528 | O68: 0 | P68: No Charging | Q68: 65 | R68: 10.9526577 | S68: 0 | T68: No Charging
A69: 66 | B69: 20.43005946 | C69: 0 | D69: FuncClass1 | I69: 66 | J69: 20.43005946 | K69: 0 | L69: No Charging | M69: 66 | N69: 20.43005946 | O69: 0 | P69: No Charging | Q69: 66 | R69: 11.04206715 | S69: 0 | T69: No Charging
A70: 67 | B70: 20.56417363 | C70: 0 | D70: FuncClass1 | I70: 67 | J70: 20.56417363 | K70: 0 | L70: No Charging | M70: 67 | N70: 20.56417363 | O70: 0 | P70: No Charging | Q70: 67 | R70: 11.08677187 | S70: 0 | T70: No Charging
A71: 68 | B71: 20.69828781 | C71: 0 | D71: FuncClass1 | I71: 68 | J71: 20.69828781 | K71: 0 | L71: No Charging | M71: 68 | N71: 20.69828781 | O71: 0 | P71: No Charging | Q71: 68 | R71: 11.04206715 | S71: 0 | T71: No Charging
A72: 69 | B72: 20.78769726 | C72: 0 | D72: FuncClass1 | I72: 69 | J72: 20.78769726 | K72: 0 | L72: No Charging | M72: 69 | N72: 20.78769726 | O72: 0 | P72: No Charging | Q72: 69 | R72: 10.99736242 | S72: 0 | T72: No Charging
A73: 70 | B73: 20.92181144 | C73: 0 | D73: FuncClass1 | I73: 70 | J73: 20.92181144 | K73: 0 | L73: No Charging | M73: 70 | N73: 20.92181144 | O73: 0 | P73: No Charging | Q73: 70 | R73: 10.99736242 | S73: 0 | T73: No Charging
A74: 71 | B74: 20.96651616 | C74: 0 | D74: FuncClass1 | I74: 71 | J74: 20.96651616 | K74: 0 | L74: No Charging | M74: 71 | N74: 20.96651616 | O74: 0 | P74: No Charging | Q74: 71 | R74: 11.22088605 | S74: 0 | T74: No Charging
A75: 72 | B75: 21.01122089 | C75: 0 | D75: FuncClass1 | I75: 72 | J75: 21.01122089 | K75: 0 | L75: No Charging | M75: 72 | N75: 21.01122089 | O75: 0 | P75: No Charging | Q75: 72 | R75: 11.44440967 | S75: 0 | T75: No Charging
A76: 73 | B76: 21.05592561 | C76: 0 | D76: FuncClass1 | I76: 73 | J76: 21.05592561 | K76: 0 | L76: No Charging | M76: 73 | N76: 21.05592561 | O76: 0 | P76: No Charging | Q76: 73 | R76: 11.4891144 | S76: 0 | T76: No Charging
A77: 74 | B77: 21.10063034 | C77: 0 | D77: FuncClass1 | I77: 74 | J77: 21.10063034 | K77: 0 | L77: No Charging | M77: 74 | N77: 21.10063034 | O77: 0 | P77: No Charging | Q77: 74 | R77: 11.35500022 | S77: 0 | T77: No Charging
A78: 75 | B78: 21.14533506 | C78: 0 | D78: FuncClass1 | I78: 75 | J78: 21.14533506 | K78: 0 | L78: No Charging | M78: 75 | N78: 21.14533506 | O78: 0 | P78: No Charging | Q78: 75 | R78: 11.1314766 | S78: 0 | T78: No Charging
A79: 76 | B79: 21.10063034 | C79: 0 | D79: FuncClass1 | I79: 76 | J79: 21.10063034 | K79: 0 | L79: No Charging | M79: 76 | N79: 21.10063034 | O79: 0 | P79: No Charging | Q79: 76 | R79: 11.17618132 | S79: 0 | T79: No Charging
A80: 77 | B80: 21.05592561 | C80: 0 | D80: FuncClass1 | I80: 77 | J80: 21.05592561 | K80: 0 | L80: No Charging | M80: 77 | N80: 21.05592561 | O80: 0 | P80: No Charging | Q80: 77 | R80: 11.35500022 | S80: 0 | T80: No Charging
A81: 78 | B81: 21.01122089 | C81: 0 | D81: FuncClass1 | I81: 78 | J81: 21.01122089 | K81: 0 | L81: No Charging | M81: 78 | N81: 21.01122089 | O81: 0 | P81: No Charging | Q81: 78 | R81: 11.62322858 | S81: 0 | T81: No Charging
A82: 79 | B82: 20.96651616 | C82: 0 | D82: FuncClass1 | I82: 79 | J82: 20.96651616 | K82: 0 | L82: No Charging | M82: 79 | N82: 20.96651616 | O82: 0 | P82: No Charging | Q82: 79 | R82: 11.62322858 | S82: 0 | T82: No Charging
A83: 80 | B83: 20.96651616 | C83: 0 | D83: FuncClass1 | I83: 80 | J83: 20.96651616 | K83: 0 | L83: No Charging | M83: 80 | N83: 20.96651616 | O83: 0 | P83: No Charging | Q83: 80 | R83: 11.4891144 | S83: 0 | T83: No Charging
A84: 81 | B84: 20.96651616 | C84: 0 | D84: FuncClass1 | I84: 81 | J84: 20.96651616 | K84: 0 | L84: No Charging | M84: 81 | N84: 20.96651616 | O84: 0 | P84: No Charging | Q84: 81 | R84: 11.6679333 | S84: 0 | T84: No Charging
A85: 82 | B85: 21.01122089 | C85: 0 | D85: FuncClass1 | I85: 82 | J85: 21.01122089 | K85: 0 | L85: No Charging | M85: 82 | N85: 21.01122089 | O85: 0 | P85: No Charging | Q85: 82 | R85: 11.93616165 | S85: 0 | T85: No Charging
A86: 83 | B86: 21.05592561 | C86: 0 | D86: FuncClass1 | I86: 83 | J86: 21.05592561 | K86: 0 | L86: No Charging | M86: 83 | N86: 21.05592561 | O86: 0 | P86: No Charging | Q86: 83 | R86: 12.29379945 | S86: 0 | T86: No Charging
A87: 84 | B87: 21.05592561 | C87: 0 | D87: FuncClass1 | I87: 84 | J87: 21.05592561 | K87: 0 | L87: No Charging | M87: 84 | N87: 21.05592561 | O87: 0 | P87: No Charging | Q87: 84 | R87: 12.78555143 | S87: 0 | T87: No Charging
A88: 85 | B88: 21.10063034 | C88: 0 | D88: FuncClass1 | I88: 85 | J88: 21.10063034 | K88: 0 | L88: No Charging | M88: 85 | N88: 21.10063034 | O88: 0 | P88: No Charging | Q88: 85 | R88: 13.09848451 | S88: 0 | T88: No Charging
A89: 86 | B89: 21.05592561 | C89: 0 | D89: FuncClass1 | I89: 86 | J89: 21.05592561 | K89: 0 | L89: No Charging | M89: 86 | N89: 21.05592561 | O89: 0 | P89: No Charging | Q89: 86 | R89: 13.32200814 | S89: 0 | T89: No Charging
A90: 87 | B90: 21.01122089 | C90: 0 | D90: FuncClass1 | I90: 87 | J90: 21.01122089 | K90: 0 | L90: No Charging | M90: 87 | N90: 21.01122089 | O90: 0 | P90: No Charging | Q90: 87 | R90: 13.45612231 | S90: 0 | T90: No Charging
A91: 88 | B91: 20.96651616 | C91: 0 | D91: FuncClass1 | I91: 88 | J91: 20.96651616 | K91: 0 | L91: No Charging | M91: 88 | N91: 20.96651616 | O91: 0 | P91: No Charging | Q91: 88 | R91: 13.59023649 | S91: 0 | T91: No Charging
A92: 89 | B92: 20.78769726 | C92: 0 | D92: FuncClass1 | I92: 89 | J92: 20.78769726 | K92: 0 | L92: No Charging | M92: 89 | N92: 20.78769726 | O92: 0 | P92: No Charging | Q92: 89 | R92: 13.72435066 | S92: 0 | T92: No Charging
A93: 90 | B93: 20.69828781 | C93: 0 | D93: FuncClass1 | I93: 90 | J93: 20.69828781 | K93: 0 | L93: No Charging | M93: 90 | N93: 20.69828781 | O93: 0 | P93: No Charging | Q93: 90 | R93: 13.72435066 | S93: 0 | T93: No Charging
A94: 91 | B94: 20.65358308 | C94: 0 | D94: FuncClass1 | I94: 91 | J94: 20.65358308 | K94: 0 | L94: No Charging | M94: 91 | N94: 20.65358308 | O94: 0 | P94: No Charging | Q94: 91 | R94: 13.63494121 | S94: 0 | T94: No Charging
A95: 92 | B95: 20.69828781 | C95: 0 | D95: FuncClass1 | I95: 92 | J95: 20.69828781 | K95: 0 | L95: No Charging | M95: 92 | N95: 20.69828781 | O95: 0 | P95: No Charging | Q95: 92 | R95: 13.59023649 | S95: 0 | T95: No Charging
A96: 93 | B96: 20.78769726 | C96: 0 | D96: FuncClass1 | I96: 93 | J96: 20.78769726 | K96: 0 | L96: No Charging | M96: 93 | N96: 20.78769726 | O96: 0 | P96: No Charging | Q96: 93 | R96: 13.54553176 | S96: 0 | T96: No Charging
A97: 94 | B97: 20.96651616 | C97: 0 | D97: FuncClass1 | I97: 94 | J97: 20.96651616 | K97: 0 | L97: No Charging | M97: 94 | N97: 20.96651616 | O97: 0 | P97: No Charging | Q97: 94 | R97: 13.59023649 | S97: 0 | T97: No Charging
A98: 95 | B98: 21.05592561 | C98: 0 | D98: FuncClass1 | I98: 95 | J98: 21.05592561 | K98: 0 | L98: No Charging | M98: 95 | N98: 21.05592561 | O98: 0 | P98: No Charging | Q98: 95 | R98: 13.76905539 | S98: 0 | T98: No Charging
A99: 96 | B99: 21.19003979 | C99: 0 | D99: FuncClass1 | I99: 96 | J99: 21.19003979 | K99: 0 | L99: No Charging | M99: 96 | N99: 21.19003979 | O99: 0 | P99: No Charging | Q99: 96 | R99: 13.59023649 | S99: 0 | T99: No Charging
A100: 97 | B100: 21.32415396 | C100: 0 | D100: FuncClass1 | I100: 97 | J100: 21.32415396 | K100: 0 | L100: No Charging | M100: 97 | N100: 21.32415396 | O100: 0 | P100: No Charging | Q100: 97 | R100: 13.36671286 | S100: 0 | T100: No Charging
A101: 98 | B101: 21.45826814 | C101: 0 | D101: FuncClass1 | I101: 98 | J101: 21.45826814 | K101: 0 | L101: No Charging | M101: 98 | N101: 21.45826814 | O101: 0 | P101: No Charging | Q101: 98 | R101: 13.18789396 | S101: 0 | T101: No Charging
A102: 99 | B102: 21.54767759 | C102: 0 | D102: FuncClass1 | I102: 99 | J102: 21.54767759 | K102: 0 | L102: No Charging | M102: 99 | N102: 21.54767759 | O102: 0 | P102: No Charging | Q102: 99 | R102: 13.32200814 | S102: 0 | T102: No Charging
A103: 100 | B103: 21.68179177 | C103: 0 | D103: FuncClass1 | I103: 100 | J103: 21.68179177 | K103: 0 | L103: No Charging | M103: 100 | N103: 21.68179177 | O103: 0 | P103: No Charging | Q103: 100 | R103: 13.54553176 | S103: 0 | T103: No Charging
A104: 101 | B104: 21.81590594 | C104: 0 | D104: FuncClass1 | I104: 101 | J104: 21.81590594 | K104: 0 | L104: No Charging | M104: 101 | N104: 21.81590594 | O104: 0 | P104: No Charging | Q104: 101 | R104: 13.72435066 | S104: 0 | T104: No Charging
A105: 102 | B105: 21.95002012 | C105: 0 | D105: FuncClass1 | I105: 102 | J105: 21.95002012 | K105: 0 | L105: No Charging | M105: 102 | N105: 21.95002012 | O105: 0 | P105: No Charging | Q105: 102 | R105: 13.81376011 | S105: 0 | T105: No Charging
A106: 103 | B106: 21.99472484 | C106: 0 | D106: FuncClass1 | I106: 103 | J106: 21.99472484 | K106: 0 | L106: No Charging | M106: 103 | N106: 21.99472484 | O106: 0 | P106: No Charging | Q106: 103 | R106: 13.85846484 | S106: 0 | T106: No Charging
A107: 104 | B107: 21.95002012 | C107: 0 | D107: FuncClass1 | I107: 104 | J107: 21.95002012 | K107: 0 | L107: No Charging | M107: 104 | N107: 21.95002012 | O107: 0 | P107: No Charging | Q107: 104 | R107: 13.81376011 | S107: 0 | T107: No Charging
A108: 105 | B108: 21.95002012 | C108: 0 | D108: FuncClass1 | I108: 105 | J108: 21.95002012 | K108: 0 | L108: No Charging | M108: 105 | N108: 21.95002012 | O108: 0 | P108: No Charging | Q108: 105 | R108: 13.59023649 | S108: 0 | T108: No Charging
A109: 106 | B109: 21.90531539 | C109: 0 | D109: FuncClass1 | I109: 106 | J109: 21.90531539 | K109: 0 | L109: No Charging | M109: 106 | N109: 21.90531539 | O109: 0 | P109: No Charging | Q109: 106 | R109: 13.32200814 | S109: 0 | T109: No Charging
A110: 107 | B110: 21.90531539 | C110: 0 | D110: FuncClass1 | I110: 107 | J110: 21.90531539 | K110: 0 | L110: No Charging | M110: 107 | N110: 21.90531539 | O110: 0 | P110: No Charging | Q110: 107 | R110: 13.36671286 | S110: 0 | T110: No Charging
A111: 108 | B111: 21.95002012 | C111: 0 | D111: FuncClass1 | I111: 108 | J111: 21.95002012 | K111: 0 | L111: No Charging | M111: 108 | N111: 21.95002012 | O111: 0 | P111: No Charging | Q111: 108 | R111: 13.50082704 | S111: 0 | T111: No Charging
A112: 109 | B112: 21.99472484 | C112: 0 | D112: FuncClass1 | I112: 109 | J112: 21.99472484 | K112: 0 | L112: No Charging | M112: 109 | N112: 21.99472484 | O112: 0 | P112: No Charging | Q112: 109 | R112: 13.72435066 | S112: 0 | T112: No Charging
A113: 110 | B113: 22.03942957 | C113: 0 | D113: FuncClass1 | I113: 110 | J113: 22.03942957 | K113: 0 | L113: No Charging | M113: 110 | N113: 22.03942957 | O113: 0 | P113: No Charging | Q113: 110 | R113: 13.94787429 | S113: 0 | T113: No Charging
A114: 111 | B114: 22.08413429 | C114: 0 | D114: FuncClass1 | I114: 111 | J114: 22.08413429 | K114: 0 | L114: No Charging | M114: 111 | N114: 22.08413429 | O114: 0 | P114: No Charging | Q114: 111 | R114: 14.21610264 | S114: 0 | T114: No Charging
A115: 112 | B115: 22.12883902 | C115: 0 | D115: FuncClass1 | I115: 112 | J115: 22.12883902 | K115: 0 | L115: No Charging | M115: 112 | N115: 22.12883902 | O115: 0 | P115: No Charging | Q115: 112 | R115: 14.39492154 | S115: 0 | T115: No Charging
A116: 113 | B116: 22.12883902 | C116: 0 | D116: FuncClass1 | I116: 113 | J116: 22.12883902 | K116: 0 | L116: No Charging | M116: 113 | N116: 22.12883902 | O116: 0 | P116: No Charging | Q116: 113 | R116: 14.48433099 | S116: 0 | T116: No Charging
A117: 114 | B117: 22.12883902 | C117: 0 | D117: FuncClass1 | I117: 114 | J117: 22.12883902 | K117: 0 | L117: No Charging | M117: 114 | N117: 22.12883902 | O117: 0 | P117: No Charging | Q117: 114 | R117: 14.39492154 | S117: 0 | T117: No Charging
A118: 115 | B118: 22.08413429 | C118: 0 | D118: FuncClass1 | I118: 115 | J118: 22.08413429 | K118: 0 | L118: No Charging | M118: 115 | N118: 22.08413429 | O118: 0 | P118: No Charging | Q118: 115 | R118: 14.17139792 | S118: 0 | T118: No Charging
A119: 116 | B119: 21.95002012 | C119: 0 | D119: FuncClass1 | I119: 116 | J119: 21.95002012 | K119: 0 | L119: No Charging | M119: 116 | N119: 21.95002012 | O119: 0 | P119: No Charging | Q119: 116 | R119: 12.78555143 | S119: 0 | T119: No Charging
A120: 117 | B120: 21.86061067 | C120: 0 | D120: FuncClass1 | I120: 117 | J120: 21.86061067 | K120: 0 | L120: No Charging | M120: 117 | N120: 21.86061067 | O120: 0 | P120: No Charging | Q120: 117 | R120: 11.3102955 | S120: 0 | T120: No Charging
A121: 118 | B121: 21.72649649 | C121: 0 | D121: FuncClass1 | I121: 118 | J121: 21.72649649 | K121: 0 | L121: No Charging | M121: 118 | N121: 21.72649649 | O121: 0 | P121: No Charging | Q121: 118 | R121: 9.835039564 | S121: 0 | T121: No Charging
A122: 119 | B122: 21.63708704 | C122: 0 | D122: FuncClass1 | I122: 119 | J122: 21.63708704 | K122: 0 | L122: No Charging | M122: 119 | N122: 21.63708704 | O122: 0 | P122: No Charging | Q122: 119 | R122: 8.359783629 | S122: 0 | T122: No Charging
A123: 120 | B123: 21.50297286 | C123: 0 | D123: FuncClass1 | I123: 120 | J123: 21.50297286 | K123: 0 | L123: No Charging | M123: 120 | N123: 21.50297286 | O123: 0 | P123: No Charging | Q123: 120 | R123: 6.884527695 | S123: 0 | T123: No Charging
A124: 121 | B124: 21.32415396 | C124: 0 | D124: FuncClass1 | I124: 121 | J124: 21.32415396 | K124: 0 | L124: No Charging | M124: 121 | N124: 21.32415396 | O124: 0 | P124: No Charging | Q124: 121 | R124: 5.40927176 | S124: 0 | T124: No Charging
A125: 122 | B125: 21.19003979 | C125: 0 | D125: FuncClass1 | I125: 122 | J125: 21.19003979 | K125: 0 | L125: No Charging | M125: 122 | N125: 21.19003979 | O125: 0 | P125: No Charging | Q125: 122 | R125: 3.934015825 | S125: 0 | T125: No Charging
... 156 more rows

Sheet CoastDownCoefsToRoadLoads (hidden)
A1: Directions
A2: With desired vehicle on VehicleIO worksheet loaded
A3: 1. Fill in cells formatted as inputs (Constants, Dyno Targets, Mass and FA). Optional: Use Input Data Search for Dyno Targets
A4: 2. Click "Calculate CD & RR" button to calculate the CD and rr and check that model matches Dyno on charts
A5: 3. Apply vehicle assumptions to current vehicle on VehicleIO tab (click button)
A8: Constants
A9: air density (kg/m^3): | B9: 1.2
A10: gravity (m/s^2): | B10: 9.81
A11: msPerMph | B11: =1/2.237 -> 0.4470272687
A12: lbfPerN | B12: =1/4.44822 -> 0.2248090247
E16: Input Data Search | F16: 323
E17: Vehicle name | F17: =INDEX(EPA_2016!A2:A351,CoastDownCoefsToRoadLoads!F16) -> TOYOTA Mirai | G17: =INDEX(CoastDownCoefsToRoadLoads!B75:B77,CoastDownCoefsToRoadLoads!fuelTypeOption) -> 
A18: Dyno Targets | E18: Fuel type | F18: 4
A19: A (F0) | B19: 28.52 | E19: =A19 -> A (F0) | F19: =INDEX(EPA_2016!W2:W351,F16) -> 32.325
A20: B (F1) | B20: 0.3061 | E20: =A20 -> B (F1) | F20: =INDEX(EPA_2016!X2:X351,F16) -> 0.20003 | G20: kg
A21: C (F2) | B21: 0.01592 | E21: =A21 -> C (F2) | F21: =INDEX(EPA_2016!Y2:Y351,CoastDownCoefsToRoadLoads!F16) -> 0.018292 | G21: (currently loaded vehicle)
A23: Vehicle Assumptions
A24: Mass (kg): | B24: 1759.25 | E24: =A24 -> Mass (kg): | F24: =INDEX(EPA_2016!Z2:Z351,CoastDownCoefsToRoadLoads!F16) -> 1929.5
A25: FA (m^2): | B25: 6.451612903 | E25: =A25 -> FA (m^2): | F25: 2.786
A26: CD: | B26: 0.3
A27: rrc: | B27: 0.007350877959
A33: Calculations
A34: Rolling Resistance Force Calculation | F34: error
A35: F_rr = | B35: =massKg*gravityMperS2*rrc -> 126.8632344 | C35: N ( = | D35: =B35/4.44822 -> 28.52 | E35: lbf) | F35: =D35-coefF0 -> 0
A36: (Coeff F0)
A38: Drag force coefficients
A39: 0.5*density*CD*FA: | B39: =0.5*airDensityKgM3*CD*FA -> 1.161290323 | C39: N/(m/s)^2
A40: = | B40: =B39/(2.237^2) -> 0.2320645691 | C40: N/(mph)^2 | D40: error
A41: = | B41: =B40/4.44822 -> 0.05217020945 | C41: lbf/(mph)^2 | D41: =B41-coefF2 -> 0.03625020945
A42: (Coeff F2)
A45: Aerodynamic and Total Road Load Force Calculations
A46: Vehicle Speed | C46: Vehicle Road Load | E46: Dyno Road Load
A47: (mph) | B47: (m/s) | C47: (N) | D47: (lbf) | E47: (N) | F47: (lbf)
A48: 0 | B48: =A48*msPerMph -> 0 | C48: =(0.5*airDensityKgM3*(B48^2)*CD*FA)+(rrc*massKg*gravityMperS2) -> 126.8632344 | D48: =C48*lbfPerN -> 28.52 | E48: =(coefF0*(1/lbfPerN))+(coefF1*(1/lbfPerN)*A48)+(coefF2*(1/lbfPerN)*(A48^2)) -> 126.8632344 | F48: =E48/4.44822 -> 28.52
A49: 5 | B49: 2.235136343 | C49: 132.6648486 | D49: 29.82425524 | E49: 135.4416267 | F49: 30.4485
A50: 10 | B50: 4.470272687 | C50: 150.0696913 | D50: 33.73702094 | E50: 147.5608021 | F50: 33.173
A51: 15 | B51: 6.70540903 | C51: 179.0777624 | D51: 40.25829713 | E51: 163.2207606 | F51: 36.6935
A52: 20 | B52: 8.940545373 | C52: 219.689062 | D52: 49.38808378 | E52: 182.4215022 | F52: 41.01
A53: 25 | B53: 11.17568172 | C53: 271.9035901 | D53: 61.12638091 | E53: 205.163027 | F53: 46.1225
A54: 30 | B54: 13.41081806 | C54: 335.7213466 | D54: 75.4731885 | E54: 231.4453348 | F54: 52.031
A55: 35 | B55: 15.6459544 | C55: 411.1423315 | D55: 92.42850658 | E55: 261.2684258 | F55: 58.7355
A56: 40 | B56: 17.88109075 | C56: 498.1665449 | D56: 111.9923351 | E56: 294.6322999 | F56: 66.236
A57: 45 | B57: 20.11622709 | C57: 596.7939868 | D57: 134.1646741 | E57: 331.5369572 | F57: 74.5325
A58: 50 | B58: 22.35136343 | C58: 707.0246571 | D58: 158.9455236 | E58: 371.9823975 | F58: 83.625
A59: 55 | B59: 24.58649978 | C59: 828.8585559 | D59: 186.3348836 | E59: 415.968621 | F59: 93.5135
A60: 60 | B60: 26.82163612 | C60: 962.2956831 | D60: 216.332754 | E60: 463.4956276 | F60: 104.198
A61: 65 | B61: 29.05677246 | C61: 1107.336039 | D61: 248.9391349 | E61: 514.5634173 | F61: 115.6785
A62: 70 | B62: 31.29190881 | C62: 1263.979623 | D62: 284.1540263 | E62: 569.1719901 | F62: 127.955
B64: Max | C64: =MAX(ABS(C48:C62-E48:E62)) -> 694.8076328
B65: Sum | C65: =SUM(ABS(C48:C62-E48:E62)) -> 3382.404489
B66: Error Index | C66: =C65 -> 3382.404489
B68: rr error | C68: =E48-C48 -> 0
A74: Fuel Type Dropdown List
A75: Gasoline | B75: Tier 2 Cert Gasoline
A76: Diesel | B76: Cert Diesel 7-15 ppm Sulfur
A77: Electricity | B77: Electricity
A78: Hydrogen

Sheet EPA_2016 (hidden)
A1: Model | B1: Displ | C1: Cyl | D1: Trans | E1: Drive | F1: Fuel | G1: Cert Region | H1: Stnd | I1: Stnd Description | J1: Underhood ID | K1: Veh Class | L1: Air Pollution Score | M1: City MPG | N1: Hwy MPG | O1: Cmb MPG | P1: Greenhouse Gas Score | Q1: SmartWay | R1: Comb CO2 | S1: testName | T1: ImportName | U1: testIndex2 | V1: Make | W1: Dyno Target A | X1: Dyno Target B | Y1: Dyno Target C | Z1: Test kg | AA1: Fuel converter power (kW) | AB1: Powertrain type
A2: ACURA ILX | B2: 2.4 | C2: 4 | D2: AutoMan-8 | E2: 2WD | F2: Gasoline | G2: FA | H2: B5 | I2: Federal Tier 2 Bin 5 | J2: GHNXV02.4XH3 | K2: small car | L2: 5 | M2: 25 | N2: 36 | O2: 29 | P2: 7 | Q2: No | R2: 305 | S2: 2016 ACURA ILX 2.4L 4cyl | T2: 2016 ACURA ILX 4cyl 2WD | U2: 2074 | V2: ACURA | W2: 25.92 | X2: 0.1726 | Y2: 0.01753 | Z2: 1532.25 | AA2: 150.6314 | AB2: Conv. Gasoline
A3: ACURA MDX | B3: 3.5 | C3: 6 | D3: SemiAuto-9 | E3: 2WD | F3: Gasoline | G3: FA | H3: B5 | I3: Federal Tier 2 Bin 5 | J3: GHNXV03.5VA3 | K3: small SUV | L3: 5 | M3: 19 | N3: 27 | O3: 22 | P3: 5 | Q3: No | R3: 403 | S3: 2016 ACURA MDX 4WD 3.5L 6cyl | T3: 2016 ACURA MDX 6cyl 2WD | U3: 2076 | V3: ACURA | W3: 23.3 | X3: 0.4465 | Y3: 0.024 | Z3: 1929.5 | AA3: 216.253 | AB3: Conv. Gasoline
A4: ACURA RDX | B4: 3.5 | C4: 6 | D4: SemiAuto-6 | E4: 2WD | F4: Gasoline | G4: FA | H4: B5 | I4: Federal Tier 2 Bin 5 | J4: GHNXT03.5GV3 | K4: small SUV | L4: 5 | M4: 20 | N4: 29 | O4: 23 | P4: 5 | Q4: No | R4: 384 | S4: 2016 ACURA RDX 4WD 3.5L 6cyl | T4: 2016 ACURA RDX 6cyl 2WD | U4: 2084 | V4: ACURA | W4: 22.81 | X4: 0.3709 | Y4: 0.02297 | Z4: 1816 | AA4: 208.0503 | AB4: Conv. Gasoline
A5: ACURA RLX | B5: 3.5 | C5: 6 | D5: AutoMan-7 | E5: 4WD | F5: Gasoline | G5: FA | H5: B3 | I5: Federal Tier 2 Bin 3 | J5: GHNXV03.5PK3 | K5: midsize car | L5: 7 | M5: 28 | N5: 32 | O5: 30 | P5: 7 | Q5: Yes | R5: 297 | S5: 2016 ACURA RLX HYBRID 3.5L 6cyl | T5: 2016 ACURA RLX 6cyl 4WD | U5: 2088 | V5: ACURA | W5: 33.47 | X5: 0.3152 | Y5: 0.01813 | Z5: 2156.5 | AA5: 231.167 | AB5: HEV
A6: ACURA RLX | B6: 3.5 | C6: 6 | D6: SemiAuto-6 | E6: 2WD | F6: Gasoline | G6: FA | H6: B5 | I6: Federal Tier 2 Bin 5 | J6: GHNXV03.5SA4 | K6: midsize car | L6: 5 | M6: 20 | N6: 31 | O6: 24 | P6: 5 | Q6: No | R6: 378 | S6: 2016 ACURA RLX HYBRID 3.5L 6cyl | T6: 2016 ACURA RLX 6cyl 2WD | U6: 2088 | V6: ACURA | W6: 33.47 | X6: 0.3152 | Y6: 0.01813 | Z6: 2156.5 | AA6: 231.167 | AB6: HEV
A7: ACURA TLX | B7: 2.4 | C7: 4 | D7: AMS-8 | E7: 2WD | F7: Gasoline | G7: FA | H7: B5 | I7: Federal Tier 2 Bin 5 | J7: GHNXJ02.41A3 | K7: small car | L7: 5 | M7: 24 | N7: 35 | O7: 28 | P7: 7 | Q7: No | R7: 316 | S7: 2016 ACURA TLX 3.5L 6cyl | T7: 2016 ACURA TLX 4cyl 2WD | U7: 2096 | V7: ACURA | W7: 21.88 | X7: 0.2677 | Y7: 0.01587 | Z7: 1759.25 | AA7: 216.253 | AB7: Conv. Gasoline
A8: ACURA TLX | B8: 3.5 | C8: 6 | D8: SemiAuto-9 | E8: 2WD | F8: Gasoline | G8: FA | H8: B5 | I8: Federal Tier 2 Bin 5 | J8: GHNXV03.5RA3 | K8: small car | L8: 5 | M8: 21 | N8: 34 | O8: 25 | P8: 6 | Q8: No | R8: 358 | S8: 2016 ACURA TLX 3.5L 6cyl | T8: 2016 ACURA TLX 6cyl 2WD | U8: 2096 | V8: ACURA | W8: 21.88 | X8: 0.2677 | Y8: 0.01587 | Z8: 1759.25 | AA8: 216.253 | AB8: Conv. Gasoline
A9: ASTON MARTIN DB9 | B9: 5.9 | C9: 12 | D9: SemiAuto-6 | E9: 2WD | F9: Gasoline | G9: FA | H9: B5 | I9: Federal Tier 2 Bin 5 | J9: GASXV05.9VH1 | K9: small car | L9: 5 | M9: 13 | N9: 19 | O9: 15 | P9: 2 | Q9: No | R9: 587 | S9: 2016 Aston Martin DB9 5.9L 12cyl | T9: 2016 ASTON MARTIN DB9 12cyl 2WD | U9: 1 | V9: Aston Martin | W9: 43.17 | X9: 0.7502 | Y9: 0.0163 | Z9: 2043 | AA9: 380.307 | AB9: Conv. Gasoline
A10: ASTON MARTIN Rapide S | B10: 6 | C10: 12 | D10: SemiAuto-8 | E10: 2WD | F10: Gasoline | G10: FA | H10: B5 | I10: Federal Tier 2 Bin 5 | J10: GASXV06.0VHB | K10: small car | L10: 5 | M10: 14 | N10: 22 | O10: 17 | P10: 3 | Q10: No | R10: 534 | S10: 2016 Aston Martin Rapide S 6L 12cyl | T10: 2016 ASTON MARTIN Rapide S 12cyl 2WD | U10: 3 | V10: Aston Martin | W10: 32.66 | X10: 0.6085 | Y10: 0.0198 | Z10: 2156.5 | AA10: 411.6264 | AB10: Conv. Gasoline
A11: ASTON MARTIN V8 Vantage | B11: 4.7 | C11: 8 | D11: AutoMan-7 | E11: 2WD | F11: Gasoline | G11: FA | H11: B5 | I11: Federal Tier 2 Bin 5 | J11: GASXV04.7VH2 | K11: small car | L11: 5 | M11: 14 | N11: 21 | O11: 16 | P11: 3 | Q11: No | R11: 552 | S11: 2016 Aston Martin V8 VANTAGE S 4.7L 8cyl | T11: 2016 ASTON MARTIN V8 Vantage 8cyl 2WD | U11: 9 | V11: Aston Martin | W11: 45.78 | X11: 0.0008 | Y11: 0.0217 | Z11: 1816 | AA11: 320.651 | AB11: Conv. Gasoline
A12: AUDI A3 | B12: 1.8 | C12: 4 | D12: AMS-6 | E12: 2WD | F12: Gasoline | G12: FA | H12: B2 | I12: Federal Tier 2 Bin 2 | J12: GVGAV02.0APA | K12: small car | L12: 9 | M12: 23 | N12: 33 | O12: 27 | P12: 6 | Q12: No | R12: 328 | S12: 2016 AUDI Audi TT 2L 4cyl | T12: 2016 AUDI A3 4cyl 2WD | U12: 4395 | V12: AUDI | W12: 34.666 | X12: 0.42683 | Y12: 0.020108 | Z12: 1645.75 | AA12: 164.054 | AB12: Conv. Gasoline
A13: AUDI A3 e-tron | B13: 1.4 | C13: 4 | D13: AMS-6 | E13: 2WD | F13: Gasoline/Electricity | G13: CA | H13: L3SULEV30/PZEV | I13: California LEV-III SULEV30/PZEV | J13: GVGAV01.4V3B | K13: small car | L13: 9 | M13: 33/81 | N13: 37/86 | O13: 35/83 | P13: 10 | Q13: Elite | R13: 158 | S13: 2016 AUDI A3 e-tron 1.4L 4cyl | T13: 2016 AUDI A3 e-tron 4cyl 2WD | U13: 4317 | V13: AUDI | W13: 35.295 | X13: -0.0133 | Y13: 0.020196 | Z13: 1759.25 | AA13: 111.855 | AB13: PHEV
A14: AUDI A4 | B14: 2 | C14: 4 | D14: Man-6 | E14: 4WD | F14: Gasoline | G14: FA | H14: B5 | I14: Federal Tier 2 Bin 5 | J14: GVGAV02.0AUB | K14: small car | L14: 5 | M14: 22 | N14: 32 | O14: 26 | P14: 6 | Q14: No | R14: 343 | S14: 2016 AUDI A4 Allroad 2L 4cyl | T14: 2016 AUDI A4 4cyl 4WD | U14: 4333 | V14: AUDI | W14: 39.117 | X14: 0.46662 | Y14: 0.019788 | Z14: 1929.5 | AA14: 164.054 | AB14: Conv. Gasoline
A15: AUDI A4 | B15: 2 | C15: 4 | D15: SemiAuto-8 | E15: 4WD | F15: Ethanol/Gas | G15: FA | H15: B5 | I15: Federal Tier 2 Bin 5 | J15: GVGAJ02.0AUF | K15: small car | L15: 5 | M15: 15/21 | N15: 22/30 | O15: 18/25 | P15: 6 | Q15: No | R15: 347/361 | S15: 2016 AUDI A4 Allroad 2L 4cyl | T15: 2016 AUDI A4 4cyl 4WD | U15: 4333 | V15: AUDI | W15: 39.117 | X15: 0.46662 | Y15: 0.019788 | Z15: 1929.5 | AA15: 164.054 | AB15: Conv. Gasoline
A16: AUDI A6 | B16: 2 | C16: 4 | D16: AMS-7 | E16: 2WD | F16: Gasoline | G16: CA | H16: L3ULEV125 | I16: California LEV-III ULEV125 | J16: GVGAV02.0AAC | K16: midsize car | L16: 6 | M16: 24 | N16: 35 | O16: 28 | P16: 7 | Q16: Yes | R16: 310 | S16: 2016 AUDI Audi A6 2L 4cyl | T16: 2016 AUDI A6 4cyl 2WD | U16: 4389 | V16: AUDI | W16: 41.59 | X16: 0.03798 | Y16: 0.018042 | Z16: 1929.5 | AA16: 187.9164 | AB16: Conv. Gasoline
A17: AUDI A6 | B17: 3 | C17: 6 | D17: SemiAuto-8 | E17: 4WD | F17: Diesel | G17: FA | H17: B5 | I17: Federal Tier 2 Bin 5 | J17: GVGAJ03.0NU4 | K17: midsize car | L17: 5 | M17: 25 | N17: 38 | O17: 30 | P17: 6 | Q17: No | R17: 343 | S17: 2016 AUDI A7 3L 6cyl | T17: 2016 AUDI A6 6cyl 4WD | U17: 4339 | V17: AUDI | W17: 43.028 | X17: 0.38197 | Y17: 0.018566 | Z17: 2156.5 | AA17: 178.968 | AB17: Diesel
A18: AUDI A6 | B18: 3 | C18: 6 | D18: SemiAuto-8 | E18: 4WD | F18: Gasoline | G18: FA | H18: B5 | I18: Federal Tier 2 Bin 5 | J18: GVGAV03.0AUE | K18: midsize car | L18: 5 | M18: 20 | N18: 30 | O18: 24 | P18: 5 | Q18: No | R18: 373 | S18: 2016 AUDI A6 3L 6cyl | T18: 2016 AUDI A6 6cyl 4WD | U18: 4337 | V18: AUDI | W18: 39.342 | X18: 0.30782 | Y18: 0.016296 | Z18: 2043 | AA18: 248.3181 | AB18: Conv. Gasoline
A19: AUDI A8 L | B19: 4 | C19: 8 | D19: SemiAuto-8 | E19: 4WD | F19: Gasoline | G19: FA | H19: B5 | I19: Federal Tier 2 Bin 5 | J19: GVGAV04.0NUA | K19: large car | L19: 5 | M19: 18 | N19: 29 | O19: 22 | P19: 5 | Q19: No | R19: 410 | S19: 2016 AUDI S6 4L 8cyl | T19: 2016 AUDI A8 L 8cyl 4WD | U19: 4424 | V19: AUDI | W19: 45.636 | X19: 0.36895 | Y19: 0.018217 | Z19: 2270 | AA19: 335.565 | AB19: Conv. Gasoline
A20: AUDI Q3 | B20: 2 | C20: 4 | D20: SemiAuto-6 | E20: 2WD | F20: Gasoline | G20: FA | H20: B5 | I20: Federal Tier 2 Bin 5 | J20: GVGAV02.0AUA | K20: small car | L20: 5 | M20: 20 | N20: 29 | O20: 23 | P20: 5 | Q20: No | R20: 389 | S20: 2016 AUDI TTS 2L 4cyl | T20: 2016 AUDI Q3 4cyl 2WD | U20: 4454 | V20: AUDI | W20: 35.295 | X20: 0.41923 | Y20: 0.019555 | Z20: 1589 | AA20: 217.7444 | AB20: Conv. Gasoline
A21: AUDI Q5 | B21: 3 | C21: 6 | D21: SemiAuto-8 | E21: 4WD | F21: Gasoline | G21: FA | H21: B5 | I21: Federal Tier 2 Bin 5 | J21: GVGAJ03.0AUD | K21: small SUV | L21: 5 | M21: 18 | N21: 26 | O21: 21 | P21: 5 | Q21: No | R21: 429 | S21: 2016 AUDI Q5 Hybrid 2L 4cyl | T21: 2016 AUDI Q5 6cyl 4WD | U21: 67 | V21: AUDI | W21: 47.21 | X21: -0.217 | Y21: 0.027063 | Z21: 2156.5 | AA21: 157.3427 | AB21: HEV
A22: AUDI Q5 Hybrid | B22: 2 | C22: 4 | D22: SemiAuto-8 | E22: 4WD | F22: Gasoline | G22: FA | H22: B5 | I22: Federal Tier 2 Bin 5 | J22: GVGAT02.0AUH | K22: small SUV | L22: 5 | M22: 24 | N22: 30 | O22: 26 | P22: 6 | Q22: No | R22: 337 | S22: 2016 AUDI Q5 Hybrid 2L 4cyl | T22: 2016 AUDI Q5 Hybrid 4cyl 4WD | U22: 67 | V22: AUDI | W22: 47.21 | X22: -0.217 | Y22: 0.027063 | Z22: 2156.5 | AA22: 157.3427 | AB22: HEV
A23: BENTLEY Continental GT | B23: 6 | C23: 12 | D23: SemiAuto-8 | E23: 4WD | F23: Gasoline | G23: FA | H23: B5 | I23: Federal Tier 2 Bin 5 | J23: GVGAV06.0VLN | K23: small car | L23: 5 | M23: 12 | N23: 21 | O23: 15 | P23: 2 | Q23: No | R23: 580 | S23: 2016 BENTLEY Continental GT 6L 12cyl | T23: 2016 BENTLEY Continental GT 12cyl 4WD | U23: 107 | V23: BENTLEY | W23: 54.853 | X23: 0.04883 | Y23: 0.022116 | Z23: 2724 | AA23: 459.3512 | AB23: Conv. Gasoline
A24: BENTLEY Mulsanne | B24: 6.8 | C24: 8 | D24: SemiAuto-8 | E24: 2WD | F24: Gasoline | G24: FA | H24: B5 | I24: Federal Tier 2 Bin 5 | J24: GVGAV06.8ELP | K24: midsize car | L24: 5 | M24: 11 | N24: 18 | O24: 13 | P24: 1 | Q24: No | R24: 656 | S24: 2016 BENTLEY Mulsanne Speed 6.8L 8cyl | T24: 2016 BENTLEY Mulsanne 8cyl 2WD | U24: 4459 | V24: BENTLEY | W24: 74.19 | X24: -0.3111 | Y24: 0.02521 | Z24: 2951 | AA24: 395.221 | AB24: Conv. Gasoline
A25: BMW 228i | B25: 2 | C25: 4 | D25: Man-6 | E25: 2WD | F25: Gasoline | G25: FA | H25: B5 | I25: Federal Tier 2 Bin 5 | J25: GBMXJ02.0N20 | K25: small car | L25: 5 | M25: 22 | N25: 34 | O25: 26 | P25: 6 | Q25: No | R25: 337 | S25: 2016 BMW 228i xDrive Convertible 2L 4cyl | T25: 2016 BMW 228i 4cyl 2WD | U25: 136 | V25: BMW | W25: 59 | X25: -0.504 | Y25: 0.02629 | Z25: 1816 | AA25: 178.968 | AB25: Conv. Gasoline
A26: BMW 228i | B26: 2 | C26: 4 | D26: SemiAuto-8 | E26: 2WD | F26: Gasoline | G26: FA | H26: B5 | I26: Federal Tier 2 Bin 5 | J26: GBMXV02.0N26 | K26: small car | L26: 5 | M26: 23 | N26: 35 | O26: 27 | P26: 6 | Q26: No | R26: 327 | S26: 2016 BMW 228i xDrive Convertible 2L 4cyl | T26: 2016 BMW 228i 4cyl 2WD | U26: 136 | V26: BMW | W26: 59 | X26: -0.504 | Y26: 0.02629 | Z26: 1816 | AA26: 178.968 | AB26: Conv. Gasoline
A27: BMW 328d | B27: 2 | C27: 4 | D27: SemiAuto-8 | E27: 2WD | F27: Diesel | G27: FA | H27: B5 | I27: Federal Tier 2 Bin 5 | J27: GBMXV02.0N47 | K27: small car | L27: 5 | M27: 32 | N27: 42 | O27: 36 | P27: 7 | Q27: No | R27: 284 | S27: 2016 BMW 328d xDrive 2L 4cyl | T27: 2016 BMW 328d 4cyl 2WD | U27: 195 | V27: BMW | W27: 49.1 | X27: -0.357 | Y27: 0.0229 | Z27: 1816 | AA27: 134.9717 | AB27: Diesel
A28: BMW 330e | B28: 2 | C28: 4 | D28: SemiAuto-8 | E28: 2WD | F28: Gasoline/Electricity | G28: CA | H28: L3ULEV125 | I28: California LEV-III ULEV125 | J28: GBMXV02.0H48 | K28: small car | L28: 6 | M28: 28/67 | N28: 36/78 | O28: 31/72 | P28: 10 | Q28: Yes | R28: 184 | S28: 2016 BMW 330e 2L 4cyl | T28: 2016 BMW 330e 4cyl 2WD | U28: 295 | V28: BMW | W28: 52.9 | X28: -0.113 | Y28: 0.01826 | Z28: 1929.5 | AA28: 134.226 | AB28: PHEV
A29: BMW 335i Gran Turismo | B29: 3 | C29: 6 | D29: SemiAuto-8 | E29: 4WD | F29: Gasoline | G29: FA | H29: B5 | I29: Federal Tier 2 Bin 5 | J29: GBMXJ03.0N55 | K29: large car | L29: 5 | M29: 20 | N29: 30 | O29: 23 | P29: 5 | Q29: No | R29: 374 | S29: 2016 BMW M2 3L 6cyl | T29: 2016 BMW 335i Gran Turismo 6cyl 4WD | U29: 681 | V29: BMW | W29: 48.2 | X29: 0.229 | Y29: 0.02036 | Z29: 1702.5 | AA29: 272.1805 | AB29: Conv. Gasoline
A30: BMW 340i | B30: 3 | C30: 6 | D30: Man-6 | E30: 2WD | F30: Gasoline | G30: CA | H30: L3ULEV125 | I30: California LEV-III ULEV125 | J30: GBMXV03.0B58 | K30: small car | L30: 6 | M30: 20 | N30: 30 | O30: 23 | P30: 5 | Q30: No | R30: 384 | S30: 2016 BMW 340i 3L 6cyl | T30: 2016 BMW 340i 6cyl 2WD | U30: 307 | V30: BMW | W30: 43.2 | X30: -0.189 | Y30: 0.02063 | Z30: 1816 | AA30: 238.624 | AB30: Conv. Gasoline
A31: BMW 535d | B31: 3 | C31: 6 | D31: SemiAuto-8 | E31: 2WD | F31: Diesel | G31: FA | H31: B5 | I31: Federal Tier 2 Bin 5 | J31: GBMXV03.0N57 | K31: midsize car | L31: 5 | M31: 26 | N31: 38 | O31: 30 | P31: 6 | Q31: No | R31: 335 | S31: 2016 BMW 535d xDrive 3L 6cyl | T31: 2016 BMW 535d 6cyl 2WD | U31: 476 | V31: BMW | W31: 56 | X31: -0.2 | Y31: 0.01951 | Z31: 2043 | AA31: 190.1535 | AB31: Diesel
A32: BMW 535i | B32: 3 | C32: 6 | D32: SemiAuto-8 | E32: 2WD | F32: Gasoline | G32: FA | H32: B5 | I32: Federal Tier 2 Bin 5 | J32: GBMXV03.0F10 | K32: midsize car | L32: 5 | M32: 20 | N32: 31 | O32: 24 | P32: 5 | Q32: No | R32: 375 | S32: 2016 BMW 535i xDrive Gran Turismo 3L 6cyl | T32: 2016 BMW 535i 6cyl 2WD | U32: 555 | V32: BMW | W32: 59.9 | X32: -0.302 | Y32: 0.02559 | Z32: 2383.5 | AA32: 223.71 | AB32: Conv. Gasoline
A33: BMW 550i | B33: 4.4 | C33: 8 | D33: SemiAuto-8 | E33: 2WD | F33: Gasoline | G33: FA | H33: B5 | I33: Federal Tier 2 Bin 5 | J33: GBMXV04.4N63 | K33: midsize car | L33: 5 | M33: 17 | N33: 25 | O33: 20 | P33: 4 | Q33: No | R33: 452 | S33: 2016 BMW 750i 4.4L 8cyl | T33: 2016 BMW 550i 8cyl 2WD | U33: 651 | V33: BMW | W33: 53.2 | X33: -0.1 | Y33: 0.02146 | Z33: 2156.5 | AA33: 330.3451 | AB33: Conv. Gasoline
A34: BMW ActiveHybrid 5 | B34: 3 | C34: 6 | D34: SemiAuto-8 | E34: 2WD | F34: Gasoline | G34: FA | H34: B5 | I34: Federal Tier 2 Bin 5 | J34: GBMXV03.0AH5 | K34: midsize car | L34: 5 | M34: 23 | N34: 30 | O34: 26 | P34: 6 | Q34: No | R34: 346 | S34: 2016 BMW ActiveHybrid 5 3L 6cyl | T34: 2016 BMW ActiveHybrid 5 6cyl 2WD | U34: 657 | V34: BMW | W34: 54.2 | X34: -0.231 | Y34: 0.02301 | Z34: 2156.5 | AA34: 223.71 | AB34: HEV
A35: BMW i3 | B35: N/A | C35: N/A | D35: Auto-1 | E35: 2WD | F35: Electricity | G35: FA | H35: B1 | I35: Federal Tier 2 Bin 1 | J35: GBMXV00.0I3B | K35: small car | L35: 10 | M35: 137 | N35: 111 | O35: 124 | P35: 10 | Q35: Elite | R35: 0 | S35: 2016 BMW I3 REX 0.6L 2cyl | T35: 2016 BMW i3 N/Acyl 2WD | U35: 667 | V35: BMW | W35: 23.7 | X35: 0.346 | Y35: 0.01675 | Z35: 1532.25 | AA35: 8.2027 | AB35: EV
A36: BMW i3 REx | B36: .6 | C36: 2 | D36: Auto-1 | E36: 2WD | F36: Gasoline/Electricity | G36: FA | H36: B5 | I36: Federal Tier 2 Bin 5 | J36: GBMXV00.6I3R | K36: small car | L36: 5 | M36: 41/127 | N36: 37/107 | O36: 39/117 | P36: 10 | Q36: Yes | R36: 37 | S36: 2016 BMW I3 REX 0.6L 2cyl | T36: 2016 BMW i3 REx 2cyl 2WD | U36: 667 | V36: BMW | W36: 23.7 | X36: 0.346 | Y36: 0.01675 | Z36: 1532.25 | AA36: 8.2027 | AB36: PHEV
A37: BMW i8 | B37: 1.5 | C37: 3 | D37: Auto-6 | E37: 4WD | F37: Gasoline/Electricity | G37: FA | H37: B5 | I37: Federal Tier 2 Bin 5 | J37: GBMXV01.5I8P | K37: small car | L37: 5 | M37: 28/80 | N37: 29/72 | O37: 28/76 | P37: 9 | Q37: Yes | R37: 198 | S37: 2016 BMW I8 1.5L 3cyl | T37: 2016 BMW i8 3cyl 4WD | U37: 674 | V37: BMW | W37: 35.4 | X37: 0.165 | Y37: 0.01527 | Z37: 1702.5 | AA37: 172.2567 | AB37: PHEV
A38: BMW M3 | B38: 3 | C38: 6 | D38: AMS-7 | E38: 2WD | F38: Gasoline | G38: FA | H38: B5 | I38: Federal Tier 2 Bin 5 | J38: GBMXV03.0S55 | K38: small car | L38: 5 | M38: 17 | N38: 24 | O38: 19 | P38: 4 | Q38: No | R38: 459 | S38: 2016 BMW M4 GTS 3L 6cyl | T38: 2016 BMW M3 6cyl 2WD | U38: 724 | V38: BMW | W38: 44.6 | X38: 0.593 | Y38: 0.01626 | Z38: 1759.25 | AA38: 372.85 | AB38: Conv. Gasoline
A39: BMW M5 | B39: 4.4 | C39: 8 | D39: AMS-7 | E39: 2WD | F39: Gasoline | G39: FA | H39: B5 | I39: Federal Tier 2 Bin 5 | J39: GBMXV04.4S63 | K39: midsize car | L39: 5 | M39: 14 | N39: 20 | O39: 16 | P39: 3 | Q39: No | R39: 554 | S39: 2016 BMW M5 4.4L 8cyl | T39: 2016 BMW M5 8cyl 2WD | U39: 728 | V39: BMW | W39: 39.2 | X39: 0.184 | Y39: 0.01906 | Z39: 2156.5 | AA39: 412.3721 | AB39: Conv. Gasoline
A40: BMW X1 xDrive28i | B40: 2 | C40: 4 | D40: SemiAuto-8 | E40: 4WD | F40: Gasoline | G40: CA | H40: L3SULEV30 | I40: California LEV-III SULEV30 | J40: GBMXV02.0B46 | K40: large car | L40: 8 | M40: 22 | N40: 32 | O40: 26 | P40: 6 | Q40: No | R40: 346 | S40: 2016 BMW X1 xDrive28i 2L 4cyl | T40: 2016 BMW X1 xDrive28i 4cyl 4WD | U40: 740 | V40: BMW | W40: 46.6 | X40: -0.027 | Y40: 0.02235 | Z40: 1816 | AA40: 170.0196 | AB40: Conv. Gasoline
A41: BMW X5 M | B41: 4.4 | C41: 8 | D41: SemiAuto-8 | E41: 4WD | F41: Gasoline | G41: FA | H41: B5 | I41: Federal Tier 2 Bin 5 | J41: GBMXT04.4S63 | K41: standard SUV | L41: 5 | M41: 14 | N41: 19 | O41: 16 | P41: 3 | Q41: No | R41: 551 | S41: 2016 BMW X5 M 4.4L 8cyl | T41: 2016 BMW X5 M 8cyl 4WD | U41: 790 | V41: BMW | W41: 75.1 | X41: -0.17 | Y41: 0.03424 | Z41: 2497 | AA41: 422.8119 | AB41: Conv. Gasoline
A42: BMW X5 sDrive35i | B42: 3 | C42: 6 | D42: SemiAuto-8 | E42: 2WD | F42: Gasoline | G42: CA | H42: L3ULEV125 | I42: California LEV-III ULEV125 | J42: GBMXT03.0F15 | K42: standard SUV | L42: 6 | M42: 18 | N42: 25 | O42: 21 | P42: 5 | Q42: No | R42: 425 | S42: 2016 BMW X5 sDrive35i 3L 6cyl | T42: 2016 BMW X5 sDrive35i 6cyl 2WD | U42: 793 | V42: BMW | W42: 52.1 | X42: -0.355 | Y42: 0.03592 | Z42: 2270 | AA42: 223.71 | AB42: Conv. Gasoline
A43: BMW X5 xDrive35d | B43: 3 | C43: 6 | D43: SemiAuto-8 | E43: 4WD | F43: Diesel | G43: FA | H43: B5 | I43: Federal Tier 2 Bin 5 | J43: GBMXT03.0N57 | K43: standard SUV | L43: 5 | M43: 23 | N43: 30 | O43: 26 | P43: 5 | Q43: No | R43: 398 | S43: 2016 BMW X5 xDrive35d 3L 6cyl | T43: 2016 BMW X5 xDrive35d 6cyl 4WD | U43: 796 | V43: BMW | W43: 58.6 | X43: -0.446 | Y43: 0.03632 | Z43: 2383.5 | AA43: 190.1535 | AB43: Diesel
A44: BMW X5 xDrive40e | B44: 2 | C44: 4 | D44: SemiAuto-8 | E44: 4WD | F44: Gasoline/Electricity | G44: FA | H44: B5 | I44: Federal Tier 2 Bin 5 | J44: GBMXT02.0H20 | K44: standard SUV | L44: 5 | M44: 23/55 | N44: 25/57 | O44: 24/56 | P44: 8 | Q44: Yes | R44: 247 | S44: 2016 BMW X5 xDrive40e 2L 4cyl | T44: 2016 BMW X5 xDrive40e 4cyl 4WD | U44: 808 | V44: BMW | W44: 56.2 | X44: -0.432 | Y44: 0.03534 | Z44: 2497 | AA44: 178.968 | AB44: PHEV
A45: BMW X5 xDrive50i | B45: 4.4 | C45: 8 | D45: SemiAuto-8 | E45: 4WD | F45: Gasoline | G45: CA | H45: L3ULEV125 | I45: California LEV-III ULEV125 | J45: GBMXT04.4F15 | K45: standard SUV | L45: 6 | M45: 15 | N45: 21 | O45: 17 | P45: 3 | Q45: No | R45: 516 | S45: 2016 BMW X5 xDrive50i 4.4L 8cyl | T45: 2016 BMW X5 xDrive50i 8cyl 4WD | U45: 815 | V45: BMW | W45: 60.2 | X45: -0.384 | Y45: 0.03673 | Z45: 2497 | AA45: 330.3451 | AB45: Conv. Gasoline
A46: BMW Z4 | B46: 3 | C46: 6 | D46: AMS-7 | E46: 2WD | F46: Gasoline | G46: FA | H46: B5 | I46: Federal Tier 2 Bin 5 | J46: GBMXV03.054R | K46: small car | L46: 5 | M46: 17 | N46: 24 | O46: 20 | P46: 4 | Q46: No | R46: 454 | S46: 2016 BMW Z4 sDrive35is 3L 6cyl | T46: 2016 BMW Z4 6cyl 2WD | U46: 839 | V46: BMW | W46: 35.2 | X46: 0.462 | Y46: 0.014 | Z46: 1759.25 | AA46: 249.8095 | AB46: Conv. Gasoline
A47: BUICK Cascada | B47: 1.6 | C47: 4 | D47: SemiAuto-6 | E47: 2WD | F47: Gasoline | G47: CA | H47: B4 | I47: Federal Tier 2 Bin 4 | J47: GGMXV01.6001 | K47: small car | L47: 6 | M47: 20 | N47: 27 | O47: 23 | P47: 5 | Q47: No | R47: 393 | S47: 2016 BUICK CASCADA 1.6L 4cyl | T47: 2016 BUICK Cascada 4cyl 2WD | U47: 1690 | V47: BUICK | W47: 44.15 | X47: 0.0791 | Y47: 0.02217 | Z47: 1929.5 | AA47: 149.14 | AB47: Conv. Gasoline
A48: BUICK Enclave | B48: 3.6 | C48: 6 | D48: Auto-6 | E48: 2WD | F48: Gasoline | G48: FA | H48: B5 | I48: Federal Tier 2 Bin 5 | J48: GGMXT03.6151 | K48: standard SUV | L48: 5 | M48: 17 | N48: 24 | O48: 19 | P48: 4 | Q48: No | R48: 465 | S48: 2016 BUICK ENCLAVE AWD 3.6L 6cyl | T48: 2016 BUICK Enclave 6cyl 2WD | U48: 1694 | V48: BUICK | W48: 50.58 | X48: 0.1081 | Y48: 0.03291 | Z48: 2497 | AA48: 214.7616 | AB48: Conv. Gasoline
A49: BUICK Encore | B49: 1.4 | C49: 4 | D49: SemiAuto-6 | E49: 2WD | F49: Gasoline | G49: CA | H49: B4 | I49: Federal Tier 2 Bin 4 | J49: GGMXV01.4001 | K49: small SUV | L49: 6 | M49: 28 | N49: 34 | O49: 30 | P49: 7 | Q49: Yes | R49: 293 | S49: 2016 BUICK ENCORE 1.4L 4cyl | T49: 2016 BUICK Encore 4cyl 2WD | U49: 1698 | V49: BUICK | W49: 24.31 | X49: 0.215 | Y49: 0.02262 | Z49: 1589 | AA49: 110.3636 | AB49: Conv. Gasoline
A50: BUICK Encore | B50: 1.4 | C50: 4 | D50: SemiAuto-6 | E50: 2WD | F50: Gasoline | G50: CA | H50: B4 | I50: Federal Tier 2 Bin 4 | J50: GGMXV01.4099 | K50: small SUV | L50: 6 | M50: 25 | N50: 33 | O50: 28 | P50: 7 | Q50: Yes | R50: 317 | S50: 2016 BUICK ENCORE AWD 1.4L 4cyl | T50: 2016 BUICK Encore 4cyl 2WD | U50: 1701 | V50: BUICK | W50: 27.3 | X50: 0.3575 | Y50: 0.02291 | Z50: 1645.75 | AA50: 110.3636 | AB50: Conv. Gasoline
A51: BUICK Envision | B51: 2 | C51: 4 | D51: Auto-6 | E51: 4WD | F51: Gasoline | G51: CA | H51: B4 | I51: Federal Tier 2 Bin 4 | J51: GGMXT02.0100 | K51: small SUV | L51: 6 | M51: 20 | N51: 26 | O51: 22 | P51: 5 | Q51: No | R51: 392 | S51: 2016 BUICK ENVISION AWD 2L 4cyl | T51: 2016 BUICK Envision 4cyl 4WD | U51: 1705 | V51: BUICK | W51: 43.28 | X51: 0.2339 | Y51: 0.02454 | Z51: 2043 | AA51: 187.9164 | AB51: Conv. Gasoline
A52: BUICK Lacrosse | B52: 2.4 | C52: 4 | D52: SemiAuto-6 | E52: 2WD | F52: Gasoline | G52: FA | H52: B5 | I52: Federal Tier 2 Bin 5 | J52: GGMXV02.4060 | K52: midsize car | L52: 5 | M52: 25 | N52: 36 | O52: 29 | P52: 7 | Q52: No | R52: 308 | S52: 2016 BUICK LACROSSE AWD 3.6L 6cyl | T52: 2016 BUICK Lacrosse 4cyl 2WD | U52: 1710 | V52: BUICK | W52: 43.85 | X52: 0.3206 | Y52: 0.01882 | Z52: 2043 | AA52: 225.9471 | AB52: Conv. Gasoline
A53: BUICK Lacrosse | B53: 3.6 | C53: 6 | D53: SemiAuto-6 | E53: 2WD | F53: Ethanol/Gas | G53: CA | H53: B4 | I53: Federal Tier 2 Bin 4 | J53: GGMXV03.6166 | K53: midsize car | L53: 6 | M53: 14/18 | N53: 20/28 | O53: 16/21 | P53: 5 | Q53: No | R53: 384/422 | S53: 2016 BUICK LACROSSE AWD 3.6L 6cyl | T53: 2016 BUICK Lacrosse 6cyl 2WD | U53: 1710 | V53: BUICK | W53: 43.85 | X53: 0.3206 | Y53: 0.01882 | Z53: 2043 | AA53: 225.9471 | AB53: Conv. Gasoline
A54: BUICK Lacrosse | B54: 3.6 | C54: 6 | D54: SemiAuto-6 | E54: 2WD | F54: Gasoline | G54: CA | H54: L3SULEV30 | I54: California LEV-III SULEV30 | J54: GGMXV03.6048 | K54: midsize car | L54: 8 | M54: 18 | N54: 28 | O54: 22 | P54: 5 | Q54: No | R54: 408 | S54: 2016 CHEVROLET IMPALA 3.6L 6cyl | T54: 2016 BUICK Lacrosse 6cyl 2WD | U54: 1941 | V54: CHEVROLET | W54: 38.7 | X54: 0.2752 | Y54: 0.0189 | Z54: 1929.5 | AA54: 227.4385 | AB54: Conv. Gasoline
A55: BUICK Regal | B55: 2 | C55: 4 | D55: Man-6 | E55: 2WD | F55: Gasoline | G55: CA | H55: B4 | I55: Federal Tier 2 Bin 4 | J55: GGMXV02.0021 | K55: midsize car | L55: 6 | M55: 20 | N55: 31 | O55: 24 | P55: 5 | Q55: No | R55: 369 | S55: 2016 BUICK REGAL AWD 2L 4cyl | T55: 2016 BUICK Regal 4cyl 2WD | U55: 1714 | V55: BUICK | W55: 52.25 | X55: 0.4199 | Y55: 0.01751 | Z55: 2043 | AA55: 193.882 | AB55: Conv. Gasoline
A56: BUICK Regal | B56: 2.4 | C56: 4 | D56: SemiAuto-6 | E56: 2WD | F56: Gasoline | G56: CA | H56: B4 | I56: Federal Tier 2 Bin 4 | J56: GGMXJ02.4199 | K56: midsize car | L56: 6 | M56: 19 | N56: 31 | O56: 23 | P56: 5 | Q56: No | R56: 379 | S56: 2016 BUICK REGAL AWD 2L 4cyl | T56: 2016 BUICK Regal 4cyl 2WD | U56: 1714 | V56: BUICK | W56: 52.25 | X56: 0.4199 | Y56: 0.01751 | Z56: 2043 | AA56: 193.882 | AB56: Conv. Gasoline
A57: CADILLAC ATS | B57: 2 | C57: 4 | D57: Man-6 | E57: 2WD | F57: Gasoline | G57: CA | H57: B4 | I57: Federal Tier 2 Bin 4 | J57: GGMXV02.0031 | K57: small car | L57: 6 | M57: 20 | N57: 29 | O57: 23 | P57: 5 | Q57: No | R57: 386 | S57: 2016 CADILLAC ATS 2L 4cyl | T57: 2016 CADILLAC ATS 4cyl 2WD | U57: 1720 | V57: CADILLAC | W57: 37.71 | X57: 0.4764 | Y57: 0.01473 | Z57: 1702.5 | AA57: 202.8304 | AB57: Conv. Gasoline
A58: CADILLAC ATS | B58: 2.5 | C58: 4 | D58: SemiAuto-8 | E58: 2WD | F58: Gasoline | G58: CA | H58: B4 | I58: Federal Tier 2 Bin 4 | J58: GGMXV02.5001 | K58: small car | L58: 6 | M58: 22 | N58: 32 | O58: 26 | P58: 6 | Q58: No | R58: 344 | S58: 2016 CADILLAC ATS 2.5L 4cyl | T58: 2016 CADILLAC ATS 4cyl 2WD | U58: 1726 | V58: CADILLAC | W58: 33.34 | X58: 0.483 | Y58: 0.01419 | Z58: 1645.75 | AA58: 150.6314 | AB58: Conv. Gasoline
A59: CADILLAC ATS | B59: 3.6 | C59: 6 | D59: SemiAuto-8 | E59: 2WD | F59: Gasoline | G59: CA | H59: B4 | I59: Federal Tier 2 Bin 4 | J59: GGMXJ03.6165 | K59: small car | L59: 6 | M59: 20 | N59: 30 | O59: 24 | P59: 5 | Q59: No | R59: 375 | S59: 2016 CADILLAC CT6 3.6L 6cyl | T59: 2016 CADILLAC ATS 6cyl 2WD | U59: 1734 | V59: CADILLAC | W59: 42.46 | X59: 0.4533 | Y59: 0.0171 | Z59: 2043 | AA59: 249.8095 | AB59: Conv. Gasoline
A60: CADILLAC ATS-V | B60: 3.6 | C60: 6 | D60: Man-6 | E60: 2WD | F60: Gasoline | G60: FA | H60: B5 | I60: Federal Tier 2 Bin 5 | J60: GGMXV03.6042 | K60: small car | L60: 5 | M60: 17 | N60: 23 | O60: 19 | P60: 4 | Q60: No | R60: 465 | S60: 2016 CADILLAC ATS-V 3.6L 6cyl | T60: 2016 CADILLAC ATS-V 6cyl 2WD | U60: 1730 | V60: CADILLAC | W60: 53.88 | X60: 0.4548 | Y60: 0.01738 | Z60: 1816 | AA60: 339.2935 | AB60: Conv. Gasoline
A61: CADILLAC CTS-V | B61: 6.2 | C61: 8 | D61: SemiAuto-8 | E61: 2WD | F61: Gasoline | G61: FA | H61: B5 | I61: Federal Tier 2 Bin 5 | J61: GGMXV06.2089 | K61: midsize car | L61: 5 | M61: 14 | N61: 21 | O61: 17 | P61: 3 | Q61: No | R61: 534 | S61: 2016 CADILLAC CTS-V 6.2L 8cyl | T61: 2016 CADILLAC CTS-V 8cyl 2WD | U61: 1747 | V61: CADILLAC | W61: 56.41 | X61: 0.4334 | Y61: 0.02137 | Z61: 2043 | AA61: 477.248 | AB61: Conv. Gasoline
A62: CADILLAC ELR | B62: 1.4 | C62: 4 | D62: CVT | E62: 2WD | F62: Gasoline/Electricity | G62: CA | H62: L3SULEV30 | I62: California LEV-III SULEV30 | J62: GGMXV01.4088 | K62: small car | L62: 8 | M62: 28/80 | N62: 33/79 | O62: 30/80 | P62: 10 | Q62: Yes | R62: 104 | S62: 2016 CADILLAC ELR 1.4L 4cyl | T62: 2016 CADILLAC ELR 4cyl 2WD | U62: 1749 | V62: CADILLAC | W62: 30.17 | X62: 0.2285 | Y62: 0.0176 | Z62: 1929.5 | AA62: 62.6388 | AB62: PHEV
A63: CADILLAC Escalade | B63: 6.2 | C63: 8 | D63: Auto-8 | E63: 2WD | F63: Gasoline | G63: CA | H63: B4 | I63: Federal Tier 2 Bin 4 | J63: GGMXT06.2374 | K63: standard SUV | L63: 6 | M63: 15 | N63: 22 | O63: 17 | P63: 3 | Q63: No | R63: 511 | S63: 2016 CADILLAC ESCALADE 2WD 6.2L 8cyl | T63: 2016 CADILLAC Escalade 8cyl 2WD | U63: 1756 | V63: CADILLAC | W63: 44.83 | X63: 0.284 | Y63: 0.0311 | Z63: 2724 | AA63: 316.9225 | AB63: Conv. Gasoline
A64: CHEVROLET Camaro | B64: 6.2 | C64: 8 | D64: Man-6 | E64: 2WD | F64: Gasoline | G64: FA | H64: B5 | I64: Federal Tier 2 Bin 5 | J64: GGMXV06.2090 | K64: small car | L64: 5 | M64: 16 | N64: 25 | O64: 19 | P64: 4 | Q64: No | R64: 457 | S64: 2016 CHEVROLET CAMARO 6.2L 8cyl | T64: 2016 CHEVROLET Camaro 8cyl 2WD | U64: 1851 | V64: CHEVROLET | W64: 36.88 | X64: 0.5551 | Y64: 0.01826 | Z64: 1816 | AA64: 339.2935 | AB64: Conv. Gasoline
A65: CHEVROLET Colorado | B65: 2.5 | C65: 4 | D65: Auto-6 | E65: 2WD | F65: Gasoline | G65: CA | H65: B4 | I65: Federal Tier 2 Bin 4 | J65: GGMXT02.5200 | K65: pickup | L65: 6 | M65: 20 | N65: 27 | O65: 22 | P65: 5 | Q65: No | R65: 397 | S65: 2016 CHEVROLET COLORADO 4WD 3.6L 6cyl | T65: 2016 CHEVROLET Colorado 4cyl 2WD | U65: 1873 | V65: CHEVROLET | W65: 33.83 | X65: 0.7113 | Y65: 0.02502 | Z65: 2156.5 | AA65: 223.71 | AB65: Conv. Gasoline
A66: CHEVROLET Colorado | B66: 2.8 | C66: 4 | D66: Auto-6 | E66: 2WD | F66: Diesel | G66: FA | H66: B5 | I66: Federal Tier 2 Bin 5 | J66: GGMXT02.8358 | K66: pickup | L66: 5 | M66: 22 | N66: 31 | O66: 25 | P66: 5 | Q66: No | R66: 406 | S66: 2016 GMC CANYON 2WD 2.8L 4cyl | T66: 2016 CHEVROLET Colorado 4cyl 2WD | U66: 2048 | V66: GMC | W66: 33.49 | X66: 0.4542 | Y66: 0.02793 | Z66: 2156.5 | AA66: 134.9717 | AB66: Diesel
A67: CHEVROLET Colorado | B67: 3.6 | C67: 6 | D67: Auto-6 | E67: 2WD | F67: Gasoline | G67: CA | H67: B4 | I67: Federal Tier 2 Bin 4 | J67: GGMXT03.6161 | K67: pickup | L67: 6 | M67: 18 | N67: 26 | O67: 21 | P67: 5 | Q67: No | R67: 427 | S67: 2016 CHEVROLET COLORADO 4WD 3.6L 6cyl | T67: 2016 CHEVROLET Colorado 6cyl 2WD | U67: 1873 | V67: CHEVROLET | W67: 33.83 | X67: 0.7113 | Y67: 0.02502 | Z67: 2156.5 | AA67: 223.71 | AB67: Conv. Gasoline
A68: CHEVROLET Colorado | B68: 3.6 | C68: 6 | D68: Auto-6 | E68: 2WD | F68: Gasoline | G68: CA | H68: B4 | I68: Federal Tier 2 Bin 4 | J68: GGMXT03.6162 | K68: special purpose | L68: 6 | M68: 15 | N68: 17 | O68: 16 | P68: 3 | Q68: No | R68: 555 | S68: 2016 GMC CANYON CAB CHASSIS 2WD 3.6L 6cyl | T68: 2016 CHEVROLET Colorado 6cyl 2WD | U68: 2066 | V68: GMC | W68: 36.04 | X68: 0.9149 | Y68: 0.04484 | Z68: 2383.5 | AA68: 227.4385 | AB68: Conv. Gasoline
A69: CHEVROLET Equinox | B69: 2.4 | C69: 4 | D69: Auto-6 | E69: 2WD | F69: Ethanol/Gas | G69: CA | H69: B4 | I69: Federal Tier 2 Bin 4 | J69: GGMXT02.4151 | K69: small SUV | L69: 6 | M69: 15/22 | N69: 22/32 | O69: 18/26 | P69: 6 | Q69: No | R69: 355/344 | S69: 2016 CHEVROLET EQUINOX FWD 2.4L 4cyl | T69: 2016 CHEVROLET Equinox 4cyl 2WD | U69: 1921 | V69: CHEVROLET | W69: 35.61 | X69: 0.2595 | Y69: 0.02138 | Z69: 1816 | AA69: 135.7174 | AB69: Conv. Gasoline
A70: CHEVROLET Malibu | B70: 1.5 | C70: 4 | D70: Auto-6 | E70: 2WD | F70: Gasoline | G70: CA | H70: B4 | I70: Federal Tier 2 Bin 4 | J70: GGMXV01.5002 | K70: midsize car | L70: 6 | M70: 27 | N70: 37 | O70: 31 | P70: 7 | Q70: Yes | R70: 289 | S70: 2016 CHEVROLET MALIBU 1.5L 4cyl | T70: 2016 CHEVROLET Malibu 4cyl 2WD | U70: 2001 | V70: CHEVROLET | W70: 26.28 | X70: 0.1589 | Y70: 0.01725 | Z70: 1532.25 | AA70: 119.312 | AB70: Conv. Gasoline
A71: CHEVROLET Malibu | B71: 1.8 | C71: 4 | D71: CVT | E71: 2WD | F71: Gasoline | G71: CA | H71: B4 | I71: Federal Tier 2 Bin 4 | J71: GGMXV01.8050 | K71: midsize car | L71: 6 | M71: 47 | N71: 46 | O71: 46 | P71: 10 | Q71: Yes | R71: 196 | S71: 2016 CHEVROLET MALIBU 1.8L 4cyl | T71: 2016 CHEVROLET Malibu 4cyl 2WD | U71: 2003 | V71: CHEVROLET | W71: 25.52 | X71: 0.1812 | Y71: 0.01625 | Z71: 1645.75 | AA71: 90.9754 | AB71: Conv. Gasoline
A72: CHEVROLET Silverado 15 | B72: 5.3 | C72: 8 | D72: Auto-6 | E72: 2WD | F72: Gasoline | G72: FA | H72: B5 | I72: Federal Tier 2 Bin 5 | J72: GGMXT05.3384 | K72: pickup | L72: 5 | M72: 16 | N72: 23 | O72: 19 | P72: 4 | Q72: No | R72: 480 | S72: 2016 CHEVROLET C15 SILVERADO 2WD 5.3L 8cyl | T72: 2016 CHEVROLET Silverado 15 8cyl 2WD | U72: 1797 | V72: CHEVROLET | W72: 39.45 | X72: 0.2651 | Y72: 0.03452 | Z72: 2497 | AA72: 257.2665 | AB72: Conv. Gasoline
A73: CHEVROLET Silverado 15 | B73: 5.3 | C73: 8 | D73: Auto-8 | E73: 2WD | F73: Gasoline | G73: FA | H73: B5 | I73: Federal Tier 2 Bin 5 | J73: GGMXT05.3383 | K73: pickup | L73: 5 | M73: 18 | N73: 24 | O73: 20 | P73: 4 | Q73: No | R73: 446 | S73: 2016 CHEVROLET C15 SILVERADO 2WD 5.3L 8cyl | T73: 2016 CHEVROLET Silverado 15 8cyl 2WD | U73: 1794 | V73: CHEVROLET | W73: 33.95 | X73: 0.0629 | Y73: 0.03582 | Z73: 2497 | AA73: 257.2665 | AB73: Conv. Gasoline
A74: CHEVROLET Silverado 15 | B74: 5.3 | C74: 8 | D74: Auto-6 | E74: 2WD | F74: Ethanol/Gas | G74: FA | H74: B5 | I74: Federal Tier 2 Bin 5 | J74: GGMXT05.3382 | K74: pickup | L74: 5 | M74: 12/16 | N74: 17/23 | O74: 14/19 | P74: 4 | Q74: No | R74: 461/480 | S74: 2016 CHEVROLET K15 SILVERADO 4WD 5.3L 8cyl | T74: 2016 CHEVROLET Silverado 15 8cyl 2WD | U74: 1977 | V74: CHEVROLET | W74: 39.38 | X74: 0.6569 | Y74: 0.0318 | Z74: 2383.5 | AA74: 257.2665 | AB74: Conv. Gasoline
A75: CHEVROLET Sonic | B75: 1.8 | C75: 4 | D75: Man-5 | E75: 2WD | F75: Gasoline | G75: CA | H75: B4 | I75: Federal Tier 2 Bin 4 | J75: GGMXV01.8021 | K75: small car | L75: 6 | M75: 26 | N75: 35 | O75: 30 | P75: 7 | Q75: Yes | R75: 301 | S75: 2016 CHEVROLET SONIC RS 1.4L 4cyl | T75: 2016 CHEVROLET Sonic 4cyl 2WD | U75: 2026 | V75: CHEVROLET | W75: 22.99 | X75: 0.3901 | Y75: 0.01885 | Z75: 1418.75 | AA75: 102.9066 | AB75: Conv. Gasoline
A76: CHEVROLET Spark | B76: 1.4 | C76: 4 | D76: CVT | E76: 2WD | F76: Gasoline | G76: CA | H76: L3ULEV70 | I76: California LEV-III ULEV70 | J76: GGMXV01.4050 | K76: small car | L76: 7 | M76: 31 | N76: 41 | O76: 35 | P76: 8 | Q76: Yes | R76: 253 | S76: 2016 CHEVROLET SPARK 1.4L 4cyl | T76: 2016 CHEVROLET Spark 4cyl 2WD | U76: 2028 | V76: CHEVROLET | W76: 20.82 | X76: 0.17461 | Y76: 0.01697 | Z76: 1191.75 | AA76: 62.6388 | AB76: Conv. Gasoline
A77: CHEVROLET Spark EV | B77: N/A | C77: N/A | D77: Auto-1 | E77: 2WD | F77: Electricity | G77: FA | H77: B1 | I77: Federal Tier 2 Bin 1 | J77: GGMXV00.0001 | K77: small car | L77: 10 | M77: 128 | N77: 109 | O77: 119 | P77: 10 | Q77: Elite | R77: 0 | S77: 2016 CHEVROLET SPARK EV 0L cyl | T77: 2016 CHEVROLET Spark EV N/Acyl 2WD | U77: 2032 | V77: CHEVROLET | W77: 21.96 | X77: 0.1688 | Y77: 0.01806 | Z77: 1418.75 | AA77: 103.6523 | AB77: EV
A78: CHEVROLET SS | B78: 6.2 | C78: 8 | D78: Man-6 | E78: 2WD | F78: Gasoline | G78: FA | H78: B5 | I78: Federal Tier 2 Bin 5 | J78: GGMXV06.2088 | K78: large car | L78: 5 | M78: 14 | N78: 22 | O78: 17 | P78: 3 | Q78: No | R78: 520 | S78: 2016 CHEVROLET SS 6.2L 8cyl | T78: 2016 CHEVROLET SS 8cyl 2WD | U78: 2034 | V78: CHEVROLET | W78: 53.08 | X78: 0.1951 | Y78: 0.0202 | Z78: 1929.5 | AA78: 309.4655 | AB78: Conv. Gasoline
A79: CHEVROLET Volt | B79: 1.5 | C79: 4 | D79: CVT | E79: 2WD | F79: Gasoline/Electricity | G79: FA | H79: B5 | I79: Federal Tier 2 Bin 5 | J79: GGMXV01.5020 | K79: small car | L79: 5 | M79: 43/113 | N79: 42/99 | O79: 42/106 | P79: 10 | Q79: Yes | R79: 51 | S79: 2016 CHEVROLET VOLT 1.5L 4cyl | T79: 2016 CHEVROLET Volt 4cyl 2WD | U79: 2041 | V79: CHEVROLET | W79: 27.1 | X79: 0.2173 | Y79: 0.01559 | Z79: 1759.25 | AA79: 74.57 | AB79: PHEV
A80: CHEVROLET Volt | B80: 1.5 | C80: 4 | D80: CVT | E80: 2WD | F80: Gasoline/Electricity | G80: CA | H80: L3SULEV30 | I80: California LEV-III SULEV30 | J80: GGMXV01.5030 | K80: small car | L80: 8 | M80: 43/113 | N80: 42/99 | O80: 42/106 | P80: 10 | Q80: Yes | R80: 51 | S80: 2016 CHEVROLET VOLT 1.5L 4cyl | T80: 2016 CHEVROLET Volt 4cyl 2WD | U80: 2041 | V80: CHEVROLET | W80: 27.1 | X80: 0.2173 | Y80: 0.01559 | Z80: 1759.25 | AA80: 74.57 | AB80: PHEV
A81: CHRYSLER 200 | B81: 2.4 | C81: 4 | D81: Auto-9 | E81: 2WD | F81: Ethanol/Gas | G81: CA | H81: B4 | I81: Federal Tier 2 Bin 4 | J81: GCRXJ02.45PA | K81: midsize car | L81: 6 | M81: 17/23 | N81: 28/36 | O81: 21/28 | P81: 7 | Q81: Yes | R81: 300/322 | S81: 2016 Chrysler 200 AWD 3.6L 6cyl | T81: 2016 CHRYSLER 200 4cyl 2WD | U81: 937 | V81: Chrysler | W81: 25.83 | X81: 0.4141 | Y81: 0.01672 | Z81: 1816 | AA81: 219.9815 | AB81: Conv. Gasoline
A82: CHRYSLER 200 | B82: 2.4 | C82: 4 | D82: Auto-9 | E82: 2WD | F82: Gasoline | G82: CA | H82: L3SULEV30/PZEV | I82: California LEV-III SULEV30/PZEV | J82: GCRXJ02.4CP0 | K82: midsize car | L82: 9 | M82: 23 | N82: 36 | O82: 28 | P82: 7 | Q82: Yes | R82: 322 | S82: 2016 Chrysler 200 AWD 3.6L 6cyl | T82: 2016 CHRYSLER 200 4cyl 2WD | U82: 937 | V82: Chrysler | W82: 25.83 | X82: 0.4141 | Y82: 0.01672 | Z82: 1816 | AA82: 219.9815 | AB82: Conv. Gasoline
A83: CHRYSLER 200 | B83: 3.6 | C83: 6 | D83: Auto-9 | E83: 2WD | F83: Ethanol/Gas | G83: CA | H83: B4 | I83: Federal Tier 2 Bin 4 | J83: GCRXJ03.65PA | K83: midsize car | L83: 6 | M83: 14/19 | N83: 23/32 | O83: 17/23 | P83: 5 | Q83: No | R83: 362/385 | S83: 2016 Chrysler 200 AWD 3.6L 6cyl | T83: 2016 CHRYSLER 200 6cyl 2WD | U83: 937 | V83: Chrysler | W83: 25.83 | X83: 0.4141 | Y83: 0.01672 | Z83: 1816 | AA83: 219.9815 | AB83: Conv. Gasoline
A84: CHRYSLER 300 | B84: 3.6 | C84: 6 | D84: Auto-8 | E84: 2WD | F84: Ethanol/Gas | G84: CA | H84: B4 | I84: Federal Tier 2 Bin 4 | J84: GCRXV03.65PB | K84: large car | L84: 6 | M84: 14/19 | N84: 23/31 | O84: 17/23 | P84: 5 | Q84: No | R84: 368/386 | S84: 2016 Chrysler 300 AWD 3.6L 6cyl | T84: 2016 CHRYSLER 300 6cyl 2WD | U84: 951 | V84: Chrysler | W84: 58.95 | X84: -0.3101 | Y84: 0.02565 | Z84: 2043 | AA84: 217.7444 | AB84: Conv. Gasoline
A85: CHRYSLER 300 | B85: 3.6 | C85: 6 | D85: Auto-8 | E85: 2WD | F85: Gasoline | G85: CA | H85: B4 | I85: Federal Tier 2 Bin 4 | J85: GCRXV03.65P1 | K85: large car | L85: 6 | M85: 19 | N85: 31 | O85: 23 | P85: 5 | Q85: No | R85: 386 | S85: 2016 Chrysler 300 AWD 3.6L 6cyl | T85: 2016 CHRYSLER 300 6cyl 2WD | U85: 951 | V85: Chrysler | W85: 58.95 | X85: -0.3101 | Y85: 0.02565 | Z85: 2043 | AA85: 217.7444 | AB85: Conv. Gasoline
A86: CHRYSLER 300 | B86: 5.7 | C86: 8 | D86: Auto-8 | E86: 2WD | F86: Gasoline | G86: CA | H86: B4 | I86: Federal Tier 2 Bin 4 | J86: GCRXV05.75P1 | K86: large car | L86: 6 | M86: 16 | N86: 25 | O86: 19 | P86: 4 | Q86: No | R86: 465 | S86: 2016 Chrysler 300 AWD 3.6L 6cyl | T86: 2016 CHRYSLER 300 8cyl 2WD | U86: 951 | V86: Chrysler | W86: 58.95 | X86: -0.3101 | Y86: 0.02565 | Z86: 2043 | AA86: 217.7444 | AB86: Conv. Gasoline
A87: CHRYSLER Town & Country | B87: 3.6 | C87: 6 | D87: Auto-6 | E87: 2WD | F87: Gasoline | G87: CA | H87: B4 | I87: Federal Tier 2 Bin 4 | J87: GCRXJ03.65P3 | K87: minivan | L87: 6 | M87: 17 | N87: 25 | O87: 20 | P87: 4 | Q87: No | R87: 444 | S87: 2016 Chrysler Town & Country 3.6L 6cyl | T87: 2016 CHRYSLER Town & Country 6cyl 2WD | U87: 953 | V87: Chrysler | W87: 46.03 | X87: 0.195 | Y87: 0.02528 | Z87: 2156.5 | AA87: 211.0331 | AB87: Conv. Gasoline
A88: DODGE Challenger | B88: 5.7 | C88: 8 | D88: Man-6 | E88: 2WD | F88: Gasoline | G88: FA | H88: B5 | I88: Federal Tier 2 Bin 5 | J88: GCRXV06.45P1 | K88: midsize car | L88: 5 | M88: 15 | N88: 23 | O88: 18 | P88: 4 | Q88: No | R88: 495 | S88: 2016 Dodge Challenger SRT8 6.2L 8cyl | T88: 2016 DODGE Challenger 8cyl 2WD | U88: 971 | V88: Dodge | W88: 40.41 | X88: 0.4837 | Y88: 0.02208 | Z88: 2156.5 | AA88: 527.2099 | AB88: Conv. Gasoline
A89: DODGE Challenger SRT8 | B89: 6.2 | C89: 8 | D89: Auto-8 | E89: 2WD | F89: Gasoline | G89: FA | H89: B5 | I89: Federal Tier 2 Bin 5 | J89: GCRXV06.25P3 | K89: midsize car | L89: 5 | M89: 13 | N89: 22 | O89: 16 | P89: 3 | Q89: No | R89: 546 | S89: 2016 Dodge Challenger SRT8 6.2L 8cyl | T89: 2016 DODGE Challenger SRT8 8cyl 2WD | U89: 974 | V89: Dodge | W89: 39.81 | X89: 0.4779 | Y89: 0.02208 | Z89: 2156.5 | AA89: 527.2099 | AB89: Conv. Gasoline
A90: DODGE Dart | B90: 1.4 | C90: 4 | D90: AutoMan-6 | E90: 2WD | F90: Gasoline | G90: FA | H90: B5 | I90: Federal Tier 2 Bin 5 | J90: GCRXJ01.45P0 | K90: midsize car | L90: 5 | M90: 27 | N90: 37 | O90: 31 | P90: 7 | Q90: No | R90: 288 | S90: 2016 Fiat 500X 1.4L 4cyl | T90: 2016 DODGE Dart 4cyl 2WD | U90: 1068 | V90: Fiat | W90: 21.15 | X90: 0.5158 | Y90: 0.01904 | Z90: 1475.5 | AA90: 119.312 | AB90: Conv. Gasoline
A91: DODGE Dart | B91: 2 | C91: 4 | D91: Man-6 | E91: 2WD | F91: Gasoline | G91: CA | H91: B4 | I91: Federal Tier 2 Bin 4 | J91: GCRXV02.45P3 | K91: midsize car | L91: 6 | M91: 25 | N91: 36 | O91: 29 | P91: 7 | Q91: Yes | R91: 305 | S91: 2016 Dodge Dart 2.4L 4cyl | T91: 2016 DODGE Dart 4cyl 2WD | U91: 1017 | V91: Dodge | W91: 28.17 | X91: 0.3796 | Y91: 0.01587 | Z91: 1645.75 | AA91: 137.2088 | AB91: Conv. Gasoline
A92: DODGE Dart | B92: 2.4 | C92: 4 | D92: Auto-6 | E92: 2WD | F92: Gasoline | G92: CA | H92: B4 | I92: Federal Tier 2 Bin 4 | J92: GCRXJ02.45P4 | K92: midsize car | L92: 6 | M92: 23 | N92: 35 | O92: 27 | P92: 6 | Q92: No | R92: 324 | S92: 2016 Fiat 500X AWD 2.4L 4cyl | T92: 2016 DODGE Dart 4cyl 2WD | U92: 1072 | V92: Fiat | W92: 32.58 | X92: 0.3003 | Y92: 0.02348 | Z92: 1645.75 | AA92: 134.226 | AB92: Conv. Gasoline
A93: DODGE Durango | B93: 3.6 | C93: 6 | D93: Auto-8 | E93: 2WD | F93: Gasoline | G93: CA | H93: B4 | I93: Federal Tier 2 Bin 4 | J93: GCRXT03.65P2 | K93: standard SUV | L93: 6 | M93: 19 | N93: 27 | O93: 22 | P93: 5 | Q93: No | R93: 412 | S93: 2016 Dodge Durango RWD 3.6L 6cyl | T93: 2016 DODGE Durango 6cyl 2WD | U93: 1036 | V93: Dodge | W93: 41.72 | X93: -0.0801 | Y93: 0.03086 | Z93: 2383.5 | AA93: 219.9815 | AB93: Conv. Gasoline
A94: DODGE Durango | B94: 5.7 | C94: 8 | D94: Auto-8 | E94: 2WD | F94: Gasoline | G94: CA | H94: B4 | I94: Federal Tier 2 Bin 4 | J94: GCRXT05.75P0 | K94: standard SUV | L94: 6 | M94: 14 | N94: 22 | O94: 17 | P94: 3 | Q94: No | R94: 526 | S94: 2016 Dodge Durango AWD 5.7L 8cyl | T94: 2016 DODGE Durango 8cyl 2WD | U94: 1032 | V94: Dodge | W94: 53.68 | X94: -0.0764 | Y94: 0.03086 | Z94: 2497 | AA94: 268.452 | AB94: Conv. Gasoline
A95: DODGE Journey | B95: 2.4 | C95: 4 | D95: Auto-4 | E95: 2WD | F95: Gasoline | G95: FA | H95: T3B110 | I95: Federal Tier 3 Transitional Bin 110 | J95: GCRXT02.45P6 | K95: small SUV | L95: 6 | M95: 19 | N95: 26 | O95: 21 | P95: 5 | Q95: No | R95: 419 | S95: 2016 Dodge JOURNEY 2WD 2.4L cyl | T95: 2016 DODGE Journey 4cyl 2WD | U95: 1042 | V95: Dodge | W95: 27.99 | X95: 0.5576 | Y95: 0.01622 | Z95: 1645.75 | AA95: 129.0061 | AB95: Conv. Gasoline
A96: FERRARI 488 GTB | B96: 3.9 | C96: 8 | D96: AutoMan-7 | E96: 2WD | F96: Gasoline | G96: FA | H96: B5 | I96: Federal Tier 2 Bin 5 | J96: GFEXV03.9TUR | K96: small car | L96: 5 | M96: 15 | N96: 22 | O96: 18 | P96: 4 | Q96: No | R96: 502 | S96: 2016 Ferrari 488 GTB 3.9L 8cyl | T96: 2016 FERRARI 488 GTB 8cyl 2WD | U96: 1258 | V96: Ferrari | W96: 33.721 | X96: 0.391 | Y96: 0.015 | Z96: 1816 | AA96: 492.9077 | AB96: Conv. Gasoline
A97: FERRARI F12 | B97: 6.3 | C97: 12 | D97: AutoMan-7 | E97: 2WD | F97: Gasoline | G97: FA | H97: B5 | I97: Federal Tier 2 Bin 5 | J97: GFEXV06.3GDI | K97: small car | L97: 5 | M97: 11 | N97: 16 | O97: 13 | P97: 1 | Q97: No | R97: 679 | S97: 2016 Ferrari F12 FNA 6.3L 12cyl | T97: 2016 FERRARI F12 12cyl 2WD | U97: 1282 | V97: Ferrari | W97: 51.481 | X97: 0.129 | Y97: 0.019 | Z97: 1929.5 | AA97: 569.7148 | AB97: Conv. Gasoline
A98: FIAT 500 | B98: 1.4 | C98: 4 | D98: Auto-6 | E98: 2WD | F98: Gasoline | G98: FA | H98: B5 | I98: Federal Tier 2 Bin 5 | J98: GCRXV01.45P1 | K98: small car | L98: 5 | M98: 27 | N98: 34 | O98: 30 | P98: 7 | Q98: No | R98: 295 | S98: 2016 Fiat 500X AWD 2.4L 4cyl | T98: 2016 FIAT 500 4cyl 2WD | U98: 1072 | V98: Fiat | W98: 32.58 | X98: 0.3003 | Y98: 0.02348 | Z98: 1645.75 | AA98: 134.226 | AB98: Conv. Gasoline
A99: FIAT 500e | B99: N/A | C99: N/A | D99: Auto-1 | E99: 2WD | F99: Electricity | G99: FA | H99: B1 | I99: Federal Tier 2 Bin 1 | J99: GCRXV00.05PR | K99: small car | L99: 10 | M99: 121 | N99: 103 | O99: 112 | P99: 10 | Q99: Elite | R99: 0 | S99: 2016 Fiat 500e 0L cyl | T99: 2016 FIAT 500e N/Acyl 2WD | U99: 1060 | V99: Fiat | W99: 24.91 | X99: 0.2365 | Y99: 0.01816 | Z99: 1475.5 | AA99: 82.027 | AB99: EV
A100: FORD C-MAX (PHEV) | B100: 2 | C100: 4 | D100: CVT | E100: 2WD | F100: Gasoline/Electricity | G100: FA | H100: B3 | I100: Federal Tier 2 Bin 3 | J100: GFMXV02.0VZP | K100: midsize car | L100: 7 | M100: 40/95 | N100: 36/81 | O100: 38/88 | P100: 10 | Q100: Yes | R100: 129 | S100: 2016 Ford C-Max (PHEV) 2L 4cyl | T100: 2016 FORD C-MAX (PHEV) 4cyl 2WD | U100: 1306 | V100: Ford | W100: 28.82 | X100: 0.3435 | Y100: 0.02102 | Z100: 1929.5 | AA100: 105.1437 | AB100: PHEV
A101: FORD C-MAX HEV | B101: 2 | C101: 4 | D101: CVT | E101: 2WD | F101: Gasoline | G101: CA | H101: B3 | I101: Federal Tier 2 Bin 3 | J101: GFMXV02.0VZN | K101: large car | L101: 7 | M101: 42 | N101: 37 | O101: 40 | P101: 9 | Q101: Yes | R101: 225 | S101: 2016 Ford C-Max HEV FWD 2L 4cyl | T101: 2016 FORD C-MAX HEV 4cyl 2WD | U101: 1310 | V101: Ford | W101: 27.19 | X101: 0.2795 | Y101: 0.021 | Z101: 1816 | AA101: 105.1437 | AB101: HEV
A102: FORD C-MAX HEV | B102: 2 | C102: 4 | D102: CVT | E102: 2WD | F102: Gasoline | G102: FA | H102: B3 | I102: Federal Tier 2 Bin 3 | J102: GFMXV02.0VZS | K102: large car | L102: 7 | M102: 42 | N102: 37 | O102: 40 | P102: 9 | Q102: Yes | R102: 225 | S102: 2016 Ford C-Max HEV FWD 2L 4cyl | T102: 2016 FORD C-MAX HEV 4cyl 2WD | U102: 1310 | V102: Ford | W102: 27.19 | X102: 0.2795 | Y102: 0.021 | Z102: 1816 | AA102: 105.1437 | AB102: HEV
A103: FORD Edge | B103: 2 | C103: 4 | D103: SemiAuto-6 | E103: 2WD | F103: Gasoline | G103: FA | H103: B5 | I103: Federal Tier 2 Bin 5 | J103: GFMXT02.02EF | K103: small SUV | L103: 5 | M103: 20 | N103: 30 | O103: 24 | P103: 5 | Q103: No | R103: 371 | S103: 2016 Ford Edge 2L 4cyl | T103: 2016 FORD Edge 4cyl 2WD | U103: 1324 | V103: Ford | W103: 25.43 | X103: 0.372 | Y103: 0.02523 | Z103: 2043 | AA103: 182.6965 | AB103: Conv. Gasoline
A104: FORD Edge | B104: 2 | C104: 4 | D104: SemiAuto-6 | E104: 2WD | F104: Gasoline | G104: FA | H104: B5 | I104: Federal Tier 2 Bin 5 | J104: GFMXT02.02JT | K104: small SUV | L104: 5 | M104: 20 | N104: 30 | O104: 24 | P104: 5 | Q104: No | R104: 371 | S104: 2016 Ford Edge 3.5L 6cyl | T104: 2016 FORD Edge 4cyl 2WD | U104: 1316 | V104: Ford | W104: 22.64 | X104: 0.4607 | Y104: 0.02484 | Z104: 2043 | AA104: 208.796 | AB104: Conv. Gasoline
A105: FORD Edge | B105: 2.7 | C105: 6 | D105: SemiAuto-6 | E105: 4WD | F105: Gasoline | G105: FA | H105: B5 | I105: Federal Tier 2 Bin 5 | J105: GFMXT02.72EP | K105: small SUV | L105: 5 | M105: 17 | N105: 24 | O105: 20 | P105: 4 | Q105: No | R105: 447 | S105: 2016 Ford Edge 3.5L 6cyl | T105: 2016 FORD Edge 6cyl 4WD | U105: 1316 | V105: Ford | W105: 22.64 | X105: 0.4607 | Y105: 0.02484 | Z105: 2043 | AA105: 208.796 | AB105: Conv. Gasoline
A106: FORD Edge | B106: 2.7 | C106: 6 | D106: SemiAuto-6 | E106: 4WD | F106: Gasoline | G106: FA | H106: B4 | I106: Federal Tier 2 Bin 4 | J106: GFMXT02.72JP | K106: small SUV | L106: 6 | M106: 17 | N106: 24 | O106: 20 | P106: 4 | Q106: No | R106: 447 | S106: 2016 Ford Edge 3.5L 6cyl | T106: 2016 FORD Edge 6cyl 4WD | U106: 1316 | V106: Ford | W106: 22.64 | X106: 0.4607 | Y106: 0.02484 | Z106: 2043 | AA106: 208.796 | AB106: Conv. Gasoline
A107: FORD Edge | B107: 3.5 | C107: 6 | D107: SemiAuto-6 | E107: 2WD | F107: Gasoline | G107: FA | H107: B5 | I107: Federal Tier 2 Bin 5 | J107: GFMXT03.52ER | K107: small SUV | L107: 5 | M107: 18 | N107: 26 | O107: 21 | P107: 5 | Q107: No | R107: 431 | S107: 2016 Ford Edge 3.5L 6cyl | T107: 2016 FORD Edge 6cyl 2WD | U107: 1316 | V107: Ford | W107: 22.64 | X107: 0.4607 | Y107: 0.02484 | Z107: 2043 | AA107: 208.796 | AB107: Conv. Gasoline
A108: FORD Escape | B108: 1.6 | C108: 4 | D108: SemiAuto-6 | E108: 2WD | F108: Gasoline | G108: FA | H108: B5 | I108: Federal Tier 2 Bin 5 | J108: GFMXT01.62E9 | K108: small SUV | L108: 5 | M108: 23 | N108: 32 | O108: 26 | P108: 6 | Q108: No | R108: 341 | S108: 2016 Ford ESCAPE FWD 2.5L 4cyl | T108: 2016 FORD Escape 4cyl 2WD | U108: 1346 | V108: Ford | W108: 21.89 | X108: 0.4047 | Y108: 0.0222 | Z108: 1759.25 | AA108: 125.2776 | AB108: Conv. Gasoline
A109: FORD Escape | B109: 2 | C109: 4 | D109: SemiAuto-6 | E109: 2WD | F109: Gasoline | G109: FA | H109: B5 | I109: Federal Tier 2 Bin 5 | J109: GFMXT02.02E3 | K109: small SUV | L109: 5 | M109: 22 | N109: 30 | O109: 25 | P109: 6 | Q109: No | R109: 362 | S109: 2016 Ford ESCAPE FWD 2.5L 4cyl | T109: 2016 FORD Escape 4cyl 2WD | U109: 1346 | V109: Ford | W109: 21.89 | X109: 0.4047 | Y109: 0.0222 | Z109: 1759.25 | AA109: 125.2776 | AB109: Conv. Gasoline
A110: FORD Escape | B110: 2.5 | C110: 4 | D110: SemiAuto-6 | E110: 2WD | F110: Gasoline | G110: FA | H110: B5 | I110: Federal Tier 2 Bin 5 | J110: GFMXT02.52ET | K110: small SUV | L110: 5 | M110: 22 | N110: 31 | O110: 25 | P110: 6 | Q110: No | R110: 354 | S110: 2016 Ford ESCAPE FWD 2.5L 4cyl | T110: 2016 FORD Escape 4cyl 2WD | U110: 1346 | V110: Ford | W110: 21.89 | X110: 0.4047 | Y110: 0.0222 | Z110: 1759.25 | AA110: 125.2776 | AB110: Conv. Gasoline
A111: FORD Expedition | B111: 3.5 | C111: 6 | D111: SemiAuto-6 | E111: 2WD | F111: Gasoline | G111: FA | H111: B5 | I111: Federal Tier 2 Bin 5 | J111: GFMXT03.54HE | K111: standard SUV | L111: 5 | M111: 16 | N111: 22 | O111: 18 | P111: 4 | Q111: No | R111: 491 | S111: 2016 Ford Expedition EL 4x4 3.5L 6cyl | T111: 2016 FORD Expedition 6cyl 2WD | U111: 1366 | V111: Ford | W111: 42.89 | X111: 0.5678 | Y111: 0.03762 | Z111: 2951 | AA111: 272.1805 | AB111: Conv. Gasoline
A112: FORD Explorer | B112: 2.3 | C112: 4 | D112: SemiAuto-6 | E112: 2WD | F112: Gasoline | G112: FA | H112: B5 | I112: Federal Tier 2 Bin 5 | J112: GFMXT02.32EX | K112: standard SUV | L112: 5 | M112: 19 | N112: 28 | O112: 22 | P112: 5 | Q112: No | R112: 408 | S112: 2016 Ford Explorer AWD 2.3L 4cyl | T112: 2016 FORD Explorer 4cyl 2WD | U112: 1372 | V112: Ford | W112: 39.14 | X112: 0.185 | Y112: 0.02947 | Z112: 2270 | AA112: 205.0675 | AB112: Conv. Gasoline
A113: FORD Explorer | B113: 3.5 | C113: 6 | D113: SemiAuto-6 | E113: 2WD | F113: Gasoline | G113: FA | H113: B5 | I113: Federal Tier 2 Bin 5 | J113: GFMXT03.73E8 | K113: standard SUV | L113: 5 | M113: 17 | N113: 24 | O113: 20 | P113: 4 | Q113: No | R113: 451 | S113: 2016 Ford Explorer Police FFV, FWD 3.5L 6cyl | T113: 2016 FORD Explorer 6cyl 2WD | U113: 1383 | V113: Ford | W113: 33.09 | X113: 0.3067 | Y113: 0.02632 | Z113: 2156.5 | AA113: 216.253 | AB113: Conv. Gasoline
A114: FORD Explorer | B114: 3.5 | C114: 6 | D114: SemiAuto-6 | E114: 4WD | F114: Gasoline | G114: FA | H114: B5 | I114: Federal Tier 2 Bin 5 | J114: GFMXV03.5VEP | K114: standard SUV | L114: 5 | M114: 16 | N114: 22 | O114: 18 | P114: 4 | Q114: No | R114: 493 | S114: 2016 FORD Explorer 3.5L 6cyl | T114: 2016 FORD Explorer 6cyl 4WD | U114: 1370 | V114: FORD | W114: 51.13 | X114: 0.3629 | Y114: 0.0307 | Z114: 2383.5 | AA114: 264.7235 | AB114: Conv. Gasoline
A115: FORD Explorer FFV | B115: 3.5 | C115: 6 | D115: SemiAuto-6 | E115: 2WD | F115: Ethanol/Gas | G115: FA | H115: B5 | I115: Federal Tier 2 Bin 5 | J115: GFMXT03.73DM | K115: standard SUV | L115: 5 | M115: 13/17 | N115: 18/24 | O115: 15/20 | P115: 4 | Q115: No | R115: 425/451 | S115: 2016 Ford Explorer Police FFV, AWD 3.5L 6cyl | T115: 2016 FORD Explorer FFV 6cyl 2WD | U115: 1379 | V115: Ford | W115: 39.03 | X115: 0.4429 | Y115: 0.02749 | Z115: 2270 | AA115: 216.253 | AB115: Conv. Gasoline
A116: FORD F150 | B116: 2.7 | C116: 6 | D116: SemiAuto-6 | E116: 2WD | F116: Gasoline | G116: FA | H116: B4 | I116: Federal Tier 2 Bin 4 | J116: GFMXT02.73DH | K116: pickup | L116: 6 | M116: 18 | N116: 24 | O116: 21 | P116: 5 | Q116: No | R116: 423 | S116: 2016 Ford F150 FFV 4X4 5L 8cyl | T116: 2016 FORD F150 6cyl 2WD | U116: 1457 | V116: Ford | W116: 44.68 | X116: 0.5649 | Y116: 0.03617 | Z116: 2497 | AA116: 287.0945 | AB116: Conv. Gasoline
A117: FORD F150 | B117: 2.7 | C117: 6 | D117: SemiAuto-6 | E117: 2WD | F117: Gasoline | G117: FA | H117: B4 | I117: Federal Tier 2 Bin 4 | J117: GFMXT02.73JJ | K117: pickup | L117: 6 | M117: 18 | N117: 24 | O117: 21 | P117: 5 | Q117: No | R117: 423 | S117: 2016 Ford F150 FFV 4X4 5L 8cyl | T117: 2016 FORD F150 6cyl 2WD | U117: 1457 | V117: Ford | W117: 44.68 | X117: 0.5649 | Y117: 0.03617 | Z117: 2497 | AA117: 287.0945 | AB117: Conv. Gasoline
A118: FORD F150 | B118: 3.5 | C118: 6 | D118: SemiAuto-6 | E118: 2WD | F118: Gasoline | G118: FA | H118: B4 | I118: Federal Tier 2 Bin 4 | J118: GFMXT03.54JG | K118: pickup | L118: 6 | M118: 16 | N118: 22 | O118: 18 | P118: 4 | Q118: No | R118: 493 | S118: 2016 Ford F150 FFV 4X4 5L 8cyl | T118: 2016 FORD F150 6cyl 2WD | U118: 1457 | V118: Ford | W118: 44.68 | X118: 0.5649 | Y118: 0.03617 | Z118: 2497 | AA118: 287.0945 | AB118: Conv. Gasoline
A119: FORD F150 FFV | B119: 3.5 | C119: 6 | D119: Auto-6 | E119: 2WD | F119: Ethanol/Gas | G119: CA | H119: B4 | I119: Federal Tier 2 Bin 4 | J119: GFMXT03.53DC | K119: pickup | L119: 6 | M119: 13/18 | N119: 18/25 | O119: 15/20 | P119: 4 | Q119: No | R119: 419/436 | S119: 2016 Ford F150 FFV 4X4 5L 8cyl | T119: 2016 FORD F150 FFV 6cyl 2WD | U119: 1457 | V119: Ford | W119: 44.68 | X119: 0.5649 | Y119: 0.03617 | Z119: 2497 | AA119: 287.0945 | AB119: Conv. Gasoline
A120: FORD F150 FFV | B120: 5 | C120: 8 | D120: SemiAuto-6 | E120: 2WD | F120: Ethanol/Gas | G120: CA | H120: B4 | I120: Federal Tier 2 Bin 4 | J120: GFMXT05.03DK | K120: pickup | L120: 6 | M120: 11/14 | N120: 16/20 | O120: 13/16 | P120: 3 | Q120: No | R120: 468/555 | S120: 2016 Ford F150 FFV 4X4 5L 8cyl | T120: 2016 FORD F150 FFV 8cyl 2WD | U120: 1457 | V120: Ford | W120: 44.68 | X120: 0.5649 | Y120: 0.03617 | Z120: 2497 | AA120: 287.0945 | AB120: Conv. Gasoline
A121: FORD Fiesta | B121: 1.6 | C121: 4 | D121: AMS-6 | E121: 2WD | F121: Gasoline | G121: CA | H121: B4 | I121: Federal Tier 2 Bin 4 | J121: GFMXV01.6VDC | K121: small car | L121: 6 | M121: 27 | N121: 37 | O121: 31 | P121: 7 | Q121: Yes | R121: 289 | S121: 2016 Ford Fiesta ST 1.6L 4cyl | T121: 2016 FORD Fiesta 4cyl 2WD | U121: 1476 | V121: Ford | W121: 33.7 | X121: 0.1243 | Y121: 0.01968 | Z121: 1362 | AA121: 130.4975 | AB121: Conv. Gasoline
A122: FORD Fiesta SFE | B122: 1 | C122: 3 | D122: Man-5 | E122: 2WD | F122: Gasoline | G122: CA | H122: B4 | I122: Federal Tier 2 Bin 4 | J122: GFMXV01.0VD1 | K122: small car | L122: 6 | M122: 31 | N122: 43 | O122: 36 | P122: 8 | Q122: Yes | R122: 247 | S122: 2016 Ford FIESTA SFE 1L 3cyl | T122: 2016 FORD Fiesta SFE 3cyl 2WD | U122: 1473 | V122: Ford | W122: 21.61 | X122: 0.2069 | Y122: 0.01785 | Z122: 1305.25 | AA122: 89.484 | AB122: Conv. Gasoline
A123: FORD Fiesta ST | B123: 1.6 | C123: 4 | D123: Man-6 | E123: 2WD | F123: Gasoline | G123: CA | H123: B4 | I123: Federal Tier 2 Bin 4 | J123: GFMXV01.6VDD | K123: small car | L123: 6 | M123: 26 | N123: 33 | O123: 29 | P123: 7 | Q123: Yes | R123: 307 | S123: 2016 Ford Fiesta ST 1.6L 4cyl | T123: 2016 FORD Fiesta ST 4cyl 2WD | U123: 1476 | V123: Ford | W123: 33.7 | X123: 0.1243 | Y123: 0.01968 | Z123: 1362 | AA123: 130.4975 | AB123: Conv. Gasoline
A124: FORD Flex | B124: 3.5 | C124: 6 | D124: SemiAuto-6 | E124: 2WD | F124: Gasoline | G124: FA | H124: B5 | I124: Federal Tier 2 Bin 5 | J124: GFMXV03.7VE8 | K124: standard SUV | L124: 5 | M124: 16 | N124: 23 | O124: 19 | P124: 4 | Q124: No | R124: 468 | S124: 2016 FORD FLEX 3.5L 6cyl | T124: 2016 FORD Flex 6cyl 2WD | U124: 1478 | V124: Ford | W124: 38.52 | X124: 0.6687 | Y124: 0.02547 | Z124: 2383.5 | AA124: 264.7235 | AB124: Conv. Gasoline
A125: FORD Focus | B125: 1 | C125: 3 | D125: Man-6 | E125: 2WD | F125: Gasoline | G125: CA | H125: B4 | I125: Federal Tier 2 Bin 4 | J125: GFMXV01.0VD4 | K125: small car | L125: 6 | M125: 30 | N125: 42 | O125: 35 | P125: 8 | Q125: Yes | R125: 255 | S125: 2016 Ford Focus 1L 3cyl | T125: 2016 FORD Focus 3cyl 2WD | U125: 1514 | V125: Ford | W125: 17.51 | X125: 0.1828 | Y125: 0.0181 | Z125: 1475.5 | AA125: 91.7211 | AB125: Conv. Gasoline
... 156 more rows

Sheet _EPA_2017_NotReadyYet (hidden)
A1: Model Year | B1: Vehicle Manufacturer Name | C1: Veh Mfr Code | D1: ImportName | E1: Make | F1: Represented Test Veh Model | G1: Test Vehicle ID | H1: Test Veh Configuration # | I1: Test Veh Displacement (L) | J1: Actual Tested Testgroup | K1: Vehicle Type | L1: Rated Horsepower | M1: # of Cylinders and Rotors | N1: Engine Code | O1: Tested Transmission Type Code | P1: Tested Transmission Type | Q1: # of Gears | R1: Transmission Lockup? | S1: Drive System Code | T1: Drive System Description | U1: Transmission Overdrive Code | V1: Transmission Overdrive Desc | W1: Equivalent Test Weight (lbs.) | X1: Axle Ratio | Y1: N/V Ratio | Z1: Shift Indicator Light Use Cd | AA1: Shift Indicator Light Use Desc | AB1: Test Number | AC1: Test Originator | AD1: Analytically Derived FE? | AE1: ADFE Test Number | AF1: ADFE Total Road Load HP | AG1: ADFE Equiv. Test Weight (lbs.) | AH1: ADFE N/V Ratio | AI1: Test Procedure Cd | AJ1: Test Procedure Description | AK1: Test Fuel Type Cd | AL1: Test Fuel Type Description | AM1: Test Category | AN1: THC (g/mi) | AO1: CO (g/mi) | AP1: CO2 (g/mi) | AQ1: NOx (g/mi) | AR1: PM (g/mi) | AS1: CH4 (g/mi) | AT1: N2O (g/mi) | AU1: RND_ADJ_FE | AV1: FE_UNIT | AW1: FE Bag 1 | AX1: FE Bag 2 | AY1: FE Bag 3 | AZ1: FE Bag 4 | BA1: DT-Inertia Work Ratio Rating | BB1: DT-Absolute Speed Change Ratg | BC1: DT-Energy Economy Rating | BD1: Dyno Target A | BE1: Dyno Target B | BF1: Dyno Target C | BG1: Aftertreatment Device Cd | BH1: Aftertreatment Device Desc | BI1: Police - Emergency Vehicle? | BJ1: Averaging Method Cd | BK1: Averging Method Desc | BL1: Powertrain type
A2: 2017 | B2: aston martin | C2: ASX | D2: 2017 Aston Martin Rapide S | E2: Aston Martin | F2: Rapide S | G2: 410TT4202 | H2: 0 | I2: 6 | J2: FASXV06.0VHB | K2: Car | L2: 552 | M2: 12 | N2: AM29/ | O2: SA | P2: Semi-Automatic | Q2: 8 | R2: Y | S2: R | T2: 2-Wheel Drive, Rear | U2: 2 | V2: Top gear ratio < 1 | W2: 4750 | X2: 2.73 | Y2: 22.4 | Z2: 1 | AA2: Not eqipped | AB2: FASX10032202 | AC2: MFR | AD2: No | AI2: 21 | AJ2: Federal fuel 2-day exhaust (w/can load) | AK2: 61 | AL2: Tier 2 Cert Gasoline | AM2: FTP | AN2: 0.0269 | AO2: 0.5 | AP2: 511.93 | AQ2: 0.009 | AS2: 0.0066 | AU2: 17.3 | AV2: MPG | AW2: 17.438 | AX2: 15.956 | AY2: 20.413 | BA2: 99.99 | BB2: 99.99 | BC2: 99.99 | BD2: 32.66 | BE2: 0.6085 | BF2: 0.0198 | BG2: TWC | BH2: Three-way catalyst | BI2: N | BJ2: N | BK2: No averaging
A3: 2017 | B3: aston martin | C3: ASX | D3: 2017 Aston Martin Rapide S | E3: Aston Martin | F3: Rapide S | G3: 410TT4202 | H3: 0 | I3: 6 | J3: FASXV06.0VHB | K3: Car | L3: 552 | M3: 12 | N3: AM29/ | O3: SA | P3: Semi-Automatic | Q3: 8 | R3: Y | S3: R | T3: 2-Wheel Drive, Rear | U3: 2 | V3: Top gear ratio < 1 | W3: 4750 | X3: 2.73 | Y3: 22.4 | Z3: 1 | AA3: Not eqipped | AB3: FASX10032203 | AC3: MFR | AD3: No | AI3: 3 | AJ3: HWFE | AK3: 61 | AL3: Tier 2 Cert Gasoline | AM3: HWY | AN3: 0.0008 | AO3: 0.06 | AP3: 296.63 | AQ3: 0.001 | AU3: 29.9 | AV3: MPG | BA3: 99.99 | BB3: 99.99 | BC3: 99.99 | BD3: 32.66 | BE3: 0.6085 | BF3: 0.0198 | BG3: TWC | BH3: Three-way catalyst | BI3: N | BJ3: N | BK3: No averaging
A4: 2017 | B4: aston martin | C4: ASX | D4: 2017 Aston Martin V12 Vantage S | E4: Aston Martin | F4: V12 Vantage S | G4: 288TT2087 | H4: 0 | I4: 6 | J4: FASXV06.0VHB | K4: Car | L4: 565 | M4: 12 | N4: AM28/ | O4: SA | P4: Semi-Automatic | Q4: 7 | R4: Y | S4: R | T4: 2-Wheel Drive, Rear | U4: 2 | V4: Top gear ratio < 1 | W4: 4250 | X4: 3.73 | Y4: 33.6 | Z4: 2 | AA4: Equipped, not shifted by SIL | AB4: FASX10028338 | AC4: MFR | AD4: No | AI4: 21 | AJ4: Federal fuel 2-day exhaust (w/can load) | AK4: 61 | AL4: Tier 2 Cert Gasoline | AM4: FTP | AN4: 0.0248 | AO4: 0.61 | AP4: 603.49 | AQ4: 0.011 | AS4: 0.0045 | AT4: 0.0024 | AU4: 14.8 | AV4: MPG | AW4: 14.321 | AX4: 13.692 | AY4: 17.908 | BA4: 99.99 | BB4: 99.99 | BC4: 99.99 | BD4: 43.24 | BE4: 0.6321 | BF4: 0.0181 | BG4: TWC | BH4: Three-way catalyst | BI4: N | BJ4: N | BK4: No averaging
A5: 2017 | B5: aston martin | C5: ASX | D5: 2017 Aston Martin V12 Vantage S | E5: Aston Martin | F5: V12 Vantage S | G5: 288TT2087 | H5: 0 | I5: 6 | J5: FASXV06.0VHB | K5: Car | L5: 565 | M5: 12 | N5: AM28/ | O5: SA | P5: Semi-Automatic | Q5: 7 | R5: Y | S5: R | T5: 2-Wheel Drive, Rear | U5: 2 | V5: Top gear ratio < 1 | W5: 4250 | X5: 3.73 | Y5: 33.6 | Z5: 2 | AA5: Equipped, not shifted by SIL | AB5: FASX10028339 | AC5: MFR | AD5: No | AI5: 3 | AJ5: HWFE | AK5: 61 | AL5: Tier 2 Cert Gasoline | AM5: HWY | AN5: 0.0005 | AO5: 0.05 | AP5: 353.09 | AQ5: 0.002 | AU5: 25.3 | AV5: MPG | BA5: 99.99 | BB5: 99.99 | BC5: 99.99 | BD5: 43.24 | BE5: 0.6321 | BF5: 0.0181 | BG5: TWC | BH5: Three-way catalyst | BI5: N | BJ5: N | BK5: No averaging
A6: 2017 | B6: aston martin | C6: ASX | D6: 2017 Aston Martin V12 Vantage S | E6: Aston Martin | F6: V12 Vantage S | G6: 298VP2156 | H6: 0 | I6: 6 | J6: HASXV06.0VHB | K6: Car | L6: 568 | M6: 12 | N6: AM28/ | O6: M | P6: Manual | Q6: 7 | R6: N | S6: R | T6: 2-Wheel Drive, Rear | U6: 2 | V6: Top gear ratio < 1 | W6: 4250 | X6: 3.73 | Y6: 33.6 | Z6: 2 | AA6: Equipped, not shifted by SIL | AB6: HASX10040550 | AC6: MFR | AD6: No | AI6: 21 | AJ6: Federal fuel 2-day exhaust (w/can load) | AK6: 61 | AL6: Tier 2 Cert Gasoline | AM6: FTP | AN6: 0.0413 | AO6: 0.68 | AP6: 720.44 | AQ6: 0.014 | AU6: 12.3 | AV6: MPG | AW6: 12.117 | AX6: 11.222 | AY6: 15.104 | BA6: -0.68 | BB6: -0.31 | BC6: 0.23 | BD6: 43.24 | BE6: 0.6321 | BF6: 0.0181 | BG6: TWC | BH6: Three-way catalyst | BI6: N | BJ6: N | BK6: No averaging
A7: 2017 | B7: aston martin | C7: ASX | D7: 2017 Aston Martin V12 Vantage S | E7: Aston Martin | F7: V12 Vantage S | G7: 298VP2156 | H7: 0 | I7: 6 | J7: HASXV06.0VHB | K7: Car | L7: 568 | M7: 12 | N7: AM28/ | O7: M | P7: Manual | Q7: 7 | R7: N | S7: R | T7: 2-Wheel Drive, Rear | U7: 2 | V7: Top gear ratio < 1 | W7: 4250 | X7: 3.73 | Y7: 33.6 | Z7: 2 | AA7: Equipped, not shifted by SIL | AB7: HASX10040551 | AC7: MFR | AD7: No | AI7: 3 | AJ7: HWFE | AK7: 61 | AL7: Tier 2 Cert Gasoline | AM7: HWY | AN7: 0 | AO7: 0.16 | AP7: 395.82 | AQ7: 0.003 | AU7: 22.4 | AV7: MPG | BA7: 1.58 | BB7: 1.9 | BC7: 0.46 | BD7: 43.24 | BE7: 0.6321 | BF7: 0.0181 | BG7: TWC | BH7: Three-way catalyst | BI7: N | BJ7: N | BK7: No averaging
A8: 2017 | B8: aston martin | C8: ASX | D8: 2017 Aston Martin Vanquish | E8: Aston Martin | F8: Vanquish | G8: 314TT3175 | H8: 0 | I8: 6 | J8: FASXV06.0VHB | K8: Car | L8: 568 | M8: 12 | N8: AM29/ | O8: SA | P8: Semi-Automatic | Q8: 8 | R8: Y | S8: R | T8: 2-Wheel Drive, Rear | U8: 2 | V8: Top gear ratio < 1 | W8: 4500 | X8: 2.73 | Y8: 23.2 | Z8: 1 | AA8: Not eqipped | AB8: FASX10032317 | AC8: MFR | AD8: No | AI8: 21 | AJ8: Federal fuel 2-day exhaust (w/can load) | AK8: 61 | AL8: Tier 2 Cert Gasoline | AM8: FTP | AN8: 0.0293 | AO8: 0.335 | AP8: 536.18 | AQ8: 0.0141 | AS8: 0.0048 | AU8: 16.5 | AV8: MPG | AW8: 16.778 | AX8: 15.195 | AY8: 19.519 | BA8: 99.99 | BB8: 99.99 | BC8: 99.99 | BD8: 43.17 | BE8: 0.7502 | BF8: 0.0163 | BG8: TWC | BH8: Three-way catalyst | BI8: N | BJ8: N | BK8: No averaging
A9: 2017 | B9: aston martin | C9: ASX | D9: 2017 Aston Martin Vanquish | E9: Aston Martin | F9: Vanquish | G9: 314TT3175 | H9: 0 | I9: 6 | J9: FASXV06.0VHB | K9: Car | L9: 568 | M9: 12 | N9: AM29/ | O9: SA | P9: Semi-Automatic | Q9: 8 | R9: Y | S9: R | T9: 2-Wheel Drive, Rear | U9: 2 | V9: Top gear ratio < 1 | W9: 4500 | X9: 2.73 | Y9: 23.2 | Z9: 1 | AA9: Not eqipped | AB9: FASX10032318 | AC9: MFR | AD9: No | AI9: 3 | AJ9: HWFE | AK9: 61 | AL9: Tier 2 Cert Gasoline | AM9: HWY | AN9: 0.0005 | AO9: 0.03758 | AP9: 309.22 | AQ9: 0.00179 | AU9: 28.7 | AV9: MPG | BA9: 99.99 | BB9: 99.99 | BC9: 99.99 | BD9: 43.17 | BE9: 0.7502 | BF9: 0.0163 | BG9: TWC | BH9: Three-way catalyst | BI9: N | BJ9: N | BK9: No averaging
A10: 2017 | B10: Audi | C10: ADX | D10: 2017 AUDI A4 | E10: AUDI | F10: A4 | G10: D3UB-BMQ | H10: 1 | I10: 1.984 | J10: DADXV02.03UB | K10: Car | L10: 211 | M10: 4 | N10: CAEB | O10: M | P10: Manual | Q10: 6 | R10: N | S10: F | T10: 2-Wheel Drive, Front | U10: 2 | V10: Top gear ratio < 1 | W10: 3875 | X10: 3.69 | Y10: 31.2 | Z10: 2 | AA10: Equipped, not shifted by SIL | AB10: DADX10020120 | AC10: MFR | AD10: No | AI10: 95 | AJ10: SC03 | AK10: 61 | AL10: Tier 2 Cert Gasoline | AM10: SC03 | AN10: 0.01 | AO10: 0.84 | AP10: 368 | AQ10: 0.016 | AU10: 24.1 | AV10: MPG | BD10: 36.194 | BE10: 0.32916 | BF10: 0.017635 | BG10: TWC | BH10: Three-way catalyst | BI10: N | BJ10: N | BK10: No averaging
A11: 2017 | B11: Audi | C11: ADX | D11: 2017 AUDI A4 | E11: AUDI | F11: A4 | G11: D3UB-BMQ | H11: 1 | I11: 1.984 | J11: DADXV02.03UB | K11: Car | L11: 211 | M11: 4 | N11: CAEB | O11: M | P11: Manual | Q11: 6 | R11: N | S11: F | T11: 2-Wheel Drive, Front | U11: 2 | V11: Top gear ratio < 1 | W11: 3875 | X11: 3.69 | Y11: 31.2 | Z11: 2 | AA11: Equipped, not shifted by SIL | AB11: DADX10020121 | AC11: MFR | AD11: No | AI11: 11 | AJ11: Cold CO | AK11: 27 | AL11: Cold CO Premium (Tier 2) | AM11: FTP | AN11: 0.1815 | AO11: 3.02 | AP11: 363 | AQ11: 0.034 | AS11: 0.0197 | AU11: 24.1 | AV11: MPG | AW11: 22.2 | AX11: 23.2 | AY11: 28.2 | BD11: 39.814 | BE11: 0.36208 | BF11: 0.019398 | BG11: TWC | BH11: Three-way catalyst | BI11: N | BJ11: N | BK11: No averaging
A12: 2017 | B12: Audi | C12: ADX | D12: 2017 AUDI A4 | E12: AUDI | F12: A4 | G12: D3UB-BMQ | H12: 1 | I12: 1.984 | J12: DADXV02.03UB | K12: Car | L12: 211 | M12: 4 | N12: CAEB | O12: M | P12: Manual | Q12: 6 | R12: N | S12: F | T12: 2-Wheel Drive, Front | U12: 2 | V12: Top gear ratio < 1 | W12: 3875 | X12: 3.69 | Y12: 31.2 | Z12: 2 | AA12: Equipped, not shifted by SIL | AB12: DADX10020124 | AC12: MFR | AD12: No | AI12: 90 | AJ12: US06 | AK12: 61 | AL12: Tier 2 Cert Gasoline | AM12: US06 | AN12: 0.0216 | AO12: 0.78 | AP12: 301 | AQ12: 0.027 | AS12: 0.007 | AU12: 29.4 | AV12: MPG | AW12: 18.9 | AX12: 34.9 | BD12: 36.194 | BE12: 0.32916 | BF12: 0.017635 | BG12: TWC | BH12: Three-way catalyst | BI12: N | BJ12: N | BK12: No averaging
A13: 2017 | B13: Audi | C13: ADX | D13: 2017 AUDI A4 | E13: AUDI | F13: A4 | G13: D3UB-BMQ | H13: 1 | I13: 1.984 | J13: DADXV02.03UB | K13: Car | L13: 211 | M13: 4 | N13: CAEB | O13: M | P13: Manual | Q13: 6 | R13: N | S13: F | T13: 2-Wheel Drive, Front | U13: 2 | V13: Top gear ratio < 1 | W13: 3875 | X13: 3.69 | Y13: 31.2 | Z13: 2 | AA13: Equipped, not shifted by SIL | AB13: DADX10020477 | AC13: MFR | AD13: No | AI13: 21 | AJ13: Federal fuel 2-day exhaust (w/can load) | AK13: 61 | AL13: Tier 2 Cert Gasoline | AM13: FTP | AN13: 0.0233 | AO13: 0.73 | AP13: 314 | AQ13: 0.018 | AS13: 0.0048 | AT13: 0.01 | AU13: 28.2 | AV13: MPG | AW13: 26.5 | AX13: 27.4 | AY13: 31.4 | BD13: 36.194 | BE13: 0.32916 | BF13: 0.017635 | BG13: TWC | BH13: Three-way catalyst | BI13: N | BJ13: N | BK13: No averaging
A14: 2017 | B14: Audi | C14: ADX | D14: 2017 AUDI A4 | E14: AUDI | F14: A4 | G14: D3UB-BMQ | H14: 1 | I14: 1.984 | J14: DADXV02.03UB | K14: Car | L14: 211 | M14: 4 | N14: CAEB | O14: M | P14: Manual | Q14: 6 | R14: N | S14: F | T14: 2-Wheel Drive, Front | U14: 2 | V14: Top gear ratio < 1 | W14: 3875 | X14: 3.69 | Y14: 31.2 | Z14: 2 | AA14: Equipped, not shifted by SIL | AB14: DADX10020478 | AC14: MFR | AD14: No | AI14: 3 | AJ14: HWFE | AK14: 61 | AL14: Tier 2 Cert Gasoline | AM14: HWY | AN14: 0.0091 | AO14: 0.13 | AP14: 200 | AQ14: 0.004 | AS14: 0.0041 | AT14: 0.01 | AU14: 44.4 | AV14: MPG | BD14: 36.194 | BE14: 0.32916 | BF14: 0.017635 | BG14: TWC | BH14: Three-way catalyst | BI14: N | BJ14: N | BK14: No averaging
A15: 2017 | B15: Audi | C15: ADX | D15: 2017 AUDI Q5 | E15: AUDI | F15: Q5 | G15: D3UF-Q5A | H15: 0 | I15: 2.995 | J15: DADXJ03.03UF | K15: Both | L15: 272 | M15: 6 | N15: CTUC | O15: A | P15: Automatic | Q15: 8 | R15: Y | S15: F | T15: 2-Wheel Drive, Front | U15: 2 | V15: Top gear ratio < 1 | W15: 4750 | X15: 3.2 | Y15: 25.7 | Z15: 1 | AA15: Not eqipped | AB15: DADX10022555 | AC15: MFR | AD15: No | AI15: 90 | AJ15: US06 | AK15: 61 | AL15: Tier 2 Cert Gasoline | AM15: US06 | AN15: 0.0368 | AO15: 1.15 | AP15: 387 | AQ15: 0.016 | AS15: 0.0068 | AU15: 22.9 | AV15: MPG | AW15: 14.5 | AX15: 27.5 | BD15: 50.582 | BE15: 0.18448 | BF15: 0.023222 | BG15: TWC | BH15: Three-way catalyst | BI15: N | BJ15: N | BK15: No averaging
A16: 2017 | B16: Audi | C16: ADX | D16: 2017 AUDI Q5 | E16: AUDI | F16: Q5 | G16: D3UF-Q5A | H16: 0 | I16: 2.995 | J16: DADXJ03.03UF | K16: Both | L16: 272 | M16: 6 | N16: CTUC | O16: A | P16: Automatic | Q16: 8 | R16: Y | S16: F | T16: 2-Wheel Drive, Front | U16: 2 | V16: Top gear ratio < 1 | W16: 4750 | X16: 3.2 | Y16: 25.7 | Z16: 1 | AA16: Not eqipped | AB16: DADX10022712 | AC16: MFR | AD16: No | AI16: 21 | AJ16: Federal fuel 2-day exhaust (w/can load) | AK16: 61 | AL16: Tier 2 Cert Gasoline | AM16: FTP | AN16: 0.0227 | AO16: 0.55 | AP16: 384 | AQ16: 0.022 | AS16: 0.0045 | AT16: 0.01 | AU16: 23.2 | AV16: MPG | AW16: 21.3 | AX16: 22.9 | AY16: 25.3 | BD16: 50.582 | BE16: 0.18448 | BF16: 0.023222 | BG16: TWC | BH16: Three-way catalyst | BI16: N | BJ16: N | BK16: No averaging
A17: 2017 | B17: Audi | C17: ADX | D17: 2017 AUDI Q5 | E17: AUDI | F17: Q5 | G17: D3UF-Q5A | H17: 1 | I17: 2.995 | J17: DADXJ03.03UF | K17: Both | L17: 272 | M17: 6 | N17: CTUC | O17: A | P17: Automatic | Q17: 8 | R17: Y | S17: F | T17: 2-Wheel Drive, Front | U17: 2 | V17: Top gear ratio < 1 | W17: 4750 | X17: 3.2 | Y17: 25.7 | Z17: 1 | AA17: Not eqipped | AB17: DADX10022562 | AC17: MFR | AD17: No | AI17: 11 | AJ17: Cold CO | AK17: 27 | AL17: Cold CO Premium (Tier 2) | AM17: FTP | AN17: 0.329 | AO17: 1.52 | AP17: 475 | AQ17: 0.029 | AS17: 0.0271 | AU17: 18.6 | AV17: MPG | AW17: 15 | AX17: 18.6 | AY17: 22.5 | BD17: 55.64 | BE17: 0.20292 | BF17: 0.025544 | BG17: TWC | BH17: Three-way catalyst | BI17: N | BJ17: N | BK17: No averaging
A18: 2017 | B18: Audi | C18: ADX | D18: 2017 AUDI Q5 | E18: AUDI | F18: Q5 | G18: D3UF-Q5A | H18: 1 | I18: 2.995 | J18: DADXJ03.03UF | K18: Both | L18: 272 | M18: 6 | N18: CTUC | O18: A | P18: Automatic | Q18: 8 | R18: Y | S18: F | T18: 2-Wheel Drive, Front | U18: 2 | V18: Top gear ratio < 1 | W18: 4750 | X18: 3.2 | Y18: 25.7 | Z18: 1 | AA18: Not eqipped | AB18: DADX10022565 | AC18: MFR | AD18: No | AI18: 90 | AJ18: US06 | AK18: 61 | AL18: Tier 2 Cert Gasoline | AM18: US06 | AN18: 0.0399 | AO18: 1.36 | AP18: 388 | AQ18: 0.017 | AS18: 0.0078 | AU18: 22.9 | AV18: MPG | AW18: 14.1 | AX18: 27.9 | BD18: 50.582 | BE18: 0.18448 | BF18: 0.023222 | BG18: TWC | BH18: Three-way catalyst | BI18: N | BJ18: N | BK18: No averaging
A19: 2017 | B19: Audi | C19: ADX | D19: 2017 AUDI Q5 | E19: AUDI | F19: Q5 | G19: D3UF-Q5A | H19: 1 | I19: 2.995 | J19: DADXJ03.03UF | K19: Both | L19: 272 | M19: 6 | N19: CTUC | O19: A | P19: Automatic | Q19: 8 | R19: Y | S19: F | T19: 2-Wheel Drive, Front | U19: 2 | V19: Top gear ratio < 1 | W19: 4750 | X19: 3.2 | Y19: 25.7 | Z19: 1 | AA19: Not eqipped | AB19: DADX10022566 | AC19: MFR | AD19: No | AI19: 95 | AJ19: SC03 | AK19: 61 | AL19: Tier 2 Cert Gasoline | AM19: SC03 | AN19: 0.0159 | AO19: 0.3 | AP19: 464 | AQ19: 0.022 | AS19: 0.0018 | AU19: 19.2 | AV19: MPG | BD19: 50.582 | BE19: 0.18448 | BF19: 0.023222 | BG19: TWC | BH19: Three-way catalyst | BI19: N | BJ19: N | BK19: No averaging
A20: 2017 | B20: Audi | C20: ADX | D20: 2017 AUDI Q5 | E20: AUDI | F20: Q5 | G20: D3UF-Q5A | H20: 1 | I20: 2.995 | J20: DADXJ03.03UF | K20: Both | L20: 272 | M20: 6 | N20: CTUC | O20: A | P20: Automatic | Q20: 8 | R20: Y | S20: F | T20: 2-Wheel Drive, Front | U20: 2 | V20: Top gear ratio < 1 | W20: 4750 | X20: 3.2 | Y20: 25.7 | Z20: 1 | AA20: Not eqipped | AB20: DADX10022713 | AC20: MFR | AD20: No | AI20: 21 | AJ20: Federal fuel 2-day exhaust (w/can load) | AK20: 61 | AL20: Tier 2 Cert Gasoline | AM20: FTP | AN20: 0.0255 | AO20: 0.67 | AP20: 396 | AQ20: 0.019 | AS20: 0.0051 | AT20: 0.01 | AU20: 22.5 | AV20: MPG | AW20: 21.2 | AX20: 22.1 | AY20: 24.2 | BD20: 50.582 | BE20: 0.18448 | BF20: 0.023222 | BG20: TWC | BH20: Three-way catalyst | BI20: N | BJ20: N | BK20: No averaging
A21: 2017 | B21: Audi | C21: ADX | D21: 2017 AUDI Q5 | E21: AUDI | F21: Q5 | G21: D3UF-Q5A | H21: 1 | I21: 2.995 | J21: DADXJ03.03UF | K21: Both | L21: 272 | M21: 6 | N21: CTUC | O21: A | P21: Automatic | Q21: 8 | R21: Y | S21: F | T21: 2-Wheel Drive, Front | U21: 2 | V21: Top gear ratio < 1 | W21: 4750 | X21: 3.2 | Y21: 25.7 | Z21: 1 | AA21: Not eqipped | AB21: DADX10022714 | AC21: MFR | AD21: No | AI21: 3 | AJ21: HWFE | AK21: 61 | AL21: Tier 2 Cert Gasoline | AM21: HWY | AN21: 0.0272 | AO21: 0.3 | AP21: 251 | AQ21: 0.007 | AS21: 0.0079 | AT21: 0.01 | AU21: 35.5 | AV21: MPG | BD21: 50.582 | BE21: 0.18448 | BF21: 0.023222 | BG21: TWC | BH21: Three-way catalyst | BI21: N | BJ21: N | BK21: No averaging
A22: 2017 | B22: Audi | C22: ADX | D22: 2017 AUDI Q5 | E22: AUDI | F22: Q5 | G22: DFUB-Q5A | H22: 0 | I22: 1.984 | J22: DADXT02.04UB | K22: Truck | L22: 211 | M22: 4 | N22: CPMA | O22: SA | P22: Semi-Automatic | Q22: 8 | R22: Y | S22: A | T22: All Wheel Drive | U22: 2 | V22: Top gear ratio < 1 | W22: 4500 | X22: 3.76 | Y22: 30.3 | Z22: 1 | AA22: Not eqipped | AB22: DADX10021373 | AC22: MFR | AD22: No | AI22: 21 | AJ22: Federal fuel 2-day exhaust (w/can load) | AK22: 61 | AL22: Tier 2 Cert Gasoline | AM22: FTP | AN22: 0.0254 | AO22: 0.46 | AP22: 358 | AQ22: 0.026 | AR22: 0.003 | AS22: 0.0036 | AT22: 0.01 | AU22: 24.8 | AV22: MPG | AW22: 23.8 | AX22: 24.5 | AY22: 26.3 | BD22: 35.969 | BE22: 0.49555 | BF22: 0.020079 | BG22: TWC | BH22: Three-way catalyst | BI22: N | BJ22: N | BK22: No averaging
A23: 2017 | B23: Audi | C23: ADX | D23: 2017 AUDI Q5 | E23: AUDI | F23: Q5 | G23: DFUB-Q5A | H23: 0 | I23: 1.984 | J23: DADXT02.04UB | K23: Truck | L23: 211 | M23: 4 | N23: CPMA | O23: SA | P23: Semi-Automatic | Q23: 8 | R23: Y | S23: A | T23: All Wheel Drive | U23: 2 | V23: Top gear ratio < 1 | W23: 4500 | X23: 3.76 | Y23: 30.3 | Z23: 1 | AA23: Not eqipped | AB23: DADX10021451 | AC23: MFR | AD23: No | AI23: 3 | AJ23: HWFE | AK23: 61 | AL23: Tier 2 Cert Gasoline | AM23: HWY | AN23: 0.0073 | AO23: 0.11 | AP23: 230 | AQ23: 0.006 | AS23: 0.003 | AT23: 0.01 | AU23: 38.6 | AV23: MPG | BD23: 35.969 | BE23: 0.49555 | BF23: 0.020079 | BG23: TWC | BH23: Three-way catalyst | BI23: N | BJ23: N | BK23: No averaging
A24: 2017 | B24: Audi | C24: ADX | D24: 2017 AUDI Q5 | E24: AUDI | F24: Q5 | G24: DFUB-Q5A | H24: 1 | I24: 1.984 | J24: DADXJ02.0FUB | K24: Both | L24: 211 | M24: 4 | N24: CPMA | O24: SA | P24: Semi-Automatic | Q24: 8 | R24: Y | S24: A | T24: All Wheel Drive | U24: 2 | V24: Top gear ratio < 1 | W24: 4500 | X24: 3.76 | Y24: 30.3 | Z24: 1 | AA24: Not eqipped | AB24: DADX10022545 | AC24: MFR | AD24: No | AI24: 3 | AJ24: HWFE | AK24: 38 | AL24: E85 (85% Ethanol 15% EPA Unleaded Gasoline) | AM24: HWY | AN24: 0.0028 | AO24: 0.13 | AP24: 229 | AQ24: 0.0034 | AS24: 0.003 | AT24: 0.01 | AU24: 27.1 | AV24: MPG | BD24: 35.969 | BE24: 0.49555 | BF24: 0.020079 | BG24: TWC | BH24: Three-way catalyst | BI24: N | BJ24: N | BK24: No averaging
A25: 2017 | B25: Audi | C25: ADX | D25: 2017 AUDI Q5 | E25: AUDI | F25: Q5 | G25: DFUB-Q5A | H25: 1 | I25: 1.984 | J25: DADXJ02.0FUB | K25: Both | L25: 211 | M25: 4 | N25: CPMA | O25: SA | P25: Semi-Automatic | Q25: 8 | R25: Y | S25: A | T25: All Wheel Drive | U25: 2 | V25: Top gear ratio < 1 | W25: 4500 | X25: 3.76 | Y25: 30.3 | Z25: 1 | AA25: Not eqipped | AB25: DADX10022548 | AC25: MFR | AD25: No | AI25: 21 | AJ25: Federal fuel 2-day exhaust (w/can load) | AK25: 38 | AL25: E85 (85% Ethanol 15% EPA Unleaded Gasoline) | AM25: FTP | AN25: 0.0139 | AO25: 0.163 | AP25: 357 | AQ25: 0.0279 | AR25: 0 | AS25: 0.0061 | AT25: 0.01 | AU25: 17.4 | AV25: MPG | AW25: 16.3 | AX25: 16.8 | AY25: 19.6 | BD25: 35.969 | BE25: 0.49555 | BF25: 0.020079 | BG25: TWC | BH25: Three-way catalyst | BI25: N | BJ25: N | BK25: No averaging
A26: 2017 | B26: Audi | C26: ADX | D26: 2017 AUDI RS7 | E26: AUDI | F26: RS7 | G26: E3UJ-RSQ | H26: 0 | I26: 3.993 | J26: EADXV04.03UJ | K26: Car | L26: 560 | M26: 8 | N26: CRDB | O26: AMS | P26: Automated Manual- Selectable (e.g. Automated Manual with paddles) | Q26: 8 | R26: Y | S26: A | T26: All Wheel Drive | U26: 2 | V26: Top gear ratio < 1 | W26: 4750 | X26: 3.08 | Y26: 27.2 | Z26: 1 | AA26: Not eqipped | AB26: EADX10024738 | AC26: MFR | AD26: No | AI26: 21 | AJ26: Federal fuel 2-day exhaust (w/can load) | AK26: 61 | AL26: Tier 2 Cert Gasoline | AM26: FTP | AN26: 0.0164 | AO26: 0.35 | AP26: 467 | AQ26: 0.019 | AS26: 0.005 | AT26: 0.01 | AU26: 19.1 | AV26: MPG | AW26: 18.5 | AX26: 18.3 | AY26: 21.7 | BD26: 62.947 | BE26: 0.02532 | BF26: 0.019439 | BG26: TWC | BH26: Three-way catalyst | BI26: N | BJ26: N | BK26: No averaging
A27: 2017 | B27: Audi | C27: ADX | D27: 2017 AUDI RS7 | E27: AUDI | F27: RS7 | G27: E3UJ-RSQ | H27: 0 | I27: 3.993 | J27: EADXV04.03UJ | K27: Car | L27: 560 | M27: 8 | N27: CRDB | O27: AMS | P27: Automated Manual- Selectable (e.g. Automated Manual with paddles) | Q27: 8 | R27: Y | S27: A | T27: All Wheel Drive | U27: 2 | V27: Top gear ratio < 1 | W27: 4750 | X27: 3.08 | Y27: 27.2 | Z27: 1 | AA27: Not eqipped | AB27: EADX10024739 | AC27: MFR | AD27: No | AI27: 95 | AJ27: SC03 | AK27: 61 | AL27: Tier 2 Cert Gasoline | AM27: SC03 | AN27: 0.0049 | AO27: 0.08 | AP27: 474 | AQ27: 0.016 | AS27: 0.0015 | AU27: 18.9 | AV27: MPG | BD27: 62.947 | BE27: 0.02532 | BF27: 0.019439 | BG27: TWC | BH27: Three-way catalyst | BI27: N | BJ27: N | BK27: No averaging
A28: 2017 | B28: Audi | C28: ADX | D28: 2017 AUDI RS7 | E28: AUDI | F28: RS7 | G28: E3UJ-RSQ | H28: 0 | I28: 3.993 | J28: EADXV04.03UJ | K28: Car | L28: 560 | M28: 8 | N28: CRDB | O28: AMS | P28: Automated Manual- Selectable (e.g. Automated Manual with paddles) | Q28: 8 | R28: Y | S28: A | T28: All Wheel Drive | U28: 2 | V28: Top gear ratio < 1 | W28: 4750 | X28: 3.08 | Y28: 27.2 | Z28: 1 | AA28: Not eqipped | AB28: EADX10024740 | AC28: MFR | AD28: No | AI28: 90 | AJ28: US06 | AK28: 61 | AL28: Tier 2 Cert Gasoline | AM28: US06 | AN28: 0.0304 | AO28: 0.37 | AP28: 378 | AQ28: 0.011 | AS28: 0.0117 | AU28: 23.6 | AV28: MPG | AW28: 14.5 | AX28: 28.8 | BD28: 62.947 | BE28: 0.02532 | BF28: 0.019439 | BG28: TWC | BH28: Three-way catalyst | BI28: N | BJ28: N | BK28: No averaging
A29: 2017 | B29: Audi | C29: ADX | D29: 2017 AUDI RS7 | E29: AUDI | F29: RS7 | G29: E3UJ-RSQ | H29: 0 | I29: 3.993 | J29: EADXV04.03UJ | K29: Car | L29: 560 | M29: 8 | N29: CRDB | O29: AMS | P29: Automated Manual- Selectable (e.g. Automated Manual with paddles) | Q29: 8 | R29: Y | S29: A | T29: All Wheel Drive | U29: 2 | V29: Top gear ratio < 1 | W29: 4750 | X29: 3.08 | Y29: 27.2 | Z29: 1 | AA29: Not eqipped | AB29: EADX10024742 | AC29: MFR | AD29: No | AI29: 11 | AJ29: Cold CO | AK29: 27 | AL29: Cold CO Premium (Tier 2) | AM29: FTP | AN29: 0.1658 | AO29: 2.09 | AP29: 572 | AQ29: 0.017 | AS29: 0.0265 | AU29: 15.5 | AV29: MPG | AW29: 11.7 | AX29: 15.6 | AY29: 19.9 | BD29: 69.241 | BE29: 0.02785 | BF29: 0.021383 | BG29: TWC | BH29: Three-way catalyst | BI29: N | BJ29: N | BK29: No averaging
A30: 2017 | B30: Audi | C30: ADX | D30: 2017 AUDI RS7 | E30: AUDI | F30: RS7 | G30: E3UJ-RSQ | H30: 0 | I30: 3.993 | J30: EADXV04.03UJ | K30: Car | L30: 560 | M30: 8 | N30: CRDB | O30: AMS | P30: Automated Manual- Selectable (e.g. Automated Manual with paddles) | Q30: 8 | R30: Y | S30: A | T30: All Wheel Drive | U30: 2 | V30: Top gear ratio < 1 | W30: 4750 | X30: 3.08 | Y30: 27.2 | Z30: 1 | AA30: Not eqipped | AB30: EADX10025150 | AC30: MFR | AD30: No | AI30: 3 | AJ30: HWFE | AK30: 61 | AL30: Tier 2 Cert Gasoline | AM30: HWY | AN30: 0.0269 | AO30: 0.18 | AP30: 253 | AQ30: 0.002 | AS30: 0.0092 | AT30: 0.01 | AU30: 35.3 | AV30: MPG | BD30: 62.947 | BE30: 0.02532 | BF30: 0.019439 | BG30: TWC | BH30: Three-way catalyst | BI30: N | BJ30: N | BK30: No averaging
A31: 2017 | B31: Audi | C31: ADX | D31: 2017 AUDI RS7 | E31: AUDI | F31: RS7 | G31: E3UJ-RSQ | H31: 0 | I31: 3.993 | J31: EADXV04.03UJ | K31: Car | L31: 560 | M31: 8 | N31: CRDB | O31: AMS | P31: Automated Manual- Selectable (e.g. Automated Manual with paddles) | Q31: 8 | R31: Y | S31: A | T31: All Wheel Drive | U31: 2 | V31: Top gear ratio < 1 | W31: 4750 | X31: 3.08 | Y31: 27.2 | Z31: 1 | AA31: Not eqipped | AB31: EADX10032622 | AC31: MFR | AD31: No | AI31: 21 | AJ31: Federal fuel 2-day exhaust (w/can load) | AK31: 61 | AL31: Tier 2 Cert Gasoline | AM31: FTP | AN31: 0.0239 | AO31: 0.36 | AP31: 532 | AQ31: 0.036 | AS31: 0.0052 | AT31: 0.01 | AU31: 16.8 | AV31: MPG | AW31: 16.3 | AX31: 15.6 | AY31: 20.2 | BA31: 99.99 | BB31: 99.99 | BC31: 99.99 | BD31: 62.947 | BE31: 0.02532 | BF31: 0.019439 | BG31: TWC | BH31: Three-way catalyst | BI31: N | BJ31: N | BK31: No averaging
A32: 2017 | B32: Audi | C32: ADX | D32: 2017 AUDI RS7 | E32: AUDI | F32: RS7 | G32: E3UJ-RSQ | H32: 0 | I32: 3.993 | J32: EADXV04.03UJ | K32: Car | L32: 560 | M32: 8 | N32: CRDB | O32: AMS | P32: Automated Manual- Selectable (e.g. Automated Manual with paddles) | Q32: 8 | R32: Y | S32: A | T32: All Wheel Drive | U32: 2 | V32: Top gear ratio < 1 | W32: 4750 | X32: 3.08 | Y32: 27.2 | Z32: 1 | AA32: Not eqipped | AB32: EADX10032623 | AC32: MFR | AD32: No | AI32: 3 | AJ32: HWFE | AK32: 61 | AL32: Tier 2 Cert Gasoline | AM32: HWY | AN32: 0.0243 | AO32: 0.12 | AP32: 286 | AQ32: 0.008 | AS32: 0.0116 | AT32: 0.01 | AU32: 31.3 | AV32: MPG | BA32: 99.99 | BB32: 99.99 | BC32: 99.99 | BD32: 62.947 | BE32: 0.02532 | BF32: 0.019439 | BG32: TWC | BH32: Three-way catalyst | BI32: N | BJ32: N | BK32: No averaging
A33: 2017 | B33: Audi | C33: ADX | D33: 2017 AUDI RS7 | E33: AUDI | F33: RS7 | G33: E3UJ-RSQ | H33: 0 | I33: 3.993 | J33: EADXV04.03UJ | K33: Car | L33: 560 | M33: 8 | N33: CRDB | O33: AMS | P33: Automated Manual- Selectable (e.g. Automated Manual with paddles) | Q33: 8 | R33: Y | S33: A | T33: All Wheel Drive | U33: 2 | V33: Top gear ratio < 1 | W33: 4750 | X33: 3.08 | Y33: 27.2 | Z33: 1 | AA33: Not eqipped | AB33: EADX10032624 | AC33: MFR | AD33: No | AI33: 90 | AJ33: US06 | AK33: 61 | AL33: Tier 2 Cert Gasoline | AM33: US06 | AN33: 0.0268 | AO33: 0.34 | AP33: 422 | AQ33: 0.024 | AS33: 0.0122 | AU33: 21.2 | AV33: MPG | AW33: 12.8 | AX33: 26 | BA33: 99.99 | BB33: 99.99 | BC33: 99.99 | BD33: 62.947 | BE33: 0.02532 | BF33: 0.019439 | BG33: TWC | BH33: Three-way catalyst | BI33: N | BJ33: N | BK33: No averaging
A34: 2017 | B34: Audi | C34: ADX | D34: 2017 AUDI RS7 | E34: AUDI | F34: RS7 | G34: E3UJ-RSQ | H34: 0 | I34: 3.993 | J34: EADXV04.03UJ | K34: Car | L34: 560 | M34: 8 | N34: CRDB | O34: AMS | P34: Automated Manual- Selectable (e.g. Automated Manual with paddles) | Q34: 8 | R34: Y | S34: A | T34: All Wheel Drive | U34: 2 | V34: Top gear ratio < 1 | W34: 4750 | X34: 3.08 | Y34: 27.2 | Z34: 1 | AA34: Not eqipped | AB34: EADX10032625 | AC34: MFR | AD34: No | AI34: 11 | AJ34: Cold CO | AK34: 27 | AL34: Cold CO Premium (Tier 2) | AM34: FTP | AN34: 0.1104 | AO34: 1.92 | AP34: 658 | AQ34: 0.041 | AS34: 0.017 | AU34: 13.5 | AV34: MPG | AW34: 11 | AX34: 13.1 | AY34: 17.3 | BA34: 99.99 | BB34: 99.99 | BC34: 99.99 | BD34: 69.241 | BE34: 0.02785 | BF34: 0.021383 | BG34: TWC | BH34: Three-way catalyst | BI34: N | BJ34: N | BK34: No averaging
A35: 2017 | B35: Audi | C35: ADX | D35: 2017 AUDI RS7 | E35: AUDI | F35: RS7 | G35: E3UJ-RSQ | H35: 0 | I35: 3.993 | J35: EADXV04.03UJ | K35: Car | L35: 560 | M35: 8 | N35: CRDB | O35: AMS | P35: Automated Manual- Selectable (e.g. Automated Manual with paddles) | Q35: 8 | R35: Y | S35: A | T35: All Wheel Drive | U35: 2 | V35: Top gear ratio < 1 | W35: 4750 | X35: 3.08 | Y35: 27.2 | Z35: 1 | AA35: Not eqipped | AB35: EADX10032626 | AC35: MFR | AD35: No | AI35: 95 | AJ35: SC03 | AK35: 61 | AL35: Tier 2 Cert Gasoline | AM35: SC03 | AN35: 0.007 | AO35: 0.11 | AP35: 526 | AQ35: 0.017 | AS35: 0.0009 | AU35: 17 | AV35: MPG | BA35: 99.99 | BB35: 99.99 | BC35: 99.99 | BD35: 62.947 | BE35: 0.02532 | BF35: 0.019439 | BG35: TWC | BH35: Three-way catalyst | BI35: N | BJ35: N | BK35: No averaging
A36: 2017 | B36: Audi | C36: ADX | D36: 2017 AUDI S5 | E36: AUDI | F36: S5 | G36: D3UF-BAQ | H36: 0 | I36: 2.995 | J36: DADXJ03.03UF | K36: Both | L36: 333 | M36: 6 | N36: CGXC | O36: AM | P36: Automated Manual | Q36: 7 | R36: Y | S36: F | T36: 2-Wheel Drive, Front | U36: 2 | V36: Top gear ratio < 1 | W36: 4250 | X36: 3.88 | Y36: 32.7 | Z36: 1 | AA36: Not eqipped | AB36: DADX10020012 | AC36: MFR | AD36: No | AI36: 21 | AJ36: Federal fuel 2-day exhaust (w/can load) | AK36: 61 | AL36: Tier 2 Cert Gasoline | AM36: FTP | AN36: 0.0156 | AO36: 0.3 | AP36: 396 | AQ36: 0.02 | AR36: 0.003 | AS36: 0.0031 | AT36: 0.01 | AU36: 22.4 | AV36: MPG | AW36: 21.4 | AX36: 21.5 | AY36: 25.3 | BD36: 41.59 | BE36: 0.34725 | BF36: 0.01682 | BG36: TWC | BH36: Three-way catalyst | BI36: N | BJ36: N | BK36: No averaging
A37: 2017 | B37: Audi | C37: ADX | D37: 2017 AUDI S5 | E37: AUDI | F37: S5 | G37: D3UF-BAQ | H37: 0 | I37: 2.995 | J37: DADXJ03.03UF | K37: Both | L37: 333 | M37: 6 | N37: CGXC | O37: AM | P37: Automated Manual | Q37: 7 | R37: Y | S37: F | T37: 2-Wheel Drive, Front | U37: 2 | V37: Top gear ratio < 1 | W37: 4250 | X37: 3.88 | Y37: 32.7 | Z37: 1 | AA37: Not eqipped | AB37: DADX10020013 | AC37: MFR | AD37: No | AI37: 3 | AJ37: HWFE | AK37: 61 | AL37: Tier 2 Cert Gasoline | AM37: HWY | AN37: 0.0072 | AO37: 0.09 | AP37: 248 | AQ37: 0.006 | AS37: 0.0028 | AT37: 0.01 | AU37: 35.8 | AV37: MPG | BD37: 41.59 | BE37: 0.34725 | BF37: 0.01682 | BG37: TWC | BH37: Three-way catalyst | BI37: N | BJ37: N | BK37: No averaging
A38: 2017 | B38: Audi | C38: ADX | D38: 2017 AUDI S5 | E38: AUDI | F38: S5 | G38: D3UF-BAQ | H38: 0 | I38: 2.995 | J38: DADXJ03.03UF | K38: Both | L38: 333 | M38: 6 | N38: CGXC | O38: AM | P38: Automated Manual | Q38: 7 | R38: Y | S38: F | T38: 2-Wheel Drive, Front | U38: 2 | V38: Top gear ratio < 1 | W38: 4250 | X38: 3.88 | Y38: 32.7 | Z38: 1 | AA38: Not eqipped | AB38: DADX10020014 | AC38: MFR | AD38: No | AI38: 90 | AJ38: US06 | AK38: 61 | AL38: Tier 2 Cert Gasoline | AM38: US06 | AN38: 0.0328 | AO38: 0.9 | AP38: 356 | AQ38: 0.014 | AS38: 0.0054 | AT38: 0.01 | AU38: 24.9 | AV38: MPG | AW38: 15.3 | AX38: 30.2 | BD38: 41.59 | BE38: 0.34725 | BF38: 0.01682 | BG38: TWC | BH38: Three-way catalyst | BI38: N | BJ38: N | BK38: No averaging
A39: 2017 | B39: Audi | C39: ADX | D39: 2017 AUDI S5 | E39: AUDI | F39: S5 | G39: D3UF-BAQ | H39: 0 | I39: 2.995 | J39: DADXJ03.03UF | K39: Both | L39: 333 | M39: 6 | N39: CGXC | O39: AM | P39: Automated Manual | Q39: 7 | R39: Y | S39: F | T39: 2-Wheel Drive, Front | U39: 2 | V39: Top gear ratio < 1 | W39: 4250 | X39: 3.88 | Y39: 32.7 | Z39: 1 | AA39: Not eqipped | AB39: DADX10020015 | AC39: MFR | AD39: No | AI39: 95 | AJ39: SC03 | AK39: 61 | AL39: Tier 2 Cert Gasoline | AM39: SC03 | AN39: 0.0086 | AO39: 0.06 | AP39: 448 | AQ39: 0.019 | AS39: 0.0013 | AT39: 0.01 | AU39: 19.8 | AV39: MPG | BD39: 41.59 | BE39: 0.34725 | BF39: 0.01682 | BG39: TWC | BH39: Three-way catalyst | BI39: N | BJ39: N | BK39: No averaging
A40: 2017 | B40: Audi | C40: ADX | D40: 2017 AUDI S5 | E40: AUDI | F40: S5 | G40: D3UF-BAQ | H40: 0 | I40: 2.995 | J40: DADXJ03.03UF | K40: Both | L40: 333 | M40: 6 | N40: CGXC | O40: AM | P40: Automated Manual | Q40: 7 | R40: Y | S40: F | T40: 2-Wheel Drive, Front | U40: 2 | V40: Top gear ratio < 1 | W40: 4250 | X40: 3.88 | Y40: 32.7 | Z40: 1 | AA40: Not eqipped | AB40: DADX10020016 | AC40: MFR | AD40: No | AI40: 11 | AJ40: Cold CO | AK40: 27 | AL40: Cold CO Premium (Tier 2) | AM40: FTP | AN40: 0.2812 | AO40: 1.29 | AP40: 455 | AQ40: 0.018 | AS40: 0.0218 | AT40: 0.01 | AU40: 19.4 | AV40: MPG | AW40: 17.5 | AX40: 18.6 | AY40: 23.4 | BD40: 45.749 | BE40: 0.38197 | BF40: 0.018502 | BG40: TWC | BH40: Three-way catalyst | BI40: N | BJ40: N | BK40: No averaging
A41: 2017 | B41: Audi | C41: ADX | D41: 2017 AUDI S5 | E41: AUDI | F41: S5 | G41: D3UF-BAQ | H41: 1 | I41: 2.995 | J41: DADXJ03.03UF | K41: Both | L41: 333 | M41: 6 | N41: CGXC | O41: AM | P41: Automated Manual | Q41: 7 | R41: Y | S41: F | T41: 2-Wheel Drive, Front | U41: 2 | V41: Top gear ratio < 1 | W41: 4750 | X41: 3.88 | Y41: 32.7 | Z41: 1 | AA41: Not eqipped | AB41: DADX10020019 | AC41: MFR | AD41: No | AI41: 90 | AJ41: US06 | AK41: 61 | AL41: Tier 2 Cert Gasoline | AM41: US06 | AN41: 0.0331 | AO41: 0.93 | AP41: 376 | AQ41: 0.015 | AS41: 0.0051 | AT41: 0.01 | AU41: 23.5 | AV41: MPG | AW41: 14.7 | AX41: 28.3 | BD41: 45.636 | BE41: 0.34363 | BF41: 0.018741 | BG41: TWC | BH41: Three-way catalyst | BI41: N | BJ41: N | BK41: No averaging
A42: 2017 | B42: Audi | C42: ADX | D42: 2017 AUDI S5 | E42: AUDI | F42: S5 | G42: D3UF-BAQ | H42: 1 | I42: 2.995 | J42: DADXJ03.03UF | K42: Both | L42: 333 | M42: 6 | N42: CGXC | O42: AM | P42: Automated Manual | Q42: 7 | R42: Y | S42: F | T42: 2-Wheel Drive, Front | U42: 2 | V42: Top gear ratio < 1 | W42: 4750 | X42: 3.88 | Y42: 32.7 | Z42: 1 | AA42: Not eqipped | AB42: DADX10020020 | AC42: MFR | AD42: No | AI42: 95 | AJ42: SC03 | AK42: 61 | AL42: Tier 2 Cert Gasoline | AM42: SC03 | AN42: 0.0123 | AO42: 0.13 | AP42: 460 | AQ42: 0.019 | AS42: 0.0018 | AT42: 0.01 | AU42: 19.3 | AV42: MPG | BD42: 45.636 | BE42: 0.34363 | BF42: 0.018741 | BG42: TWC | BH42: Three-way catalyst | BI42: N | BJ42: N | BK42: No averaging
A43: 2017 | B43: Audi | C43: ADX | D43: 2017 AUDI S5 | E43: AUDI | F43: S5 | G43: D3UF-BAQ | H43: 1 | I43: 2.995 | J43: DADXJ03.03UF | K43: Both | L43: 333 | M43: 6 | N43: CGXC | O43: AM | P43: Automated Manual | Q43: 7 | R43: Y | S43: F | T43: 2-Wheel Drive, Front | U43: 2 | V43: Top gear ratio < 1 | W43: 4750 | X43: 3.88 | Y43: 32.7 | Z43: 1 | AA43: Not eqipped | AB43: DADX10020021 | AC43: MFR | AD43: No | AI43: 11 | AJ43: Cold CO | AK43: 27 | AL43: Cold CO Premium (Tier 2) | AM43: FTP | AN43: 0.357 | AO43: 1.7 | AP43: 472 | AQ43: 0.021 | AS43: 0.0269 | AT43: 0.01 | AU43: 18.7 | AV43: MPG | AW43: 16.5 | AX43: 18 | AY43: 22.5 | BD43: 50.2 | BE43: 0.37799 | BF43: 0.020615 | BG43: TWC | BH43: Three-way catalyst | BI43: N | BJ43: N | BK43: No averaging
A44: 2017 | B44: Audi | C44: ADX | D44: 2017 AUDI S5 | E44: AUDI | F44: S5 | G44: D3UF-BAQ | H44: 1 | I44: 2.995 | J44: DADXJ03.03UF | K44: Both | L44: 333 | M44: 6 | N44: CGXC | O44: AM | P44: Automated Manual | Q44: 7 | R44: Y | S44: F | T44: 2-Wheel Drive, Front | U44: 2 | V44: Top gear ratio < 1 | W44: 4750 | X44: 3.88 | Y44: 32.7 | Z44: 1 | AA44: Not eqipped | AB44: DADX10020439 | AC44: MFR | AD44: No | AI44: 21 | AJ44: Federal fuel 2-day exhaust (w/can load) | AK44: 61 | AL44: Tier 2 Cert Gasoline | AM44: FTP | AN44: 0.0176 | AO44: 0.38 | AP44: 401 | AQ44: 0.017 | AS44: 0.0042 | AT44: 0.01 | AU44: 22.1 | AV44: MPG | AW44: 20.9 | AX44: 21.3 | AY44: 25.2 | BD44: 45.636 | BE44: 0.34363 | BF44: 0.018741 | BG44: TWC | BH44: Three-way catalyst | BI44: N | BJ44: N | BK44: No averaging
A45: 2017 | B45: Audi | C45: ADX | D45: 2017 AUDI S5 | E45: AUDI | F45: S5 | G45: D3UF-BAQ | H45: 1 | I45: 2.995 | J45: DADXJ03.03UF | K45: Both | L45: 333 | M45: 6 | N45: CGXC | O45: AM | P45: Automated Manual | Q45: 7 | R45: Y | S45: F | T45: 2-Wheel Drive, Front | U45: 2 | V45: Top gear ratio < 1 | W45: 4750 | X45: 3.88 | Y45: 32.7 | Z45: 1 | AA45: Not eqipped | AB45: DADX10020440 | AC45: MFR | AD45: No | AI45: 3 | AJ45: HWFE | AK45: 61 | AL45: Tier 2 Cert Gasoline | AM45: HWY | AN45: 0.0172 | AO45: 0.21 | AP45: 256 | AQ45: 0.006 | AS45: 0.0061 | AT45: 0.01 | AU45: 34.7 | AV45: MPG | BD45: 45.636 | BE45: 0.34363 | BF45: 0.018741 | BG45: TWC | BH45: Three-way catalyst | BI45: N | BJ45: N | BK45: No averaging
A46: 2017 | B46: Audi | C46: ADX | D46: 2017 AUDI S5 | E46: AUDI | F46: S5 | G46: D3UF-BMQ | H46: 0 | I46: 2.995 | J46: DADXJ03.03UF | K46: Both | L46: 333 | M46: 6 | N46: CGXC | O46: M | P46: Manual | Q46: 6 | R46: N | S46: F | T46: 2-Wheel Drive, Front | U46: 2 | V46: Top gear ratio < 1 | W46: 4250 | X46: 3.68 | Y46: 39.1 | Z46: 2 | AA46: Equipped, not shifted by SIL | AB46: DADX10020022 | AC46: MFR | AD46: No | AI46: 21 | AJ46: Federal fuel 2-day exhaust (w/can load) | AK46: 61 | AL46: Tier 2 Cert Gasoline | AM46: FTP | AN46: 0.0334 | AO46: 0.39 | AP46: 443 | AQ46: 0.024 | AR46: 0.004 | AS46: 0.006 | AT46: 0.01 | AU46: 20 | AV46: MPG | AW46: 19.4 | AX46: 18.9 | AY46: 23.2 | BD46: 40.915 | BE46: 0.31469 | BF46: 0.016995 | BG46: TWC | BH46: Three-way catalyst | BI46: N | BJ46: N | BK46: No averaging
A47: 2017 | B47: Audi | C47: ADX | D47: 2017 AUDI S5 | E47: AUDI | F47: S5 | G47: D3UF-BMQ | H47: 0 | I47: 2.995 | J47: DADXJ03.03UF | K47: Both | L47: 333 | M47: 6 | N47: CGXC | O47: M | P47: Manual | Q47: 6 | R47: N | S47: F | T47: 2-Wheel Drive, Front | U47: 2 | V47: Top gear ratio < 1 | W47: 4250 | X47: 3.68 | Y47: 39.1 | Z47: 2 | AA47: Equipped, not shifted by SIL | AB47: DADX10020023 | AC47: MFR | AD47: No | AI47: 3 | AJ47: HWFE | AK47: 61 | AL47: Tier 2 Cert Gasoline | AM47: HWY | AN47: 0.0148 | AO47: 0.21 | AP47: 266 | AQ47: 0.006 | AS47: 0.0059 | AT47: 0.01 | AU47: 33.4 | AV47: MPG | BD47: 40.915 | BE47: 0.31469 | BF47: 0.016995 | BG47: TWC | BH47: Three-way catalyst | BI47: N | BJ47: N | BK47: No averaging
A48: 2017 | B48: Audi | C48: ADX | D48: 2017 AUDI S5 | E48: AUDI | F48: S5 | G48: D3UF-BMQ | H48: 0 | I48: 2.995 | J48: DADXJ03.03UF | K48: Both | L48: 333 | M48: 6 | N48: CGXC | O48: M | P48: Manual | Q48: 6 | R48: N | S48: F | T48: 2-Wheel Drive, Front | U48: 2 | V48: Top gear ratio < 1 | W48: 4250 | X48: 3.68 | Y48: 39.1 | Z48: 2 | AA48: Equipped, not shifted by SIL | AB48: DADX10020024 | AC48: MFR | AD48: No | AI48: 90 | AJ48: US06 | AK48: 61 | AL48: Tier 2 Cert Gasoline | AM48: US06 | AN48: 0.0247 | AO48: 0.24 | AP48: 363 | AQ48: 0.03 | AS48: 0.0061 | AT48: 0.01 | AU48: 24.5 | AV48: MPG | AW48: 16.4 | AX48: 28.4 | BD48: 40.915 | BE48: 0.31469 | BF48: 0.016995 | BG48: TWC | BH48: Three-way catalyst | BI48: N | BJ48: N | BK48: No averaging
A49: 2017 | B49: Audi | C49: ADX | D49: 2017 AUDI S5 | E49: AUDI | F49: S5 | G49: D3UF-BMQ | H49: 0 | I49: 2.995 | J49: DADXJ03.03UF | K49: Both | L49: 333 | M49: 6 | N49: CGXC | O49: M | P49: Manual | Q49: 6 | R49: N | S49: F | T49: 2-Wheel Drive, Front | U49: 2 | V49: Top gear ratio < 1 | W49: 4250 | X49: 3.68 | Y49: 39.1 | Z49: 2 | AA49: Equipped, not shifted by SIL | AB49: DADX10020025 | AC49: MFR | AD49: No | AI49: 11 | AJ49: Cold CO | AK49: 61 | AL49: Tier 2 Cert Gasoline | AM49: FTP | AN49: 0.304 | AO49: 1.47 | AP49: 457 | AQ49: 0.023 | AS49: 0.0219 | AT49: 0.01 | AU49: 19.3 | AV49: MPG | AW49: 17.4 | AX49: 18.7 | AY49: 22.5 | BD49: 45.007 | BE49: 0.34616 | BF49: 0.018694 | BG49: TWC | BH49: Three-way catalyst | BI49: N | BJ49: N | BK49: No averaging
A50: 2017 | B50: Audi | C50: ADX | D50: 2017 AUDI S5 | E50: AUDI | F50: S5 | G50: D3UF-BMQ | H50: 0 | I50: 2.995 | J50: DADXJ03.03UF | K50: Both | L50: 333 | M50: 6 | N50: CGXC | O50: M | P50: Manual | Q50: 6 | R50: N | S50: F | T50: 2-Wheel Drive, Front | U50: 2 | V50: Top gear ratio < 1 | W50: 4250 | X50: 3.68 | Y50: 39.1 | Z50: 2 | AA50: Equipped, not shifted by SIL | AB50: DADX10020026 | AC50: MFR | AD50: No | AI50: 95 | AJ50: SC03 | AK50: 61 | AL50: Tier 2 Cert Gasoline | AM50: SC03 | AN50: 0.0041 | AO50: 0.01 | AP50: 460 | AQ50: 0.037 | AS50: 0.0007 | AT50: 0.01 | AU50: 19.3 | AV50: MPG | BD50: 40.915 | BE50: 0.31469 | BF50: 0.016995 | BG50: TWC | BH50: Three-way catalyst | BI50: N | BJ50: N | BK50: No averaging
A51: 2017 | B51: Audi | C51: ADX | D51: 2017 BENTLEY Continental GT | E51: BENTLEY | F51: Continental GT | G51: E3UJ-BY62 | H51: 0 | I51: 3.993 | J51: EADXV04.03UJ | K51: Car | L51: 520 | M51: 8 | N51: CMM | O51: SA | P51: Semi-Automatic | Q51: 8 | R51: Y | S51: A | T51: All Wheel Drive | U51: 2 | V51: Top gear ratio < 1 | W51: 6000 | X51: 2.85 | Y51: 23.4 | Z51: 1 | AA51: Not eqipped | AB51: EADX10028465 | AC51: MFR | AD51: No | AI51: 95 | AJ51: SC03 | AK51: 61 | AL51: Tier 2 Cert Gasoline | AM51: SC03 | AN51: 0.0131 | AO51: 0.29 | AP51: 555 | AQ51: 0.004 | AS51: 0.0084 | AU51: 15.9 | AV51: MPG | BD51: 54.853 | BE51: 0.04883 | BF51: 0.022116 | BG51: TWC | BH51: Three-way catalyst | BI51: N | BJ51: N | BK51: No averaging
A52: 2017 | B52: Audi | C52: ADX | D52: 2017 BENTLEY Continental GT | E52: BENTLEY | F52: Continental GT | G52: E3UJ-BY62 | H52: 0 | I52: 3.993 | J52: EADXV04.03UJ | K52: Car | L52: 520 | M52: 8 | N52: CMM | O52: SA | P52: Semi-Automatic | Q52: 8 | R52: Y | S52: A | T52: All Wheel Drive | U52: 2 | V52: Top gear ratio < 1 | W52: 6000 | X52: 2.85 | Y52: 23.4 | Z52: 1 | AA52: Not eqipped | AB52: EADX10028466 | AC52: MFR | AD52: No | AI52: 11 | AJ52: Cold CO | AK52: 27 | AL52: Cold CO Premium (Tier 2) | AM52: FTP | AN52: 0.2444 | AO52: 1.97 | AP52: 624 | AQ52: 0.036 | AS52: 0.0504 | AU52: 14.2 | AV52: MPG | AW52: 11.3 | AX52: 14.1 | AY52: 17.5 | BD52: 60.339 | BE52: 0.05372 | BF52: 0.024328 | BG52: TWC | BH52: Three-way catalyst | BI52: N | BJ52: N | BK52: No averaging
A53: 2017 | B53: Audi | C53: ADX | D53: 2017 BENTLEY Continental GT | E53: BENTLEY | F53: Continental GT | G53: E3UJ-BY62 | H53: 0 | I53: 3.993 | J53: EADXV04.03UJ | K53: Car | L53: 520 | M53: 8 | N53: CMM | O53: SA | P53: Semi-Automatic | Q53: 8 | R53: Y | S53: A | T53: All Wheel Drive | U53: 2 | V53: Top gear ratio < 1 | W53: 6000 | X53: 2.85 | Y53: 23.4 | Z53: 1 | AA53: Not eqipped | AB53: EADX10028467 | AC53: MFR | AD53: No | AI53: 90 | AJ53: US06 | AK53: 61 | AL53: Tier 2 Cert Gasoline | AM53: US06 | AN53: 0.0356 | AO53: 0.33 | AP53: 429 | AQ53: 0.012 | AS53: 0.0168 | AU53: 20.6 | AV53: MPG | AW53: 11.9 | AX53: 26 | BD53: 54.853 | BE53: 0.04883 | BF53: 0.022116 | BG53: TWC | BH53: Three-way catalyst | BI53: N | BJ53: N | BK53: No averaging
A54: 2017 | B54: Audi | C54: ADX | D54: 2017 BENTLEY Continental GT | E54: BENTLEY | F54: Continental GT | G54: E3UJ-BY62 | H54: 0 | I54: 3.993 | J54: EADXV04.03UJ | K54: Car | L54: 520 | M54: 8 | N54: CMM | O54: SA | P54: Semi-Automatic | Q54: 8 | R54: Y | S54: A | T54: All Wheel Drive | U54: 2 | V54: Top gear ratio < 1 | W54: 6000 | X54: 2.85 | Y54: 23.4 | Z54: 1 | AA54: Not eqipped | AB54: EADX10028585 | AC54: MFR | AD54: No | AI54: 3 | AJ54: HWFE | AK54: 61 | AL54: Tier 2 Cert Gasoline | AM54: HWY | AN54: 0.046 | AO54: 0.24 | AP54: 278 | AQ54: 0.002 | AS54: 0.0175 | AT54: 0.01 | AU54: 31.7 | AV54: MPG | BD54: 54.853 | BE54: 0.04883 | BF54: 0.022116 | BG54: TWC | BH54: Three-way catalyst | BI54: N | BJ54: N | BK54: No averaging
A55: 2017 | B55: Audi | C55: ADX | D55: 2017 BENTLEY Continental GT | E55: BENTLEY | F55: Continental GT | G55: E3UJ-BY62 | H55: 0 | I55: 3.993 | J55: EADXV04.03UJ | K55: Car | L55: 520 | M55: 8 | N55: CMM | O55: SA | P55: Semi-Automatic | Q55: 8 | R55: Y | S55: A | T55: All Wheel Drive | U55: 2 | V55: Top gear ratio < 1 | W55: 6000 | X55: 2.85 | Y55: 23.4 | Z55: 1 | AA55: Not eqipped | AB55: EADX10028586 | AC55: MFR | AD55: No | AI55: 21 | AJ55: Federal fuel 2-day exhaust (w/can load) | AK55: 61 | AL55: Tier 2 Cert Gasoline | AM55: FTP | AN55: 0.0318 | AO55: 0.4 | AP55: 511 | AQ55: 0.031 | AS55: 0.0081 | AT55: 0.01 | AU55: 17.3 | AV55: MPG | AW55: 16.9 | AX55: 16.3 | AY55: 19.9 | BD55: 54.853 | BE55: 0.04883 | BF55: 0.022116 | BG55: TWC | BH55: Three-way catalyst | BI55: N | BJ55: N | BK55: No averaging
A56: 2017 | B56: Audi | C56: ADX | D56: 2017 BENTLEY Continental GT | E56: BENTLEY | F56: Continental GT | G56: E3UJ-BY62 | H56: 1 | I56: 3.993 | J56: EADXV04.03UJ | K56: Car | L56: 520 | M56: 8 | N56: CMMD | O56: SA | P56: Semi-Automatic | Q56: 8 | R56: Y | S56: A | T56: All Wheel Drive | U56: 2 | V56: Top gear ratio < 1 | W56: 5500 | X56: 2.85 | Y56: 23.4 | Z56: 1 | AA56: Not eqipped | AB56: EADX10028469 | AC56: MFR | AD56: No | AI56: 95 | AJ56: SC03 | AK56: 61 | AL56: Tier 2 Cert Gasoline | AM56: SC03 | AN56: 0.0105 | AO56: 0.03 | AP56: 526 | AQ56: 0.007 | AS56: 0.0048 | AU56: 16.8 | AV56: MPG | BD56: 52.156 | BE56: 0.04883 | BF56: 0.02136 | BG56: TWC | BH56: Three-way catalyst | BI56: N | BJ56: N | BK56: No averaging
A57: 2017 | B57: Audi | C57: ADX | D57: 2017 BENTLEY Continental GT | E57: BENTLEY | F57: Continental GT | G57: E3UJ-BY62 | H57: 1 | I57: 3.993 | J57: EADXV04.03UJ | K57: Car | L57: 520 | M57: 8 | N57: CMMD | O57: SA | P57: Semi-Automatic | Q57: 8 | R57: Y | S57: A | T57: All Wheel Drive | U57: 2 | V57: Top gear ratio < 1 | W57: 5500 | X57: 2.85 | Y57: 23.4 | Z57: 1 | AA57: Not eqipped | AB57: EADX10028470 | AC57: MFR | AD57: No | AI57: 11 | AJ57: Cold CO | AK57: 27 | AL57: Cold CO Premium (Tier 2) | AM57: FTP | AN57: 0.2117 | AO57: 1.31 | AP57: 599 | AQ57: 0.039 | AS57: 0.0468 | AU57: 14.8 | AV57: MPG | AW57: 11.8 | AX57: 14.7 | AY57: 18.4 | BD57: 57.371 | BE57: 0.05372 | BF57: 0.023495 | BG57: TWC | BH57: Three-way catalyst | BI57: N | BJ57: N | BK57: No averaging
A58: 2017 | B58: Audi | C58: ADX | D58: 2017 BENTLEY Continental GT | E58: BENTLEY | F58: Continental GT | G58: E3UJ-BY62 | H58: 1 | I58: 3.993 | J58: EADXV04.03UJ | K58: Car | L58: 520 | M58: 8 | N58: CMMD | O58: SA | P58: Semi-Automatic | Q58: 8 | R58: Y | S58: A | T58: All Wheel Drive | U58: 2 | V58: Top gear ratio < 1 | W58: 5500 | X58: 2.85 | Y58: 23.4 | Z58: 1 | AA58: Not eqipped | AB58: EADX10028472 | AC58: MFR | AD58: No | AI58: 90 | AJ58: US06 | AK58: 61 | AL58: Tier 2 Cert Gasoline | AM58: US06 | AN58: 0.0368 | AO58: 0.2 | AP58: 384 | AQ58: 0.013 | AS58: 0.0138 | AU58: 23 | AV58: MPG | AW58: 14.4 | AX58: 27.8 | BD58: 52.156 | BE58: 0.04883 | BF58: 0.02136 | BG58: TWC | BH58: Three-way catalyst | BI58: N | BJ58: N | BK58: No averaging
A59: 2017 | B59: Audi | C59: ADX | D59: 2017 BENTLEY Continental GT | E59: BENTLEY | F59: Continental GT | G59: E3UJ-BY62 | H59: 1 | I59: 3.993 | J59: EADXV04.03UJ | K59: Car | L59: 520 | M59: 8 | N59: CMMD | O59: SA | P59: Semi-Automatic | Q59: 8 | R59: Y | S59: A | T59: All Wheel Drive | U59: 2 | V59: Top gear ratio < 1 | W59: 5500 | X59: 2.85 | Y59: 23.4 | Z59: 1 | AA59: Not eqipped | AB59: EADX10028587 | AC59: MFR | AD59: No | AI59: 21 | AJ59: Federal fuel 2-day exhaust (w/can load) | AK59: 61 | AL59: Tier 2 Cert Gasoline | AM59: FTP | AN59: 0.023 | AO59: 0.28 | AP59: 462 | AQ59: 0.031 | AS59: 0.0064 | AT59: 0.01 | AU59: 19.1 | AV59: MPG | AW59: 18.4 | AX59: 18.5 | AY59: 21.1 | BD59: 52.156 | BE59: 0.04883 | BF59: 0.02136 | BG59: TWC | BH59: Three-way catalyst | BI59: N | BJ59: N | BK59: No averaging
A60: 2017 | B60: Audi | C60: ADX | D60: 2017 BENTLEY Continental GT | E60: BENTLEY | F60: Continental GT | G60: E3UJ-BY62 | H60: 1 | I60: 3.993 | J60: EADXV04.03UJ | K60: Car | L60: 520 | M60: 8 | N60: CMMD | O60: SA | P60: Semi-Automatic | Q60: 8 | R60: Y | S60: A | T60: All Wheel Drive | U60: 2 | V60: Top gear ratio < 1 | W60: 5500 | X60: 2.85 | Y60: 23.4 | Z60: 1 | AA60: Not eqipped | AB60: EADX10028588 | AC60: MFR | AD60: No | AI60: 3 | AJ60: HWFE | AK60: 61 | AL60: Tier 2 Cert Gasoline | AM60: HWY | AN60: 0.0369 | AO60: 0.19 | AP60: 263 | AQ60: 0.004 | AS60: 0.0144 | AT60: 0.01 | AU60: 33.6 | AV60: MPG | BD60: 52.156 | BE60: 0.04883 | BF60: 0.02136 | BG60: TWC | BH60: Three-way catalyst | BI60: N | BJ60: N | BK60: No averaging
A61: 2017 | B61: Bentley | C61: BEX | D61: 2017 BENTLEY Continental GT | E61: BENTLEY | F61: Continental GT | G61: BY77623/13 | H61: 0 | I61: 5.998 | J61: DBEXV06.04UC | K61: Car | L61: 616 | M61: 12 | N61: CVA-A | O61: SA | P61: Semi-Automatic | Q61: 8 | R61: Y | S61: F | T61: 2-Wheel Drive, Front | U61: 2 | V61: Top gear ratio < 1 | W61: 6000 | X61: 2.85 | Y61: 24.9 | Z61: 1 | AA61: Not eqipped | AB61: DBEX10022242 | AC61: MFR | AD61: No | AI61: 90 | AJ61: US06 | AK61: 61 | AL61: Tier 2 Cert Gasoline | AM61: US06 | AN61: 0.0143 | AO61: 0.191 | AP61: 510 | AQ61: 0.0463 | AR61: 0.048 | AS61: 0.0059 | AU61: 17.4 | AV61: MPG | AW61: 10.3 | AX61: 21.7 | BD61: 54.853 | BE61: 0.04883 | BF61: 0.022116 | BG61: TWC | BH61: Three-way catalyst | BI61: N | BJ61: N | BK61: No averaging
A62: 2017 | B62: Bentley | C62: BEX | D62: 2017 BENTLEY Continental GT | E62: BENTLEY | F62: Continental GT | G62: BY77623/13 | H62: 0 | I62: 5.998 | J62: DBEXV06.04UC | K62: Car | L62: 616 | M62: 12 | N62: CVA-A | O62: SA | P62: Semi-Automatic | Q62: 8 | R62: Y | S62: F | T62: 2-Wheel Drive, Front | U62: 2 | V62: Top gear ratio < 1 | W62: 6000 | X62: 2.85 | Y62: 24.9 | Z62: 1 | AA62: Not eqipped | AB62: DBEX10022243 | AC62: MFR | AD62: No | AI62: 95 | AJ62: SC03 | AK62: 61 | AL62: Tier 2 Cert Gasoline | AM62: SC03 | AN62: 0.0711 | AO62: 0.768 | AP62: 625 | AQ62: 0.042 | AR62: 0.004 | AS62: 0.0235 | AU62: 14.2 | AV62: MPG | BD62: 54.853 | BE62: 0.04883 | BF62: 0.022116 | BG62: TWC | BH62: Three-way catalyst | BI62: N | BJ62: N | BK62: No averaging
A63: 2017 | B63: Bentley | C63: BEX | D63: 2017 BENTLEY Continental GT | E63: BENTLEY | F63: Continental GT | G63: BY77623/13 | H63: 0 | I63: 5.998 | J63: DBEXV06.04UC | K63: Car | L63: 616 | M63: 12 | N63: CVA-A | O63: SA | P63: Semi-Automatic | Q63: 8 | R63: Y | S63: F | T63: 2-Wheel Drive, Front | U63: 2 | V63: Top gear ratio < 1 | W63: 6000 | X63: 2.85 | Y63: 24.9 | Z63: 1 | AA63: Not eqipped | AB63: DBEX10022245 | AC63: MFR | AD63: No | AI63: 11 | AJ63: Cold CO | AK63: 27 | AL63: Cold CO Premium (Tier 2) | AM63: FTP | AN63: 0.4998 | AO63: 4.87 | AP63: 648 | AQ63: 0.0421 | AS63: 0.0654 | AU63: 13.6 | AV63: MPG | AW63: 11.3 | AX63: 13.3 | AY63: 17.2 | BD63: 60.339 | BE63: 0.05372 | BF63: 0.024328 | BG63: TWC | BH63: Three-way catalyst | BI63: N | BJ63: N | BK63: No averaging
A64: 2017 | B64: Bentley | C64: BEX | D64: 2017 BENTLEY Continental GT | E64: BENTLEY | F64: Continental GT | G64: BY77623/13 | H64: 0 | I64: 5.998 | J64: DBEXV06.04UC | K64: Car | L64: 616 | M64: 12 | N64: CVA-A | O64: SA | P64: Semi-Automatic | Q64: 8 | R64: Y | S64: F | T64: 2-Wheel Drive, Front | U64: 2 | V64: Top gear ratio < 1 | W64: 6000 | X64: 2.85 | Y64: 24.9 | Z64: 1 | AA64: Not eqipped | AB64: DBEX10022356 | AC64: MFR | AD64: No | AI64: 21 | AJ64: Federal fuel 2-day exhaust (w/can load) | AK64: 61 | AL64: Tier 2 Cert Gasoline | AM64: FTP | AN64: 0.0345 | AO64: 0.285 | AP64: 617 | AQ64: 0.0255 | AR64: 0.001 | AS64: 0.0137 | AT64: 0.006 | AU64: 14.4 | AV64: MPG | AW64: 14.8 | AX64: 13.1 | AY64: 17.3 | BD64: 54.853 | BE64: 0.04883 | BF64: 0.022116 | BG64: TWC | BH64: Three-way catalyst | BI64: N | BJ64: N | BK64: No averaging
A65: 2017 | B65: Bentley | C65: BEX | D65: 2017 BENTLEY Continental GT | E65: BENTLEY | F65: Continental GT | G65: BY77623/13 | H65: 0 | I65: 5.998 | J65: DBEXV06.04UC | K65: Car | L65: 616 | M65: 12 | N65: CVA-A | O65: SA | P65: Semi-Automatic | Q65: 8 | R65: Y | S65: F | T65: 2-Wheel Drive, Front | U65: 2 | V65: Top gear ratio < 1 | W65: 6000 | X65: 2.85 | Y65: 24.9 | Z65: 1 | AA65: Not eqipped | AB65: DBEX10022357 | AC65: MFR | AD65: No | AI65: 3 | AJ65: HWFE | AK65: 61 | AL65: Tier 2 Cert Gasoline | AM65: HWY | AN65: 0.0023 | AO65: 0.013 | AP65: 333 | AQ65: 0.0086 | AS65: 0.0003 | AT65: 0.001 | AU65: 26.7 | AV65: MPG | BD65: 54.853 | BE65: 0.04883 | BF65: 0.022116 | BG65: TWC | BH65: Three-way catalyst | BI65: N | BJ65: N | BK65: No averaging
A66: 2017 | B66: Bentley | C66: BEX | D66: 2017 BENTLEY Continental GT | E66: BENTLEY | F66: Continental GT | G66: BY77623/13 | H66: 1 | I66: 5.998 | J66: DBEXV06.04UC | K66: Car | L66: 616 | M66: 12 | N66: CVA-A | O66: SA | P66: Semi-Automatic | Q66: 8 | R66: Y | S66: F | T66: 2-Wheel Drive, Front | U66: 2 | V66: Top gear ratio < 1 | W66: 5500 | X66: 2.85 | Y66: 24.9 | Z66: 1 | AA66: Not eqipped | AB66: DBEX10022246 | AC66: MFR | AD66: No | AI66: 21 | AJ66: Federal fuel 2-day exhaust (w/can load) | AK66: 61 | AL66: Tier 2 Cert Gasoline | AM66: FTP | AN66: 0.0434 | AO66: 0.556 | AP66: 576 | AQ66: 0.0236 | AR66: 0.001 | AS66: 0.0143 | AT66: 0.01 | AU66: 15.4 | AV66: MPG | AW66: 15 | AX66: 14.3 | AY66: 18.6 | BD66: 52.156 | BE66: 0.04883 | BF66: 0.02136 | BG66: TWC | BH66: Three-way catalyst | BI66: N | BJ66: N | BK66: No averaging
A67: 2017 | B67: Bentley | C67: BEX | D67: 2017 BENTLEY Continental GT | E67: BENTLEY | F67: Continental GT | G67: BY77623/13 | H67: 1 | I67: 5.998 | J67: DBEXV06.04UC | K67: Car | L67: 616 | M67: 12 | N67: CVA-A | O67: SA | P67: Semi-Automatic | Q67: 8 | R67: Y | S67: F | T67: 2-Wheel Drive, Front | U67: 2 | V67: Top gear ratio < 1 | W67: 5500 | X67: 2.85 | Y67: 24.9 | Z67: 1 | AA67: Not eqipped | AB67: DBEX10022248 | AC67: MFR | AD67: No | AI67: 90 | AJ67: US06 | AK67: 61 | AL67: Tier 2 Cert Gasoline | AM67: US06 | AN67: 0.0101 | AO67: 0.056 | AP67: 485 | AQ67: 0.041 | AS67: 0.0043 | AU67: 18.3 | AV67: MPG | AW67: 10.6 | AX67: 23 | BD67: 52.156 | BE67: 0.04883 | BF67: 0.02136 | BG67: TWC | BH67: Three-way catalyst | BI67: N | BJ67: N | BK67: No averaging
A68: 2017 | B68: Bentley | C68: BEX | D68: 2017 BENTLEY Continental GT | E68: BENTLEY | F68: Continental GT | G68: BY77623/13 | H68: 1 | I68: 5.998 | J68: DBEXV06.04UC | K68: Car | L68: 616 | M68: 12 | N68: CVA-A | O68: SA | P68: Semi-Automatic | Q68: 8 | R68: Y | S68: F | T68: 2-Wheel Drive, Front | U68: 2 | V68: Top gear ratio < 1 | W68: 5500 | X68: 2.85 | Y68: 24.9 | Z68: 1 | AA68: Not eqipped | AB68: DBEX10022358 | AC68: MFR | AD68: No | AI68: 3 | AJ68: HWFE | AK68: 61 | AL68: Tier 2 Cert Gasoline | AM68: HWY | AN68: 0.0024 | AO68: 0.012 | AP68: 314 | AQ68: 0.0072 | AS68: 0.0006 | AT68: 0.001 | AU68: 28.3 | AV68: MPG | BD68: 52.156 | BE68: 0.04883 | BF68: 0.02136 | BG68: TWC | BH68: Three-way catalyst | BI68: N | BJ68: N | BK68: No averaging
A69: 2017 | B69: BMW | C69: BMX | D69: 2017 BMW 230i Convertible | E69: BMW | F69: 230i Convertible | G69: V646702 | H69: 0 | I69: 2 | J69: HBMXV02.0B4X | K69: Car | L69: 248 | M69: 4 | N69: 2.0-B46-F23 | O69: SA | P69: Semi-Automatic | Q69: 8 | R69: Y | S69: R | T69: 2-Wheel Drive, Rear | U69: 2 | V69: Top gear ratio < 1 | W69: 4000 | X69: 2.81 | Y69: 25.2 | Z69: 1 | AA69: Not eqipped | AB69: HBMX10043924 | AC69: MFR | AD69: No | AI69: 3 | AJ69: HWFE | AK69: 61 | AL69: Tier 2 Cert Gasoline | AM69: HWY | AN69: 0.00092 | AO69: 0.0829 | AP69: 195.26 | AQ69: 0.0019 | AS69: 0.00066 | AU69: 45.8 | AV69: MPG | BA69: 4.955 | BB69: 4.48 | BC69: 0.12 | BD69: 51.9 | BE69: -0.199 | BF69: 0.02188 | BG69: TWC | BH69: Three-way catalyst | BI69: N | BJ69: N | BK69: No averaging
A70: 2017 | B70: BMW | C70: BMX | D70: 2017 BMW 230i Convertible | E70: BMW | F70: 230i Convertible | G70: V646702 | H70: 0 | I70: 2 | J70: HBMXV02.0B4X | K70: Car | L70: 248 | M70: 4 | N70: 2.0-B46-F23 | O70: SA | P70: Semi-Automatic | Q70: 8 | R70: Y | S70: R | T70: 2-Wheel Drive, Rear | U70: 2 | V70: Top gear ratio < 1 | W70: 4000 | X70: 2.81 | Y70: 25.2 | Z70: 1 | AA70: Not eqipped | AB70: HBMX10044021 | AC70: MFR | AD70: No | AI70: 31 | AJ70: Federal fuel 3-day exhaust | AK70: 61 | AL70: Tier 2 Cert Gasoline | AM70: FTP | AN70: 0.00319 | AO70: 0.1754 | AP70: 293.74 | AQ70: 0.0047 | AS70: 0.00068 | AT70: 0.0019 | AU70: 30.3 | AV70: MPG | AW70: 29.2 | AX70: 30.8 | AY70: 30.5 | BA70: 0.391 | BB70: -0.04 | BC70: -0.551 | BD70: 51.9 | BE70: -0.199 | BF70: 0.02188 | BG70: TWC | BH70: Three-way catalyst | BI70: N | BJ70: N | BK70: No averaging
A71: 2017 | B71: BMW | C71: BMX | D71: 2017 BMW 230i Convertible | E71: BMW | F71: 230i Convertible | G71: V646702 | H71: 1 | I71: 2 | J71: HBMXV02.0B4X | K71: Car | L71: 248 | M71: 4 | N71: 2.0-B46-F23 | O71: SA | P71: Semi-Automatic | Q71: 8 | R71: Y | S71: R | T71: 2-Wheel Drive, Rear | U71: 2 | V71: Top gear ratio < 1 | W71: 4000 | X71: 2.81 | Y71: 25.2 | Z71: 1 | AA71: Not eqipped | AB71: HBMX10043282 | AC71: MFR | AD71: No | AI71: 31 | AJ71: Federal fuel 3-day exhaust | AK71: 61 | AL71: Tier 2 Cert Gasoline | AM71: FTP | AN71: 0.00547 | AO71: 0.292 | AP71: 299.82 | AQ71: 0.0061 | AS71: 0.00169 | AT71: 0.00103 | AU71: 29.5 | AV71: MPG | AW71: 28 | AX71: 29.5 | AY71: 30.6 | BA71: -1.724 | BB71: -1.386 | BC71: -1.901 | BD71: 51.9 | BE71: -0.199 | BF71: 0.02188 | BG71: TWC | BH71: Three-way catalyst | BI71: N | BJ71: N | BK71: No averaging
A72: 2017 | B72: BMW | C72: BMX | D72: 2017 BMW 230i Convertible | E72: BMW | F72: 230i Convertible | G72: V646702 | H72: 2 | I72: 2 | J72: HBMXV02.0B4X | K72: Car | L72: 248 | M72: 4 | N72: 2.0-B46-F23 | O72: SA | P72: Semi-Automatic | Q72: 8 | R72: Y | S72: R | T72: 2-Wheel Drive, Rear | U72: 2 | V72: Top gear ratio < 1 | W72: 4000 | X72: 2.81 | Y72: 24.8 | Z72: 1 | AA72: Not eqipped | AB72: HBMX10043921 | AC72: MFR | AD72: No | AI72: 31 | AJ72: Federal fuel 3-day exhaust | AK72: 61 | AL72: Tier 2 Cert Gasoline | AM72: FTP | AN72: 0.00465 | AO72: 0.4268 | AP72: 285.88 | AQ72: 0.0039 | AS72: 0.00095 | AT72: 0.0012 | AU72: 31.1 | AV72: MPG | AW72: 30 | AX72: 31.1 | AY72: 32.1 | BA72: 0.497 | BB72: 0.385 | BC72: -0.373 | BD72: 47.9 | BE72: -0.211 | BF72: 0.02189 | BG72: TWC | BH72: Three-way catalyst | BI72: N | BJ72: N | BK72: No averaging
A73: 2017 | B73: BMW | C73: BMX | D73: 2017 BMW 230i Convertible | E73: BMW | F73: 230i Convertible | G73: V646702 | H73: 2 | I73: 2 | J73: HBMXV02.0B4X | K73: Car | L73: 248 | M73: 4 | N73: 2.0-B46-F23 | O73: SA | P73: Semi-Automatic | Q73: 8 | R73: Y | S73: R | T73: 2-Wheel Drive, Rear | U73: 2 | V73: Top gear ratio < 1 | W73: 4000 | X73: 2.81 | Y73: 24.8 | Z73: 1 | AA73: Not eqipped | AB73: HBMX10043922 | AC73: MFR | AD73: No | AI73: 3 | AJ73: HWFE | AK73: 61 | AL73: Tier 2 Cert Gasoline | AM73: HWY | AN73: 0.00014 | AO73: 0.0224 | AP73: 185.57 | AQ73: 0.0026 | AS73: 0 | AU73: 48 | AV73: MPG | BA73: 0.917 | BB73: 0.668 | BC73: -0.22 | BD73: 47.9 | BE73: -0.211 | BF73: 0.02189 | BG73: TWC | BH73: Three-way catalyst | BI73: N | BJ73: N | BK73: No averaging
A74: 2017 | B74: BMW | C74: BMX | D74: 2017 BMW 230i Convertible | E74: BMW | F74: 230i Convertible | G74: V646702 | H74: 3 | I74: 2 | J74: HBMXV02.0B4X | K74: Car | L74: 248 | M74: 4 | N74: 2.0-B46-F23 | O74: SA | P74: Semi-Automatic | Q74: 8 | R74: Y | S74: R | T74: 2-Wheel Drive, Rear | U74: 2 | V74: Top gear ratio < 1 | W74: 4000 | X74: 2.81 | Y74: 24.8 | Z74: 1 | AA74: Not eqipped | AB74: HBMX10043923 | AC74: MFR | AD74: No | AI74: 31 | AJ74: Federal fuel 3-day exhaust | AK74: 61 | AL74: Tier 2 Cert Gasoline | AM74: FTP | AN74: 0.00484 | AO74: 0.286 | AP74: 306.3251 | AQ74: 0.005 | AS74: 0.0015 | AT74: 0.0011 | AU74: 29.1 | AV74: MPG | AW74: 27.7 | AX74: 28.7 | AY74: 31 | BA74: 0.53 | BB74: 0.362 | BC74: -0.898 | BD74: 47.9 | BE74: -0.211 | BF74: 0.02189 | BG74: TWC | BH74: Three-way catalyst | BI74: N | BJ74: N | BK74: No averaging
A75: 2017 | B75: BMW | C75: BMX | D75: 2017 BMW 230i Coupe | E75: BMW | F75: 230i Coupe | G75: V635700 | H75: 0 | I75: 2 | J75: HBMXV02.0B4X | K75: Car | L75: 248 | M75: 4 | N75: 2.0-B46-F22 | O75: M | P75: Manual | Q75: 6 | R75: N | S75: R | T75: 2-Wheel Drive, Rear | U75: 2 | V75: Top gear ratio < 1 | W75: 3625 | X75: 3.91 | Y75: 37 | Z75: 1 | AA75: Not eqipped | AB75: HBMX91003240 | AC75: EPA | AD75: No | AI75: 21 | AJ75: Federal fuel 2-day exhaust (w/can load) | AK75: 61 | AL75: Tier 2 Cert Gasoline | AM75: FTP | AN75: 0.0049324 | AO75: 0.2337029 | AP75: 337.1654796 | AQ75: 0.0051066 | AS75: 0.0013344 | AU75: 26.4 | AV75: MPG | AW75: 26.7075616 | AX75: 25.0330771 | AY75: 29.0473488 | BA75: 2.001032 | BB75: 1.20638 | BC75: 0.726437 | BD75: 40.6 | BE75: 0.121 | BF75: 0.01743 | BG75: TWC | BH75: Three-way catalyst | BI75: N | BJ75: N | BK75: No averaging
A76: 2017 | B76: BMW | C76: BMX | D76: 2017 BMW 230i Coupe | E76: BMW | F76: 230i Coupe | G76: V635700 | H76: 0 | I76: 2 | J76: HBMXV02.0B4X | K76: Car | L76: 248 | M76: 4 | N76: 2.0-B46-F22 | O76: M | P76: Manual | Q76: 6 | R76: N | S76: R | T76: 2-Wheel Drive, Rear | U76: 2 | V76: Top gear ratio < 1 | W76: 3625 | X76: 3.91 | Y76: 37 | Z76: 1 | AA76: Not eqipped | AB76: HBMX91003241 | AC76: EPA | AD76: No | AI76: 3 | AJ76: HWFE | AK76: 61 | AL76: Tier 2 Cert Gasoline | AM76: HWY | AN76: 0.0003896 | AO76: 0.0161873 | AP76: 192.9393758 | AQ76: 0.0017963 | AS76: 0.0003979 | AU76: 46.1 | AV76: MPG | BA76: 3.001543 | BB76: 2.785468 | BC76: 0.209518 | BD76: 40.6 | BE76: 0.121 | BF76: 0.01743 | BG76: TWC | BH76: Three-way catalyst | BI76: N | BJ76: N | BK76: No averaging
A77: 2017 | B77: BMW | C77: BMX | D77: 2017 BMW 230i Coupe | E77: BMW | F77: 230i Coupe | G77: V635700 | H77: 1 | I77: 2 | J77: HBMXV02.0B4X | K77: Car | L77: 248 | M77: 4 | N77: 2.0-B46-F22 | O77: M | P77: Manual | Q77: 6 | R77: N | S77: R | T77: 2-Wheel Drive, Rear | U77: 2 | V77: Top gear ratio < 1 | W77: 3625 | X77: 3.91 | Y77: 36.5 | Z77: 1 | AA77: Not eqipped | AB77: HBMX10043306 | AC77: MFR | AD77: No | AI77: 31 | AJ77: Federal fuel 3-day exhaust | AK77: 61 | AL77: Tier 2 Cert Gasoline | AM77: FTP | AN77: 0.00398 | AO77: 0.183 | AP77: 329.23 | AQ77: 0.0079 | AS77: 0.00081 | AT77: 0.00044 | AU77: 26.9 | AV77: MPG | AW77: 27.3 | AX77: 25.3 | AY77: 29.8 | BA77: -3.712 | BB77: -2.239 | BC77: -2.111 | BD77: 36.9 | BE77: 0.111 | BF77: 0.01744 | BG77: TWC | BH77: Three-way catalyst | BI77: N | BJ77: N | BK77: No averaging
A78: 2017 | B78: BMW | C78: BMX | D78: 2017 BMW 230i Coupe | E78: BMW | F78: 230i Coupe | G78: V635700 | H78: 1 | I78: 2 | J78: HBMXV02.0B4X | K78: Car | L78: 248 | M78: 4 | N78: 2.0-B46-F22 | O78: M | P78: Manual | Q78: 6 | R78: N | S78: R | T78: 2-Wheel Drive, Rear | U78: 2 | V78: Top gear ratio < 1 | W78: 3625 | X78: 3.91 | Y78: 36.5 | Z78: 1 | AA78: Not eqipped | AB78: HBMX10043308 | AC78: MFR | AD78: No | AI78: 3 | AJ78: HWFE | AK78: 61 | AL78: Tier 2 Cert Gasoline | AM78: HWY | AN78: 0.00018 | AO78: 0.0165 | AP78: 188.88 | AQ78: 0.0029 | AS78: 0 | AU78: 46.8 | AV78: MPG | BA78: -3.093 | BB78: -2.424 | BC78: -0.322 | BD78: 36.9 | BE78: 0.111 | BF78: 0.01744 | BG78: TWC | BH78: Three-way catalyst | BI78: N | BJ78: N | BK78: No averaging
A79: 2017 | B79: BMW | C79: BMX | D79: 2017 BMW 230i Coupe | E79: BMW | F79: 230i Coupe | G79: V664102 | H79: 0 | I79: 2 | J79: HBMXV02.0B4X | K79: Car | L79: 248 | M79: 4 | N79: 2.0-B46-F22 | O79: SA | P79: Semi-Automatic | Q79: 8 | R79: Y | S79: R | T79: 2-Wheel Drive, Rear | U79: 2 | V79: Top gear ratio < 1 | W79: 3625 | X79: 2.81 | Y79: 25.2 | Z79: 1 | AA79: Not eqipped | AB79: HBMX91003239 | AC79: EPA | AD79: No | AI79: 3 | AJ79: HWFE | AK79: 61 | AL79: Tier 2 Cert Gasoline | AM79: HWY | AN79: 0 | AO79: 0.025211 | AP79: 176.382268 | AQ79: 0.0020771 | AS79: 0.0003707 | AU79: 50.6 | AV79: MPG | BA79: 3.292932 | BB79: 2.419458 | BC79: 0.535618 | BD79: 49.9 | BE79: -0.204 | BF79: 0.02022 | BG79: TWC | BH79: Three-way catalyst | BI79: N | BJ79: N | BK79: No averaging
A80: 2017 | B80: BMW | C80: BMX | D80: 2017 BMW 230i Coupe | E80: BMW | F80: 230i Coupe | G80: V664102 | H80: 0 | I80: 2 | J80: HBMXV02.0B4X | K80: Car | L80: 248 | M80: 4 | N80: 2.0-B46-F22 | O80: SA | P80: Semi-Automatic | Q80: 8 | R80: Y | S80: R | T80: 2-Wheel Drive, Rear | U80: 2 | V80: Top gear ratio < 1 | W80: 3625 | X80: 2.81 | Y80: 25.2 | Z80: 1 | AA80: Not eqipped | AB80: HBMX91003242 | AC80: EPA | AD80: No | AI80: 21 | AJ80: Federal fuel 2-day exhaust (w/can load) | AK80: 61 | AL80: Tier 2 Cert Gasoline | AM80: FTP | AN80: 0.0049414 | AO80: 0.2191188 | AP80: 279.6961564 | AQ80: 0.0051986 | AS80: 0.0017583 | AU80: 31.8 | AV80: MPG | AW80: 30.8014175 | AX80: 31.4366453 | AY80: 33.3216495 | BA80: 2.848437 | BB80: 1.613549 | BC80: 1.632907 | BD80: 49.9 | BE80: -0.204 | BF80: 0.02022 | BG80: TWC | BH80: Three-way catalyst | BI80: N | BJ80: N | BK80: No averaging
A81: 2017 | B81: BMW | C81: BMX | D81: 2017 BMW 230i Coupe | E81: BMW | F81: 230i Coupe | G81: V664102 | H81: 1 | I81: 2 | J81: HBMXV02.0B4X | K81: Car | L81: 248 | M81: 4 | N81: 2.0-B46-F22 | O81: SA | P81: Semi-Automatic | Q81: 8 | R81: Y | S81: R | T81: 2-Wheel Drive, Rear | U81: 2 | V81: Top gear ratio < 1 | W81: 3625 | X81: 2.81 | Y81: 25.2 | Z81: 1 | AA81: Not eqipped | AB81: HBMX10043779 | AC81: MFR | AD81: No | AI81: 31 | AJ81: Federal fuel 3-day exhaust | AK81: 61 | AL81: Tier 2 Cert Gasoline | AM81: FTP | AN81: 0.00474 | AO81: 0.2737 | AP81: 298.27 | AQ81: 0.0081 | AS81: 0.00204 | AT81: 0.00086 | AU81: 29.7 | AV81: MPG | AW81: 28.7 | AX81: 29.2 | AY81: 31.4 | BA81: 0.311 | BB81: 0.042 | BC81: -1.475 | BD81: 49.9 | BE81: -0.204 | BF81: 0.02022 | BG81: TWC | BH81: Three-way catalyst | BI81: N | BJ81: N | BK81: No averaging
A82: 2017 | B82: BMW | C82: BMX | D82: 2017 BMW 230i Coupe | E82: BMW | F82: 230i Coupe | G82: V664102 | H82: 2 | I82: 2 | J82: HBMXV02.0B4X | K82: Car | L82: 248 | M82: 4 | N82: 2.0-B46-F22 | O82: SA | P82: Semi-Automatic | Q82: 8 | R82: Y | S82: R | T82: 2-Wheel Drive, Rear | U82: 2 | V82: Top gear ratio < 1 | W82: 3625 | X82: 2.81 | Y82: 24.8 | Z82: 1 | AA82: Not eqipped | AB82: HBMX10043780 | AC82: MFR | AD82: No | AI82: 31 | AJ82: Federal fuel 3-day exhaust | AK82: 61 | AL82: Tier 2 Cert Gasoline | AM82: FTP | AN82: 0.00665 | AO82: 0.4417 | AP82: 277.79 | AQ82: 0.0085 | AS82: 0.00203 | AT82: 0.00092 | AU82: 31.8 | AV82: MPG | AW82: 30.8 | AX82: 31.6 | AY82: 33 | BA82: -0.502 | BB82: -0.466 | BC82: -1.072 | BD82: 46.3 | BE82: -0.215 | BF82: 0.02023 | BG82: TWC | BH82: Three-way catalyst | BI82: N | BJ82: N | BK82: No averaging
A83: 2017 | B83: BMW | C83: BMX | D83: 2017 BMW 230i Coupe | E83: BMW | F83: 230i Coupe | G83: V664102 | H83: 2 | I83: 2 | J83: HBMXV02.0B4X | K83: Car | L83: 248 | M83: 4 | N83: 2.0-B46-F22 | O83: SA | P83: Semi-Automatic | Q83: 8 | R83: Y | S83: R | T83: 2-Wheel Drive, Rear | U83: 2 | V83: Top gear ratio < 1 | W83: 3625 | X83: 2.81 | Y83: 24.8 | Z83: 1 | AA83: Not eqipped | AB83: HBMX10043781 | AC83: MFR | AD83: No | AI83: 3 | AJ83: HWFE | AK83: 61 | AL83: Tier 2 Cert Gasoline | AM83: HWY | AN83: 0.00106 | AO83: 0.0609 | AP83: 174.52 | AQ83: 0.0019 | AS83: 0.00062 | AU83: 50.5 | AV83: MPG | BA83: 2.114 | BB83: 1.425 | BC83: -0.611 | BD83: 46.3 | BE83: -0.215 | BF83: 0.02023 | BG83: TWC | BH83: Three-way catalyst | BI83: N | BJ83: N | BK83: No averaging
A84: 2017 | B84: BMW | C84: BMX | D84: 2017 BMW 230i Coupe | E84: BMW | F84: 230i Coupe | G84: V664102 | H84: 3 | I84: 2 | J84: HBMXV02.0B4X | K84: Car | L84: 248 | M84: 4 | N84: 2.0-B46-F22 | O84: SA | P84: Semi-Automatic | Q84: 8 | R84: Y | S84: R | T84: 2-Wheel Drive, Rear | U84: 2 | V84: Top gear ratio < 1 | W84: 3625 | X84: 2.81 | Y84: 24.8 | Z84: 1 | AA84: Not eqipped | AB84: HBMX10043782 | AC84: MFR | AD84: No | AI84: 31 | AJ84: Federal fuel 3-day exhaust | AK84: 61 | AL84: Tier 2 Cert Gasoline | AM84: FTP | AN84: 0.00542 | AO84: 0.394 | AP84: 294.22 | AQ84: 0.0077 | AS84: 0.00223 | AT84: 0.00104 | AU84: 30 | AV84: MPG | AW84: 29.6 | AX84: 29.4 | AY84: 31.7 | BA84: 0.061 | BB84: -0.19 | BC84: -1.123 | BD84: 46.3 | BE84: -0.215 | BF84: 0.02023 | BG84: TWC | BH84: Three-way catalyst | BI84: N | BJ84: N | BK84: No averaging
A85: 2017 | B85: BMW | C85: BMX | D85: 2017 BMW 230i xDrive Convertible | E85: BMW | F85: 230i xDrive Convertible | G85: V646702 | H85: 4 | I85: 2 | J85: HBMXV02.0B4X | K85: Car | L85: 248 | M85: 4 | N85: 2.0-B46-F23X | O85: SA | P85: Semi-Automatic | Q85: 8 | R85: Y | S85: R | T85: 2-Wheel Drive, Rear | U85: 2 | V85: Top gear ratio < 1 | W85: 4000 | X85: 2.81 | Y85: 25.2 | Z85: 1 | AA85: Not eqipped | AB85: HBMX10043748 | AC85: MFR | AD85: No | AI85: 31 | AJ85: Federal fuel 3-day exhaust | AK85: 61 | AL85: Tier 2 Cert Gasoline | AM85: FTP | AN85: 0.00591 | AO85: 0.5383 | AP85: 301.31 | AQ85: 0.0094 | AS85: 0.00296 | AT85: 0.0014 | AU85: 29.6 | AV85: MPG | AW85: 27.7 | AX85: 29.8 | AY85: 30.7 | BA85: 0.856 | BB85: 0.394 | BC85: -0.479 | BD85: 64.4 | BE85: -0.56 | BF85: 0.02633 | BG85: TWC | BH85: Three-way catalyst | BI85: N | BJ85: N | BK85: No averaging
A86: 2017 | B86: BMW | C86: BMX | D86: 2017 BMW 230i xDrive Convertible | E86: BMW | F86: 230i xDrive Convertible | G86: V646702 | H86: 4 | I86: 2 | J86: HBMXV02.0B4X | K86: Car | L86: 248 | M86: 4 | N86: 2.0-B46-F23X | O86: SA | P86: Semi-Automatic | Q86: 8 | R86: Y | S86: R | T86: 2-Wheel Drive, Rear | U86: 2 | V86: Top gear ratio < 1 | W86: 4000 | X86: 2.81 | Y86: 25.2 | Z86: 1 | AA86: Not eqipped | AB86: HBMX10043749 | AC86: MFR | AD86: No | AI86: 3 | AJ86: HWFE | AK86: 61 | AL86: Tier 2 Cert Gasoline | AM86: HWY | AN86: 0.00184 | AO86: 0.0284 | AP86: 197.41 | AQ86: 0.0031 | AS86: 0.00105 | AU86: 45.3 | AV86: MPG | BA86: 1.524 | BB86: 0.813 | BC86: 0.075 | BD86: 64.4 | BE86: -0.56 | BF86: 0.02633 | BG86: TWC | BH86: Three-way catalyst | BI86: N | BJ86: N | BK86: No averaging
A87: 2017 | B87: BMW | C87: BMX | D87: 2017 BMW 230i xDrive Convertible | E87: BMW | F87: 230i xDrive Convertible | G87: V646702 | H87: 5 | I87: 2 | J87: HBMXV02.0B4X | K87: Car | L87: 248 | M87: 4 | N87: 2.0-B46-F23X | O87: SA | P87: Semi-Automatic | Q87: 8 | R87: Y | S87: R | T87: 2-Wheel Drive, Rear | U87: 2 | V87: Top gear ratio < 1 | W87: 4000 | X87: 2.81 | Y87: 25.2 | Z87: 1 | AA87: Not eqipped | AB87: HBMX10043750 | AC87: MFR | AD87: No | AI87: 31 | AJ87: Federal fuel 3-day exhaust | AK87: 61 | AL87: Tier 2 Cert Gasoline | AM87: FTP | AN87: 0.00554 | AO87: 0.5415 | AP87: 314.77 | AQ87: 0.0088 | AS87: 0.00248 | AT87: 0.0014 | AU87: 28.3 | AV87: MPG | AW87: 27.5 | AX87: 27.8 | AY87: 29.8 | BA87: 2.386 | BB87: 1.14 | BC87: -0.487 | BD87: 64.4 | BE87: -0.56 | BF87: 0.02633 | BG87: TWC | BH87: Three-way catalyst | BI87: N | BJ87: N | BK87: No averaging
A88: 2017 | B88: BMW | C88: BMX | D88: 2017 BMW 230i xDrive Convertible | E88: BMW | F88: 230i xDrive Convertible | G88: V646702 | H88: 6 | I88: 2 | J88: HBMXV02.0B4X | K88: Car | L88: 248 | M88: 4 | N88: 2.0-B46-F23X | O88: SA | P88: Semi-Automatic | Q88: 8 | R88: Y | S88: R | T88: 2-Wheel Drive, Rear | U88: 2 | V88: Top gear ratio < 1 | W88: 4000 | X88: 2.81 | Y88: 24.8 | Z88: 1 | AA88: Not eqipped | AB88: HBMX10043751 | AC88: MFR | AD88: No | AI88: 31 | AJ88: Federal fuel 3-day exhaust | AK88: 61 | AL88: Tier 2 Cert Gasoline | AM88: FTP | AN88: 0.0058 | AO88: 0.3847 | AP88: 289.64 | AQ88: 0.0079 | AS88: 0.00249 | AT88: 0.0013 | AU88: 30.7 | AV88: MPG | AW88: 29.4 | AX88: 30.8 | AY88: 31.7 | BA88: 2.497 | BB88: 1.278 | BC88: -0.98 | BD88: 60.4 | BE88: -0.572 | BF88: 0.02634 | BG88: TWC | BH88: Three-way catalyst | BI88: N | BJ88: N | BK88: No averaging
A89: 2017 | B89: BMW | C89: BMX | D89: 2017 BMW 230i xDrive Convertible | E89: BMW | F89: 230i xDrive Convertible | G89: V646702 | H89: 6 | I89: 2 | J89: HBMXV02.0B4X | K89: Car | L89: 248 | M89: 4 | N89: 2.0-B46-F23X | O89: SA | P89: Semi-Automatic | Q89: 8 | R89: Y | S89: R | T89: 2-Wheel Drive, Rear | U89: 2 | V89: Top gear ratio < 1 | W89: 4000 | X89: 2.81 | Y89: 24.8 | Z89: 1 | AA89: Not eqipped | AB89: HBMX10043752 | AC89: MFR | AD89: No | AI89: 3 | AJ89: HWFE | AK89: 61 | AL89: Tier 2 Cert Gasoline | AM89: HWY | AN89: 0.00093 | AO89: 0.0358 | AP89: 190.19 | AQ89: 0.0023 | AS89: 0.00067 | AU89: 47 | AV89: MPG | BA89: 8.803 | BB89: 5.998 | BC89: -0.247 | BD89: 60.4 | BE89: -0.572 | BF89: 0.02634 | BG89: TWC | BH89: Three-way catalyst | BI89: N | BJ89: N | BK89: No averaging
A90: 2017 | B90: BMW | C90: BMX | D90: 2017 BMW 230i xDrive Convertible | E90: BMW | F90: 230i xDrive Convertible | G90: V646702 | H90: 7 | I90: 2 | J90: HBMXV02.0B4X | K90: Car | L90: 248 | M90: 4 | N90: 2.0-B46-F23X | O90: SA | P90: Semi-Automatic | Q90: 8 | R90: Y | S90: R | T90: 2-Wheel Drive, Rear | U90: 2 | V90: Top gear ratio < 1 | W90: 4000 | X90: 2.81 | Y90: 24.8 | Z90: 1 | AA90: Not eqipped | AB90: HBMX10043754 | AC90: MFR | AD90: No | AI90: 31 | AJ90: Federal fuel 3-day exhaust | AK90: 61 | AL90: Tier 2 Cert Gasoline | AM90: FTP | AN90: 0.00716 | AO90: 0.366 | AP90: 308.38 | AQ90: 0.0088 | AS90: 0.00311 | AT90: 0.0013 | AU90: 28.9 | AV90: MPG | AW90: 28 | AX90: 28.5 | AY90: 30.4 | BA90: 1.642 | BB90: 0.866 | BC90: -0.793 | BD90: 60.4 | BE90: -0.572 | BF90: 0.02634 | BG90: TWC | BH90: Three-way catalyst | BI90: N | BJ90: N | BK90: No averaging
A91: 2017 | B91: BMW | C91: BMX | D91: 2017 BMW 230i xDrive Coupe | E91: BMW | F91: 230i xDrive Coupe | G91: V664102 | H91: 4 | I91: 2 | J91: HBMXV02.0B4X | K91: Car | L91: 248 | M91: 4 | N91: 2.0-B46-F22X | O91: SA | P91: Semi-Automatic | Q91: 8 | R91: Y | S91: R | T91: 2-Wheel Drive, Rear | U91: 2 | V91: Top gear ratio < 1 | W91: 3750 | X91: 2.81 | Y91: 25.2 | Z91: 1 | AA91: Not eqipped | AB91: HBMX91003243 | AC91: EPA | AD91: No | AI91: 21 | AJ91: Federal fuel 2-day exhaust (w/can load) | AK91: 61 | AL91: Tier 2 Cert Gasoline | AM91: FTP | AN91: 0.005334 | AO91: 0.4650539 | AP91: 292.7719933 | AQ91: 0.007133 | AS91: 0.0021454 | AU91: 30.3 | AV91: MPG | AW91: 28.3986763 | AX91: 30.6746949 | AY91: 31.303423 | BA91: 2.830741 | BB91: 1.869248 | BC91: 2.580108 | BD91: 63.3 | BE91: -0.563 | BF91: 0.02467 | BG91: TWC | BH91: Three-way catalyst | BI91: N | BJ91: N | BK91: No averaging
A92: 2017 | B92: BMW | C92: BMX | D92: 2017 BMW 230i xDrive Coupe | E92: BMW | F92: 230i xDrive Coupe | G92: V664102 | H92: 4 | I92: 2 | J92: HBMXV02.0B4X | K92: Car | L92: 248 | M92: 4 | N92: 2.0-B46-F22X | O92: SA | P92: Semi-Automatic | Q92: 8 | R92: Y | S92: R | T92: 2-Wheel Drive, Rear | U92: 2 | V92: Top gear ratio < 1 | W92: 3750 | X92: 2.81 | Y92: 25.2 | Z92: 1 | AA92: Not eqipped | AB92: HBMX91003246 | AC92: EPA | AD92: No | AI92: 3 | AJ92: HWFE | AK92: 61 | AL92: Tier 2 Cert Gasoline | AM92: HWY | AN92: 0.0010036 | AO92: 0.0465198 | AP92: 188.7722599 | AQ92: 0.0027351 | AS92: 0.0009825 | AU92: 47.1 | AV92: MPG | BA92: 4.905704 | BB92: 4.111888 | BC92: 1.887562 | BD92: 63.3 | BE92: -0.563 | BF92: 0.02467 | BG92: TWC | BH92: Three-way catalyst | BI92: N | BJ92: N | BK92: No averaging
A93: 2017 | B93: BMW | C93: BMX | D93: 2017 BMW 230i xDrive Coupe | E93: BMW | F93: 230i xDrive Coupe | G93: V664102 | H93: 5 | I93: 2 | J93: HBMXV02.0B4X | K93: Car | L93: 248 | M93: 4 | N93: 2.0-B46-F22X | O93: SA | P93: Semi-Automatic | Q93: 8 | R93: Y | S93: R | T93: 2-Wheel Drive, Rear | U93: 2 | V93: Top gear ratio < 1 | W93: 3750 | X93: 2.81 | Y93: 25.2 | Z93: 1 | AA93: Not eqipped | AB93: HBMX10043783 | AC93: MFR | AD93: No | AI93: 31 | AJ93: Federal fuel 3-day exhaust | AK93: 61 | AL93: Tier 2 Cert Gasoline | AM93: FTP | AN93: 0.00573 | AO93: 0.4497 | AP93: 301.53 | AQ93: 0.0067 | AS93: 0.00207 | AT93: 0.00139 | AU93: 29.2 | AV93: MPG | AW93: 27.5 | AX93: 29.2 | AY93: 31 | BA93: -0.562 | BB93: -0.459 | BC93: -1.366 | BD93: 63.3 | BE93: -0.563 | BF93: 0.02467 | BG93: TWC | BH93: Three-way catalyst | BI93: N | BJ93: N | BK93: No averaging
A94: 2017 | B94: BMW | C94: BMX | D94: 2017 BMW 230i xDrive Coupe | E94: BMW | F94: 230i xDrive Coupe | G94: V664102 | H94: 6 | I94: 2 | J94: HBMXV02.0B4X | K94: Car | L94: 248 | M94: 4 | N94: 2.0-B46-F22X | O94: SA | P94: Semi-Automatic | Q94: 8 | R94: Y | S94: R | T94: 2-Wheel Drive, Rear | U94: 2 | V94: Top gear ratio < 1 | W94: 3750 | X94: 2.81 | Y94: 24.8 | Z94: 1 | AA94: Not eqipped | AB94: HBMX10043784 | AC94: MFR | AD94: No | AI94: 31 | AJ94: Federal fuel 3-day exhaust | AK94: 61 | AL94: Tier 2 Cert Gasoline | AM94: FTP | AN94: 0.00818 | AO94: 0.5151 | AP94: 279.04 | AQ94: 0.0075 | AS94: 0.00315 | AT94: 0.00087 | AU94: 31.6 | AV94: MPG | AW94: 29.7 | AX94: 32.1 | AY94: 32.3 | BA94: -0.802 | BB94: -0.454 | BC94: -1.594 | BD94: 59.5 | BE94: -0.574 | BF94: 0.02468 | BG94: TWC | BH94: Three-way catalyst | BI94: N | BJ94: N | BK94: No averaging
A95: 2017 | B95: BMW | C95: BMX | D95: 2017 BMW 230i xDrive Coupe | E95: BMW | F95: 230i xDrive Coupe | G95: V664102 | H95: 6 | I95: 2 | J95: HBMXV02.0B4X | K95: Car | L95: 248 | M95: 4 | N95: 2.0-B46-F22X | O95: SA | P95: Semi-Automatic | Q95: 8 | R95: Y | S95: R | T95: 2-Wheel Drive, Rear | U95: 2 | V95: Top gear ratio < 1 | W95: 3750 | X95: 2.81 | Y95: 24.8 | Z95: 1 | AA95: Not eqipped | AB95: HBMX10043785 | AC95: MFR | AD95: No | AI95: 3 | AJ95: HWFE | AK95: 61 | AL95: Tier 2 Cert Gasoline | AM95: HWY | AN95: 0.00243 | AO95: 0.0609 | AP95: 184.42 | AQ95: 0.0028 | AS95: 0.00056 | AU95: 48.1 | AV95: MPG | BA95: 0.299 | BB95: 0.006 | BC95: -0.169 | BD95: 59.5 | BE95: -0.574 | BF95: 0.02468 | BG95: TWC | BH95: Three-way catalyst | BI95: N | BJ95: N | BK95: No averaging
A96: 2017 | B96: BMW | C96: BMX | D96: 2017 BMW 230i xDrive Coupe | E96: BMW | F96: 230i xDrive Coupe | G96: V664102 | H96: 7 | I96: 2 | J96: HBMXV02.0B4X | K96: Car | L96: 248 | M96: 4 | N96: 2.0-B46-F22X | O96: SA | P96: Semi-Automatic | Q96: 8 | R96: Y | S96: R | T96: 2-Wheel Drive, Rear | U96: 2 | V96: Top gear ratio < 1 | W96: 3750 | X96: 2.81 | Y96: 24.8 | Z96: 1 | AA96: Not eqipped | AB96: HBMX10043786 | AC96: MFR | AD96: No | AI96: 31 | AJ96: Federal fuel 3-day exhaust | AK96: 61 | AL96: Tier 2 Cert Gasoline | AM96: FTP | AN96: 0.00324 | AO96: 0.3772 | AP96: 299.18 | AQ96: 0.0072 | AS96: 0.00084 | AT96: 0.001 | AU96: 29.8 | AV96: MPG | AW96: 28.9 | AX96: 29.4 | AY96: 31.2 | BA96: 0.891 | BB96: 0.586 | BC96: -0.429 | BD96: 59.5 | BE96: -0.574 | BF96: 0.02468 | BG96: TWC | BH96: Three-way catalyst | BI96: N | BJ96: N | BK96: No averaging
A97: 2017 | B97: BMW | C97: BMX | D97: 2017 BMW 320i | E97: BMW | F97: 320i | G97: FX99511 | H97: 0 | I97: 2 | J97: DBMXJ02.0N20 | K97: Both | L97: 181 | M97: 4 | N97: 2.0-A-N20-F30 | O97: A | P97: Automatic | Q97: 8 | R97: Y | S97: R | T97: 2-Wheel Drive, Rear | U97: 2 | V97: Top gear ratio < 1 | W97: 3625 | X97: 3.2 | Y97: 28 | Z97: 1 | AA97: Not eqipped | AB97: DBMX10022472 | AC97: MFR | AD97: No | AI97: 31 | AJ97: Federal fuel 3-day exhaust | AK97: 61 | AL97: Tier 2 Cert Gasoline | AM97: FTP | AN97: 0.00974 | AO97: 0.2867 | AP97: 291.87 | AQ97: 0.0109 | AS97: 0.00323 | AT97: 0.01 | AU97: 30.4 | AV97: MPG | AW97: 28.4 | AX97: 29.51 | AY97: 34.28 | BD97: 46.2 | BE97: -0.334 | BF97: 0.02027 | BG97: TWC | BH97: Three-way catalyst | BI97: N | BJ97: N | BK97: No averaging
A98: 2017 | B98: BMW | C98: BMX | D98: 2017 BMW 320i | E98: BMW | F98: 320i | G98: FX99511 | H98: 0 | I98: 2 | J98: DBMXJ02.0N20 | K98: Both | L98: 181 | M98: 4 | N98: 2.0-A-N20-F30 | O98: A | P98: Automatic | Q98: 8 | R98: Y | S98: R | T98: 2-Wheel Drive, Rear | U98: 2 | V98: Top gear ratio < 1 | W98: 3625 | X98: 3.2 | Y98: 28 | Z98: 1 | AA98: Not eqipped | AB98: DBMX10022473 | AC98: MFR | AD98: No | AI98: 3 | AJ98: HWFE | AK98: 61 | AL98: Tier 2 Cert Gasoline | AM98: HWY | AN98: 0.01438 | AO98: 0.167 | AP98: 173.83 | AQ98: 0.002 | AS98: 0.00345 | AT98: 0.01 | AU98: 51 | AV98: MPG | BD98: 46.2 | BE98: -0.334 | BF98: 0.02027 | BG98: TWC | BH98: Three-way catalyst | BI98: N | BJ98: N | BK98: No averaging
A99: 2017 | B99: BMW | C99: BMX | D99: 2017 BMW 320i | E99: BMW | F99: 320i | G99: FX99511 | H99: 1 | I99: 2 | J99: DBMXJ02.0N20 | K99: Both | L99: 181 | M99: 4 | N99: 2.0-A-N20-F30 | O99: A | P99: Automatic | Q99: 8 | R99: Y | S99: R | T99: 2-Wheel Drive, Rear | U99: 2 | V99: Top gear ratio < 1 | W99: 3625 | X99: 3.2 | Y99: 28 | Z99: 1 | AA99: Not eqipped | AB99: DBMX91001503 | AC99: EPA | AD99: No | AI99: 21 | AJ99: Federal fuel 2-day exhaust (w/can load) | AK99: 61 | AL99: Tier 2 Cert Gasoline | AM99: FTP | AN99: 0.0087205 | AO99: 0.5906882 | AP99: 289.964953 | AQ99: 0.0126854 | AS99: 0.0025418 | AT99: 0.01 | AU99: 30.7 | AV99: MPG | AW99: 30.3109216 | AX99: 29.2325958 | AY99: 34.2276625 | BD99: 42.1 | BE99: -0.347 | BF99: 0.02084 | BG99: TWC | BH99: Three-way catalyst | BI99: N | BJ99: N | BK99: No averaging
A100: 2017 | B100: BMW | C100: BMX | D100: 2017 BMW 320i | E100: BMW | F100: 320i | G100: FX99511 | H100: 1 | I100: 2 | J100: DBMXJ02.0N20 | K100: Both | L100: 181 | M100: 4 | N100: 2.0-A-N20-F30 | O100: A | P100: Automatic | Q100: 8 | R100: Y | S100: R | T100: 2-Wheel Drive, Rear | U100: 2 | V100: Top gear ratio < 1 | W100: 3625 | X100: 3.2 | Y100: 28 | Z100: 1 | AA100: Not eqipped | AB100: DBMX91001541 | AC100: EPA | AD100: No | AI100: 3 | AJ100: HWFE | AK100: 61 | AL100: Tier 2 Cert Gasoline | AM100: HWY | AN100: 0.0002384 | AO100: 0.3273016 | AP100: 169.320866 | AQ100: 0.0014396 | AS100: 0.0001323 | AT100: 0.01 | AU100: 52.7 | AV100: MPG | BD100: 42.1 | BE100: -0.347 | BF100: 0.02084 | BG100: TWC | BH100: Three-way catalyst | BI100: N | BJ100: N | BK100: No averaging
A101: 2017 | B101: BMW | C101: BMX | D101: 2017 BMW 320i | E101: BMW | F101: 320i | G101: FX99511 | H101: 2 | I101: 2 | J101: DBMXV02.0N20 | K101: Car | L101: 181 | N101: 2.0-A-N20-F30 | O101: A | P101: Automatic | Q101: 8 | R101: Y | S101: R | T101: 2-Wheel Drive, Rear | U101: 2 | V101: Top gear ratio < 1 | W101: 3625 | X101: 3.2 | Y101: 28 | Z101: 1 | AA101: Not eqipped | AB101: DBMX10021970 | AC101: MFR | AD101: No | AI101: 31 | AJ101: Federal fuel 3-day exhaust | AK101: 61 | AL101: Tier 2 Cert Gasoline | AM101: FTP | AN101: 0.0083 | AO101: 0.3013 | AP101: 298.37 | AQ101: 0.0116 | AS101: 0.00232 | AT101: 0.01 | AU101: 29.9 | AV101: MPG | AW101: 28.98 | AX101: 28.65 | AY101: 33.37 | BD101: 42.1 | BE101: -0.347 | BF101: 0.02084 | BI101: N | BJ101: N | BK101: No averaging
A102: 2017 | B102: BMW | C102: BMX | D102: 2017 BMW 320i | E102: BMW | F102: 320i | G102: FX99511 | H102: 2 | I102: 2 | J102: DBMXV02.0N20 | K102: Car | L102: 181 | N102: 2.0-A-N20-F30 | O102: A | P102: Automatic | Q102: 8 | R102: Y | S102: R | T102: 2-Wheel Drive, Rear | U102: 2 | V102: Top gear ratio < 1 | W102: 3625 | X102: 3.2 | Y102: 28 | Z102: 1 | AA102: Not eqipped | AB102: DBMX10021971 | AC102: MFR | AD102: No | AI102: 3 | AJ102: HWFE | AK102: 61 | AL102: Tier 2 Cert Gasoline | AM102: HWY | AN102: 0.0229 | AO102: 0.152 | AP102: 179.28 | AQ102: 0.0011 | AS102: 0.00401 | AT102: 0.01 | AU102: 49.8 | AV102: MPG | BD102: 42.1 | BE102: -0.347 | BF102: 0.02084 | BI102: N | BJ102: N | BK102: No averaging
A103: 2017 | B103: BMW | C103: BMX | D103: 2017 BMW 320i | E103: BMW | F103: 320i | G103: FX99511 | H103: 3 | I103: 2 | J103: DBMXJ02.0N20 | K103: Both | L103: 181 | M103: 4 | N103: 2.0-A-N20-F30 | O103: A | P103: Automatic | Q103: 8 | R103: Y | S103: R | T103: 2-Wheel Drive, Rear | U103: 2 | V103: Top gear ratio < 1 | W103: 3625 | X103: 3.2 | Y103: 28 | Z103: 1 | AA103: Not eqipped | AB103: DBMX10022518 | AC103: MFR | AD103: No | AI103: 31 | AJ103: Federal fuel 3-day exhaust | AK103: 61 | AL103: Tier 2 Cert Gasoline | AM103: FTP | AN103: 0.01732 | AO103: 0.3219 | AP103: 315.57 | AQ103: 0.0112 | AS103: 0.00384 | AT103: 0.01 | AU103: 28.2 | AV103: MPG | AW103: 27.8 | AX103: 26.84 | AY103: 31.67 | BD103: 46.2 | BE103: -0.334 | BF103: 0.02027 | BG103: TWC | BH103: Three-way catalyst | BI103: N | BJ103: N | BK103: No averaging
A104: 2017 | B104: BMW | C104: BMX | D104: 2017 BMW 320i | E104: BMW | F104: 320i | G104: FX99511 | H104: 3 | I104: 2 | J104: DBMXJ02.0N20 | K104: Both | L104: 181 | M104: 4 | N104: 2.0-A-N20-F30 | O104: A | P104: Automatic | Q104: 8 | R104: Y | S104: R | T104: 2-Wheel Drive, Rear | U104: 2 | V104: Top gear ratio < 1 | W104: 3625 | X104: 3.2 | Y104: 28 | Z104: 1 | AA104: Not eqipped | AB104: DBMX10022519 | AC104: MFR | AD104: No | AI104: 3 | AJ104: HWFE | AK104: 61 | AL104: Tier 2 Cert Gasoline | AM104: HWY | AN104: 0.01913 | AO104: 0.2664 | AP104: 180.35 | AQ104: 0.0016 | AS104: 0.00401 | AT104: 0.01 | AU104: 49.4 | AV104: MPG | BD104: 46.2 | BE104: -0.334 | BF104: 0.02027 | BG104: TWC | BH104: Three-way catalyst | BI104: N | BJ104: N | BK104: No averaging
A105: 2017 | B105: BMW | C105: BMX | D105: 2017 BMW 320i | E105: BMW | F105: 320i | G105: PV69704 | H105: 0 | I105: 2 | J105: FBMXJ02.0N20 | K105: Both | L105: 180 | M105: 4 | N105: 2.0-N20-320 | O105: M | P105: Manual | Q105: 6 | R105: N | S105: R | T105: 2-Wheel Drive, Rear | U105: 2 | V105: Top gear ratio < 1 | W105: 3625 | X105: 3.08 | Y105: 34.1 | Z105: 1 | AA105: Not eqipped | AB105: FBMX10033592 | AC105: MFR | AD105: No | AI105: 31 | AJ105: Federal fuel 3-day exhaust | AK105: 61 | AL105: Tier 2 Cert Gasoline | AM105: FTP | AN105: 0.00953 | AO105: 0.35 | AP105: 300.99 | AQ105: 0.0313 | AS105: 0.00291 | AU105: 29.5 | AV105: MPG | AW105: 29.79 | AX105: 27.62 | AY105: 33.35 | BA105: 99.99 | BB105: 99.99 | BC105: 99.99 | BD105: 28.9 | BE105: 0.114 | BF105: 0.01628 | BG105: TWC | BH105: Three-way catalyst | BI105: N | BJ105: N | BK105: No averaging
A106: 2017 | B106: BMW | C106: BMX | D106: 2017 BMW 320i | E106: BMW | F106: 320i | G106: PV69704 | H106: 0 | I106: 2 | J106: FBMXJ02.0N20 | K106: Both | L106: 180 | M106: 4 | N106: 2.0-N20-320 | O106: M | P106: Manual | Q106: 6 | R106: N | S106: R | T106: 2-Wheel Drive, Rear | U106: 2 | V106: Top gear ratio < 1 | W106: 3625 | X106: 3.08 | Y106: 34.1 | Z106: 1 | AA106: Not eqipped | AB106: FBMX10033593 | AC106: MFR | AD106: No | AI106: 3 | AJ106: HWFE | AK106: 61 | AL106: Tier 2 Cert Gasoline | AM106: HWY | AN106: 0.0157 | AO106: 0.3064 | AP106: 173.76 | AQ106: 0.0042 | AU106: 50.9 | AV106: MPG | BA106: 99.99 | BB106: 99.99 | BC106: 99.99 | BD106: 28.9 | BE106: 0.114 | BF106: 0.01628 | BG106: TWC | BH106: Three-way catalyst | BI106: N | BJ106: N | BK106: No averaging
A107: 2017 | B107: BMW | C107: BMX | D107: 2017 BMW 320i | E107: BMW | F107: 320i | G107: PV69704 | H107: 1 | I107: 2 | J107: FBMXJ02.0N20 | K107: Both | L107: 180 | M107: 4 | N107: 2.0-N20-320 | O107: M | P107: Manual | Q107: 6 | R107: N | S107: R | T107: 2-Wheel Drive, Rear | U107: 2 | V107: Top gear ratio < 1 | W107: 3625 | X107: 3.08 | Y107: 34 | Z107: 1 | AA107: Not eqipped | AB107: FBMX10033594 | AC107: MFR | AD107: No | AI107: 31 | AJ107: Federal fuel 3-day exhaust | AK107: 61 | AL107: Tier 2 Cert Gasoline | AM107: FTP | AN107: 0.01236 | AO107: 0.4745 | AP107: 297.8 | AQ107: 0.0155 | AS107: 0.00393 | AU107: 29.7 | AV107: MPG | AW107: 30.02 | AX107: 27.95 | AY107: 33.6 | BA107: 99.99 | BB107: 99.99 | BC107: 99.99 | BD107: 33.5 | BE107: 0.11 | BF107: 0.01589 | BG107: TWC | BH107: Three-way catalyst | BI107: N | BJ107: N | BK107: No averaging
A108: 2017 | B108: BMW | C108: BMX | D108: 2017 BMW 320i | E108: BMW | F108: 320i | G108: PV69704 | H108: 1 | I108: 2 | J108: FBMXJ02.0N20 | K108: Both | L108: 180 | M108: 4 | N108: 2.0-N20-320 | O108: M | P108: Manual | Q108: 6 | R108: N | S108: R | T108: 2-Wheel Drive, Rear | U108: 2 | V108: Top gear ratio < 1 | W108: 3625 | X108: 3.08 | Y108: 34 | Z108: 1 | AA108: Not eqipped | AB108: FBMX10033595 | AC108: MFR | AD108: No | AI108: 3 | AJ108: HWFE | AK108: 61 | AL108: Tier 2 Cert Gasoline | AM108: HWY | AN108: 0.05506 | AO108: 0.5467 | AP108: 172.37 | AQ108: 0.0034 | AS108: 0.00813 | AU108: 51.3 | AV108: MPG | BA108: 99.99 | BB108: 99.99 | BC108: 99.99 | BD108: 33.5 | BE108: 0.11 | BF108: 0.01589 | BG108: TWC | BH108: Three-way catalyst | BI108: N | BJ108: N | BK108: No averaging
A109: 2017 | B109: BMW | C109: BMX | D109: 2017 BMW 320i xDrive | E109: BMW | F109: 320i xDrive | G109: FX99510 | H109: 0 | I109: 2 | J109: DBMXJ02.0N20 | K109: Both | L109: 181 | M109: 4 | N109: 2.0-N20-F30X | O109: A | P109: Automatic | Q109: 8 | R109: Y | S109: R | T109: 2-Wheel Drive, Rear | U109: 2 | V109: Top gear ratio < 1 | W109: 3750 | X109: 3.15 | Y109: 28 | Z109: 1 | AA109: Not eqipped | AB109: DBMX10024019 | AC109: MFR | AD109: No | AI109: 31 | AJ109: Federal fuel 3-day exhaust | AK109: 61 | AL109: Tier 2 Cert Gasoline | AM109: FTP | AN109: 0.0178 | AO109: 0.4665 | AP109: 299.04 | AQ109: 0.0185 | AS109: 0.00284 | AT109: 0.01 | AU109: 29.9 | AV109: MPG | AW109: 29.18 | AX109: 28.47 | AY109: 33.45 | BD109: 46.5 | BE109: -0.345 | BF109: 0.02188 | BG109: TWC | BH109: Three-way catalyst | BI109: N | BJ109: N | BK109: No averaging
A110: 2017 | B110: BMW | C110: BMX | D110: 2017 BMW 320i xDrive | E110: BMW | F110: 320i xDrive | G110: FX99510 | H110: 0 | I110: 2 | J110: DBMXJ02.0N20 | K110: Both | L110: 181 | M110: 4 | N110: 2.0-N20-F30X | O110: A | P110: Automatic | Q110: 8 | R110: Y | S110: R | T110: 2-Wheel Drive, Rear | U110: 2 | V110: Top gear ratio < 1 | W110: 3750 | X110: 3.15 | Y110: 28 | Z110: 1 | AA110: Not eqipped | AB110: DBMX10024020 | AC110: MFR | AD110: No | AI110: 3 | AJ110: HWFE | AK110: 61 | AL110: Tier 2 Cert Gasoline | AM110: HWY | AN110: 0.0139 | AO110: 0.2484 | AP110: 180.32 | AQ110: 0.0073 | AS110: 0.00263 | AT110: 0.01 | AU110: 49.6 | AV110: MPG | BD110: 46.5 | BE110: -0.345 | BF110: 0.02188 | BG110: TWC | BH110: Three-way catalyst | BI110: N | BJ110: N | BK110: No averaging
A111: 2017 | B111: BMW | C111: BMX | D111: 2017 BMW 320i xDrive | E111: BMW | F111: 320i xDrive | G111: FX99510 | H111: 1 | I111: 2 | J111: DBMXJ02.0N20 | K111: Both | L111: 181 | M111: 4 | N111: 2.0-N20-F30X | O111: A | P111: Automatic | Q111: 8 | R111: Y | S111: R | T111: 2-Wheel Drive, Rear | U111: 2 | V111: Top gear ratio < 1 | W111: 3750 | X111: 3.15 | Y111: 28 | Z111: 1 | AA111: Not eqipped | AB111: DBMX10024021 | AC111: MFR | AD111: No | AI111: 31 | AJ111: Federal fuel 3-day exhaust | AK111: 61 | AL111: Tier 2 Cert Gasoline | AM111: FTP | AN111: 0.01533 | AO111: 0.3514 | AP111: 311.58 | AQ111: 0.0151 | AS111: 0.0016 | AT111: 0.01 | AU111: 28.6 | AV111: MPG | AW111: 28.39 | AX111: 27.18 | AY111: 32.13 | BD111: 46.5 | BE111: -0.345 | BF111: 0.02188 | BG111: TWC | BH111: Three-way catalyst | BI111: N | BJ111: N | BK111: No averaging
A112: 2017 | B112: BMW | C112: BMX | D112: 2017 BMW 320i xDrive | E112: BMW | F112: 320i xDrive | G112: FX99510 | H112: 1 | I112: 2 | J112: DBMXJ02.0N20 | K112: Both | L112: 181 | M112: 4 | N112: 2.0-N20-F30X | O112: A | P112: Automatic | Q112: 8 | R112: Y | S112: R | T112: 2-Wheel Drive, Rear | U112: 2 | V112: Top gear ratio < 1 | W112: 3750 | X112: 3.15 | Y112: 28 | Z112: 1 | AA112: Not eqipped | AB112: DBMX10024022 | AC112: MFR | AD112: No | AI112: 3 | AJ112: HWFE | AK112: 61 | AL112: Tier 2 Cert Gasoline | AM112: HWY | AN112: 0.01222 | AO112: 0.2612 | AP112: 178.96 | AQ112: 0.0029 | AS112: 0.00351 | AT112: 0.01 | AU112: 49.9 | AV112: MPG | BD112: 46.5 | BE112: -0.345 | BF112: 0.02188 | BG112: TWC | BH112: Three-way catalyst | BI112: N | BJ112: N | BK112: No averaging
A113: 2017 | B113: BMW | C113: BMX | D113: 2017 BMW 320i xDrive | E113: BMW | F113: 320i xDrive | G113: FX99510 | H113: 2 | I113: 2 | J113: DBMXJ02.0N20 | K113: Both | L113: 181 | M113: 4 | N113: 2.0-N20-F30X | O113: A | P113: Automatic | Q113: 8 | R113: Y | S113: R | T113: 2-Wheel Drive, Rear | U113: 2 | V113: Top gear ratio < 1 | W113: 3750 | X113: 3.15 | Y113: 28 | Z113: 1 | AA113: Not eqipped | AB113: DBMX10024076 | AC113: MFR | AD113: No | AI113: 31 | AJ113: Federal fuel 3-day exhaust | AK113: 61 | AL113: Tier 2 Cert Gasoline | AM113: FTP | AN113: 0.02129 | AO113: 0.6426 | AP113: 298.21 | AQ113: 0.0131 | AS113: 0.00416 | AT113: 0.01 | AU113: 29.9 | AV113: MPG | AW113: 29.19 | AX113: 28.64 | AY113: 33.43 | BD113: 50.7 | BE113: -0.331 | BF113: 0.02127 | BG113: TWC | BH113: Three-way catalyst | BI113: N | BJ113: N | BK113: No averaging
A114: 2017 | B114: BMW | C114: BMX | D114: 2017 BMW 320i xDrive | E114: BMW | F114: 320i xDrive | G114: FX99510 | H114: 2 | I114: 2 | J114: DBMXJ02.0N20 | K114: Both | L114: 181 | M114: 4 | N114: 2.0-N20-F30X | O114: A | P114: Automatic | Q114: 8 | R114: Y | S114: R | T114: 2-Wheel Drive, Rear | U114: 2 | V114: Top gear ratio < 1 | W114: 3750 | X114: 3.15 | Y114: 28 | Z114: 1 | AA114: Not eqipped | AB114: DBMX10024077 | AC114: MFR | AD114: No | AI114: 3 | AJ114: HWFE | AK114: 61 | AL114: Tier 2 Cert Gasoline | AM114: HWY | AN114: 0.01236 | AO114: 0.2636 | AP114: 181.35 | AQ114: 0.0053 | AS114: 0.00258 | AT114: 0.01 | AU114: 49.3 | AV114: MPG | BD114: 50.7 | BE114: -0.331 | BF114: 0.02127 | BG114: TWC | BH114: Three-way catalyst | BI114: N | BJ114: N | BK114: No averaging
A115: 2017 | B115: BMW | C115: BMX | D115: 2017 BMW 320i xDrive | E115: BMW | F115: 320i xDrive | G115: FX99510 | H115: 3 | I115: 2 | J115: DBMXJ02.0N20 | K115: Both | L115: 181 | M115: 4 | N115: 2.0-N20-F30X | O115: A | P115: Automatic | Q115: 8 | R115: Y | S115: R | T115: 2-Wheel Drive, Rear | U115: 2 | V115: Top gear ratio < 1 | W115: 3750 | X115: 3.15 | Y115: 28 | Z115: 1 | AA115: Not eqipped | AB115: DBMX91001741 | AC115: EPA | AD115: No | AI115: 3 | AJ115: HWFE | AK115: 61 | AL115: Tier 2 Cert Gasoline | AM115: HWY | AN115: 0.007855 | AO115: 0.398889 | AP115: 184.3283971 | AQ115: 0.0032971 | AS115: 0.0027809 | AT115: 0.01 | AU115: 48.3 | AV115: MPG | BD115: 50.7 | BE115: -0.331 | BF115: 0.02127 | BG115: TWC | BH115: Three-way catalyst | BI115: N | BJ115: N | BK115: No averaging
A116: 2017 | B116: BMW | C116: BMX | D116: 2017 BMW 320i xDrive | E116: BMW | F116: 320i xDrive | G116: FX99510 | H116: 3 | I116: 2 | J116: DBMXJ02.0N20 | K116: Both | L116: 181 | M116: 4 | N116: 2.0-N20-F30X | O116: A | P116: Automatic | Q116: 8 | R116: Y | S116: R | T116: 2-Wheel Drive, Rear | U116: 2 | V116: Top gear ratio < 1 | W116: 3750 | X116: 3.15 | Y116: 28 | Z116: 1 | AA116: Not eqipped | AB116: DBMX91001742 | AC116: EPA | AD116: No | AI116: 21 | AJ116: Federal fuel 2-day exhaust (w/can load) | AK116: 61 | AL116: Tier 2 Cert Gasoline | AM116: FTP | AN116: 0.0085332 | AO116: 0.582147 | AP116: 309.8485824 | AQ116: 0.0117315 | AS116: 0.0029321 | AT116: 0.01 | AU116: 28.7 | AV116: MPG | AW116: 28.1467415 | AX116: 27.3658874 | AY116: 32.2391853 | BD116: 50.7 | BE116: -0.331 | BF116: 0.02127 | BG116: TWC | BH116: Three-way catalyst | BI116: N | BJ116: N | BK116: No averaging
A117: 2017 | B117: BMW | C117: BMX | D117: 2017 BMW 328d | E117: BMW | F117: 328d | G117: F099010 | H117: 1 | I117: 2 | J117: EBMXV02.0N47 | K117: Car | L117: 183 | M117: 4 | N117: 2.0-N47-F30 | O117: SA | P117: Semi-Automatic | Q117: 8 | R117: Y | S117: R | T117: 2-Wheel Drive, Rear | U117: 2 | V117: Top gear ratio < 1 | W117: 3750 | X117: 2.81 | Y117: 25.2 | Z117: 1 | AA117: Not eqipped | AB117: EBMX10024681 | AC117: MFR | AD117: No | AI117: 2 | AJ117: CVS 75 and later (w/o can. load) | AK117: 19 | AL117: Federal Cert Diesel 7-15 PPM Sulfur | AM117: FTP | AN117: 0.02995 | AO117: 0.035 | AP117: 241.11 | AQ117: 0.0087 | AR117: 0.00061 | AS117: 0.02553 | AT117: 0.01 | AU117: 42.2 | AV117: MPG | AW117: 42.92 | AX117: 39.87 | AY117: 46.89 | BD117: 42.9 | BE117: -0.364 | BF117: 0.02138 | BG117: SCR | BH117: Selective Catalytic Reduction | BI117: N | BJ117: N | BK117: No averaging
A118: 2017 | B118: BMW | C118: BMX | D118: 2017 BMW 328d | E118: BMW | F118: 328d | G118: F099010 | H118: 1 | I118: 2 | J118: EBMXV02.0N47 | K118: Car | L118: 183 | M118: 4 | N118: 2.0-N47-F30 | O118: SA | P118: Semi-Automatic | Q118: 8 | R118: Y | S118: R | T118: 2-Wheel Drive, Rear | U118: 2 | V118: Top gear ratio < 1 | W118: 3750 | X118: 2.81 | Y118: 25.2 | Z118: 1 | AA118: Not eqipped | AB118: EBMX10024681 | AC118: MFR | AD118: No | AI118: 2 | AJ118: CVS 75 and later (w/o can. load) | AK118: 19 | AL118: Federal Cert Diesel 7-15 PPM Sulfur | AM118: FTP | AN118: 0.02995 | AO118: 0.035 | AP118: 241.11 | AQ118: 0.0087 | AR118: 0.00061 | AS118: 0.02553 | AT118: 0.01 | AU118: 42.2 | AV118: MPG | AW118: 42.92 | AX118: 39.87 | AY118: 46.89 | BD118: 42.9 | BE118: -0.364 | BF118: 0.02138 | BG118: NOXAD | BH118: NOx Adsorber | BI118: N | BJ118: N | BK118: No averaging
A119: 2017 | B119: BMW | C119: BMX | D119: 2017 BMW 328d | E119: BMW | F119: 328d | G119: F099010 | H119: 1 | I119: 2 | J119: EBMXV02.0N47 | K119: Car | L119: 183 | M119: 4 | N119: 2.0-N47-F30 | O119: SA | P119: Semi-Automatic | Q119: 8 | R119: Y | S119: R | T119: 2-Wheel Drive, Rear | U119: 2 | V119: Top gear ratio < 1 | W119: 3750 | X119: 2.81 | Y119: 25.2 | Z119: 1 | AA119: Not eqipped | AB119: EBMX10024681 | AC119: MFR | AD119: No | AI119: 2 | AJ119: CVS 75 and later (w/o can. load) | AK119: 19 | AL119: Federal Cert Diesel 7-15 PPM Sulfur | AM119: FTP | AN119: 0.02995 | AO119: 0.035 | AP119: 241.11 | AQ119: 0.0087 | AR119: 0.00061 | AS119: 0.02553 | AT119: 0.01 | AU119: 42.2 | AV119: MPG | AW119: 42.92 | AX119: 39.87 | AY119: 46.89 | BD119: 42.9 | BE119: -0.364 | BF119: 0.02138 | BG119: DPF | BH119: Diesel Particulate Filter | BI119: N | BJ119: N | BK119: No averaging
A120: 2017 | B120: BMW | C120: BMX | D120: 2017 BMW 328d | E120: BMW | F120: 328d | G120: F099010 | H120: 1 | I120: 2 | J120: EBMXV02.0N47 | K120: Car | L120: 183 | M120: 4 | N120: 2.0-N47-F30 | O120: SA | P120: Semi-Automatic | Q120: 8 | R120: Y | S120: R | T120: 2-Wheel Drive, Rear | U120: 2 | V120: Top gear ratio < 1 | W120: 3750 | X120: 2.81 | Y120: 25.2 | Z120: 1 | AA120: Not eqipped | AB120: EBMX10024681 | AC120: MFR | AD120: No | AI120: 2 | AJ120: CVS 75 and later (w/o can. load) | AK120: 19 | AL120: Federal Cert Diesel 7-15 PPM Sulfur | AM120: FTP | AN120: 0.02995 | AO120: 0.035 | AP120: 241.11 | AQ120: 0.0087 | AR120: 0.00061 | AS120: 0.02553 | AT120: 0.01 | AU120: 42.2 | AV120: MPG | AW120: 42.92 | AX120: 39.87 | AY120: 46.89 | BD120: 42.9 | BE120: -0.364 | BF120: 0.02138 | BG120: OC | BH120: Oxidation catalyst | BI120: N | BJ120: N | BK120: No averaging
A121: 2017 | B121: BMW | C121: BMX | D121: 2017 BMW 328d | E121: BMW | F121: 328d | G121: F099010 | H121: 1 | I121: 2 | J121: EBMXV02.0N47 | K121: Car | L121: 183 | M121: 4 | N121: 2.0-N47-F30 | O121: SA | P121: Semi-Automatic | Q121: 8 | R121: Y | S121: R | T121: 2-Wheel Drive, Rear | U121: 2 | V121: Top gear ratio < 1 | W121: 3750 | X121: 2.81 | Y121: 25.2 | Z121: 1 | AA121: Not eqipped | AB121: EBMX10024683 | AC121: MFR | AD121: No | AI121: 3 | AJ121: HWFE | AK121: 19 | AL121: Federal Cert Diesel 7-15 PPM Sulfur | AM121: HWY | AN121: 0.01035 | AO121: 0.0254 | AP121: 159.21 | AQ121: 0.0006 | AS121: 0.00884 | AT121: 0.01 | AU121: 64 | AV121: MPG | BD121: 42.9 | BE121: -0.364 | BF121: 0.02138 | BG121: OC | BH121: Oxidation catalyst | BI121: N | BJ121: N | BK121: No averaging
A122: 2017 | B122: BMW | C122: BMX | D122: 2017 BMW 328d | E122: BMW | F122: 328d | G122: F099010 | H122: 1 | I122: 2 | J122: EBMXV02.0N47 | K122: Car | L122: 183 | M122: 4 | N122: 2.0-N47-F30 | O122: SA | P122: Semi-Automatic | Q122: 8 | R122: Y | S122: R | T122: 2-Wheel Drive, Rear | U122: 2 | V122: Top gear ratio < 1 | W122: 3750 | X122: 2.81 | Y122: 25.2 | Z122: 1 | AA122: Not eqipped | AB122: EBMX10024683 | AC122: MFR | AD122: No | AI122: 3 | AJ122: HWFE | AK122: 19 | AL122: Federal Cert Diesel 7-15 PPM Sulfur | AM122: HWY | AN122: 0.01035 | AO122: 0.0254 | AP122: 159.21 | AQ122: 0.0006 | AS122: 0.00884 | AT122: 0.01 | AU122: 64 | AV122: MPG | BD122: 42.9 | BE122: -0.364 | BF122: 0.02138 | BG122: NOXAD | BH122: NOx Adsorber | BI122: N | BJ122: N | BK122: No averaging
A123: 2017 | B123: BMW | C123: BMX | D123: 2017 BMW 328d | E123: BMW | F123: 328d | G123: F099010 | H123: 1 | I123: 2 | J123: EBMXV02.0N47 | K123: Car | L123: 183 | M123: 4 | N123: 2.0-N47-F30 | O123: SA | P123: Semi-Automatic | Q123: 8 | R123: Y | S123: R | T123: 2-Wheel Drive, Rear | U123: 2 | V123: Top gear ratio < 1 | W123: 3750 | X123: 2.81 | Y123: 25.2 | Z123: 1 | AA123: Not eqipped | AB123: EBMX10024683 | AC123: MFR | AD123: No | AI123: 3 | AJ123: HWFE | AK123: 19 | AL123: Federal Cert Diesel 7-15 PPM Sulfur | AM123: HWY | AN123: 0.01035 | AO123: 0.0254 | AP123: 159.21 | AQ123: 0.0006 | AS123: 0.00884 | AT123: 0.01 | AU123: 64 | AV123: MPG | BD123: 42.9 | BE123: -0.364 | BF123: 0.02138 | BG123: SCR | BH123: Selective Catalytic Reduction | BI123: N | BJ123: N | BK123: No averaging
A124: 2017 | B124: BMW | C124: BMX | D124: 2017 BMW 328d | E124: BMW | F124: 328d | G124: F099010 | H124: 1 | I124: 2 | J124: EBMXV02.0N47 | K124: Car | L124: 183 | M124: 4 | N124: 2.0-N47-F30 | O124: SA | P124: Semi-Automatic | Q124: 8 | R124: Y | S124: R | T124: 2-Wheel Drive, Rear | U124: 2 | V124: Top gear ratio < 1 | W124: 3750 | X124: 2.81 | Y124: 25.2 | Z124: 1 | AA124: Not eqipped | AB124: EBMX10024683 | AC124: MFR | AD124: No | AI124: 3 | AJ124: HWFE | AK124: 19 | AL124: Federal Cert Diesel 7-15 PPM Sulfur | AM124: HWY | AN124: 0.01035 | AO124: 0.0254 | AP124: 159.21 | AQ124: 0.0006 | AS124: 0.00884 | AT124: 0.01 | AU124: 64 | AV124: MPG | BD124: 42.9 | BE124: -0.364 | BF124: 0.02138 | BG124: DPF | BH124: Diesel Particulate Filter | BI124: N | BJ124: N | BK124: No averaging
A125: 2017 | B125: BMW | C125: BMX | D125: 2017 BMW 328d | E125: BMW | F125: 328d | G125: F099010 | H125: 2 | I125: 2 | J125: EBMXV02.0N47 | K125: Car | L125: 183 | M125: 4 | N125: 2.0-N47-F30 | O125: SA | P125: Semi-Automatic | Q125: 8 | R125: Y | S125: R | T125: 2-Wheel Drive, Rear | U125: 2 | V125: Top gear ratio < 1 | W125: 3750 | X125: 2.81 | Y125: 25.2 | Z125: 1 | AA125: Not eqipped | AB125: EBMX10024685 | AC125: MFR | AD125: No | AI125: 2 | AJ125: CVS 75 and later (w/o can. load) | AK125: 19 | AL125: Federal Cert Diesel 7-15 PPM Sulfur | AM125: FTP | AN125: 0.03664 | AO125: 0.0848 | AP125: 247.97 | AQ125: 0.0093 | AR125: 0.00022 | AS125: 0.0286 | AT125: 0.01 | AU125: 41 | AV125: MPG | AW125: 42.03 | AX125: 38.05 | AY125: 46.89 | BD125: 42.9 | BE125: -0.364 | BF125: 0.02138 | BG125: SCR | BH125: Selective Catalytic Reduction | BI125: N | BJ125: N | BK125: No averaging
... 156 more rows

Sheet timeBasedResVarList (hidden)
A1: =TRANSPOSE(IF(ISTEXT('Veh Model'!timeBasedVariables),'Veh Model'!timeBasedVariables,"")) -> cycSecs
A2: cycMps
A3: cycGrade
A4: cycRoadType
A5: cycMph
A6: secs
A8: curMaxFsKwOut
A9: fcTransLimKw
A10: fcMaxKwIn
A11: fcFsLimKw
A12: curMaxFcKwOut
A13: essCapLimDischgKw
A14: curMaxEssKwOut
A15: essCapLimChgKw
A16: curMaxEssChgKw
A17: curMaxRoadwayChgKw
A18: curMaxElecKw
A19: curMaxAvailElecKw
A20: mcElecInLimKw
A21: mcTransiLimKw
A22: curMaxMcKwOut
A23: curMaxMcElecKwIn
A24: essLimMcRegenPercKw
A25: essLimMcRegenKw
A26: curMaxMechMcKwIn
A27: curMaxTransKwOut
A29: cycDragKw
A30: cycAccelKw
A31: cycAscentKw
A32: cycTracKwReq
A33: spareTracKw
A34: cycRrKw
A35: cycWheelRadPerSec
A36: cycTireInertiaKw
A37: cycWheelKwReq
A38: regenContrLimKwPerc
A39: cycRegenBrakeKw
A40: cycFricBrakeKw
A41: cycTransKwOutReq
A42: cycMet
A43: transKwOutAch
A44: transKwInAch
A45: minMcKw2HelpFc
A46: regenBufferSoc
A47: essRegenBufferDischgKw
A48: maxEssRegenBufferChgKw
A49: accelBufferSoc
A50: essAccelBufferChgKw
A51: maxEssAccelBufferDischgKw
A52: essAccelRegenDischgKw
A53: fcKwGap4Eff
A54: mcElectInKwForMaxFcEff
A55: electKwReq4AE
A56: canPowerAllElectrically
A57: desiredEssKwOutForAE
A58: essAEKwOut
A59: erAEKwOut
A60: fcForcedOn
A61: fcForcedState
A62: fcKw4ForcedFc
A63: mcMechKw4ForcedFc
A64: essDesiredKw4FcEff
A65: essKwIfFcIsReq
A66: erKwIfFcIsReq
A67: mcElecKwInIfFcIsReq
A68: mcKwIfFcIsReq
A69: mcMechKwOutAch
A70: mcElecKwInAch
A71: auxInKw
A72: roadwayChgKwOutAch
A73: minEssKw2HelpFc
A74: essKwOutAch
A75: fcKwOutAch
A76: fcKwInAch
A77: fsKwOutAch
A79: mpsAch
A80: mphAch
A86: highAccFcOnTag
A87: soc
A88: reachedBuff
A89: essCurKwh
A90: addKwh
A91: dodCycs
A92: essPercDeadArray
A93: essLossKw
A94: dragKw
A95: accelKw
A96: ascentKw
A97: rrKw
A98: wheelRadPerSec
A99: prevWheelRadPerSec
A100: tireInertiaKw
A101: maxTracMps
A102: curMaxTracKw
A103: fsKwhOutAch
A104: distMeters
A105: distMiles
A106: cumDistMiles
A107: cumGGE
A108: cumElecKwhUsed
A109: kWToRoadAch
A110: totalPowerInKw
A111: totalPowerLossKw
A112: powerToKEandPE
A113: energyAuditErrKw
A114: fcTimeOn
A134: traceMissMph
A137: prevFsKwOutAch
A138: prevHighAccFcOnTag
A139: prevFcKwOutAch
A140: prevMcKwOutAch
A141: prevMpsAch
A142: prevSoc
A143: prevKwh
A144: prevfcTimeOn
A145: fcEff

Sheet BatchCyclesOrder (hidden)
A1: 2 | B1: 34
A2: 1 | B2: 768
A3: 5 | B3: 1372
A4: 3 | B4: 1534
A5: 4 | B5: 4598

Sheet SavedVehs (hidden)
Y1: 2.127659574
A2: Selection | B2: Scenario name | C2: vehPtType | D2: dragCoef | E2: frontalAreaM2 | F2: gliderKg | G2: vehCgM | H2: driveAxleWeightFrac | I2: wheelBaseM | J2: cargoKg | K2: vehOverrideKg | N2: maxFuelStorKw | O2: fuelStorSecsToPeakPwr | P2: fuelStorKwh | Q2: fuelStorKwhPerKg | T2: maxFuelConvKw | U2: fcEffType | V2: fcRelEffImpr | W2: fuelConvSecsToPeakPwr | X2: fuelConvBaseKg | Y2: fuelConvKwPerKg | Z2: minFcTimeOn | AC2: maxMotorKw | AD2: motorPeakEff | AE2: motorSecsToPeakPwr | AF2: mcPeKgPerKw | AG2: mcPeBaseKg | AJ2: maxEssKw | AK2: maxEssKwh | AL2: essKgPerKwh | AM2: essBaseKg | AN2: essRoundTripEff | AO2: essLifeCoefA | AP2: essLifeCoefB | AS2: wheelInertriaKgM2 | AT2: numWheels | AU2: wheelRrCoef | AV2: wheelRadiusM | AW2: wheelCoefOfFric | AZ2: minSoc | BA2: maxSoc | BB2: essDischgToFcMaxEffPerc | BC2: essChgToFcMaxEffPerc | BD2: maxAccelBufferMph | BE2: maxAccelBufferPercOfUseableSoc | BF2: percHighAccBuf | BG2: mphFcOn | BH2: kwDemandFcOn | BK2: altEff | BL2: chgEff | BM2: auxKw | BN2: forceAuxOnFC | BO2: transKg | BP2: transEff | BQ2: compMassMultiplier | BR2: essToFuelOkError | BS2: maxRegen | BV2: valUddsMpgge | BW2: valHwyMpgge | BX2: valCombMpgge | BY2: valUddsKwhPerMile | BZ2: valHwyKwhPerMile | CA2: valCombKwhPerMile | CB2: valCdRangeMi | CC2: valConst65MphKwhPerMile | CD2: valConst60MphKwhPerMile | CE2: valConst55MphKwhPerMile | CF2: valConst45MphKwhPerMile | CG2: valUnadjUddsKwhPerMile | CH2: valUnadjHwyKwhPerMile | CI2: val0To60Mph | CJ2: valEssLifeMiles | CK2: valRangeMiles | CL2: valVehBaseCost | CM2: valMsrp
A3: 1 | B3: 2016 TOYOTA Corolla 4cyl 2WD | C3: 1 | D3: 0.3 | E3: 2.574 | F3: 1045.636 | G3: 0.53 | H3: 0.61 | I3: 2.6 | J3: 136 | N3: 2000 | O3: 1 | P3: 441 | Q3: 9.89 | T3: 98 | U3: 1 | V3: 0 | W3: 6 | X3: 61 | Y3: 2.13 | Z3: 30 | AC3: 0 | AD3: 0.95 | AE3: 4 | AF3: 0.833 | AG3: 21.6 | AJ3: 0 | AK3: 0 | AL3: 8 | AM3: 75 | AN3: 0.97 | AO3: 110 | AP3: -0.6811 | AS3: 0.815 | AT3: 4 | AU3: 0.01 | AV3: 0.336 | AW3: 0.8 | AZ3: 0.1 | BA3: 0.95 | BB3: 0 | BC3: 0 | BD3: 60 | BE3: 0.2 | BF3: 0 | BG3: 55 | BH3: 100 | BK3: 1 | BL3: 0.86 | BM3: 0.7 | BN3: FALSE | BO3: 114 | BP3: 0.92 | BQ3: 1.4 | BR3: 0.005 | BS3: 0.98 | BV3: 27 | BW3: 36 | BX3: 31 | CI3: 9.9
A4: 2 | B4: 2016 HYUNDAI Elantra 4cyl 2WD | C4: 1 | D4: 0.3 | E4: 2.611 | F4: 1090.626 | G4: 0.53 | H4: 0.59 | I4: 2.6 | J4: 136 | N4: 2000 | O4: 1 | P4: 468 | Q4: 9.89 | T4: 110 | U4: 1 | V4: 0 | W4: 6 | X4: 61 | Y4: 2.13 | Z4: 30 | AC4: 0 | AD4: 0.95 | AE4: 4 | AF4: 0.833 | AG4: 21.6 | AJ4: 0 | AK4: 0 | AL4: 8 | AM4: 75 | AN4: 0.97 | AO4: 110 | AP4: -0.6811 | AS4: 0.815 | AT4: 4 | AU4: 0.012 | AV4: 0.336 | AW4: 0.7 | AZ4: 0.4 | BA4: 0.8 | BB4: 0 | BC4: 0 | BD4: 60 | BE4: 0.2 | BF4: 0 | BG4: 30 | BH4: 100 | BK4: 1 | BL4: 0.86 | BM4: 0.7 | BN4: FALSE | BO4: 114 | BP4: 0.92 | BQ4: 1.4 | BR4: 0.005 | BS4: 0.98 | BV4: 27 | BW4: 37 | BX4: 31 | CI4: 9.9
